Workbook

Sheet Titolare
B2: Titolo | S2: a) Poni Massimale Ristrutturazione = 96.000*nUimm - Importo Sismabonus (Massimale Unico)
B3: Cognome | I3: Importa Dati da Pratica110+ / Pratica.SB | S3: b) Poni Massimale Ristrutturazione = 0 (non consentire Ristrutturazione)
B4: Nome | S4: c) Consenti Ristrutturazione: Massimale = 96.000*nUimm (massimale doppio)
B5: Codice Fiscale | I5: Cumulo Sismabonus/Ristrutturazione - In presenza di Sismabonus:
B6: P.Iva | I6: 1
B7: Indirizzo
B8: CAP | I8: TRUE
B9: Città | I9: =IF(I8=FALSE,IF('Dati Gen'!E14 > DATEVALUE("16/04/2022")," Attenzione la Data di Inizio Lavori specificata: " & TEXT('Dati Gen'!E14,"GG/MM/AAAA") & " è successiva al 16/04/2022",""),"") -> 
B10: Provincia | I10: Progetto Originario: | L10: nomefile
B11: Telefono | I11: Imposta presente File come Variante a precedente progetto. Copia i SAL (30%, 60%) già registrati dal precedente progetto al presente progetto e ne impedisce la modifica. Se richiesto, in fase di creazione delle Fatture, nei SAL successivi, verrà detratto l'importo già Liquidato nei SAL precedenti.
B12: Mail
B13: Codice Univoco
B14: Mail/Pec | I14: Fatturazione Interventi Trainati U.Imm. Condominio | Q14: (Interventi Trainanti e Trainati Parti Comuni fatturati al Condominio)
A15: TRUE | I15: Imprese | Q15: 1 | S15: a) Crea 1 Fattura per ogni Condomino titolare di diritti sull'Unità Immobiliare
B16: Versione Demo | I16: Tecnici | Q16: 1 | S16: b) Crea Unica Fattura - mandato senza rappresentanza dal singolo condomino al Condominio (art.3 DPR 633/72)
C17: PC-MARIO3
B18: =IF(B16="Versione Demo","Acquista Pratica.SB","") -> Acquista Pratica.SB | I18: Opzioni Fatturazione
B19: =IF(B16="Versione Demo",HYPERLINK("https://www.madosoft.it/negozio/superbonus/praticasb"),"") -> https://www.madosoft.it/negozio/superbonus/praticasb | I19: TRUE
I20: TRUE | S20: Dati Generali Fattura Elettronica
S21: Trasmittente | T21: Dati Trasmissione
I22: NOTE | S22: IdPaese | T22: IT | U22: N.progressivo | V22: 2
B23: Guida online | C23: https://www.madosoft.it/prodotti/superbonus/pratica-sb-xlsm | I23: - Se condominio Minimo Rappresentato da Condomino indicare : CF condominio = CF Committente | S23: IdCodice | T23: 01879020517 | U23: Formato | V23: FPR12
B24: Introduzione | I24: - Se condominio rappresentato da Amministratore Tizio : Indicare tra i tecnici "Amministratore Tizio"
B25: Download
B26: Attivazione Software
B27: Dati Generali
B28: Tipologia Edificio
B29: Dati Progetto
B30: Committenti
B31: Unità Immobiliari
B32: Computo Massimali
B33: Interventi Trainanti
B34: Interventi Trainati Parti Comuni condominiali
B35: Interventi Trainanti Unità Immobiliari

Sheet Dati Gen
B1: https://www.madosoft.it/prodotti/superbonus/pratica-sb-xlsm | P1: 1 | Q1: 1
A2: 0 | K2: Pratica.SB | Q2: Edificio Unifamiliare
B3: BARRIERE ARCH. | D3: % Detrazione spettante | G3: 0.75 | K3: Vers.ne | L3: 2024.1.0 | M3: del 10/01/2024 | Q3: 1
B4: Tipologia Immobile | K4: ©2021-2023 SIM srl - www.madosoft.it
B5: 1 | F5: 2 | G5: 1 | H5: =IF(TipoEdif=2,"Denominazione : ","") ->  | Q5: Edificio Unifamiliare
B6: =IF(TipoEdif=1, IF(N_Uimm>1,"Inserire N.Unità Immobiliari =1",""),IF(N_Uimm<=1,"Inserire N.Unità Immobiliari >=2","")) ->  | H6: =IF(TipoEdif=2,"Codice Fiscale : ","") ->  | Q6: Condominio
B7: Dati Edificio | Q7: 1
B8: Comune di Ubicazione | E8: Roma | M8: CAP | N8: 90000 | Q8: =Q7+1 -> 2
B9: Indirizzo | E9: Viale D | K9: N. | L9: 60 | M9: Zona | N9: D | Q9: =Q8+1 -> 3
B10: =IF(TipoEdif=2,"Dati Catastali 1ª U.I.","Dati Catastali") -> Dati Catastali | C10: Cod.Comune | E10: C100 | F10: Foglio | G10: 12 | H10: Particella | J10: 510 | K10: Sub. | L10: 4 | M10: CAT. | N10: A/7 | Q10: 4
B11: Anno di Costruzione Immobile | E11: 1940 | H11: Superficie Totale Disperdente : | N11: 814.47 | Q11: 5
B12: Autorizzazione Edilizia | E12: Licenza Edilizia / Titolo Edilizio | K12: =IF(E12="Edificio Storico senza Titolo Edilizio","","N.") -> N. | L12: 10 | M12: =IF(E12="Edificio Storico senza Titolo Edilizio","","Data") -> Data | N12: 1950-01-28 | Q12: 6
B13: Relazione ex Legge 10/91 Depositata al Comune in Data | K13: Prot.N. | Q13: 7
B14: Data Inizio Lavori | G14: Immobile Vincolato/Restriz.Edilizie | K14: NO | L14: Edilizia Libera | N14: NO | Q14: 8
B15: =IF(E14>DATEVALUE("16/04/2022"),IF(Titolare!I8=FALSE,"Attenzione Data Inizio Lavori successiva a 16/04/2022 , occorrerebbe applicare Decreto MITE",""),"") ->  | Q15: 9
B16: DATI DI PROGETTO | C16: Oggetto Lavori : | F16: Eliminazione Barriere Architettoniche | Q16: 10
B17: Descrizione | F17: Imponibile | J17: %iva | K17: IVA | M17: Totale | Q17: 11
B18: Importo complessivo Lavori | G18: 39800 | J18: 0.1 | K18: =G18*J18 -> 3980 | M18: =G18+K18 -> 43780 | Q18: 12
B19: di cui Oneri/Lavori x Sicurezza | G19: 0 | J19: =J18 -> 0.1 | K19: =G19*J19 -> 0 | M19: =G19+K19 -> 0 | Q19: 13
B20: Importo Lavori al netto della Sicurezza | G20: =G18-G19 -> 39800 | J20: =J18 -> 0.1 | K20: =G20*J20 -> 3980 | M20: =G20+K20 -> 43780 | Q20: 14
B21: Spese tecniche (compresa iva) | G21: =M36 -> 6101.26841 | M21: =G21 -> 6101.26841 | Q21: 15
G22: Importo Complessivo Progetto | M22: =M18+M21 -> 49881.26841 | Q22: 16
Q23: 17
B24: SPESE TECNICHE | C24: Tecnico | E24: Onorario | G24: C.Cassa | J24: IVA | M24: Totale | Q24: 18 | S24: Foto 1
B25: Progettazione Architettonica, strutturale, Dir.Lav. Misure e contabilità | C25: Tecnico1 | E25: 3600 | G25: 0.04 | H25: =E25*G25 -> 144 | J25: 0.22 | K25: =(E25+H25)*J25 -> 823.68 | M25: =E25+H25+K25 -> 4567.68 | Q25: 19 | R25: =IF(COUNTIF($O$38:$O$42,"X")>0,IF(C25<>"",IFERROR(IF(VLOOKUP(C25,$B$44:$D$51,3,FALSE)="NO",IF(J25=0,CONCATENATE("🙁 Attenzione, ",C25,": esente iva (Forfettario) dovrebbe applicare sconto in fattura. Le relative competenze saranno inserite nella Fattura del G.C. come rimborso spese con IVA=0 <<<<<< Consulenti non d'accordo. CONSIGLIO: Inserire IVA"),""),""),""),""),"") -> 
G26: 0.04 | H26: 0 | J26: 0.22 | K26: 0 | M26: =E26+H26+K26 -> 0 | Q26: 20 | R26: =IF(COUNTIF($O$38:$O$42,"X")>0,IF(C26<>"",IFERROR(IF(VLOOKUP(C26,$B$44:$D$51,3,FALSE)="NO",IF(J26=0,CONCATENATE("🙁 Attenzione, ",C26,": esente iva (Forfettario) dovrebbe applicare sconto in fattura. Le relative competenze saranno inserite nella Fattura del G.C. come rimborso spese con IVA=0 <<<<<< Consulenti non d'accordo. CONSIGLIO: Inserire IVA"),""),""),""),""),"") -> 
G27: 0.04 | H27: 0 | J27: 0 | K27: 0 | M27: =E27+H27+K27 -> 0 | Q27: 21
G28: 0.04 | H28: 0 | J28: 0.22 | K28: 0 | M28: 0 | Q28: 22
G29: 0.04 | H29: 0 | J29: 0.22 | K29: 0 | M29: 0 | Q29: 23
G30: 0.04 | H30: 0 | J30: 0.22 | K30: 0 | M30: 0 | Q30: 24
G31: 0.04 | H31: 0 | J31: 0.22 | K31: 0 | M31: 0 | Q31: 25
G32: 0.04 | H32: 0 | J32: 0.22 | K32: 0 | M32: 0 | Q32: 26
E33: =SUM(E25:F32) -> 3600 | H33: =SUM(H25:I32) -> 144 | K33: =SUM(K25:L32) -> 823.68 | M33: =SUM(M25:N32) -> 4567.68 | Q33: 27
E34: onorario | G34: c.cassa | J34: iva | M34: totale | Q34: 28
B35: Visto Conformità | C35: Consulente | D35: 0.025 | E35: =(M18+M33)*D35 -> 1208.692 | G35: 0.04 | H35: =E35*G35 -> 48.34768 | J35: 0.22 | K35: =(E35+H35)*J35 -> 276.5487296 | M35: =E35+H35+K35 -> 1533.58841 | Q35: 29 | R35: =IF(COUNTIF($O$38:$O$42,"X")>0,IF(C35<>"",IFERROR(IF(VLOOKUP(C35,$B$44:$D$51,3,FALSE)="NO",IF(J35=0,CONCATENATE("🙁 Attenzione, ",C35,": esente iva (Forfettario) dovrebbe applicare sconto in fattura. Le relative competenze saranno inserite nella Fattura del G.C. come rimborso spese con IVA=0 <<<<<< Consulenti non d'accordo. CONSIGLIO: Inserire IVA"),""),""),""),""),"") -> 
E36: =E33+E35 -> 4808.692 | H36: =H33+H35 -> 192.34768 | K36: =K33+K35 -> 1100.22873 | M36: =M33+M35 -> 6101.26841 | Q36: 30 | R36: =IF(COUNTIF($O$38:$O$42,"X")>1,"Indicare Solo 1 General Contractor","") -> 
B37: IMPRESE | D37: Sc.to | E37: Indirizzo | G37: Città | J37: CodFisc/Piva | L37: Tel./Mail | N37: Dati Pagamento | O37: GC | Q37: 31
B38: Impresa1 | D38: SI | J38: CF1 | Q38: 32
B39: Impresa2 | D39: NO | J39: CF2 | Q39: 33
B40: Impresa3 | D40: NO | J40: CF3 | Q40: 34
B41: Impresa4 | D41: NO | J41: CF4 | Q41: 35
D42: NO | Q42: 36
B43: TECNICI | D43: Sc.to | E43: Indirizzo | G43: Città | J43: CodFisc/Piva | L43: Tel./Mail | N43: Dati Pagamento | O43: NB | Q43: 37
B44: Tecnico1 | D44: NO | E44: Via Libertà n.3 | G44: 90020 Castellana Sicula (PA) | J44: CF1 | L44: 0921642861/ingmario@madosoft.it | N44: Bonifico Bancario | Zafonte Mario | Banca Unicredit | IBAN : IT35S0200843240000300246664 | Q44: 38
B45: Tecnico2 | D45: NO | J45: CF2 | Q45: 39
B46: Consulente | D46: NO | J46: CF3 | Q46: 40
D47: NO | Q47: 41
D48: NO | Q48: 42
D49: NO | Q49: 43
D50: NO | Q50: 44
D51: NO | Q51: 45
Q52: 46 | S52: Foto 2
Q53: 47
Q54: 48
Q55: 49
Q56: 50
Q57: 51
Q58: 52
Q59: 53
Q60: 54
Q61: 55
Q62: 56
Q63: 57
Q64: 58
Q65: 59
Q66: 60
Q67: 61
Q68: 62
Q69: 63
Q70: 64
Q71: 65
Q72: 66
Q73: =Q72+1 -> 67
Q74: 68
Q75: 69
Q76: 70
Q77: 71
Q78: 72
Q79: 73
Q80: 74
Q81: 75
Q82: 76
Q83: 77
Q84: 78
Q85: 79
Q86: 80
Q87: 81
Q88: 82
Q89: 83
Q90: 84
Q91: 85
Q92: 86
Q93: 87
Q94: 88
Q95: 89
Q96: 90
Q97: 91
Q98: 92
Q99: 93
Q100: 94
Q101: 95
Q102: 96
Q103: 97
Q104: 98
Q105: 99
Q106: 100
Q107: 101
Q108: 102
Q109: 103
Q110: 104
Q111: 105
Q112: 106
Q113: 107
Q114: 108
Q115: 109
Q116: 110
Q117: 111
Q118: 112
Q119: 113
Q120: 114
Q121: 115
Q122: 116
Q123: 117
Q124: 118
Q125: 119
Q126: 120
Q127: 121
Q128: 122
Q129: 123
Q130: 124
Q131: 125
Q132: 126
Q133: 127
Q134: 128
Q135: 129
Q136: 130
Q137: =Q136+1 -> 131
Q138: 132
Q139: 133
Q140: 134
Q141: 135
Q142: 136
Q143: 137
Q144: 138
Q145: 139
Q146: 140
Q147: 141
Q148: 142
Q149: 143
Q150: 144
Q151: 145
Q152: 146
Q153: 147
Q154: 148
Q155: 149
Q156: 150
Q157: 151
Q158: 152
Q159: 153
Q160: 154
Q161: 155
Q162: 156
Q163: 157
Q164: 158
Q165: 159
Q166: 160
Q167: 161
Q168: 162
Q169: 163
Q170: 164
Q171: 165
Q172: 166
Q173: 167
Q174: 168
Q175: 169
Q176: 170
Q177: 171
Q178: 172
Q179: 173
Q180: 174
Q181: 175
Q182: 176
Q183: 177
Q184: 178
Q185: 179
Q186: 180
Q187: 181
Q188: 182
Q189: 183
Q190: 184
Q191: 185
Q192: 186
Q193: 187
Q194: 188
Q195: 189
Q196: 190
Q197: 191
Q198: 192
Q199: 193
Q200: 194
... 806 more rows

Sheet Committenti
B1: Elenco Committenti | O1: =CONCATENATE('Dati Gen'!K2, " ",'Dati Gen'!K3," ",'Dati Gen'!L3) -> Pratica.SB Vers.ne 2024.1.0
B2: Cognome | C2: Nome | D2: Codice Fiscale | E2: Sesso | F2: Data Nascita | G2: Nazione Nasc | H2: Comune Nascita | I2: Nazione Res. | J2: Comune Residenza | K2: Prov. | L2: Indirizzo | M2: CAP | N2: Telefono | O2: Mail
A3: =IF(D3<>"",1,"") -> 1 | B3: Tizio | C3: Caio | D3: TZICAI25P67K411T | E3: F | F3: 17/02/1992 | G3: Italia | H3: Roma | I3: Italia | J3: Roma | K3: PA | L3: Via X1 | M3: 90000 | N3: 35050505
A4: =IF(D4<>"", IF(D3<>"",A3+1,""),"") -> 2 | B4: Rossi | C4: Mario | D4: RSSMRA90I89C145D | E4: M | F4: 10/12/1991 | G4: Italia | H4: Roma | I4: Italia | J4: Roma | K4: PA | L4: Via X2
A5: =IF(D5<>"", IF(D4<>"",A4+1,""),"") -> 
A7: =IF(D7<>"", IF(D6<>"",A6+1,""),"") -> 
A69: =IF(D69<>"", IF(D68<>"",A68+1,""),"") -> 
A133: =IF(D133<>"", IF(D132<>"",A132+1,""),"") -> 
A197: =IF(D197<>"", IF(D196<>"",A196+1,""),"") -> 
A261: =IF(D261<>"", IF(D260<>"",A260+1,""),"") -> 
A325: =IF(D325<>"", IF(D324<>"",A324+1,""),"") -> 
A389: =IF(D389<>"", IF(D388<>"",A388+1,""),"") -> 
A453: =IF(D453<>"", IF(D452<>"",A452+1,""),"") -> 
A517: =IF(D517<>"", IF(D516<>"",A516+1,""),"") -> 
A581: =IF(D581<>"", IF(D580<>"",A580+1,""),"") -> 
A645: =IF(D645<>"", IF(D644<>"",A644+1,""),"") -> 
A709: =IF(D709<>"", IF(D708<>"",A708+1,""),"") -> 
A773: =IF(D773<>"", IF(D772<>"",A772+1,""),"") -> 
A837: =IF(D837<>"", IF(D836<>"",A836+1,""),"") -> 
A901: =IF(D901<>"", IF(D900<>"",A900+1,""),"") -> 
A965: =IF(D965<>"", IF(D964<>"",A964+1,""),"") -> 

Sheet UnitàImmobiliari (hidden)
B1: Elenco Unità Immobiliari | G1: Millesimi | I1: Beneficiario 1 | L1: Beneficiario 2 | O1: Beneficiario 3 | U1: Elenco Unità Immobiliari | X1: Beneficiario 4 | AA1: Beneficiario 5 | AD1: Beneficiario 6 | AJ1: CONDOMINI | AL1: =COUNT(Committenti!A:A) -> 2
B2: Foglio | C2: Particella | D2: Sub. | E2: Categoria | F2: Superficie | G2: Involucro | H2: Impianti | I2: Codice Fiscale | J2: Titolo Possesso | K2: %Detr./Possesso | L2: Codice Fiscale | M2: Titolo Possesso | N2: %Detr./Possesso | O2: Codice Fiscale | P2: Titolo Possesso | Q2: %Detr./Possesso | U2: Foglio | V2: Particella | W2: Sub. | X2: Codice Fiscale | Y2: Titolo Possesso | Z2: %Detr./Possesso | AA2: Codice Fiscale | AB2: Titolo Possesso | AC2: %Detr./Possesso | AD2: Codice Fiscale | AE2: Titolo Possesso | AF2: %Detr./Possesso | AG2: Tot.Possesso | AJ2: Codice Fiscale | AK2: Cognome Nome
A3: 1 | B3: =nFoglio1 -> 12 | C3: =nPlla1 -> 510 | D3: =nSUB1 -> 4 | E3: =Categoria1 -> A/7 | F3: 101 | G3: =1000*F3/SUM(F3:F3) -> 1000 | H3: =G3 -> 1000 | I3: TZICAI25P67K411T | J3: Proprietario | K3: 1 | S3: =IF(AG3<>1,"%D.<>100","") ->  | T3: 1 | U3: =B3 -> 12 | V3: =C3 -> 510 | W3: =D3 -> 4 | AG3: =K3+N3+Q3+Z3+AC3+AF3 -> 1 | AJ3: =IF(Committenti!D3<>"",Committenti!D3,"") -> TZICAI25P67K411T | AK3: =IF(AJ3<>"",Committenti!B3 & " " & Committenti!C3,"") -> Tizio Caio
A4: =A3+1 | G4: =SOMMA(G3:G3) | H4: =SOMMA(H3:H3) | S4: =IF(AG4<>1,"%D.<>100","") -> %D.<>100 | T4: 1 | U4: =B4 -> 0 | V4: 0 | W4: 0 | AG4: =K4+N4+Q4+Z4+AC4+AF4 -> 0 | AJ4: =IF(Committenti!D4<>"",Committenti!D4,"") -> RSSMRA90I89C145D | AK4: =IF(AJ4<>"",Committenti!B4 & " " & Committenti!C4,"") -> Rossi Mario
G5: =IF(ABS(G4-1000)>0.001,"Attenzione! Somma Millesimi Involucro <> 1.000","") ->  | H5: =IF(ABS(H4-1000)>0.001,"Attenzione! Somma Millesimi Impianti <> 1.000","") -> 

Sheet Computo-Massimali
P1: =MATCH("SimMZ",C:C,0) -> 78
Q2: Condominio | R2: Edificio Unifamiliare | T2: TRUE | X2: FALSE
C3: Verifica Massimali Superbonus | F3: =CONCATENATE(IF('Dati Gen'!E9<>"",'Dati Gen'!E9,""),IF('Dati Gen'!L9<>"",CONCATENATE(" , ",'Dati Gen'!L9),""),IF('Dati Gen'!E8<>"",CONCATENATE(" - ",'Dati Gen'!E8),"")) -> Viale D , 60 - Roma | M3: =CONCATENATE('Dati Gen'!K2, " ",'Dati Gen'!K3," ",'Dati Gen'!L3) -> Pratica.SB Vers.ne 2024.1.0 | Q3: 2 | R3: 1
C4: =IF(TipoEdif=1,'Dati Gen'!Q5,'Dati Gen'!Q6) -> Edificio Unifamiliare | D4: =IF('Dati Gen'!G5>1,CONCATENATE('Dati Gen'!G5," U.Imm 1ª"),"") ->  | F4: =CONCATENATE(Committenti!B3, " ", Committenti!C3," ", IF('Dati Gen'!G10<>"","FG." & 'Dati Gen'!G10 & " ",""),IF('Dati Gen'!J10<>"","P.LLA." & 'Dati Gen'!J10 & " ",""),IF('Dati Gen'!L10<>"","Sub." & 'Dati Gen'!L10 & " ","")) -> Tizio Caio FG.12 P.LLA.510 Sub.4 | M4: ='Dati Gen'!K4 -> ©2021-2023 SIM srl - www.madosoft.it
C6: =IF(ABS(F100-'Dati Gen'!G20)>0.01,"Importo Lavori al Netto della Sicurezza =",IF(ABS(G100-'Dati Gen'!G19)>0.01,"Importo Sicurezza da Progetto =",IF(ABS(H100-'Dati Gen'!G18)>0.01,"Importo Lavori da Progetto =",IF(ABS('Dati Gen'!M21-K100)>0.01,"Importo Spese Tecniche da Progetto =","")))) ->  | F6: =IF(ABS(F100-'Dati Gen'!G20)>0.01,'Dati Gen'!G20,IF(ABS(G100-'Dati Gen'!G19)>0.01,'Dati Gen'!G19,IF(ABS(H100-'Dati Gen'!G18)>0.01,'Dati Gen'!G18,IF(ABS('Dati Gen'!M21-K100)>0.01,'Dati Gen'!M21,"")))) ->  | G6: =IF(C6<>"","DIVERSO da","") ->  | I6: =IF(ABS(F100-'Dati Gen'!G20)>0.01,"Somma Importo Lavori =",IF(ABS(G100-'Dati Gen'!G19)>0.01,"Somma Incidenza Sicurezza =",IF(ABS(H100-'Dati Gen'!G18)>0.01,"Somma Imponibili =",IF(ABS('Dati Gen'!M21-K100)>0.01,"Somma Spese Tecniche =","")))) ->  | K6: =IF(ABS(F100-'Dati Gen'!G20)>0.01,F100,IF(ABS(G100-'Dati Gen'!G19)>0.01,G100,IF(ABS(H100-'Dati Gen'!G18)>0.01,H100,IF(ABS('Dati Gen'!M21-K100)>0.01,K100,"")))) ->  | L6: =IF(C6<>"","Completare Tabella Interventi","") -> 
C7: INTERVENTI TRAINANTI | N7: .. | Q7: Asseverabile | R7: =CONCATENATE("Spesa detraibile ammissibile ",C7) -> Spesa detraibile ammissibile INTERVENTI TRAINANTI | AF7: Spesa Massima Ammissibile (norma primaria) | AJ7: =CONCATENATE("Spesa Specifica MITE - ",C7) -> Spesa Specifica MITE - INTERVENTI TRAINANTI | BI7: =CONCATENATE("Ripartizione tra le Imprese - Imponibile Lavori ",C7) -> Ripartizione tra le Imprese - Imponibile Lavori INTERVENTI TRAINANTI
C8: Interventi | F8: Importo Lavori | G8: Incidenza Sicurezza | H8: Imponibile | I8: Iva | J8: Importo c.iva | K8: Spese tecniche | L8: Totale | M8: =CONCATENATE("Credito Spettante ", percDetr*100,"% Spesa Ammessa") -> Credito Spettante 75% Spesa Ammessa | R8: Interventi | S8: Superficie Intervento / UnitàMisura | T8: Min(Spesa Max Ammissibile;Spesa Max Intervento) | U8: Verifica Max | W8: Spesa Ammessa | Y8: Quota Eccedente Spesa detraibile Ammessa | AA8: =CONCATENATE("Credito Spettante",CHAR(10), percDetr*100,"% Spesa Ammessa",CHAR(10),"Quota Imprese | Quota Tecnici") -> Credito Spettante 75% Spesa Ammessa Quota Imprese | Quota Tecnici | AF8: Interventi | AG8: Spesa Massima Ammissibile | AH8: Ver. Max | AJ8: Importo Lavori Fornitura e Posa | AK8: Costo dei Beni (Allegato A) | AL8: Opere per installazione (Sicurezza) | AM8: Manodopera | AN8: Spesa Max Ammissibile Asseverata | AO8: Altri Costi | AP8: Spese Tecniche | AQ8: IVA | AR8: Spesa di Intervento | AS8: Ver.Max | AU8: Altri Lavori | AV8: Importo Specifico DM Costi Massimi | AW8: Incremento Costo dei Beni (Allegato A) | AX8: Controllo1 | AY8: Importo Controllo1 | AZ8: Importo Controllo2 | BA8: Importo Controllo3 | BB8: Opere per Istallazione = Incidenza Sicurezza Fornitura / Superficie Intervento | BC8: SpesaSostenuta = Opera Compiuta | BD8: Spesa Tecniche = Spese Tecniche da Computo | BE8: Altri Costi = Altri Lavori | BF8: AliqIva | BG8: Superficie Riscaldata | BI8: Interventi | BJ8: =IF('Dati Gen'!$B$38<>"",'Dati Gen'!$B$38,"") -> Impresa1 | BK8: =IF('Dati Gen'!$B$39<>"",'Dati Gen'!$B$39,"") -> Impresa2 | BL8: =IF('Dati Gen'!$B$40<>"",'Dati Gen'!$B$40,"") -> Impresa3 | BM8: =IF('Dati Gen'!$B$41<>"",'Dati Gen'!$B$41,"") -> Impresa4 | BN8: =IF('Dati Gen'!$B$42<>"",'Dati Gen'!$B$42,"") -> 
C9: PV) Isolamento pareti perimetrali | E9: Esterno | F9: 0 | G9: 0 | H9: =SUM(F9:G9) -> 0 | I9: =H9*AliqIva -> 0 | J9: =H9+I9 -> 0 | K9: 0 | L9: =SUM(J9:K9) -> 0 | M9: =IF(L9<=T9,L9*percDetr,T9*percDetr) -> 0 | O9: .. | P9: Esegui | Q9: ok | R9: =CONCATENATE(C9," '",E9,"'") -> PV) Isolamento pareti perimetrali 'Esterno' | S9: 349.49 | T9: =MIN(AG9,AR9) -> 0 | U9: =IF(L9>T9,"ko","ok") -> ok | W9: =IF(L9<T9,L9,T9) -> 0 | Y9: =IF(L9>T9,L9-T9,0) -> 0 | AA9: =IF(M9<>0,J9*M9/L9,0) -> 0 | AC9: =IF(M9<>0,K9*M9/L9,0) -> 0 | AF9: =R9 -> PV) Isolamento pareti perimetrali 'Esterno' | AG9: =IF(TipoEdif=1,50000,IF(N_Uimm>8,40000*8+30000*(N_Uimm-8),40000*N_Uimm)) -> 50000 | AH9: =IF(L9>AG9,"ko","ok") -> ok | AJ9: 0 | AK9: =IF(ZonaClimatica="A",IF(E9="Parete Ventilata",240,IF(E9="Interno",96,180)),IF(ZonaClimatica="B",IF(E9="Parete Ventilata",240,IF(E9="Interno",96,180)),IF(ZonaClimatica="C",IF(E9="Parete Ventilata",240,IF(E9="Interno",96,180)),IF(E9="Parete Ventilata",260,IF(E9="Interno",104,195))))) -> 195 | AL9: =IF(S9<>0,IF(F9<>0,G9*AJ9/F9/S9,0),0) -> 0 | AM9: 190 | AN9: =MIN(AY9,AZ9,BA9) -> 0 | AO9: =AU9 -> 0 | AP9: =K9 -> 0 | AQ9: =BF9*SUM(AN9:AO9) -> 0 | AR9: =IF(Titolare!$I$8=TRUE,SUM(AN9:AQ9),AG9) -> 0 | AS9: =IF(L9>AR9,"ko","ok") -> ok | AU9: =IF(F9>AJ9,F9-AJ9,0) -> 0 | AV9: =SUM(AK9:AM9) -> 385 | AW9: 0 | AX9: TRUE | AY9: =H9 -> 0 | AZ9: =AV9*S9+AW9*BG9 -> 134553.65 | BA9: =H9 -> 0 | BB9: TRUE | BC9: TRUE | BD9: TRUE | BE9: TRUE | BF9: 0.1 | BG9: 0 | BI9: =R9 -> PV) Isolamento pareti perimetrali 'Esterno' | BJ9: 0 | BK9: 0 | BL9: 0 | BM9: 0 | BN9: 0 | BO9: =IF(ABS(SUM(BJ9:BN9)-H9)>0.01,"err. Somma","") -> 
C10: PO) Isolamento coperture | E10: Esterno | F10: 0 | G10: 0 | H10: =SUM(F10:G10) -> 0 | I10: =H10*AliqIva -> 0 | J10: =H10+I10 -> 0 | K10: 0 | L10: =SUM(J10:K10) -> 0 | M10: 0 | O10: .. | P10: .. | Q10: ? | R10: =CONCATENATE(C10," '",E10,"'") -> PO) Isolamento coperture 'Esterno' | S10: 1 | T10: 0 | U10: ok | W10: =IF(L10<T10,L10,T10) -> 0 | Y10: =IF(L10>T10,L10-T10,0) -> 0 | AA10: 0 | AC10: 0 | AF10: PO) Isolamento coperture 'Esterno' | AG10: =IF(TipoEdif=1,50000,IF(N_Uimm>8,40000*8+30000*(N_Uimm-8),40000*N_Uimm)) -> 50000 | AH10: ok | AJ10: 0 | AK10: =IF(E10="Copertura Ventilata",300,IF(E10="Interno",120,276)) -> 276 | AL10: =IF(S10<>0,IF(F10<>0,G10*AJ10/F10/S10,0),0) -> 0 | AM10: 190 | AN10: =MIN(AY10,AZ10,BA10) -> 0 | AO10: =AU10 -> 0 | AP10: =K10 -> 0 | AQ10: =BF10*SUM(AN10:AO10) -> 0 | AR10: =IF(Titolare!$I$8=TRUE,SUM(AN10:AQ10),AG10) -> 0 | AS10: ok | AU10: =IF(F10>AJ10,F10-AJ10,0) -> 0 | AV10: =SUM(AK10:AM10) -> 466 | AW10: 0 | AX10: TRUE | AY10: =H10 -> 0 | AZ10: =AV10*S10+AW10*BG10 -> 466 | BA10: =H10 -> 0 | BB10: TRUE | BC10: TRUE | BD10: TRUE | BE10: TRUE | BF10: 0.1000000015 | BG10: 0 | BI10: PO) Isolamento coperture 'Esterno' | BJ10: 0 | BK10: 0 | BL10: 0 | BM10: 0 | BN10: 0
C11: POND) Isol. coperture non disperdenti | E11: Esterno | F11: 0 | G11: =IF(ImpLav<>0,F11*ImpSicLav/ImpLav,0) -> 0 | H11: =SUM(F11:G11) -> 0 | I11: =H11*AliqIva -> 0 | J11: =H11+I11 -> 0 | K11: 0 | L11: =SUM(J11:K11) -> 0 | M11: 0 | O11: .. | P11: Esegui | Q11: ok | R11: =CONCATENATE(C11," '",E11,"'") -> POND) Isol. coperture non disperdenti 'Esterno' | S11: 131.08 | T11: 0 | U11: ok | W11: =IF(L11<T11,L11,T11) -> 0 | Y11: =IF(L11>T11,L11-T11,0) -> 0 | AA11: 0 | AC11: 0 | AF11: POND) Isol. coperture non disperdenti 'Esterno' | AG11: =IF(TipoEdif=1,50000,IF(N_Uimm>8,40000*8+30000*(N_Uimm-8),40000*N_Uimm)) -> 50000 | AH11: ok | AJ11: 0 | AK11: =IF(E11="Copertura Ventilata",300,IF(E11="Interno",120,276)) -> 276 | AL11: =IF(S11<>0,IF(F11<>0,G11*AJ11/F11/S11,0),0) -> 0 | AM11: 38 | AN11: =MIN(AY11,AZ11,BA11) -> 0 | AO11: =AU11 -> 0 | AP11: =K11 -> 0 | AQ11: =BF11*SUM(AN11:AO11) -> 0 | AR11: =IF(Titolare!$I$8=TRUE,SUM(AN11:AQ11),AG11) -> 0 | AS11: ok | AU11: =IF(F11>AJ11,F11-AJ11,0) -> 0 | AV11: =SUM(AK11:AM11) -> 314 | AW11: 0 | AX11: TRUE | AY11: =H11 -> 0 | AZ11: =AV11*S11+AW11*BG11 -> 41159.12 | BA11: =H11 -> 0 | BB11: TRUE | BC11: TRUE | BD11: TRUE | BE11: TRUE | BF11: 0.1000000015 | BG11: 0 | BI11: POND) Isol. coperture non disperdenti 'Esterno' | BJ11: 0 | BK11: 0 | BL11: 0 | BM11: 0 | BN11: 0
C12: PS) Isolamento Pavimenti | E12: Interno/terreno | F12: 0 | G12: 0 | H12: =SUM(F12:G12) -> 0 | I12: =H12*AliqIva -> 0 | J12: =H12+I12 -> 0 | K12: 0 | L12: =SUM(J12:K12) -> 0 | M12: 0 | O12: .. | P12: .. | Q12: ? | R12: =CONCATENATE(C12," '",E12,"'") -> PS) Isolamento Pavimenti 'Interno/terreno' | S12: 72 | T12: 0 | U12: ok | W12: =IF(L12<T12,L12,T12) -> 0 | Y12: =IF(L12>T12,L12-T12,0) -> 0 | AA12: 0 | AC12: 0 | AF12: PS) Isolamento Pavimenti 'Interno/terreno' | AG12: =IF(TipoEdif=1,50000,IF(N_Uimm>8,40000*8+30000*(N_Uimm-8),40000*N_Uimm)) -> 50000 | AH12: ok | AJ12: 0 | AK12: =IF(E12="Interno/terreno",180,144) -> 180 | AL12: =IF(S12<>0,IF(F12<>0,G12*AJ12/F12/S12,0),0) -> 0 | AM12: 40 | AN12: =MIN(AY12,AZ12,BA12) -> 0 | AO12: =AU12 -> 0 | AP12: =K12 -> 0 | AQ12: =BF12*SUM(AN12:AO12) -> 0 | AR12: =IF(Titolare!$I$8=TRUE,SUM(AN12:AQ12),AG12) -> 0 | AS12: ok | AU12: =IF(F12>AJ12,F12-AJ12,0) -> 0 | AV12: =SUM(AK12:AM12) -> 220 | AW12: 0 | AX12: TRUE | AY12: =H12 -> 0 | AZ12: =AV12*S12+AW12*BG12 -> 15840 | BA12: =H12 -> 0 | BB12: TRUE | BC12: TRUE | BD12: TRUE | BE12: TRUE | BF12: 0.1000000015 | BG12: 0 | BI12: PS) Isolamento Pavimenti 'Interno/terreno' | BJ12: 0 | BK12: 0 | BL12: 0 | BM12: 0 | BN12: 0
C13: Totali Isolamento PV) PO) POND) PS) | F13: =SUM(F9:F12) -> 0 | G13: 0 | H13: 0 | I13: 0 | J13: 0 | K13: 0 | L13: 0 | M13: =IF(L13<=T13,L13*percDetr,T13*percDetr) -> 0 | R13: =C13 -> Totali Isolamento PV) PO) POND) PS) | T13: 0 | U13: ok | W13: =IF(T13=AG13,IF(L13<T13,L13,T13),SUM(W9:X12)) -> 0 | Y13: =IF(L13>W13,L13-W13,0) -> 0 | AA13: 0 | AC13: 0 | AF13: Totali Isolamento PV) PO) POND) PS) | AG13: =IF(TipoEdif=1,50000,IF(N_Uimm>8,40000*8+30000*(N_Uimm-8),40000*N_Uimm)) -> 50000 | AH13: ok | AR13: =IF(Titolare!$I$8=TRUE,SUM(AR9:AR12),AG12) -> 0 | AS13: ok | BI13: Totali Isolamento PV) PO) POND) PS) | BJ13: =SUM(BJ9:BJ12) -> 0 | BK13: =SUM(BK9:BK12) -> 0 | BL13: =SUM(BL9:BL12) -> 0 | BM13: =SUM(BM9:BM12) -> 0 | BN13: =SUM(BN9:BN12) -> 0
C14: Impianti climatizzazione e ACS | D14: PC)Aria/Aria | F14: 0 | G14: 0 | H14: =SUM(F14:G14) -> 0 | I14: =H14*AliqIva -> 0 | J14: =H14+I14 -> 0 | K14: 0 | L14: =SUM(J14:K14) -> 0 | M14: 0 | O14: .. | P14: .. | Q14: ? | R14: =CONCATENATE(C14," con '",D14,"'") -> Impianti climatizzazione e ACS con 'PC)Aria/Aria' | S14: 24 | T14: 0 | U14: ok | W14: =IF(L14<T14,L14,T14) -> 0 | Y14: =IF(L14>T14,L14-T14,0) -> 0 | AA14: 0 | AC14: 0 | AF14: Impianti climatizzazione e ACS con 'PC)Aria/Aria' | AG14: =IF(TipoEdif=1,30000,IF(N_Uimm>8,20000*8+15000*(N_Uimm-8),20000*N_Uimm)) -> 30000 | AH14: ok | AJ14: 0 | AK14: =IF(LEFT(D14,3)="CC)",IF(S14<=35,240,216),IF(D14="PC)Aria/Aria",720,IF(D14="PC)Altro",1560,IF(D14="PC)Geotermiche",2280,IF(LEFT(D14,4)="PCA)",1560,IF(LEFT(D14,3)="SI)",1860,0)))))) -> 720 | AL14: =IF(S14<>0,IF(F14<>0,G14*AJ14/F14/S14,0),0) -> 0 | AM14: 93.6 | AN14: =MIN(AY14,AZ14,BA14) -> 0 | AO14: =AU14 -> 0 | AP14: =K14 -> 0 | AQ14: =BF14*SUM(AN14:AO14) -> 0 | AR14: =IF(Titolare!$I$8=TRUE,SUM(AN14:AQ14),AG14) -> 0 | AS14: ok | AU14: =IF(F14>AJ14,F14-AJ14,0) -> 0 | AV14: =SUM(AK14:AM14) -> 813.6 | AW14: =IF($T$2=TRUE,IF($X$2=TRUE,180,60),0) -> 60 | AX14: TRUE | AY14: =H14 -> 0 | AZ14: =AV14*S14+AW14*BG14 -> 24326.4 | BA14: =H14 -> 0 | BB14: TRUE | BC14: TRUE | BD14: TRUE | BE14: TRUE | BF14: 0.1000000015 | BG14: 80 | BI14: Impianti climatizzazione e ACS con 'PC)Aria/Aria' | BJ14: 0 | BK14: 0 | BL14: 0 | BM14: 0 | BN14: 0
C15: SismaBonus Zona 1,2 o 3 P.Classi = | E15: 1 | F15: 0 | G15: =IF(ImpLav<>0,F15*ImpSicLav/ImpLav,0) -> 0 | H15: =SUM(F15:G15) -> 0 | I15: =H15*AliqIva -> 0 | J15: =H15+I15 -> 0 | K15: 0 | L15: =SUM(J15:K15) -> 0 | M15: 0 | O15: .. | Q15: ok | R15: =CONCATENATE(C15,E15) -> SismaBonus Zona 1,2 o 3 P.Classi = 1 | S15: 270 | T15: 96000 | U15: ok | W15: =IF(L15<T15,L15,T15) -> 0 | Y15: =IF(L15>T15,L15-T15,0) -> 0 | AA15: 0 | AC15: 0 | AF15: SismaBonus Zona 1,2 o 3 P.Classi = 1 | AG15: =96000*N_Uimm -> 96000 | AH15: ok | AJ15: 0 | AL15: =IF(S15<>0,IF(F15<>0,G15*AJ15/F15/S15,0),0) -> 0 | AM15: 1000 | AO15: =AU15 -> 0 | AP15: =K15 -> 0 | AR15: =AG15 -> 96000 | AS15: ok | AU15: =IF(F15>AJ15,F15-AJ15,0) -> 0 | AV15: =SUM(AK15:AM15) -> 1000 | AW15: 0 | AX15: TRUE | AY15: =H15 -> 0 | AZ15: =AV15*S15+AW15*BG15 -> 270000 | BA15: =H15 -> 0 | BB15: TRUE | BC15: TRUE | BD15: TRUE | BE15: TRUE | BF15: 0.1000000015 | BG15: 0 | BI15: SismaBonus Zona 1,2 o 3 P.Classi = 1 | BJ15: 0 | BK15: 0 | BL15: 0 | BM15: 0 | BN15: 0
C16: Totale interventi Trainanti : | F16: =SUM(F13:F15) -> 0 | G16: 0 | H16: 0 | I16: 0 | J16: 0 | K16: 0 | L16: 0 | M16: 0 | V16: =C16 -> Totale interventi Trainanti : | W16: =SUM(W13:X15) -> 0 | Y16: =SUM(Y13:Z15) -> 0 | AA16: =SUM(AA13:AB15) -> 0 | AC16: =SUM(AC13:AD15) -> 0 | BI16: =V16 -> Totale interventi Trainanti : | BJ16: =SUM(BJ13:BJ15) -> 0 | BK16: =SUM(BK13:BK15) -> 0 | BL16: =SUM(BL13:BL15) -> 0 | BM16: =SUM(BM13:BM15) -> 0 | BN16: =SUM(BN13:BN15) -> 0
C18: INTERVENTI TRAINATI PARTI COMUNI CONDOMINIALI | N18: .. | Q18: Asseverabile | R18: =CONCATENATE("Spesa detraibile ammissibile ",C18) -> Spesa detraibile ammissibile INTERVENTI TRAINATI PARTI COMUNI CONDOMINIALI | AF18: Spesa Massima Ammissibile (norma primaria) | AJ18: =CONCATENATE("Spesa Specifica MITE - ",C18) -> Spesa Specifica MITE - INTERVENTI TRAINATI PARTI COMUNI CONDOMINIALI | BI18: =CONCATENATE("Ripartizione tra le Imprese - Imponibile Lavori ",C18) -> Ripartizione tra le Imprese - Imponibile Lavori INTERVENTI TRAINATI PARTI COMUNI CONDOMINIALI
C19: Interventi | F19: Importo Lavori | G19: Incidenza Sicurezza | H19: Imponibile | I19: Iva | J19: Importo c.iva | K19: Spese tecniche | L19: Totale | M19: =$M$8 -> Credito Spettante 75% Spesa Ammessa | R19: Interventi | S19: Superficie Intervento / UnitàMisura | T19: Min(Spesa Max Ammissibile;Spesa Max Intervento) | U19: Verifica Max | W19: Spesa Ammessa | Y19: Quota Eccedente Spesa detraibile Ammessa | AA19: =$AA$8 -> Credito Spettante 75% Spesa Ammessa Quota Imprese | Quota Tecnici | AF19: Interventi | AG19: Spesa Massima Ammissibile | AH19: Ver. Max | AJ19: Importo Lavori Fornitura e Posa | AK19: Costo dei Beni (Allegato A) | AL19: Opere per installazione (Sicurezza) | AM19: Manodopera | AN19: =$AN$8 -> Spesa Max Ammissibile Asseverata | AO19: Altri Costi | AP19: Spese Tecniche | AQ19: IVA | AR19: Spesa di Intervento | AS19: =$AS$8 -> Ver.Max | AU19: Altri Lavori | AV19: Importo Specifico DM Costi Massimi | AW19: Incremento Costo dei Beni (Allegato A) | AX19: Controllo1 | AY19: Importo Controllo1 | AZ19: Importo Controllo2 | BA19: Importo Controllo3 | BB19: Opere per Istallazione = Incidenza Sicurezza Fornitura / Superficie Intervento | BC19: SpesaSostenuta = Opera Compiuta | BD19: Spesa Tecniche = Spese Tecniche da Computo | BE19: Altri Costi = Altri Lavori | BF19: AliqIva | BG19: Superficie Riscaldata | BI19: Interventi | BJ19: =IF('Dati Gen'!$B$38<>"",'Dati Gen'!$B$38,"") -> Impresa1 | BK19: =IF('Dati Gen'!$B$39<>"",'Dati Gen'!$B$39,"") -> Impresa2 | BL19: =IF('Dati Gen'!$B$40<>"",'Dati Gen'!$B$40,"") -> Impresa3 | BM19: =IF('Dati Gen'!$B$41<>"",'Dati Gen'!$B$41,"") -> Impresa4 | BN19: =IF('Dati Gen'!$B$42<>"",'Dati Gen'!$B$42,"") -> 
C20: PV) Isolamento pareti perimetrali | E20: Esterno | F20: 0 | G20: 0 | H20: =SUM(F20:G20) -> 0 | I20: =H20*AliqIva -> 0 | J20: =H20+I20 -> 0 | K20: 0 | L20: =SUM(J20:K20) -> 0 | M20: =IF(L20<=T20,L20*percDetr,T20*percDetr) -> 0 | O20: .. | P20: Esegui | Q20: ? | R20: =CONCATENATE(C20," '",E20,"'") -> PV) Isolamento pareti perimetrali 'Esterno' | S20: 1 | T20: =MIN(AG20,AR20) -> 0 | U20: =IF(L20>T20,"ko","ok") -> ok | W20: =IF(L20<T20,L20,T20) -> 0 | Y20: =IF(L20>T20,L20-T20,0) -> 0 | AA20: =IF(M20<>0,J20*M20/L20,0) -> 0 | AC20: =IF(M20<>0,K20*M20/L20,0) -> 0 | AF20: =R20 -> PV) Isolamento pareti perimetrali 'Esterno' | AG20: =IF(TipoEdif=1,50000,IF(N_Uimm>8,40000*8+30000*(N_Uimm-8),40000*N_Uimm)) -> 50000 | AH20: =IF(L20>AG20,"ko","ok") -> ok | AJ20: 0 | AK20: =IF(ZonaClimatica="A",IF(E20="Parete Ventilata",240,IF(E20="Interno",96,180)),IF(ZonaClimatica="B",IF(E20="Parete Ventilata",240,IF(E20="Interno",96,180)),IF(ZonaClimatica="C",IF(E20="Parete Ventilata",240,IF(E20="Interno",96,180)),IF(E20="Parete Ventilata",260,IF(E20="Interno",104,195))))) -> 195 | AL20: =IF(S20<>0,IF(F20<>0,G20*AJ20/F20/S20,0),0) -> 0 | AM20: 0 | AN20: =MIN(AY20,AZ20,BA20) -> 0 | AO20: =AU20 -> 0 | AP20: =K20 -> 0 | AQ20: =BF20*SUM(AN20:AO20) -> 0 | AR20: =IF(Titolare!$I$8=TRUE,SUM(AN20:AQ20),AG20) -> 0 | AS20: =IF(L20>AR20,"ko","ok") -> ok | AU20: =IF(F20>AJ20,F20-AJ20,0) -> 0 | AV20: =SUM(AK20:AM20) -> 195 | AW20: 0 | AX20: TRUE | AY20: =H20 -> 0 | AZ20: =AV20*S20+AW20*BG20 -> 195 | BA20: =H20 -> 0 | BB20: TRUE | BC20: TRUE | BD20: TRUE | BE20: TRUE | BF20: 0.1000000015 | BG20: 0 | BI20: =R20 -> PV) Isolamento pareti perimetrali 'Esterno' | BJ20: 0 | BK20: 0 | BL20: 0 | BM20: 0 | BN20: 0 | BO20: =IF(ABS(SUM(BJ20:BN20)-H20)>0.01,"err. Somma","") -> 
C21: PO) Isolamento coperture | E21: Esterno | F21: 0 | G21: 0 | H21: =SUM(F21:G21) -> 0 | I21: =H21*AliqIva -> 0 | J21: =H21+I21 -> 0 | K21: 0 | L21: =SUM(J21:K21) -> 0 | M21: =IF(L21<=T21,L21*percDetr,T21*percDetr) -> 0 | O21: .. | P21: Esegui | Q21: ? | R21: =CONCATENATE(C21," '",E21,"'") -> PO) Isolamento coperture 'Esterno' | S21: 1 | T21: 0 | U21: ok | W21: =IF(L21<T21,L21,T21) -> 0 | Y21: =IF(L21>T21,L21-T21,0) -> 0 | AA21: 0 | AC21: 0 | AF21: PO) Isolamento coperture 'Esterno' | AG21: =IF(TipoEdif=1,50000,IF(N_Uimm>8,40000*8+30000*(N_Uimm-8),40000*N_Uimm)) -> 50000 | AH21: ok | AJ21: 0 | AK21: =IF(E21="Copertura Ventilata",300,IF(E21="Interno",120,276)) -> 276 | AL21: =IF(S21<>0,IF(F21<>0,G21*AJ21/F21/S21,0),0) -> 0 | AM21: 0 | AN21: =MIN(AY21,AZ21,BA21) -> 0 | AO21: =AU21 -> 0 | AP21: =K21 -> 0 | AQ21: =BF21*SUM(AN21:AO21) -> 0 | AR21: =IF(Titolare!$I$8=TRUE,SUM(AN21:AQ21),AG21) -> 0 | AS21: ok | AU21: =IF(F21>AJ21,F21-AJ21,0) -> 0 | AV21: =SUM(AK21:AM21) -> 276 | AW21: 0 | AX21: TRUE | AY21: =H21 -> 0 | AZ21: =AV21*S21+AW21*BG21 -> 276 | BA21: =H21 -> 0 | BB21: TRUE | BC21: TRUE | BD21: TRUE | BE21: TRUE | BF21: 0.1000000015 | BG21: 0 | BI21: PO) Isolamento coperture 'Esterno' | BJ21: 0 | BK21: 0 | BL21: 0 | BM21: 0 | BN21: 0
C22: PS) Isolamento Pavimenti | E22: Interno/terreno | F22: 0 | G22: 0 | H22: =SUM(F22:G22) -> 0 | I22: =H22*AliqIva -> 0 | J22: =H22+I22 -> 0 | K22: 0 | L22: =SUM(J22:K22) -> 0 | M22: =IF(L22<=T22,L22*percDetr,T22*percDetr) -> 0 | O22: .. | P22: Esegui | Q22: ? | R22: =CONCATENATE(C22," '",E22,"'") -> PS) Isolamento Pavimenti 'Interno/terreno' | S22: 1 | T22: 0 | U22: ok | W22: =IF(L22<T22,L22,T22) -> 0 | Y22: =IF(L22>T22,L22-T22,0) -> 0 | AA22: 0 | AC22: 0 | AF22: PS) Isolamento Pavimenti 'Interno/terreno' | AG22: =IF(TipoEdif=1,50000,IF(N_Uimm>8,40000*8+30000*(N_Uimm-8),40000*N_Uimm)) -> 50000 | AH22: ok | AJ22: 0 | AK22: =IF(E22="Interno/terreno",180,144) -> 180 | AL22: =IF(S22<>0,IF(F22<>0,G22*AJ22/F22/S22,0),0) -> 0 | AM22: 0 | AN22: =MIN(AY22,AZ22,BA22) -> 0 | AO22: =AU22 -> 0 | AP22: =K22 -> 0 | AQ22: =BF22*SUM(AN22:AO22) -> 0 | AR22: =IF(Titolare!$I$8=TRUE,SUM(AN22:AQ22),AG22) -> 0 | AS22: ok | AU22: =IF(F22>AJ22,F22-AJ22,0) -> 0 | AV22: =SUM(AK22:AM22) -> 180 | AW22: 0 | AX22: TRUE | AY22: =H22 -> 0 | AZ22: =AV22*S22+AW22*BG22 -> 180 | BA22: =H22 -> 0 | BB22: TRUE | BC22: TRUE | BD22: TRUE | BE22: TRUE | BF22: 0.1000000015 | BG22: 0 | BI22: PS) Isolamento Pavimenti 'Interno/terreno' | BJ22: 0 | BK22: 0 | BL22: 0 | BM22: 0 | BN22: 0
C23: IN) Serramenti con chiusure oscuranti | E23: =IF(ZonaClimatica="A","Zone A, B e C", IF(ZonaClimatica="B","Zone A, B e C",IF(ZonaClimatica="C","Zone A, B e C","Zone D, E ed F"))) -> Zone D, E ed F | F23: 0 | G23: 0 | H23: =SUM(F23:G23) -> 0 | I23: =H23*AliqIva -> 0 | J23: =H23+I23 -> 0 | K23: 0 | L23: =SUM(J23:K23) -> 0 | M23: =IF(L23<=T23,L23*percDetr,T23*percDetr) -> 0 | O23: .. | P23: .. | Q23: ? | R23: =CONCATENATE(C23," '",E23,"'") -> IN) Serramenti con chiusure oscuranti 'Zone D, E ed F' | S23: 1 | T23: 0 | U23: ok | W23: =IF(L23<T23,L23,T23) -> 0 | Y23: =IF(L23>T23,L23-T23,0) -> 0 | AA23: 0 | AC23: 0 | AF23: IN) Serramenti con chiusure oscuranti 'Zone D, E ed F' | AG23: =54545*N_Uimm -> 54545 | AH23: ok | AJ23: 7478.16 | AK23: =IF(E23="Zone A, B e C",IF(C23="IN) Serramenti",660,780),IF(C23="IN) Serramenti",780,900)) -> 900 | AL23: =IF(S23<>0,IF(F23<>0,G23*AJ23/F23/S23,0),0) -> 0 | AM23: 0 | AN23: =MIN(AY23,AZ23,BA23) -> 0 | AO23: =AU23 -> 0 | AP23: =K23 -> 0 | AQ23: =BF23*SUM(AN23:AO23) -> 0 | AR23: =IF(Titolare!$I$8=TRUE,SUM(AN23:AQ23),AG23) -> 0 | AS23: ok | AU23: =IF(F23>AJ23,F23-AJ23,0) -> 0 | AV23: =SUM(AK23:AM23) -> 900 | AW23: 0 | AX23: TRUE | AY23: =H23 -> 0 | AZ23: =AV23*S23+AW23*BG23 -> 900 | BA23: =H23 -> 0 | BB23: TRUE | BC23: TRUE | BD23: TRUE | BE23: TRUE | BF23: 0.1000000015 | BG23: 0 | BI23: IN) Serramenti con chiusure oscuranti 'Zone D, E ed F' | BJ23: 0 | BK23: 0 | BL23: 0 | BM23: 0 | BN23: 0
C24: Totali Isolamento PV) PO) PS) e IN) | F24: =SUM(F20:F23) -> 0 | G24: 0 | H24: 0 | I24: 0 | J24: 0 | K24: 0 | L24: 0 | M24: =SUM(M20:M23) -> 0 | R24: =C24 -> Totali Isolamento PV) PO) PS) e IN) | T24: 0 | U24: ok | W24: =IF(T24=AG24,IF(L24<T24,L24,T24),SUM(W20:X23)) -> 0 | Y24: =IF(L24>W24,L24-W24,0) -> 0 | AA24: 0 | AC24: 0 | AF24: Totali Isolamento PV) PO) PS) e IN) | AG24: =54545*N_Uimm -> 54545 | AH24: ok | AR24: =IF(Titolare!$I$8=TRUE,SUM(AR20:AR23),AG24) -> 0 | AS24: ok | BI24: Totali Isolamento PV) PO) PS) e IN) | BJ24: =SUM(BJ20:BJ23) -> 0 | BK24: =SUM(BK20:BK23) -> 0 | BL24: =SUM(BL20:BL23) -> 0 | BM24: =SUM(BM20:BM23) -> 0 | BN24: =SUM(BN20:BN23) -> 0
C25: SS) Schermature solari e chiusure oscuranti | F25: 0 | G25: 0 | H25: =SUM(F25:G25) -> 0 | I25: =H25*AliqIva -> 0 | J25: =H25+I25 -> 0 | K25: 0 | L25: =SUM(J25:K25) -> 0 | M25: =IF(L25<=T25,L25*percDetr,T25*percDetr) -> 0 | O25: .. | P25: Esegui | Q25: ? | R25: =C25 -> SS) Schermature solari e chiusure oscuranti | S25: 1 | T25: 0 | U25: ok | W25: =IF(L25<T25,L25,T25) -> 0 | Y25: =IF(L25>T25,L25-T25,0) -> 0 | AA25: 0 | AC25: 0 | AF25: SS) Schermature solari e chiusure oscuranti | AG25: =54545*N_Uimm -> 54545 | AH25: ok | AJ25: 0 | AK25: 0 | AL25: =IF(S25<>0,IF(F25<>0,G25*AJ25/F25/S25,0),0) -> 0 | AM25: 0 | AN25: =MIN(AY25,AZ25,BA25) -> 0 | AO25: =AU25 -> 0 | AP25: =K25 -> 0 | AQ25: =BF25*SUM(AN25:AO25) -> 0 | AR25: =IF(Titolare!$I$8=TRUE,SUM(AN25:AQ25),AG25) -> 0 | AS25: ok | AU25: =IF(F25>AJ25,F25-AJ25,0) -> 0 | AV25: =SUM(AK25:AM25) -> 0 | AW25: 0 | AX25: TRUE | AY25: =H25 -> 0 | AZ25: =AV25*S25+AW25*BG25 -> 0 | BA25: =H25 -> 0 | BB25: TRUE | BC25: TRUE | BD25: TRUE | BE25: TRUE | BF25: 0.1000000015 | BG25: 0 | BI25: SS) Schermature solari e chiusure oscuranti | BJ25: 0 | BK25: 0 | BL25: 0 | BM25: 0 | BN25: 0
C26: Impianti climatizzazione con | D26: CC)Caldaie a Condensazione | F26: 0 | G26: 0 | H26: =SUM(F26:G26) -> 0 | I26: =H26*AliqIva -> 0 | J26: =H26+I26 -> 0 | K26: 0 | L26: =SUM(J26:K26) -> 0 | M26: =IF(L26<=T26,L26*percDetr,T26*percDetr) -> 0 | O26: .. | P26: .. | Q26: ok | R26: =CONCATENATE(C26," '",D26,"'") -> Impianti climatizzazione con 'CC)Caldaie a Condensazione' | S26: 1 | T26: 0 | U26: ok | W26: =IF(L26<T26,L26,T26) -> 0 | Y26: =IF(L26>T26,L26-T26,0) -> 0 | AA26: 0 | AC26: 0 | AF26: Impianti climatizzazione con 'CC)Caldaie a Condensazione' | AG26: =27272*N_Uimm -> 27272 | AH26: ok | AJ26: 0 | AK26: 0 | AL26: =IF(S26<>0,IF(F26<>0,G26*AJ26/F26/S26,0),0) -> 0 | AM26: 93.6 | AN26: =MIN(AY26,AZ26,BA26) -> 0 | AO26: =AU26 -> 0 | AP26: =K26 -> 0 | AQ26: =BF26*SUM(AN26:AO26) -> 0 | AR26: =IF(Titolare!$I$8=TRUE,SUM(AN26:AQ26),AG26) -> 0 | AS26: ok | AU26: =IF(F26>AJ26,F26-AJ26,0) -> 0 | AV26: =SUM(AK26:AM26) -> 93.6 | AW26: =IF($T$2=TRUE,IF($X$2=TRUE,180,60),0) -> 60 | AX26: TRUE | AY26: =H26 -> 0 | AZ26: =AV26*S26+AW26*BG26 -> 93.6 | BA26: =H26 -> 0 | BB26: TRUE | BC26: TRUE | BD26: TRUE | BE26: TRUE | BF26: 0.1000000015 | BG26: 0 | BI26: Impianti climatizzazione con 'CC)Caldaie a Condensazione' | BJ26: 0 | BK26: 0 | BL26: 0 | BM26: 0 | BN26: 0
C27: GA) Generatori aria calda Condensazione | F27: 0 | G27: 0 | H27: =SUM(F27:G27) -> 0 | I27: =H27*AliqIva -> 0 | J27: =H27+I27 -> 0 | K27: 0 | L27: =SUM(J27:K27) -> 0 | M27: =IF(L27<=T27,L27*percDetr,T27*percDetr) -> 0 | O27: .. | P27: Esegui | Q27: ? | R27: =C27 -> GA) Generatori aria calda Condensazione | S27: 1 | T27: 0 | U27: ok | W27: =IF(L27<T27,L27,T27) -> 0 | Y27: =IF(L27>T27,L27-T27,0) -> 0 | AA27: 0 | AC27: 0 | AF27: GA) Generatori aria calda Condensazione | AG27: =27272*N_Uimm -> 27272 | AH27: ok | AJ27: 0 | AK27: 0 | AL27: =IF(S27<>0,IF(F27<>0,G27*AJ27/F27/S27,0),0) -> 0 | AM27: 93.6 | AN27: =MIN(AY27,AZ27,BA27) -> 0 | AO27: =AU27 -> 0 | AP27: =K27 -> 0 | AQ27: =BF27*SUM(AN27:AO27) -> 0 | AR27: =IF(Titolare!$I$8=TRUE,SUM(AN27:AQ27),AG27) -> 0 | AS27: ok | AU27: =IF(F27>AJ27,F27-AJ27,0) -> 0 | AV27: =SUM(AK27:AM27) -> 93.6 | AW27: =IF($T$2=TRUE,IF($X$2=TRUE,180,60),0) -> 60 | AX27: TRUE | AY27: =H27 -> 0 | AZ27: =AV27*S27+AW27*BG27 -> 93.6 | BA27: =H27 -> 0 | BB27: TRUE | BC27: TRUE | BD27: TRUE | BE27: TRUE | BF27: 0.1000000015 | BG27: 0 | BI27: GA) Generatori aria calda Condensazione | BJ27: 0 | BK27: 0 | BL27: 0 | BM27: 0 | BN27: 0
C28: IB) Impianti Biomassa | F28: 0 | G28: 0 | H28: =SUM(F28:G28) -> 0 | I28: =H28*AliqIva -> 0 | J28: =H28+I28 -> 0 | K28: 0 | L28: =SUM(J28:K28) -> 0 | M28: =IF(L28<=T28,L28*percDetr,T28*percDetr) -> 0 | O28: .. | P28: Esegui | Q28: ? | R28: =C28 -> IB) Impianti Biomassa | S28: 1 | T28: 0 | U28: ok | W28: =IF(L28<T28,L28,T28) -> 0 | Y28: =IF(L28>T28,L28-T28,0) -> 0 | AA28: 0 | AC28: 0 | AF28: IB) Impianti Biomassa | AG28: =27272*N_Uimm -> 27272 | AH28: ok | AJ28: 0 | AK28: 0 | AL28: =IF(S28<>0,IF(F28<>0,G28*AJ28/F28/S28,0),0) -> 0 | AM28: 0 | AN28: =MIN(AY28,AZ28,BA28) -> 0 | AO28: =AU28 -> 0 | AP28: =K28 -> 0 | AQ28: =BF28*SUM(AN28:AO28) -> 0 | AR28: =IF(Titolare!$I$8=TRUE,SUM(AN28:AQ28),AG28) -> 0 | AS28: ok | AU28: =IF(F28>AJ28,F28-AJ28,0) -> 0 | AV28: =SUM(AK28:AM28) -> 0 | AW28: =IF($T$2=TRUE,IF($X$2=TRUE,180,60),0) -> 60 | AX28: TRUE | AY28: =H28 -> 0 | AZ28: =AV28*S28+AW28*BG28 -> 0 | BA28: =H28 -> 0 | BB28: TRUE | BC28: TRUE | BD28: TRUE | BE28: TRUE | BF28: 0.1000000015 | BG28: 0 | BI28: IB) Impianti Biomassa | BJ28: 0 | BK28: 0 | BL28: 0 | BM28: 0 | BN28: 0
C29: SA) Scaldacqua a pompa di calore | F29: 0 | G29: 0 | H29: =SUM(F29:G29) -> 0 | I29: =H29*AliqIva -> 0 | J29: =H29+I29 -> 0 | K29: 0 | L29: =SUM(J29:K29) -> 0 | M29: =IF(L29<=T29,L29*percDetr,T29*percDetr) -> 0 | O29: .. | P29: Esegui | Q29: ? | R29: =C29 -> SA) Scaldacqua a pompa di calore | S29: 1 | T29: 0 | U29: ok | W29: =IF(L29<T29,L29,T29) -> 0 | Y29: =IF(L29>T29,L29-T29,0) -> 0 | AA29: 0 | AC29: 0 | AF29: SA) Scaldacqua a pompa di calore | AG29: =27272*N_Uimm -> 27272 | AH29: ok | AJ29: 0 | AK29: 0 | AL29: =IF(F29<>0,G29*AJ29/F29,0) -> 0 | AM29: 93.6 | AN29: =MIN(AY29,AZ29,BA29) -> 0 | AO29: =AU29 -> 0 | AP29: =K29 -> 0 | AQ29: =BF29*SUM(AN29:AO29) -> 0 | AR29: =IF(Titolare!$I$8=TRUE,SUM(AN29:AQ29),AG29) -> 0 | AS29: ok | AU29: =IF(F29>AJ29,F29-AJ29,0) -> 0 | AV29: =SUM(AK29:AM29) -> 93.6 | AW29: 0 | AX29: TRUE | AY29: =H29 -> 0 | AZ29: =AV29 -> 93.6 | BA29: =H29 -> 0 | BB29: TRUE | BC29: TRUE | BD29: TRUE | BE29: TRUE | BF29: 0.1000000015 | BG29: 0 | BI29: SA) Scaldacqua a pompa di calore | BJ29: 0 | BK29: 0 | BL29: 0 | BM29: 0 | BN29: 0
C30: Totali GA) IB) SA) | F30: =SUM(F27:F29) -> 0 | G30: 0 | H30: 0 | I30: 0 | J30: 0 | K30: 0 | L30: 0 | M30: 0 | R30: =C30 -> Totali GA) IB) SA) | T30: 0 | U30: ok | W30: =IF(T30=AG30,IF(L30<T30,L30,T30),SUM(W27:X29)) -> 0 | Y30: =IF(L30>W30,L30-W30,0) -> 0 | AA30: 0 | AC30: 0 | AF30: Totali GA) IB) SA) | AG30: =27272*N_Uimm -> 27272 | AH30: ok | AR30: =IF(Titolare!$I$8=TRUE,SUM(AR27:AR29),AG30) -> 0 | AS30: ok | BI30: Totali GA) IB) SA) | BJ30: =SUM(BJ27:BJ29) -> 0 | BK30: =SUM(BK27:BK29) -> 0 | BL30: =SUM(BL27:BL29) -> 0 | BM30: =SUM(BM27:BM29) -> 0 | BN30: =SUM(BN27:BN29) -> 0
C31: CO) Sistemi di Microgenerazione | E31: Celle a combustibile | F31: 0 | G31: 0 | H31: =SUM(F31:G31) -> 0 | I31: =H31*AliqIva -> 0 | J31: =H31+I31 -> 0 | K31: 0 | L31: =SUM(J31:K31) -> 0 | M31: =IF(L31<=T31,L31*percDetr,T31*percDetr) -> 0 | O31: .. | P31: Esegui | Q31: ? | R31: =CONCATENATE(C31," '",E31,"'") -> CO) Sistemi di Microgenerazione 'Celle a combustibile' | S31: 1 | T31: 0 | U31: ok | W31: =IF(L31<T31,L31,T31) -> 0 | Y31: =IF(L31>T31,L31-T31,0) -> 0 | AA31: 0 | AC31: 0 | AF31: CO) Sistemi di Microgenerazione 'Celle a combustibile' | AG31: =90909*N_Uimm -> 90909 | AH31: ok | AJ31: 0 | AK31: 0 | AL31: =IF(S31<>0,IF(F31<>0,G31*AJ31/F31/S31,0),0) -> 0 | AM31: 93.6 | AN31: =MIN(AY31,AZ31,BA31) -> 0 | AO31: =AU31 -> 0 | AP31: =K31 -> 0 | AQ31: =BF31*SUM(AN31:AO31) -> 0 | AR31: =IF(Titolare!$I$8=TRUE,SUM(AN31:AQ31),AG31) -> 0 | AS31: ok | AU31: =IF(F31>AJ31,F31-AJ31,0) -> 0 | AV31: =SUM(AK31:AM31) -> 93.6 | AW31: 0 | AX31: TRUE | AY31: =H31 -> 0 | AZ31: =AV31*S31+AW31*BG31 -> 93.6 | BA31: =H31 -> 0 | BB31: TRUE | BC31: TRUE | BD31: TRUE | BE31: TRUE | BF31: 0.1000000015 | BG31: 0 | BI31: CO) Sistemi di Microgenerazione 'Celle a combustibile' | BJ31: 0 | BK31: 0 | BL31: 0 | BM31: 0 | BN31: 0
C32: ST) Collettori Solari | E32: Piani Vetrati | F32: 0 | G32: 0 | H32: 0 | I32: 0 | J32: 0 | K32: 0 | L32: 0 | M32: 0 | O32: .. | P32: .. | Q32: ok | R32: =CONCATENATE(C32," '",E32,"'") -> ST) Collettori Solari 'Piani Vetrati' | S32: 1 | T32: 0 | U32: ok | W32: 0 | Y32: 0 | AA32: 0 | AC32: 0 | AF32: ST) Collettori Solari 'Piani Vetrati' | AG32: =54545*N_Uimm -> 54545 | AH32: ok | AJ32: 0 | AK32: 0 | AL32: =IF(S32<>0,IF(F32<>0,G32*AJ32/F32/S32,0),0) -> 0 | AM32: 285 | AN32: =MIN(AY32,AZ32,BA32) -> 0 | AO32: =AU32 -> 0 | AP32: =K32 -> 0 | AQ32: =BF32*SUM(AN32:AO32) -> 0 | AR32: =IF(Titolare!$I$8=TRUE,SUM(AN32:AQ32),AG32) -> 0 | AS32: ok | AU32: 0 | AV32: 285 | AW32: 0 | AX32: TRUE | AY32: 0 | AZ32: 285 | BA32: =H32 -> 0 | BB32: TRUE | BC32: TRUE | BD32: TRUE | BE32: TRUE | BF32: 0.1000000015 | BG32: 0 | BI32: ST) Collettori Solari 'Piani Vetrati' | BJ32: 0 | BK32: 0 | BL32: 0 | BM32: 0 | BN32: 0
C33: FV) Solare Fotovoltaico [ kWp ] | E33: 15.2 | F33: 0 | G33: 0 | H33: 0 | I33: 0 | J33: 0 | K33: 0 | L33: 0 | M33: 0 | O33: .. | R33: =C33 -> FV) Solare Fotovoltaico [ kWp ] | S33: =E33 -> 15.2 | T33: 36480 | U33: ok | W33: 0 | Y33: 0 | AA33: 0 | AC33: 0 | AF33: FV) Solare Fotovoltaico [ kWp ] | AG33: =IF(ISNUMBER(FIND("ristr",C33))=FALSE,IF(E33*2400<48000*N_Uimm,E33*2400,48000*N_Uimm),IF(E33*1600<48000*N_Uimm,E33*1600,48000*N_Uimm)) -> 36480 | AH33: ok | AJ33: 0 | AK33: 0 | AR33: =AG33 -> 36480 | AS33: ok | AU33: 0 | AV33: 0 | AW33: 0 | AX33: TRUE | AY33: 0 | AZ33: 0 | BA33: =H33 -> 0 | BB33: TRUE | BC33: TRUE | BD33: TRUE | BE33: TRUE | BF33: 0.1000000015 | BG33: 0 | BI33: FV) Solare Fotovoltaico [ kWp ] | BJ33: 0 | BK33: 0 | BL33: 0 | BM33: 0 | BN33: 0
C34: AC) Sistema di Accumulo [ kWh ] | E34: 10 | F34: 0 | G34: 0 | H34: 0 | I34: 0 | J34: 0 | K34: 0 | L34: 0 | M34: 0 | O34: .. | R34: =C34 -> AC) Sistema di Accumulo [ kWh ] | S34: =E34 -> 10 | T34: 10000 | U34: ok | W34: 0 | Y34: 0 | AA34: 0 | AC34: 0 | AF34: AC) Sistema di Accumulo [ kWh ] | AG34: =IF(E34*1000<48000*N_Uimm,E34*1000,48000*N_Uimm) -> 10000 | AH34: ok | AJ34: 0 | AK34: 0 | AR34: =AG34 -> 10000 | AS34: ok | AU34: 0 | AV34: 0 | AW34: 0 | AX34: TRUE | AY34: 0 | AZ34: 0 | BA34: 0 | BB34: TRUE | BC34: TRUE | BD34: TRUE | BE34: TRUE | BF34: 0.1 | BI34: AC) Sistema di Accumulo [ kWh ] | BJ34: 0 | BK34: 0 | BL34: 0 | BM34: 0 | BN34: 0
C35: CR) Colonnine di Ricarica [ N. ] | E35: 1 | F35: 0 | G35: 0 | H35: 0 | I35: 0 | J35: 0 | K35: 0 | L35: 0 | M35: 0 | O35: .. | R35: =C35 -> CR) Colonnine di Ricarica [ N. ] | S35: =E35 -> 1 | T35: 1500 | U35: ok | W35: 0 | Y35: 0 | AA35: 0 | AC35: 0 | AF35: CR) Colonnine di Ricarica [ N. ] | AG35: =IF(E35>8,1500*8+1200*(E35-8),1500*E35) -> 1500 | AH35: ok | AJ35: 0 | AK35: 0 | AR35: =AG35 -> 1500 | AS35: ok | AU35: 0 | AV35: 0 | AW35: 0 | AX35: TRUE | AY35: 0 | AZ35: 0 | BA35: 0 | BB35: TRUE | BC35: TRUE | BD35: TRUE | BE35: TRUE | BF35: 0.1000000015 | BG35: 0 | BI35: CR) Colonnine di Ricarica [ N. ] | BJ35: 0 | BK35: 0 | BL35: 0 | BM35: 0 | BN35: 0
C36: EBA) Eliminazione Barriere architettoniche | F36: 0 | G36: 0 | H36: 0 | I36: 0 | J36: 0 | K36: 0 | L36: 0 | M36: 0 | O36: .. | R36: =C36 -> EBA) Eliminazione Barriere architettoniche | S36: 1 | T36: 96000 | U36: ok | W36: 0 | Y36: 0 | AA36: 0 | AC36: 0 | AF36: EBA) Eliminazione Barriere architettoniche | AG36: =IF(F36>0,IF(96000*N_Uimm > F15,96000*N_Uimm - F15,0),96000*N_Uimm ) -> 96000 | AH36: ok | AJ36: 0 | AK36: 0 | AR36: =AG36 -> 96000 | AS36: ok | AU36: 0 | AV36: 0 | AW36: 0 | AX36: TRUE | AY36: 0 | AZ36: 0 | BA36: 0 | BB36: TRUE | BC36: TRUE | BD36: TRUE | BE36: TRUE | BF36: 0.1 | BI36: EBA) Eliminazione Barriere architettoniche | BJ36: 0 | BK36: 0 | BL36: 0 | BM36: 0 | BN36: 0
C37: Totale Interventi Trainati Parti Comuni : | F37: =SUM(F24:F26)+SUM(F30:F36) -> 0 | G37: 0 | H37: 0 | I37: 0 | J37: 0 | K37: 0 | L37: 0 | M37: 0 | V37: =C37 -> Totale Interventi Trainati Parti Comuni : | W37: =W24+W25+W26+SUM(W30:X36) -> 0 | Y37: =Y24+Y25+Y26+SUM(Y30:Z36) -> 0 | AA37: =AA24+AA25+AA26+SUM(AA30:AB36) -> 0 | AC37: =AC24+AC25+AC26+SUM(AC30:AD36) -> 0 | BI37: =V37 -> Totale Interventi Trainati Parti Comuni : | BJ37: =BJ24+BJ25+BJ26+SUM(BJ30:BJ36) -> 0 | BK37: =BK24+BK25+BK26+SUM(BK30:BK36) -> 0 | BL37: =BL24+BL25+BL26+SUM(BL30:BL36) -> 0 | BM37: =BM24+BM25+BM26+SUM(BM30:BM36) -> 0 | BN37: =BN24+BN25+BN26+SUM(BN30:BN36) -> 0
C40: INTERVENTI TRAINATI | N40: .. | Q40: Asseverabile | R40: =CONCATENATE("Spesa detraibile ammissibile ",C40) -> Spesa detraibile ammissibile INTERVENTI TRAINATI | AF40: Spesa Massima Ammissibile (norma primaria) | AJ40: =CONCATENATE("Spesa Specifica MITE - ",C40) -> Spesa Specifica MITE - INTERVENTI TRAINATI | BI40: =CONCATENATE("Ripartizione tra le Imprese - Imponibile Lavori ",C40) -> Ripartizione tra le Imprese - Imponibile Lavori INTERVENTI TRAINATI
C41: Interventi | F41: Importo Lavori | G41: Incidenza Sicurezza | H41: Imponibile | I41: Iva | J41: Importo c.iva | K41: Spese tecniche | L41: Totale | M41: =$M$8 -> Credito Spettante 75% Spesa Ammessa | R41: Interventi | S41: Superficie Intervento / UnitàMisura | T41: Min(Spesa Max Ammissibile;Spesa Max Intervento) | U41: Verifica Max | W41: Spesa Ammessa | Y41: Quota Eccedente Spesa detraibile Ammessa | AA41: =$AA$8 -> Credito Spettante 75% Spesa Ammessa Quota Imprese | Quota Tecnici | AF41: Interventi | AG41: Spesa Massima Ammissibile | AH41: Ver. Max | AJ41: Importo Lavori Fornitura e Posa | AK41: Costo dei Beni (Allegato A) | AL41: Opere per installazione (Sicurezza) | AM41: Manodopera | AN41: =$AN$8 -> Spesa Max Ammissibile Asseverata | AO41: Altri Costi | AP41: Spese Tecniche | AQ41: IVA | AR41: Spesa di Intervento | AS41: =$AS$8 -> Ver.Max | AU41: Altri Lavori | AV41: Importo Specifico DM Costi Massimi | AW41: Incremento Costo dei Beni (Allegato A) | AX41: Controllo1 | AY41: Importo Controllo1 | AZ41: Importo Controllo2 | BA41: Importo Controllo3 | BB41: Opere per Istallazione = Incidenza Sicurezza Fornitura / Superficie Intervento | BC41: SpesaSostenuta = Opera Compiuta | BD41: Spesa Tecniche = Spese Tecniche da Computo | BE41: Altri Costi = Altri Lavori | BF41: AliqIva | BG41: Superficie Riscaldata | BI41: Interventi | BJ41: =IF('Dati Gen'!$B$38<>"",'Dati Gen'!$B$38,"") -> Impresa1 | BK41: =IF('Dati Gen'!$B$39<>"",'Dati Gen'!$B$39,"") -> Impresa2 | BL41: =IF('Dati Gen'!$B$40<>"",'Dati Gen'!$B$40,"") -> Impresa3 | BM41: =IF('Dati Gen'!$B$41<>"",'Dati Gen'!$B$41,"") -> Impresa4 | BN41: =IF('Dati Gen'!$B$42<>"",'Dati Gen'!$B$42,"") -> 
C42: PV) Isolamento pareti perimetrali | E42: Esterno | F42: 0 | G42: 0 | H42: =SUM(F42:G42) -> 0 | I42: =H42*AliqIva -> 0 | J42: =H42+I42 -> 0 | K42: 0 | L42: =SUM(J42:K42) -> 0 | M42: =IF(L42<=T42,L42*percDetr,T42*percDetr) -> 0 | O42: .. | P42: Esegui | Q42: ? | R42: =CONCATENATE(C42," '",E42,"'") -> PV) Isolamento pareti perimetrali 'Esterno' | S42: 1 | T42: =MIN(AG42,AR42) -> 0 | U42: =IF(L42>T42,"ko","ok") -> ok | W42: =IF(L42<T42,L42,T42) -> 0 | Y42: =IF(L42>T42,L42-T42,0) -> 0 | AA42: =IF(M42<>0,J42*M42/L42,0) -> 0 | AC42: =IF(M42<>0,K42*M42/L42,0) -> 0 | AF42: =R42 -> PV) Isolamento pareti perimetrali 'Esterno' | AG42: 54545 | AH42: =IF(L42>AG42,"ko","ok") -> ok | AJ42: 0 | AK42: =IF(ZonaClimatica="A",IF(E42="Parete Ventilata",240,IF(E42="Interno",96,180)),IF(ZonaClimatica="B",IF(E42="Parete Ventilata",240,IF(E42="Interno",96,180)),IF(ZonaClimatica="C",IF(E42="Parete Ventilata",240,IF(E42="Interno",96,180)),IF(E42="Parete Ventilata",260,IF(E42="Interno",104,195))))) -> 195 | AL42: =IF(S42<>0,IF(F42<>0,G42*AJ42/F42/S42,0),0) -> 0 | AM42: 27 | AN42: =MIN(AY42,AZ42,BA42) -> 0 | AO42: =AU42 -> 0 | AP42: =K42 -> 0 | AQ42: =BF42*SUM(AN42:AO42) -> 0 | AR42: =IF(Titolare!$I$8=TRUE,SUM(AN42:AQ42),AG42) -> 0 | AS42: =IF(L42>AR42,"ko","ok") -> ok | AU42: =IF(F42>AJ42,F42-AJ42,0) -> 0 | AV42: =SUM(AK42:AM42) -> 222 | AW42: 0 | AX42: TRUE | AY42: =H42 -> 0 | AZ42: =AV42*S42+AW42*BG42 -> 222 | BA42: =H42 -> 0 | BB42: TRUE | BC42: TRUE | BD42: TRUE | BE42: TRUE | BF42: 0.1000000015 | BG42: 0 | BI42: =R42 -> PV) Isolamento pareti perimetrali 'Esterno' | BJ42: =H42 -> 0 | BK42: 0 | BL42: 0 | BM42: 0 | BN42: 0 | BO42: =IF(ABS(SUM(BJ42:BN42)-H42)>0.01,"err. Somma","") -> 
C43: PO) Isolamento coperture | E43: Esterno | F43: 0 | G43: 0 | H43: =SUM(F43:G43) -> 0 | I43: =H43*AliqIva -> 0 | J43: =H43+I43 -> 0 | K43: 0 | L43: =SUM(J43:K43) -> 0 | M43: =IF(L43<=T43,L43*percDetr,T43*percDetr) -> 0 | O43: .. | P43: Esegui | Q43: ? | R43: =CONCATENATE(C43," '",E43,"'") -> PO) Isolamento coperture 'Esterno' | S43: 1 | T43: 0 | U43: ok | W43: =IF(L43<T43,L43,T43) -> 0 | Y43: =IF(L43>T43,L43-T43,0) -> 0 | AA43: 0 | AC43: 0 | AF43: PO) Isolamento coperture 'Esterno' | AG43: 54545 | AH43: ok | AJ43: 0 | AK43: =IF(E43="Copertura Ventilata",300,IF(E43="Interno",120,276)) -> 276 | AL43: =IF(S43<>0,IF(F43<>0,G43*AJ43/F43/S43,0),0) -> 0 | AM43: 38 | AN43: =MIN(AY43,AZ43,BA43) -> 0 | AO43: =AU43 -> 0 | AP43: =K43 -> 0 | AQ43: =BF43*SUM(AN43:AO43) -> 0 | AR43: =IF(Titolare!$I$8=TRUE,SUM(AN43:AQ43),AG43) -> 0 | AS43: ok | AU43: =IF(F43>AJ43,F43-AJ43,0) -> 0 | AV43: =SUM(AK43:AM43) -> 314 | AW43: 0 | AX43: TRUE | AY43: =H43 -> 0 | AZ43: =AV43*S43+AW43*BG43 -> 314 | BA43: =H43 -> 0 | BB43: TRUE | BC43: TRUE | BD43: TRUE | BE43: TRUE | BF43: 0.1 | BG43: 0 | BI43: =R43 -> PO) Isolamento coperture 'Esterno' | BJ43: 0 | BK43: 0 | BL43: 0 | BM43: 0 | BN43: 0
C44: PS) Isolamento Pavimenti | E44: Esterno | F44: 0 | G44: 0 | H44: =SUM(F44:G44) -> 0 | I44: =H44*AliqIva -> 0 | J44: =H44+I44 -> 0 | K44: 0 | L44: =SUM(J44:K44) -> 0 | M44: =IF(L44<=T44,L44*percDetr,T44*percDetr) -> 0 | O44: .. | P44: Esegui | Q44: ? | R44: =CONCATENATE(C44," '",E44,"'") -> PS) Isolamento Pavimenti 'Esterno' | S44: 1 | T44: 0 | U44: ok | W44: =IF(L44<T44,L44,T44) -> 0 | Y44: =IF(L44>T44,L44-T44,0) -> 0 | AA44: 0 | AC44: 0 | AF44: PS) Isolamento Pavimenti 'Esterno' | AG44: 54545 | AH44: ok | AJ44: 0 | AK44: =IF(E44="Interno/terreno",180,144) -> 144 | AL44: =IF(S44<>0,IF(F44<>0,G44*AJ44/F44/S44,0),0) -> 0 | AM44: 27 | AN44: =MIN(AY44,AZ44,BA44) -> 0 | AO44: =AU44 -> 0 | AP44: =K44 -> 0 | AQ44: =BF44*SUM(AN44:AO44) -> 0 | AR44: =IF(Titolare!$I$8=TRUE,SUM(AN44:AQ44),AG44) -> 0 | AS44: ok | AU44: =IF(F44>AJ44,F44-AJ44,0) -> 0 | AV44: =SUM(AK44:AM44) -> 171 | AW44: 0 | AX44: TRUE | AY44: =H44 -> 0 | AZ44: =AV44*S44+AW44*BG44 -> 171 | BA44: =H44 -> 0 | BB44: TRUE | BC44: TRUE | BD44: TRUE | BE44: TRUE | BF44: 0.1 | BG44: 0 | BI44: PS) Isolamento Pavimenti 'Esterno' | BJ44: =H44 -> 0 | BK44: 0 | BL44: 0 | BM44: 0 | BN44: 0
C45: IN) Serramenti con chiusure oscuranti | E45: =IF(ZonaClimatica="A","Zone A, B e C", IF(ZonaClimatica="B","Zone A, B e C",IF(ZonaClimatica="C","Zone A, B e C","Zone D, E ed F"))) -> Zone D, E ed F | F45: 0 | G45: 0 | H45: =SUM(F45:G45) -> 0 | I45: =H45*AliqIva -> 0 | J45: =H45+I45 -> 0 | K45: 0 | L45: =SUM(J45:K45) -> 0 | M45: =IF(L45<=T45,L45*percDetr,T45*percDetr) -> 0 | O45: .. | P45: Esegui | Q45: ? | R45: =CONCATENATE(C45," '",E45,"'") -> IN) Serramenti con chiusure oscuranti 'Zone D, E ed F' | S45: 13.69 | T45: 0 | U45: ok | W45: =IF(L45<T45,L45,T45) -> 0 | Y45: =IF(L45>T45,L45-T45,0) -> 0 | AA45: 0 | AC45: 0 | AF45: IN) Serramenti con chiusure oscuranti 'Zone D, E ed F' | AG45: 54545 | AH45: ok | AJ45: 0 | AK45: =IF(E45="Zone A, B e C",IF(C45="IN) Serramenti",660,780),IF(C45="IN) Serramenti",780,900)) -> 900 | AL45: 68.83 | AM45: 300 | AN45: =MIN(AY45,AZ45,BA45) -> 0 | AO45: =AU45 -> 0 | AP45: =K45 -> 0 | AQ45: =BF45*SUM(AN45:AO45) -> 0 | AR45: =IF(Titolare!$I$8=TRUE,SUM(AN45:AQ45),AG45) -> 0 | AS45: ok | AU45: =IF(F45>AJ45,F45-AJ45,0) -> 0 | AV45: =SUM(AK45:AM45) -> 1268.83 | AW45: 0 | AX45: TRUE | AY45: =H45 -> 0 | AZ45: =AV45*S45+AW45*BG45 -> 17370.2827 | BA45: =H45 -> 0 | BB45: FALSE | BC45: TRUE | BD45: TRUE | BE45: TRUE | BF45: 0.1000000015 | BG45: 0 | BI45: IN) Serramenti con chiusure oscuranti 'Zone D, E ed F' | BJ45: 0 | BK45: 0 | BL45: 0 | BM45: 0 | BN45: 0
C46: Totali Isolamento PV) PO) PS) e IN | F46: =SUM(F42:F45) -> 0 | G46: 0 | H46: 0 | I46: 0 | J46: 0 | K46: 0 | L46: =SUM(L42:L45) -> 0 | M46: =SUM(M42:M45) -> 0 | R46: =C46 -> Totali Isolamento PV) PO) PS) e IN | T46: 0 | U46: ok | W46: =IF(T46=AG46,IF(L46<T46,L46,T46),SUM(W42:X45)) -> 0 | Y46: =IF(L46>W46,L46-W46,0) -> 0 | AA46: 0 | AC46: 0 | AF46: Totali Isolamento PV) PO) PS) e IN | AG46: 54545 | AH46: ok | AR46: =IF(Titolare!$I$8=TRUE,SUM(AR42:AR45),AG46) -> 0 | AS46: ok | BI46: Totali Isolamento PV) PO) PS) e IN | BJ46: =SUM(BJ42:BJ45) -> 0 | BK46: =SUM(BK42:BK45) -> 0 | BL46: =SUM(BL42:BL45) -> 0 | BM46: =SUM(BM42:BM45) -> 0 | BN46: =SUM(BN42:BN45) -> 0
C47: SS) Schermature solari e chiusure oscuranti | F47: 0 | G47: 0 | H47: =SUM(F47:G47) -> 0 | I47: =H47*AliqIva -> 0 | J47: =H47+I47 -> 0 | K47: 0 | L47: =SUM(J47:K47) -> 0 | M47: =IF(L47<=T47,L47*percDetr,T47*percDetr) -> 0 | O47: .. | P47: .. | Q47: ? | R47: =C47 -> SS) Schermature solari e chiusure oscuranti | S47: 10 | T47: 0 | U47: ok | W47: =IF(L47<T47,L47,T47) -> 0 | Y47: =IF(L47>T47,L47-T47,0) -> 0 | AA47: 0 | AC47: 0 | AF47: SS) Schermature solari e chiusure oscuranti | AG47: 54545 | AH47: ok | AJ47: 0 | AK47: 276 | AL47: =IF(S47<>0,IF(F47<>0,G47*AJ47/F47/S47,0),0) -> 0 | AM47: 150 | AN47: =MIN(AY47,AZ47,BA47) -> 0 | AO47: =AU47 -> 0 | AP47: =K47 -> 0 | AQ47: =BF47*SUM(AN47:AO47) -> 0 | AR47: =IF(Titolare!$I$8=TRUE,SUM(AN47:AQ47),AG47) -> 0 | AS47: ok | AU47: =IF(F47>AJ47,F47-AJ47,0) -> 0 | AV47: =SUM(AK47:AM47) -> 426 | AW47: 0 | AX47: TRUE | AY47: =H47 -> 0 | AZ47: =AV47*S47+AW47*BG47 -> 4260 | BA47: =H47 -> 0 | BB47: TRUE | BC47: TRUE | BD47: TRUE | BE47: TRUE | BF47: 0.1000000015 | BG47: 0 | BI47: SS) Schermature solari e chiusure oscuranti | BJ47: 0 | BK47: 0 | BL47: 0 | BM47: 0 | BN47: 0
C48: Impianti climatizzazione con | D48: CC)Caldaie a Condensazione | F48: 0 | G48: 0 | H48: =SUM(F48:G48) -> 0 | I48: =H48*AliqIva -> 0 | J48: =H48+I48 -> 0 | K48: 0 | L48: =SUM(J48:K48) -> 0 | M48: =IF(L48<=T48,L48*percDetr,T48*percDetr) -> 0 | O48: .. | P48: Esegui | Q48: ? | R48: =CONCATENATE(C48," '",D48,"'") -> Impianti climatizzazione con 'CC)Caldaie a Condensazione' | S48: 7 | T48: 0 | U48: ok | W48: =IF(L48<T48,L48,T48) -> 0 | Y48: =IF(L48>T48,L48-T48,0) -> 0 | AA48: 0 | AC48: 0 | AF48: Impianti climatizzazione con 'CC)Caldaie a Condensazione' | AG48: 27272 | AH48: ok | AJ48: 0 | AK48: =IF(LEFT(D48,3)="CC)",IF(S48<=35,240,216),IF(D48="PC)Aria/Aria",720,IF(D48="PC)Altro",1560,IF(D48="PC)Geotermiche",2280,IF(LEFT(D48,4)="PCA)",1560,IF(LEFT(D48,3)="SI)",1860,0)))))) -> 240 | AL48: =IF(S48<>0,IF(F48<>0,G48*AJ48/F48/S48,0),0) -> 0 | AM48: 200 | AN48: =MIN(AY48,AZ48,BA48) -> 0 | AO48: =AU48 -> 0 | AP48: =K48 -> 0 | AQ48: =BF48*SUM(AN48:AO48) -> 0 | AR48: =IF(Titolare!$I$8=TRUE,SUM(AN48:AQ48),AG48) -> 0 | AS48: ok | AU48: =IF(F48>AJ48,F48-AJ48,0) -> 0 | AV48: =SUM(AK48:AM48) -> 440 | AW48: =IF($T$2=TRUE,IF($X$2=TRUE,180,60),0) -> 60 | AX48: TRUE | AY48: =H48 -> 0 | AZ48: =AV48*S48+AW48*BG48 -> 3080 | BA48: =H48 -> 0 | BB48: TRUE | BC48: TRUE | BD48: TRUE | BE48: TRUE | BF48: 0.1 | BG48: 0 | BI48: Impianti climatizzazione con 'CC)Caldaie a Condensazione' | BJ48: 0 | BK48: 0 | BL48: 0 | BM48: 0 | BN48: 0
C49: SA) Scaldacqua a pompa di calore | F49: 0 | G49: 0 | H49: =SUM(F49:G49) -> 0 | I49: =H49*AliqIva -> 0 | J49: =H49+I49 -> 0 | K49: 0 | L49: =SUM(J49:K49) -> 0 | M49: =IF(L49<=T49,L49*percDetr,T49*percDetr) -> 0 | O49: .. | P49: Esegui | Q49: ok | R49: =C49 -> SA) Scaldacqua a pompa di calore | S49: 200 | T49: 0 | U49: ok | W49: =IF(L49<T49,L49,T49) -> 0 | Y49: =IF(L49>T49,L49-T49,0) -> 0 | AA49: 0 | AC49: 0 | AF49: SA) Scaldacqua a pompa di calore | AG49: 27272 | AH49: ok | AJ49: 0 | AK49: =IF(S49<=150,1200,1500) -> 1500 | AL49: 0 | AM49: 2000 | AN49: =MIN(AY49,AZ49,BA49) -> 0 | AO49: =AU49 -> 0 | AP49: =K49 -> 0 | AQ49: =BF49*SUM(AN49:AO49) -> 0 | AR49: =IF(Titolare!$I$8=TRUE,SUM(AN49:AQ49),AG49) -> 0 | AS49: ok | AU49: =IF(F49>AJ49,F49-AJ49,0) -> 0 | AV49: =SUM(AK49:AM49) -> 3500 | AW49: 0 | AX49: TRUE | AY49: =H49 -> 0 | AZ49: =AV49 -> 3500 | BA49: =H49 -> 0 | BB49: FALSE | BC49: TRUE | BD49: TRUE | BE49: TRUE | BF49: 0.1000000015 | BG49: 0 | BI49: SA) Scaldacqua a pompa di calore | BJ49: 0 | BK49: 0 | BL49: 0 | BM49: 0 | BN49: 0
C50: Totali Impianti ed SA) | F50: =SUM(F48:F49) -> 0 | G50: 0 | H50: 0 | I50: 0 | J50: 0 | K50: 0 | L50: 0 | M50: 0 | R50: =C50 -> Totali Impianti ed SA) | T50: 0 | U50: ok | W50: =IF(T50=AG50,IF(L50<T50,L50,T50),SUM(W48:X49)) -> 0 | Y50: =IF(L50>W50,L50-W50,0) -> 0 | AA50: 0 | AC50: 0 | AF50: Totali Impianti ed SA) | AG50: 27272 | AH50: ok | AR50: =IF(Titolare!$I$8=TRUE,SUM(AR48:AR49),AG50) -> 0 | AS50: ok | BI50: Totali Impianti ed SA) | BJ50: =SUM(BJ48:BJ49) -> 0 | BK50: =SUM(BK48:BK49) -> 0 | BL50: =SUM(BL48:BL49) -> 0 | BM50: =SUM(BM48:BM49) -> 0 | BN50: =SUM(BN48:BN49) -> 0
C51: CO) Sistemi di Microgenerazione | E51: Celle a combustibile | F51: 0 | G51: 0 | H51: =SUM(F51:G51) -> 0 | I51: =H51*AliqIva -> 0 | J51: =H51+I51 -> 0 | K51: 0 | L51: =SUM(J51:K51) -> 0 | M51: =IF(L51<=T51,L51*percDetr,T51*percDetr) -> 0 | O51: .. | P51: Esegui | Q51: ? | R51: =CONCATENATE(C51," '",E51,"'") -> CO) Sistemi di Microgenerazione 'Celle a combustibile' | S51: 1 | T51: 0 | U51: ok | W51: =IF(L51<T51,L51,T51) -> 0 | Y51: =IF(L51>T51,L51-T51,0) -> 0 | AA51: 0 | AC51: 0 | AF51: CO) Sistemi di Microgenerazione 'Celle a combustibile' | AG51: 90909 | AH51: ok | AJ51: 0 | AK51: =IF(E51="Celle a combustibile",30000,3720) -> 30000 | AL51: =IF(S51<>0,IF(F51<>0,G51*AJ51/F51/S51,0),0) -> 0 | AM51: 93.6 | AN51: =MIN(AY51,AZ51,BA51) -> 0 | AO51: =AU51 -> 0 | AP51: =K51 -> 0 | AQ51: =BF51*SUM(AN51:AO51) -> 0 | AR51: =IF(Titolare!$I$8=TRUE,SUM(AN51:AQ51),AG51) -> 0 | AS51: ok | AU51: =IF(F51>AJ51,F51-AJ51,0) -> 0 | AV51: =SUM(AK51:AM51) -> 30093.6 | AW51: 0 | AX51: TRUE | AY51: =H51 -> 0 | AZ51: =AV51*S51+AW51*BG51 -> 30093.6 | BA51: =H51 -> 0 | BB51: TRUE | BC51: TRUE | BD51: TRUE | BE51: TRUE | BF51: 0.1000000015 | BG51: 0 | BI51: CO) Sistemi di Microgenerazione 'Celle a combustibile' | BJ51: =H51 -> 0 | BK51: 0 | BL51: 0 | BM51: 0 | BN51: 0
C52: IB) Generatori a Biomassa | F52: 0 | G52: 0 | H52: 0 | I52: 0 | J52: 0 | K52: 0 | L52: 0 | M52: 0 | O52: .. | P52: Esegui | Q52: ? | R52: =C52 -> IB) Generatori a Biomassa | S52: 1 | T52: 0 | U52: ok | W52: 0 | Y52: 0 | AA52: 0 | AC52: 0 | AF52: IB) Generatori a Biomassa | AG52: 27272 | AH52: ok | AJ52: 0 | AK52: =IF(S52<=35,420,540) -> 420 | AL52: =IF(S52<>0,IF(F52<>0,G52*AJ52/F52/S52,0),0) -> 0 | AM52: 0 | AN52: =MIN(AY52,AZ52,BA52) -> 0 | AO52: =AU52 -> 0 | AP52: =K52 -> 0 | AQ52: 0 | AR52: =IF(Titolare!$I$8=TRUE,SUM(AN52:AQ52),AG52) -> 0 | AS52: ok | AU52: 0 | AV52: 420 | AW52: =IF($T$2=TRUE,IF($X$2=TRUE,180,60),0) -> 60 | AX52: TRUE | AY52: 0 | AZ52: 10920 | BA52: =H52 -> 0 | BB52: TRUE | BC52: TRUE | BD52: TRUE | BE52: TRUE | BF52: 0.1000000015 | BG52: 175 | BI52: IB) Generatori a Biomassa | BJ52: 0 | BK52: 0 | BL52: 0 | BM52: 0 | BN52: 0
C53: BA) Building Automation | F53: 0 | G53: 0 | H53: 0 | I53: 0 | J53: 0 | K53: 0 | L53: 0 | M53: 0 | O53: .. | P53: Esegui | Q53: ? | R53: =C53 -> BA) Building Automation | S53: 250 | T53: 0 | U53: ok | W53: 0 | Y53: 0 | AA53: 0 | AC53: 0 | AF53: BA) Building Automation | AG53: 13636 | AH53: ok | AJ53: 0 | AK53: 60 | AL53: =IF(S53<>0,IF(F53<>0,G53*AJ53/F53/S53,0),0) -> 0 | AM53: 30 | AN53: =MIN(AY53,AZ53,BA53) -> 0 | AO53: =AU53 -> 0 | AP53: =K53 -> 0 | AQ53: 0 | AR53: =IF(Titolare!$I$8=TRUE,SUM(AN53:AQ53),AG53) -> 0 | AS53: ok | AU53: 0 | AV53: 90 | AW53: 0 | AX53: TRUE | AY53: 0 | AZ53: 22500 | BA53: =H53 -> 0 | BB53: TRUE | BC53: TRUE | BD53: TRUE | BE53: TRUE | BF53: 0.1000000015 | BG53: 0 | BI53: BA) Building Automation | BJ53: 0 | BK53: 0 | BL53: 0 | BM53: 0 | BN53: 0
C54: ST) Collettori Solari | E54: Piani Vetrati | F54: 0 | G54: 0 | H54: 0 | I54: 0 | J54: 0 | K54: 0 | L54: 0 | M54: 0 | O54: .. | P54: Esegui | Q54: ? | R54: =CONCATENATE(C54," '",E54,"'") -> ST) Collettori Solari 'Piani Vetrati' | S54: 4 | T54: 0 | U54: ok | W54: 0 | Y54: 0 | AA54: 0 | AC54: 0 | AF54: ST) Collettori Solari 'Piani Vetrati' | AG54: 54545 | AH54: ok | AJ54: 0 | AK54: =IF(E54="Scoperti",900,IF(E54="Piani vetrati",1200,1500)) -> 1200 | AL54: =IF(S54<>0,IF(F54<>0,G54*AJ54/F54/S54,0),0) -> 0 | AM54: 900 | AN54: =MIN(AY54,AZ54,BA54) -> 0 | AO54: =AU54 -> 0 | AP54: =K54 -> 0 | AQ54: =BF54*SUM(AN54:AO54) -> 0 | AR54: =IF(Titolare!$I$8=TRUE,SUM(AN54:AQ54),AG54) -> 0 | AS54: ok | AU54: 0 | AV54: 2100 | AW54: 0 | AX54: TRUE | AY54: 0 | AZ54: 8400 | BA54: =H54 -> 0 | BB54: TRUE | BC54: TRUE | BD54: TRUE | BE54: TRUE | BF54: 0.1000000015 | BG54: 0 | BI54: ST) Collettori Solari 'Piani Vetrati' | BJ54: 0 | BK54: 0 | BL54: 0 | BM54: 0 | BN54: 0
C55: FV) Solare Fotovoltaico [ kWp ] | E55: 6.72 | F55: 0 | G55: 0 | H55: 0 | I55: 0 | J55: 0 | K55: 0 | L55: 0 | M55: 0 | O55: .. | Q55: ok | R55: =C55 -> FV) Solare Fotovoltaico [ kWp ] | S55: =E55 -> 6.72 | T55: 16128 | U55: ok | W55: 0 | Y55: 0 | AA55: 0 | AC55: 0 | AF55: FV) Solare Fotovoltaico [ kWp ] | AG55: =IF(ISNUMBER(FIND("ristr",C55))=FALSE,IF(E55*2400<48000*N_Uimm,E55*2400,48000*N_Uimm),IF(E55*1600<48000*N_Uimm,E55*1600,48000*N_Uimm)) -> 16128 | AH55: ok | AJ55: 0 | AO55: =AU55 -> 0 | AP55: =K55 -> 0 | AQ55: =BF55*SUM(AN55:AO55) -> 0 | AR55: =AG55 -> 16128 | AS55: ok | AU55: 0 | AV55: 0 | AW55: 0 | AX55: TRUE | AY55: 0 | AZ55: 0 | BA55: =H55 -> 0 | BB55: TRUE | BC55: TRUE | BD55: TRUE | BE55: TRUE | BF55: 0.1000000015 | BG55: 0 | BI55: FV) Solare Fotovoltaico [ kWp ] | BJ55: 0 | BK55: 0 | BL55: 0 | BM55: 0 | BN55: 0
C56: AC) Sistema di Accumulo [ kWh ] | E56: 10 | F56: 0 | G56: 0 | H56: 0 | I56: 0 | J56: 0 | K56: 0 | L56: 0 | M56: 0 | O56: .. | Q56: ok | R56: =C56 -> AC) Sistema di Accumulo [ kWh ] | S56: =E56 -> 10 | T56: 10000 | U56: ok | W56: 0 | Y56: 0 | AA56: 0 | AC56: 0 | AF56: AC) Sistema di Accumulo [ kWh ] | AG56: =IF(E56*1000<48000*N_Uimm,E56*1000,48000*N_Uimm) -> 10000 | AH56: ok | AJ56: 0 | AO56: 0 | AP56: 0 | AQ56: 0 | AR56: =AG56 -> 10000 | AS56: ok | AU56: 0 | AV56: 0 | AW56: 0 | AX56: TRUE | AY56: 0 | AZ56: 0 | BA56: 0 | BB56: TRUE | BC56: TRUE | BD56: TRUE | BE56: TRUE | BF56: 0.1 | BG56: 0 | BI56: AC) Sistema di Accumulo [ kWh ] | BJ56: 0 | BK56: 0 | BL56: 0 | BM56: 0 | BN56: 0
C57: CR) Colonnine di Ricarica | E57: 1 | F57: 0 | G57: 0 | H57: 0 | I57: 0 | J57: 0 | K57: 0 | L57: 0 | M57: 0 | O57: .. | Q57: ok | R57: =C57 -> CR) Colonnine di Ricarica | S57: =E57 -> 1 | T57: 2000 | U57: ok | W57: 0 | Y57: 0 | AA57: 0 | AC57: 0 | AF57: CR) Colonnine di Ricarica | AG57: =IF(TipoEdif=1,2000,IF(N_Uimm>8,1200,1500)) -> 2000 | AH57: ok | AJ57: 0 | AO57: 0 | AP57: 0 | AQ57: 0 | AR57: =AG57 -> 2000 | AS57: ok | AU57: 0 | AV57: 0 | AW57: 0 | AX57: TRUE | AY57: 0 | AZ57: 0 | BA57: 0 | BB57: TRUE | BC57: TRUE | BD57: TRUE | BE57: TRUE | BF57: 0.1 | BG57: 0 | BI57: CR) Colonnine di Ricarica | BJ57: 0 | BK57: 0 | BL57: 0 | BM57: 0 | BN57: 0
C58: EBA) Eliminazione Barriere architettoniche | F58: 0 | G58: 0 | H58: =SUM(F58:G58) -> 0 | I58: 0 | J58: =H58+I58 -> 0 | K58: 0 | L58: 0 | M58: 0 | O58: .. | Q58: ok | R58: =C58 -> EBA) Eliminazione Barriere architettoniche | S58: 1 | T58: 96000 | U58: ok | W58: 0 | Y58: 0 | AA58: 0 | AC58: 0 | AF58: EBA) Eliminazione Barriere architettoniche | AG58: 96000 | AH58: ok | AJ58: 0 | AO58: 0 | AP58: 0 | AQ58: 0 | AR58: =AG58 -> 96000 | AS58: ok | AU58: 0 | AV58: 0 | AW58: 0 | AX58: TRUE | AY58: 0 | AZ58: 0 | BA58: 0 | BB58: TRUE | BC58: TRUE | BD58: TRUE | BE58: TRUE | BF58: 0.1 | BG58: 0 | BI58: EBA) Eliminazione Barriere architettoniche | BJ58: 0 | BK58: 0 | BL58: 0 | BM58: 0 | BN58: 0
C59: Totale Interventi trainati | F59: =F46+F47+SUM(F50:F58) -> 0 | G59: 0 | H59: 0 | I59: 0 | J59: 0 | K59: 0 | L59: 0 | M59: 0 | V59: =C59 -> Totale Interventi trainati | W59: =W46+W47+SUM(W50:X58) -> 0 | Y59: =Y46+Y47+SUM(Y50:Z58) -> 0 | AA59: =AA46+AA47+SUM(AA50:AB58) -> 0 | AC59: =AC46+AC47+SUM(AC50:AD58) -> 0 | BI59: =V59 -> Totale Interventi trainati | BJ59: =BJ46+BJ47+SUM(BJ50:BJ58) -> 0 | BK59: =BK46+BK47+SUM(BK50:BK58) -> 0 | BL59: =BL46+BL47+SUM(BL50:BL58) -> 0 | BM59: =BM46+BM47+SUM(BM50:BM58) -> 0 | BN59: =BN46+BN47+SUM(BN50:BN58) -> 0
C70: Note
C78: SimMZ | BI78: Ripartizione tra le Imprese - Imponibile Lavori INTERVENTI SB.
C80: TOTALI INTERVENTI SB. | F80: Importo Lavori | G80: Incidenza Sicurezza | H80: Imponibile | I80: Iva | J80: Importo c.iva | K80: Spese tecniche | L80: Totale | M80: =$M$8 -> Credito Spettante 75% Spesa Ammessa | R80: =C80 -> TOTALI INTERVENTI SB. | W80: Spesa Ammessa | Y80: Quota Eccedente Spesa Ammessa | AA80: =$AA$8 -> Credito Spettante 75% Spesa Ammessa Quota Imprese | Quota Tecnici | BI80: =R80 -> TOTALI INTERVENTI SB. | BJ80: =IF('Dati Gen'!$B$38<>"",'Dati Gen'!$B$38,"") -> Impresa1 | BK80: =IF('Dati Gen'!$B$39<>"",'Dati Gen'!$B$39,"") -> Impresa2 | BL80: =IF('Dati Gen'!$B$40<>"",'Dati Gen'!$B$40,"") -> Impresa3 | BM80: =IF('Dati Gen'!$B$41<>"",'Dati Gen'!$B$41,"") -> Impresa4 | BN80: =IF('Dati Gen'!$B$42<>"",'Dati Gen'!$B$42,"") -> 
F81: =F16+F59 -> 0 | G81: 0 | H81: 0 | I81: 0 | J81: 0 | K81: 0 | L81: 0 | M81: 0 | W81: =W16+W59 -> 0 | Y81: =Y16+Y59 -> 0 | AA81: =AA16+AA59 -> 0 | AC81: =AC16+AC59 -> 0 | BJ81: =BJ16+BJ59 -> 0 | BK81: =BK16+BK59 -> 0 | BL81: =BL16+BL59 -> 0 | BM81: =BM16+BM59 -> 0 | BN81: =BN16+BN59 -> 0
C82: =CONCATENATE("Quota a Carico Cliente per Interventi SB = Eccedenza Spesa Ammessa ",IF(percDetr<1,CONCATENATE("+",100*(1-percDetr),"%·Spesa Ammessa =")," =")) -> Quota a Carico Cliente per Interventi SB = Eccedenza Spesa Ammessa +25%·Spesa Ammessa = | M82: =IF((1-percDetr)*SpesaAmmessaSB>0,QuotaEccedSB+(1-percDetr)*SpesaAmmessaSB,QuotaEccedSB) -> 0
L83: =CONCATENATE("Quota Cedibile = ",100*percDetr,"%·Spesa Ammessa = ") -> Quota Cedibile = 75%·Spesa Ammessa = | M83: =SpesaAmmessaSB*percDetr -> 0
AK86: =IF(COUNTIF(AR89:AR92,"KO")>0,"ATTENZIONE! Massimale Spesa MITE non Asseverabile","") -> 
C87: ALTRI INTERVENTI | Q87: Asseverabile | R87: =CONCATENATE("Spesa detraibile ammissibile ",C87) -> Spesa detraibile ammissibile ALTRI INTERVENTI | AF87: Spesa Massima Ammissibile (norma primaria) | AJ87: Spesa Specifica MITE | AM87: =C87 -> ALTRI INTERVENTI | BI87: Ripartizione tra le Imprese - Imponibile Lavori ALTRI INTERVENTI | BP87: Risparmio Energetico, con fonti rinnovabili di energia
C88: Interventi | E88: x% Credito ceduto | F88: Importo Lavori | G88: Incidenza Sicurezza | H88: Imponibile | I88: Iva | J88: Importo c.iva | K88: Spese tecniche | L88: Totale | M88: Credito Spettante x% Spesa Ammessa | R88: Interventi | S88: Superficie Intervento / UnitàMisura | T88: Min(Spesa Max Ammissibile;Spesa Max Intervento) | U88: Verifica Max | W88: Spesa Ammessa | Y88: Quota Eccedente Spesa Ammessa | AA88: Credito Spettante x% Spesa Ammessa Quota Imprese | Quota Tecnici | AF88: =C87 -> ALTRI INTERVENTI | AG88: Spesa Massima Ammissibile | AH88: Ver. Max | AJ88: Importo Lavori Fornitura e Posa | AK88: Costo dei Beni (Allegato A) | AL88: Opere per installazione (Sicurezza) | AM88: Manodopera | AN88: =$AN$8 -> Spesa Max Ammissibile Asseverata | AO88: Altri Costi | AP88: Spese Tecniche | AQ88: IVA | AR88: Spesa di Intervento | AS88: =$AS$8 -> Ver.Max | AU88: Altri Lavori | AV88: Importo Specifico DM Costi Massimi | AW88: Incremento Costo dei Beni (Allegato A) | AX88: Controllo1 | AY88: Importo Controllo1 | AZ88: Importo Controllo2 | BA88: Importo Controllo3 | BB88: Opere per Istallazione = Incidenza Sicurezza Fornitura / Superficie Intervento | BC88: SpesaSostenuta = Opera Compiuta | BD88: Spesa Tecniche = Spese Tecniche da Computo | BE88: Altri Costi = Altri Lavori | BF88: AliqIva | BG88: Superficie Riscaldata | BI88: Interventi | BJ88: =IF('Dati Gen'!$B$38<>"",'Dati Gen'!$B$38,"") -> Impresa1 | BK88: =IF('Dati Gen'!$B$39<>"",'Dati Gen'!$B$39,"") -> Impresa2 | BL88: =IF('Dati Gen'!$B$40<>"",'Dati Gen'!$B$40,"") -> Impresa3 | BM88: =IF('Dati Gen'!$B$41<>"",'Dati Gen'!$B$41,"") -> Impresa4 | BN88: =IF('Dati Gen'!$B$42<>"",'Dati Gen'!$B$42,"") ->  | BP88: Risparmio Energetico, in Comunità Energetiche , con fonti rinnovabili di energia
C89: Manutenzione straordinaria, restauro e recupero conservativo | D89: Manutenzione straordinaria, restauro e recupero conservativo | E89: 0.75 | F89: 39800 | G89: =IF(ImpLav<>0,F89*ImpSicLav/ImpLav,0) -> 0 | H89: =F89+G89 -> 39800 | I89: =H89*AliqIva -> 3980 | J89: =H89+I89 -> 43780 | K89: 6101.27 | L89: =SUM(J89:K89) -> 49881.27 | M89: =IF(L89<=T89,L89*E89,T89*E89) -> 37410.9525 | O89: .. | Q89: ok | R89: =IF(C89<>"",C89,"") -> Manutenzione straordinaria, restauro e recupero conservativo | S89: 1 | T89: =MIN(AG89,AR89) -> 96000 | U89: =IF(L89>T89,"KO","ok") -> ok | W89: =IF(L89<T89,L89,T89) -> 49881.27 | Y89: =IF(L89>T89,L89-T89,0) -> 0 | AA89: =IF(M89<>0,J89*M89/L89,0) -> 32835 | AC89: =IF(M89<>0,K89*M89/L89,0) -> 4575.9525 | AF89: =R89 -> Manutenzione straordinaria, restauro e recupero conservativo | AG89: =IF($F$15<>0,IF(ISNUMBER(SEARCH("Ristrutturazione",C89,1))=TRUE,IF(Titolare!$I$6=1,IF($L$15>$T$15,0,96000*N_Uimm-$L$15),IF(Titolare!$I$6=2,0,96000*N_Uimm)),96000*N_Uimm),96000*N_Uimm) -> 96000 | AH89: =IF(L89>AG89,"KO","ok") -> ok | AJ89: 0 | AO89: =AU89 -> 39800 | AP89: =K89 -> 6101.27 | AR89: =AG89 -> 96000 | AS89: =IF(L89>AR89,"ko","ok") -> ok | AU89: =IF(H89>AJ89,H89-AJ89,0) -> 39800 | AV89: =SUM(AK89:AM89) -> 0 | AW89: 0 | AX89: TRUE | AY89: =H89 -> 39800 | AZ89: =AV89*S89+AW89*BG89 -> 0 | BA89: =H89 -> 39800 | BB89: TRUE | BC89: TRUE | BD89: TRUE | BE89: TRUE | BF89: 0.1000000015 | BG89: 0 | BI89: =R89 -> Manutenzione straordinaria, restauro e recupero conservativo | BJ89: 27860 | BK89: 11940 | BL89: 0 | BM89: 0 | BN89: 0 | BO89: =IF(ABS(SUM(BJ89:BN89)-H89)>0.01,"err. Somma","") ->  | BP89: Manutenzione straordinaria, restauro e recupero conservativo
E90: 0.6 | F90: 0 | G90: =IF(ImpLav<>0,F90*ImpSicLav/ImpLav,0) -> 0 | H90: =F90+G90 -> 0 | I90: =H90*AliqIva -> 0 | J90: =H90+I90 -> 0 | L90: =SUM(J90:K90) -> 0 | M90: =IF(L90<=T90,L90*E90,T90*E90) -> 0 | O90: .. | Q90: ok | R90: =IF(C90<>"",C90,"") ->  | S90: 1 | T90: =MIN(AG90,AR90) -> 96000 | U90: =IF(L90>T90,"KO","ok") -> ok | W90: =IF(L90<T90,L90,T90) -> 0 | Y90: =IF(L90>T90,L90-T90,0) -> 0 | AA90: =IF(M90<>0,J90*M90/L90,0) -> 0 | AC90: =IF(M90<>0,K90*M90/L90,0) -> 0 | AF90: =R90 ->  | AG90: =IF($F$15<>0,IF(ISNUMBER(SEARCH("Ristrutturazione",C90,1))=TRUE,IF(Titolare!$I$6=1,IF($L$15>$T$15,0,96000*N_Uimm-$L$15),IF(Titolare!$I$6=2,0,96000*N_Uimm)),96000*N_Uimm),96000*N_Uimm) -> 96000 | AH90: =IF(L90>AG90,"KO","ok") -> ok | AJ90: 0 | AR90: =AG90 -> 96000 | AS90: =IF(L90>AR90,"ko","ok") -> ok | AU90: =IF(H90>AJ90,H90-AJ90,0) -> 0 | AV90: =SUM(AK90:AM90) -> 0 | AW90: 0 | AX90: TRUE | AY90: =H90 -> 0 | AZ90: =AV90*S90+AW90*BG90 -> 0 | BA90: =H90 -> 0 | BB90: TRUE | BC90: TRUE | BD90: TRUE | BE90: TRUE | BF90: 0.1000000015 | BG90: 0 | BI90: =R90 ->  | BJ90: 0 | BK90: 0 | BL90: 0 | BM90: 0 | BN90: 0 | BO90: =IF(ABS(SUM(BJ90:BN90)-H90)>0.01,"err. Somma","") ->  | BP90: Ristrutturazione edilizia
E91: 0.7 | F91: 0 | G91: =IF(ImpLav<>0,F91*ImpSicLav/ImpLav,0) -> 0 | H91: =F91+G91 -> 0 | I91: =H91*AliqIva -> 0 | J91: =H91+I91 -> 0 | K91: =IF(ImpLav<>0,F91*ImpTecLav/ImpLav,0) -> 0 | L91: =SUM(J91:K91) -> 0 | M91: =IF(L91<=T91,L91*E91,T91*E91) -> 0 | O91: .. | Q91: ok | R91: =IF(C91<>"",C91,"") ->  | S91: 1 | T91: =MIN(AG91,AR91) -> 96000 | U91: =IF(L91>T91,"KO","ok") -> ok | W91: =IF(L91<T91,L91,T91) -> 0 | Y91: =IF(L91>T91,L91-T91,0) -> 0 | AA91: =IF(M91<>0,J91*M91/L91,0) -> 0 | AC91: =IF(M91<>0,K91*M91/L91,0) -> 0 | AF91: =R91 ->  | AG91: =IF($F$15<>0,IF(ISNUMBER(SEARCH("Ristrutturazione",C91,1))=TRUE,IF(Titolare!$I$6=1,IF($L$15>$T$15,0,96000*N_Uimm-$L$15),IF(Titolare!$I$6=2,0,96000*N_Uimm)),96000*N_Uimm),96000*N_Uimm) -> 96000 | AH91: =IF(L91>AG91,"KO","ok") -> ok | AJ91: 0 | AO91: =AU91 -> 0 | AP91: =K91 -> 0 | AR91: =AG91 -> 96000 | AS91: =IF(L91>AR91,"ko","ok") -> ok | AU91: =IF(H91>AJ91,H91-AJ91,0) -> 0 | AV91: =SUM(AK91:AM91) -> 0 | AW91: 0 | AX91: TRUE | AY91: =H91 -> 0 | AZ91: =AV91*S91+AW91*BG91 -> 0 | BA91: =H91 -> 0 | BB91: TRUE | BC91: TRUE | BD91: TRUE | BE91: TRUE | BF91: 0.1000000015 | BG91: 0 | BI91: =R91 ->  | BJ91: =F91 -> 0 | BO91: =IF(ABS(SUM(BJ91:BN91)-H91)>0.01,"err. Somma","") ->  | BP91: Manutenzione ordinaria sulle parti comuni di un edificio
G92: =IF(ImpLav<>0,F92*ImpSicLav/ImpLav,0) -> 0 | H92: =F92+G92 -> 0 | I92: =H92*AliqIva -> 0 | J92: =H92+I92 -> 0 | K92: =IF(ImpLav<>0,F92*ImpTecLav/ImpLav,0) -> 0 | L92: =SUM(J92:K92) -> 0 | M92: =IF(L92<=T92,L92*E92,T92*E92) -> 0 | O92: .. | Q92: ok | R92: =IF(C92<>"",C92,"") ->  | S92: 1 | T92: =MIN(AG92,AR92) -> 96000 | U92: =IF(L92>T92,"KO","ok") -> ok | W92: =IF(L92<T92,L92,T92) -> 0 | Y92: =IF(L92>T92,L92-T92,0) -> 0 | AA92: =IF(M92<>0,J92*M92/L92,0) -> 0 | AC92: =IF(M92<>0,K92*M92/L92,0) -> 0 | AF92: =R92 ->  | AG92: =IF($F$15<>0,IF(ISNUMBER(SEARCH("Ristrutturazione",C92,1))=TRUE,IF(Titolare!$I$6=1,IF($L$15>$T$15,0,96000*N_Uimm-$L$15),IF(Titolare!$I$6=2,0,96000*N_Uimm)),96000*N_Uimm),96000*N_Uimm) -> 96000 | AH92: =IF(L92>AG92,"KO","ok") -> ok | AJ92: 0 | AR92: =AG92 -> 96000 | AS92: =IF(L92>AR92,"ko","ok") -> ok | AU92: =IF(H92>AJ92,H92-AJ92,0) -> 0 | AV92: =SUM(AK92:AM92) -> 0 | AW92: 0 | AX92: TRUE | AY92: =H92 -> 0 | AZ92: =AV92*S92+AW92*BG92 -> 0 | BA92: =H92 -> 0 | BB92: TRUE | BC92: TRUE | BD92: TRUE | BE92: TRUE | BF92: 0.1000000015 | BG92: 0 | BI92: =R92 ->  | BJ92: 0 | BO92: =IF(ABS(SUM(BJ92:BN92)-H92)>0.01,"err. Somma","") ->  | BP92: Recupero o restauro della Facciata degli edifici esistenti
C93: Totale Altri Interventi : | F93: =SUM(F89:F92) -> 39800 | G93: =SUM(G89:G92) -> 0 | H93: 39800 | I93: 3980 | J93: 43780 | K93: 6101.27 | L93: 49881.27 | M93: 37410.9525 | T93: =C93 -> Totale Altri Interventi : | W93: =SUM(W89:X92) -> 49881.27 | Y93: =SUM(Y89:Z92) -> 0 | AA93: =SUM(AA89:AB92) -> 32835 | AC93: =SUM(AC89:AD92) -> 4575.9525 | AJ93: 0 | BI93: =T93 -> Totale Altri Interventi : | BJ93: =SUM(BJ89:BJ92) -> 27860 | BK93: =SUM(BK89:BK92) -> 11940 | BL93: =SUM(BL89:BL92) -> 0 | BM93: =SUM(BM89:BM92) -> 0 | BN93: =SUM(BN89:BN92) -> 0 | BP93: Installazione di impianti solari Fotovoltaici connessi alla rete elettrica su edifici
C94: Quota a Carico Cliente per Altri Interventi = Eccedenza Spesa Ammessa + (100-x)%·Spesa Ammessa = | M94: =IF((1-E89)*W89+(1-E90)*W90+(1-E91)*W91+(1-E92)*W92>0,Y93+(1-E89)*W89+(1-E90)*W90+(1-E91)*W91+(1-E92)*W92,Y93) -> 12470.3175 | BP94: Installazione di sistemi di Accumulo integrati negli impianti solari fotovoltaici agevolati
L95: Quota Cedibile = x%·Spesa Ammessa = | M95: =W89*E89+W90*E90+W91*E91+W92*E92 -> 37410.9525 | BP95: Installazione di colonnine per la Ricarica di veicoli elettrici negli edifici
BP96: Eliminazione Barriere Architettoniche
BI98: Ripartizione tra le Imprese - Imponibile Lavori
C99: TOTALI PROGETTO | F99: Importo Lavori | G99: Incidenza Sicurezza | H99: Imponibile | I99: Iva | J99: Importo c.iva | K99: Spese tecniche | L99: Totale | M99: Credito Spettante | R99: =C99 -> TOTALI PROGETTO | W99: Spesa Ammessa | Y99: Quota Eccedente Spesa Ammessa | AA99: Credito Spettante Quota Imprese | Quota Tecnici | BI99: =R99 -> TOTALI PROGETTO | BJ99: =IF('Dati Gen'!$B$38<>"",'Dati Gen'!$B$38,"") -> Impresa1 | BK99: =IF('Dati Gen'!$B$39<>"",'Dati Gen'!$B$39,"") -> Impresa2 | BL99: =IF('Dati Gen'!$B$40<>"",'Dati Gen'!$B$40,"") -> Impresa3 | BM99: =IF('Dati Gen'!$B$41<>"",'Dati Gen'!$B$41,"") -> Impresa4 | BN99: =IF('Dati Gen'!$B$42<>"",'Dati Gen'!$B$42,"") -> 
F100: =F81+F93 -> 39800 | G100: 0 | H100: 39800 | I100: 3980 | J100: 43780 | K100: 6101.27 | L100: 49881.27 | M100: 37410.9525 | W100: =W81+W93 -> 49881.27 | Y100: =Y81+Y93 -> 0 | AA100: =AA81+AA93 -> 32835 | AC100: =AC81+AC93 -> 4575.9525 | BJ100: =BJ81+BJ93 -> 27860 | BK100: =BK81+BK93 -> 11940 | BL100: =BL81+BL93 -> 0 | BM100: =BM81+BM93 -> 0 | BN100: =BN81+BN93 -> 0
C101: Quota Totale a Carico Cliente = | M101: =M94+M82 -> 12470.3175
C104: Quota % effettiva per cessione credito a Banca o Impresa "Interventi SB." | H104: =100/110 -> 0.9090909091 | I104: =H104*100 -> 90.90909091 | J104: Import.Ricevuto | K104: =M83*H104 -> 0 | L104: Costo Cessione SB. | M104: =IF(L81-M82-K104>0,L81-M82-K104,0) -> 0
G105: Quota % effettiva per cessione credito a Banca o Impresa "Altri Interventi" | H105: 1 | I105: =H105*100 -> 100 | J105: Import.Ricevuto | K105: =M95*H105 -> 37410.9525 | L105: Costo Cessione Altri | M105: =IF(M95-K105>0,M95-K105,0) -> 0
F107: Costi Cliente | G107: Quota Imprese | H107: Quota Tecnici | K107: Costi Totali | L107: Quota Imprese | M107: Quota Tecnici
E108: Quota a Carico x Interventi Superbonus | F108: =M82 -> 0 | G108: =IF(TotaleSB<>0,F108*ImportSB/TotaleSB,0) -> 0 | H108: =IF(TotaleSB<>0,F108*SpeseTecSB/TotaleSB,0) -> 0 | J108: Interventi Superbonus | K108: =TotaleSB -> 0 | L108: =IF(TotaleSB<>0,K108*ImportSB/TotaleSB,0) -> 0 | M108: =IF(TotaleSB<>0,K108*SpeseTecSB/TotaleSB,0) -> 0
E109: Quota a Carico x Altri Interventi | F109: =M94 -> 12470.3175 | G109: =IF(TotaleSB<>0,F109*ImportSB/TotaleSB,0) -> 0 | H109: =IF(TotaleSB<>0,F109*SpeseTecSB/TotaleSB,0) -> 0 | J109: Altri Interventi | K109: =L93 -> 49881.27 | L109: =IF(L93<>0,K109*J93/L93,0) -> 43780 | M109: =IF(L93<>0,K109*K93/L93,0) -> 6101.27
E110: per Cessione Credito Superbonus | F110: =M104 -> 0 | G110: =IF(TotaleSB<>0,F110*ImportSB/TotaleSB,0) -> 0 | H110: =IF(TotaleSB<>0,F110*SpeseTecSB/TotaleSB,0) -> 0 | J110: Costi Cessione | K110: =F110+F111 -> 0 | L110: =G110+G111 -> 0 | M110: =H110+H111 -> 0
E111: per Cessione Credito Altri Interventi | F111: =M105 -> 0 | G111: =IF(L93<>0,F111*J93/L93,0) -> 0 | H111: =IF(L93<>0,F111*K93/L93,0) -> 0 | J111: Sommano | K111: =SUM(K108:K110) -> 49881.27 | L111: =SUM(L108:L110) -> 43780 | M111: =SUM(M108:M110) -> 6101.27
E112: Sommano | F112: =SUM(F108:F111) -> 12470.3175 | G112: =SUM(G108:G111) -> 0 | H112: =SUM(H108:H111) -> 0

Sheet SAL.30%
P1: =MATCH("SimMZ",C:C,0) -> 78
C2: =IF(TipoEdif=1,CONCATENATE('Computo-Massimali'!F4, " - ",'Dati Gen'!E8),"Condominio " & 'Computo-Massimali'!F3) -> Tizio Caio FG.12 P.LLA.510 Sub.4 - Roma | F2: DATI PROGETTO : | G2: IMPONIBILE | H2: IVA | I2: IMPORTO | K2: IMPONIBILE | L2: IVA | M2: IMPORTO | N2: Pratica.SB
C3: STATO AVANZAMENTO LAVORI N.1 | F3: Importo Lavori | G3: ='Dati Gen'!G18 -> 39800 | H3: ='Dati Gen'!K18 -> 3980 | I3: ='Dati Gen'!M18 -> 43780 | J3: Importo Netto | K3: ='Dati Gen'!G20 -> 39800 | L3: ='Dati Gen'!K20 -> 3980 | M3: ='Dati Gen'!M20 -> 43780
C4: 29/11/2023 | F4: Oneri Sicurezza | G4: ='Dati Gen'!G19 -> 0 | H4: ='Dati Gen'!K19 -> 0 | I4: ='Dati Gen'!M19 -> 0 | J4: Spese Tecniche | K4: ='Dati Gen'!G21 -> 6101.26841 | L4: ='Dati Gen'!K21 -> 0 | M4: ='Dati Gen'!M21 -> 6101.26841 | Q4: =IF(Titolare!$B$16="Versione Demo","Versione Demo",IF('Computo-Massimali'!C6<>"","Attenzione! Tabella Computo-Massimali non completa. Si consiglia di completare, prima di registrare Voci di SAL","")) -> Versione Demo
C5: Oneri/Lavori x Sicurezza | D5: 0 | K5: ='Dati Gen'!G22 -> Importo Complessivo Progetto | M5: ='Dati Gen'!M22 -> 49881.26841
C7: INTERVENTI TRAINANTI | O7: .. | Q7: =CONCATENATE("Verifica Massimali di Spesa ",C7) -> Verifica Massimali di Spesa INTERVENTI TRAINANTI | AG7: ='Computo-Massimali'!BI7 -> Ripartizione tra le Imprese - Imponibile Lavori INTERVENTI TRAINANTI | AO7: Ripartizione Spese Tecniche / Prestazione Professionale [ SAL. N.1 - INTERVENTI SB. ]
C8: Interventi | F8: Importo Lavori | G8: Incidenza Sicurezza | H8: Imponibile | I8: Iva | J8: Importo c.iva | K8: Spese tecniche | L8: Totale | M8: =CONCATENATE("Credito Spettante ", percDetr*100,"% Spesa Ammessa") -> Credito Spettante 75% Spesa Ammessa | N8: %SAL | Q8: Interventi | R8: Massimale spesa | S8: Verifica Max | U8: Spesa Ammessa | W8: Quota Eccedente Spesa Ammessa | Y8: =CONCATENATE("Credito Spettante",CHAR(10), percDetr*100,"% Spesa Ammessa",CHAR(10),"Quota Imprese | Quota Tecnici") -> Credito Spettante 75% Spesa Ammessa Quota Imprese | Quota Tecnici | AG8: Interventi | AH8: =IF('Dati Gen'!$B$38<>"",'Dati Gen'!$B$38,"") -> Impresa1 | AI8: =IF('Dati Gen'!$B$39<>"",'Dati Gen'!$B$39,"") -> Impresa2 | AJ8: =IF('Dati Gen'!$B$40<>"",'Dati Gen'!$B$40,"") -> Impresa3 | AK8: =IF('Dati Gen'!$B$41<>"",'Dati Gen'!$B$41,"") -> Impresa4 | AL8: =IF('Dati Gen'!$B$42<>"",'Dati Gen'!$B$42,"") ->  | AO8: Lavoro | AQ8: Tecnico | AR8: Onorario | AT8: C.Cassa | AV8: Imponibile | AX8: IVA | AZ8: Totale | BB8: Applica Sconto in Fattura | BC8: =IF(ABS(SUM(AZ9:AZ17)-AZ18)>0.01,CONCATENATE("Errore: ",CHAR(10),"Somma Ripartizione Totale SB =",ROUND(SUM(AZ9:AZ17),2), " €. <> ",CHAR(10),"Totale Spese Tecniche =",ROUND(AZ18,2)," €."),"") -> 
C9: ='Computo-Massimali'!C9 -> PV) Isolamento pareti perimetrali | E9: ='Computo-Massimali'!E9 -> Esterno | F9: ='Computo-Massimali'!F9 -> 0 | G9: =IF('Computo-Massimali'!F9<>0,'Computo-Massimali'!G9*F9/'Computo-Massimali'!F9,0) -> 0 | H9: =SUM(F9:G9) -> 0 | I9: =IF(('Computo-Massimali'!F9+'Computo-Massimali'!G9)<>0,'Computo-Massimali'!I9/('Computo-Massimali'!F9+'Computo-Massimali'!G9)*H9,0) -> 0 | J9: =H9+I9 -> 0 | K9: =IF('Computo-Massimali'!F9<>0,'Computo-Massimali'!K9*F9/'Computo-Massimali'!F9,0) -> 0 | L9: =SUM(J9:K9) -> 0 | M9: =IF(L9<=R9,L9*percDetr,R9*percDetr) -> 0 | N9: =IF('Computo-Massimali'!L9>0,L9/'Computo-Massimali'!L9,0) -> 0 | O9: =IF(F9>0,IF(ABS(F9-0.001)>'Computo-Massimali'!F9,">C.",""),"") ->  | P9: .. | Q9: =C9 -> PV) Isolamento pareti perimetrali | R9: ='Computo-Massimali'!T9 -> 0 | S9: =IF(L9>R9,"ko","ok") -> ok | U9: =IF(L13<>0,(L9/L13)*U13,0) -> 0 | W9: =IF(L9>R9,L9-R9,0) -> 0 | Y9: =IF(M9<>0,J9*M9/L9,0) -> 0 | AA9: =IF(M9<>0,K9*M9/L9,0) -> 0 | AG9: =Q9 -> PV) Isolamento pareti perimetrali | AH9: ='Computo-Massimali'!BJ9 -> 0 | AI9: ='Computo-Massimali'!BK9 -> 0 | AJ9: ='Computo-Massimali'!BL9 -> 0 | AK9: ='Computo-Massimali'!BM9 -> 0 | AL9: ='Computo-Massimali'!BN9 -> 0 | AM9: =IF(ABS(SUM(AH9:AL9)-H9)>0.01,"err. Somma",IF(AH9>'Computo-Massimali'!BJ9,"Err.1",IF(AI9>'Computo-Massimali'!BK9,"Err.2",IF(AJ9>'Computo-Massimali'!BL9,"Err.3",IF(AK9>'Computo-Massimali'!BM9,"Err.4",IF(AL9>'Computo-Massimali'!BN9,"Err.5","")))))) ->  | AO9: =IF('Dati Gen'!$B$25<>"",'Dati Gen'!$B$25,"") -> Progettazione Architettonica, strutturale, Dir.Lav. Misure e contabilità | AQ9: =IF('Dati Gen'!$C$25<>"",'Dati Gen'!$C$25,"") -> Tecnico1 | AR9: =AV9/(1+AT9) -> 0 | AT9: ='Dati Gen'!G25 -> 0.04 | AU9: =AR9*AT9 -> 0 | AV9: =AZ9/(1+AX9) -> 0 | AX9: ='Dati Gen'!J25 -> 0.22 | AY9: =AX9*(AR9+AU9) -> 0 | AZ9: =IF('Dati Gen'!$M$36<>0,$AZ$18*'Dati Gen'!M25/'Dati Gen'!$M$36,0) -> 0 | BB9: =IF(AQ9<>"",VLOOKUP(AQ9,'Dati Gen'!$B$44:$D$51,3,0),"") -> NO
C10: ='Computo-Massimali'!C10 -> PO) Isolamento coperture | E10: ='Computo-Massimali'!E10 -> Esterno | F10: ='Computo-Massimali'!F10 -> 0 | G10: =IF('Computo-Massimali'!F10<>0,'Computo-Massimali'!G10*F10/'Computo-Massimali'!F10,0) -> 0 | H10: =SUM(F10:G10) -> 0 | I10: =IF(('Computo-Massimali'!F10+'Computo-Massimali'!G10)<>0,'Computo-Massimali'!I10/('Computo-Massimali'!F10+'Computo-Massimali'!G10)*H10,0) -> 0 | J10: =H10+I10 -> 0 | K10: =IF('Computo-Massimali'!F10<>0,'Computo-Massimali'!K10*F10/'Computo-Massimali'!F10,0) -> 0 | L10: =SUM(J10:K10) -> 0 | M10: =IF(L10<=R10,L10*percDetr,R10*percDetr) -> 0 | N10: =IF('Computo-Massimali'!L10>0,L10/'Computo-Massimali'!L10,0) -> 0 | O10: =IF(F10>0,IF(ABS(F10-0.001)>'Computo-Massimali'!F10,">C.",""),"") ->  | P10: .. | Q10: PO) Isolamento coperture | R10: ='Computo-Massimali'!T10 -> 0 | S10: =IF(L10>R10,"ko","ok") -> ok | U10: =IF(L13<>0,(L10/L13)*U13,0) -> 0 | W10: =IF(L10>R10,L10-R10,0) -> 0 | Y10: 0 | AA10: 0 | AG10: PO) Isolamento coperture | AH10: ='Computo-Massimali'!BJ10 -> 0 | AI10: ='Computo-Massimali'!BK10 -> 0 | AJ10: ='Computo-Massimali'!BL10 -> 0 | AK10: ='Computo-Massimali'!BM10 -> 0 | AL10: ='Computo-Massimali'!BN10 -> 0 | AM10: =IF(ABS(SUM(AH10:AL10)-H10)>0.01,"err. Somma",IF(AH10>'Computo-Massimali'!BJ10,"Err.1",IF(AI10>'Computo-Massimali'!BK10,"Err.2",IF(AJ10>'Computo-Massimali'!BL10,"Err.3",IF(AK10>'Computo-Massimali'!BM10,"Err.4",IF(AL10>'Computo-Massimali'!BN10,"Err.5","")))))) ->  | AO10: =IF('Dati Gen'!$B$26<>"",'Dati Gen'!$B$26,"") ->  | AQ10: =IF('Dati Gen'!$C$26<>"",'Dati Gen'!$C$26,"") ->  | AR10: =AV10/(1+AT10) -> 0 | AT10: ='Dati Gen'!G26 -> 0.04 | AU10: 0 | AV10: =AZ10/(1+AX10) -> 0 | AX10: ='Dati Gen'!J26 -> 0.22 | AY10: =(AR10+AU10)*AX10 -> 0 | AZ10: =IF('Dati Gen'!$M$36<>0,$AZ$18*'Dati Gen'!M26/'Dati Gen'!$M$36,0) -> 0 | BB10: =IF(AQ10<>"",VLOOKUP(AQ10,'Dati Gen'!$B$44:$D$51,3,0),"") -> 
C11: ='Computo-Massimali'!C11 -> POND) Isol. coperture non disperdenti | E11: ='Computo-Massimali'!E11 -> Esterno | F11: ='Computo-Massimali'!F11 -> 0 | G11: =IF('Computo-Massimali'!F11<>0,'Computo-Massimali'!G11*F11/'Computo-Massimali'!F11,0) -> 0 | H11: =SUM(F11:G11) -> 0 | I11: =IF(('Computo-Massimali'!F11+'Computo-Massimali'!G11)<>0,'Computo-Massimali'!I11/('Computo-Massimali'!F11+'Computo-Massimali'!G11)*H11,0) -> 0 | J11: =H11+I11 -> 0 | K11: =IF('Computo-Massimali'!F11<>0,'Computo-Massimali'!K11*F11/'Computo-Massimali'!F11,0) -> 0 | L11: =SUM(J11:K11) -> 0 | M11: =IF(L11<=R11,L11*percDetr,R11*percDetr) -> 0 | N11: =IF('Computo-Massimali'!L11>0,L11/'Computo-Massimali'!L11,0) -> 0 | O11: =IF(F11>0,IF(ABS(F11-0.001)>'Computo-Massimali'!F11,">C.",""),"") ->  | P11: .. | Q11: POND) Isol. coperture non disperdenti | R11: ='Computo-Massimali'!T11 -> 0 | S11: ok | U11: =IF(L13<>0,(L11/L13)*U13,0) -> 0 | W11: 0 | Y11: 0 | AA11: 0 | AG11: POND) Isol. coperture non disperdenti | AH11: ='Computo-Massimali'!BJ11 -> 0 | AI11: ='Computo-Massimali'!BK11 -> 0 | AJ11: ='Computo-Massimali'!BL11 -> 0 | AK11: ='Computo-Massimali'!BM11 -> 0 | AL11: ='Computo-Massimali'!BN11 -> 0 | AM11: =IF(ABS(SUM(AH11:AL11)-H11)>0.01,"err. Somma",IF(AH11>'Computo-Massimali'!BJ11,"Err.1",IF(AI11>'Computo-Massimali'!BK11,"Err.2",IF(AJ11>'Computo-Massimali'!BL11,"Err.3",IF(AK11>'Computo-Massimali'!BM11,"Err.4",IF(AL11>'Computo-Massimali'!BN11,"Err.5","")))))) ->  | AO11: =IF('Dati Gen'!$B$27<>"",'Dati Gen'!$B$27,"") ->  | AQ11: =IF('Dati Gen'!$C$27<>"",'Dati Gen'!$C$27,"") ->  | AR11: 0 | AT11: ='Dati Gen'!G27 -> 0.04 | AU11: 0 | AV11: 0 | AX11: ='Dati Gen'!J27 -> 0 | AY11: 0 | AZ11: =IF('Dati Gen'!$M$36<>0,$AZ$18*'Dati Gen'!M27/'Dati Gen'!$M$36,0) -> 0 | BB11: =IF(AQ11<>"",VLOOKUP(AQ11,'Dati Gen'!$B$44:$D$51,3,0),"") -> 
C12: ='Computo-Massimali'!C12 -> PS) Isolamento Pavimenti | E12: ='Computo-Massimali'!E12 -> Interno/terreno | F12: ='Computo-Massimali'!F12 -> 0 | G12: =IF('Computo-Massimali'!F12<>0,'Computo-Massimali'!G12*F12/'Computo-Massimali'!F12,0) -> 0 | H12: =SUM(F12:G12) -> 0 | I12: =IF(('Computo-Massimali'!F12+'Computo-Massimali'!G12)<>0,'Computo-Massimali'!I12/('Computo-Massimali'!F12+'Computo-Massimali'!G12)*H12,0) -> 0 | J12: =H12+I12 -> 0 | K12: =IF('Computo-Massimali'!F12<>0,'Computo-Massimali'!K12*F12/'Computo-Massimali'!F12,0) -> 0 | L12: =SUM(J12:K12) -> 0 | M12: =IF(L12<=R12,L12*percDetr,R12*percDetr) -> 0 | N12: =IF('Computo-Massimali'!L12>0,L12/'Computo-Massimali'!L12,0) -> 0 | O12: =IF(F12>0,IF(ABS(F12-0.001)>'Computo-Massimali'!F12,">C.",""),"") ->  | P12: .. | Q12: PS) Isolamento Pavimenti | R12: ='Computo-Massimali'!T12 -> 0 | S12: ok | U12: =IF(L13<>0,(L12/L13)*U13,0) -> 0 | W12: 0 | Y12: 0 | AA12: 0 | AG12: PS) Isolamento Pavimenti | AH12: ='Computo-Massimali'!BJ12 -> 0 | AI12: ='Computo-Massimali'!BK12 -> 0 | AJ12: ='Computo-Massimali'!BL12 -> 0 | AK12: ='Computo-Massimali'!BM12 -> 0 | AL12: ='Computo-Massimali'!BN12 -> 0 | AM12: =IF(ABS(SUM(AH12:AL12)-H12)>0.01,"err. Somma",IF(AH12>'Computo-Massimali'!BJ12,"Err.1",IF(AI12>'Computo-Massimali'!BK12,"Err.2",IF(AJ12>'Computo-Massimali'!BL12,"Err.3",IF(AK12>'Computo-Massimali'!BM12,"Err.4",IF(AL12>'Computo-Massimali'!BN12,"Err.5","")))))) ->  | AO12: =IF('Dati Gen'!$B$28<>"",'Dati Gen'!$B$28,"") ->  | AQ12: =IF('Dati Gen'!$C$28<>"",'Dati Gen'!$C$28,"") ->  | AR12: 0 | AT12: ='Dati Gen'!G28 -> 0.04 | AU12: 0 | AV12: 0 | AX12: ='Dati Gen'!J28 -> 0.22 | AY12: 0 | AZ12: =IF('Dati Gen'!$M$36<>0,$AZ$18*'Dati Gen'!M28/'Dati Gen'!$M$36,0) -> 0 | BB12: =IF(AQ12<>"",VLOOKUP(AQ12,'Dati Gen'!$B$44:$D$51,3,0),"") -> 
C13: ='Computo-Massimali'!C13 -> Totali Isolamento PV) PO) POND) PS) | F13: =SUM(F9:F12) -> 0 | G13: 0 | H13: =SUM(H9:H12) -> 0 | I13: =SUM(I9:I12) -> 0 | J13: =SUM(J9:J12) -> 0 | K13: 0 | L13: 0 | M13: 0 | N13: =IF('Computo-Massimali'!L13>0,L13/'Computo-Massimali'!L13,0) -> 0 | O13: =IF(F13>0,IF(ABS(F13-0.001)>'Computo-Massimali'!F13,">C.",""),"") ->  | Q13: Totali Isolamento PV) PO) POND) PS) | R13: ='Computo-Massimali'!T13 -> 0 | S13: ok | U13: =IF(L13<R13,L13,R13) -> 0 | W13: 0 | Y13: 0 | AA13: 0 | AG13: Totali Isolamento PV) PO) POND) PS) | AH13: =SUM(AH9:AH12) -> 0 | AI13: =SUM(AI9:AI12) -> 0 | AJ13: =SUM(AJ9:AJ12) -> 0 | AK13: =SUM(AK9:AK12) -> 0 | AL13: =SUM(AL9:AL12) -> 0 | AO13: =IF('Dati Gen'!$B$29<>"",'Dati Gen'!$B$29,"") ->  | AQ13: =IF('Dati Gen'!$C$29<>"",'Dati Gen'!$C$29,"") ->  | AR13: =AV13/(1+AT13) -> 0 | AT13: ='Dati Gen'!G29 -> 0.04 | AU13: 0 | AV13: 0 | AX13: ='Dati Gen'!J29 -> 0.22 | AY13: 0 | AZ13: =IF('Dati Gen'!$M$36<>0,$AZ$18*'Dati Gen'!M29/'Dati Gen'!$M$36,0) -> 0 | BB13: =IF(AQ13<>"",VLOOKUP(AQ13,'Dati Gen'!$B$44:$D$51,3,0),"") -> 
C14: =CONCATENATE('Computo-Massimali'!C14," con ",'Computo-Massimali'!D14) -> Impianti climatizzazione e ACS con PC)Aria/Aria | F14: ='Computo-Massimali'!F14 -> 0 | G14: =IF('Computo-Massimali'!F14<>0,'Computo-Massimali'!G14*F14/'Computo-Massimali'!F14,0) -> 0 | H14: =SUM(F14:G14) -> 0 | I14: =IF(('Computo-Massimali'!F14+'Computo-Massimali'!G14)<>0,'Computo-Massimali'!I14/('Computo-Massimali'!F14+'Computo-Massimali'!G14)*H14,0) -> 0 | J14: =H14+I14 -> 0 | K14: =IF('Computo-Massimali'!F14<>0,'Computo-Massimali'!K14*F14/'Computo-Massimali'!F14,0) -> 0 | L14: =SUM(J14:K14) -> 0 | M14: 0 | N14: =IF('Computo-Massimali'!L14>0,L14/'Computo-Massimali'!L14,0) -> 0 | O14: =IF(F14>0,IF(ABS(F14-0.001)>'Computo-Massimali'!F14,">C.",""),"") ->  | P14: .. | Q14: Impianti climatizzazione e ACS con PC)Aria/Aria | R14: ='Computo-Massimali'!T14 -> 0 | S14: ok | U14: =IF(L14<R14,L14,R14) -> 0 | W14: 0 | Y14: 0 | AA14: 0 | AG14: Impianti climatizzazione e ACS con PC)Aria/Aria | AH14: ='Computo-Massimali'!BJ14 -> 0 | AI14: ='Computo-Massimali'!BK14 -> 0 | AJ14: ='Computo-Massimali'!BL14 -> 0 | AK14: ='Computo-Massimali'!BM14 -> 0 | AL14: ='Computo-Massimali'!BN14 -> 0 | AM14: =IF(ABS(SUM(AH14:AL14)-H14)>0.01,"err. Somma",IF(AH14>'Computo-Massimali'!BJ14,"Err.1",IF(AI14>'Computo-Massimali'!BK14,"Err.2",IF(AJ14>'Computo-Massimali'!BL14,"Err.3",IF(AK14>'Computo-Massimali'!BM14,"Err.4",IF(AL14>'Computo-Massimali'!BN14,"Err.5","")))))) ->  | AO14: =IF('Dati Gen'!$B$30<>"",'Dati Gen'!$B$30,"") ->  | AQ14: =IF('Dati Gen'!$C$30<>"",'Dati Gen'!$C$30,"") ->  | AR14: =AV14/(1+AT14) -> 0 | AT14: ='Dati Gen'!G30 -> 0.04 | AU14: 0 | AV14: 0 | AX14: ='Dati Gen'!J30 -> 0.22 | AY14: 0 | AZ14: =IF('Dati Gen'!$M$36<>0,$AZ$18*'Dati Gen'!M30/'Dati Gen'!$M$36,0) -> 0 | BB14: =IF(AQ14<>"",VLOOKUP(AQ14,'Dati Gen'!$B$44:$D$51,3,0),"") -> 
C15: =CONCATENATE('Computo-Massimali'!C15,'Computo-Massimali'!E15) -> SismaBonus Zona 1,2 o 3 P.Classi = 1 | F15: ='Computo-Massimali'!F15 -> 0 | G15: =IF('Computo-Massimali'!F15<>0,'Computo-Massimali'!G15*F15/'Computo-Massimali'!F15,0) -> 0 | H15: =SUM(F15:G15) -> 0 | I15: =IF(('Computo-Massimali'!F15+'Computo-Massimali'!G15)<>0,'Computo-Massimali'!I15/('Computo-Massimali'!F15+'Computo-Massimali'!G15)*H15,0) -> 0 | J15: =H15+I15 -> 0 | K15: =IF('Computo-Massimali'!F15<>0,'Computo-Massimali'!K15*F15/'Computo-Massimali'!F15,0) -> 0 | L15: =SUM(J15:K15) -> 0 | M15: =IF(L15<=R15,L15*percDetr,R15*percDetr) -> 0 | N15: =IF('Computo-Massimali'!L15>0,L15/'Computo-Massimali'!L15,0) -> 0 | O15: =IF(F15>0,IF(ABS(F15-0.001)>'Computo-Massimali'!F15,">C.",""),"") ->  | P15: .. | Q15: SismaBonus Zona 1,2 o 3 P.Classi = 1 | R15: ='Computo-Massimali'!T15 -> 96000 | S15: ok | U15: =IF(L15<R15,L15,R15) -> 0 | W15: 0 | Y15: 0 | AA15: 0 | AG15: SismaBonus Zona 1,2 o 3 P.Classi = 1 | AH15: ='Computo-Massimali'!BJ15 -> 0 | AI15: ='Computo-Massimali'!BK15 -> 0 | AJ15: ='Computo-Massimali'!BL15 -> 0 | AK15: ='Computo-Massimali'!BM15 -> 0 | AL15: ='Computo-Massimali'!BN15 -> 0 | AM15: =IF(ABS(SUM(AH15:AL15)-H15)>0.01,"err. Somma",IF(AH15>'Computo-Massimali'!BJ15,"Err.1",IF(AI15>'Computo-Massimali'!BK15,"Err.2",IF(AJ15>'Computo-Massimali'!BL15,"Err.3",IF(AK15>'Computo-Massimali'!BM15,"Err.4",IF(AL15>'Computo-Massimali'!BN15,"Err.5","")))))) ->  | AO15: =IF('Dati Gen'!$B$31<>"",'Dati Gen'!$B$31,"") ->  | AQ15: =IF('Dati Gen'!$C$31<>"",'Dati Gen'!$C$31,"") ->  | AR15: 0 | AT15: ='Dati Gen'!G31 -> 0.04 | AU15: 0 | AV15: 0 | AX15: ='Dati Gen'!J31 -> 0.22 | AY15: 0 | AZ15: =IF('Dati Gen'!$M$36<>0,$AZ$18*'Dati Gen'!M31/'Dati Gen'!$M$36,0) -> 0 | BB15: =IF(AQ15<>"",VLOOKUP(AQ15,'Dati Gen'!$B$44:$D$51,3,0),"") -> 
C16: ='Computo-Massimali'!C16 -> Totale interventi Trainanti : | F16: =IF(Titolare!$B$16="Versione Demo",0,SUM(F13:F15)) -> 0 | G16: =SUM(G13:G15) -> 0 | H16: =SUM(H13:H15) -> 0 | I16: =SUM(I13:I15) -> 0 | J16: 0 | K16: 0 | L16: 0 | M16: 0 | N16: =IF('Computo-Massimali'!L16>0,L16/'Computo-Massimali'!L16,0) -> 0 | O16: =IF(F16>0,IF(ABS(F16-0.001)>'Computo-Massimali'!F16,">C.",""),"") ->  | R16: =C16 -> Totale interventi Trainanti : | U16: =SUM(U13:V15) -> 0 | W16: =SUM(W13:X15) -> 0 | Y16: =SUM(Y13:Z15) -> 0 | AA16: =SUM(AA13:AB15) -> 0 | AG16: =R16 -> Totale interventi Trainanti : | AH16: =SUM(AH13:AH15) -> 0 | AI16: =SUM(AI13:AI15) -> 0 | AJ16: =SUM(AJ13:AJ15) -> 0 | AK16: =SUM(AK13:AK15) -> 0 | AL16: =SUM(AL13:AL15) -> 0 | AO16: =IF('Dati Gen'!$B$32<>"",'Dati Gen'!$B$32,"") ->  | AQ16: =IF('Dati Gen'!$C$32<>"",'Dati Gen'!$C$32,"") ->  | AR16: 0 | AT16: ='Dati Gen'!G32 -> 0.04 | AU16: 0 | AV16: 0 | AX16: ='Dati Gen'!J32 -> 0.22 | AY16: 0 | AZ16: =IF('Dati Gen'!$M$36<>0,$AZ$18*'Dati Gen'!M32/'Dati Gen'!$M$36,0) -> 0 | BB16: =IF(AQ16<>"",VLOOKUP(AQ16,'Dati Gen'!$B$44:$D$51,3,0),"") -> 
AO17: =IF('Dati Gen'!$B$35<>"",'Dati Gen'!$B$35,"") -> Visto Conformità | AQ17: =IF('Dati Gen'!$C$35<>"",'Dati Gen'!$C$35,"") -> Consulente | AR17: 0 | AT17: ='Dati Gen'!G35 -> 0.04 | AU17: 0 | AV17: 0 | AX17: ='Dati Gen'!J35 -> 0.22 | AY17: 0 | AZ17: =IF('Dati Gen'!$M$36<>0,$AZ$18*'Dati Gen'!M35/'Dati Gen'!$M$36,0) -> 0 | BB17: =IF(AQ17<>"",VLOOKUP(AQ17,'Dati Gen'!$B$44:$D$51,3,0),"") -> NO
C18: INTERVENTI TRAINATI PARTI COMUNI CONDOMINIALI | O18: .. | Q18: =CONCATENATE("Verifica Massimali di Spesa ",C18) -> Verifica Massimali di Spesa INTERVENTI TRAINATI PARTI COMUNI CONDOMINIALI | AG18: ='Computo-Massimali'!BI18 -> Ripartizione tra le Imprese - Imponibile Lavori INTERVENTI TRAINATI PARTI COMUNI CONDOMINIALI | AR18: =SUM(AR9:AS17) -> 0 | AT18: =SUM(AU9:AU17) -> 0 | AV18: =SUM(AV9:AW17) -> 0 | AY18: =SUM(AY9:AY17) -> 0 | AZ18: =K81 -> 0
C19: Interventi | F19: Importo Lavori | G19: Incidenza Sicurezza | H19: Imponibile | I19: Iva | J19: Importo c.iva | K19: Spese tecniche | L19: Totale | M19: =$M$8 -> Credito Spettante 75% Spesa Ammessa | N19: %SAL | Q19: Interventi | R19: Massimale spesa | S19: Verifica Max | U19: Spesa Ammessa | W19: Quota Eccedente Spesa Ammessa | Y19: =$Y$8 -> Credito Spettante 75% Spesa Ammessa Quota Imprese | Quota Tecnici | AG19: Interventi | AH19: =IF('Dati Gen'!$B$38<>"",'Dati Gen'!$B$38,"") -> Impresa1 | AI19: =IF('Dati Gen'!$B$39<>"",'Dati Gen'!$B$39,"") -> Impresa2 | AJ19: =IF('Dati Gen'!$B$40<>"",'Dati Gen'!$B$40,"") -> Impresa3 | AK19: =IF('Dati Gen'!$B$41<>"",'Dati Gen'!$B$41,"") -> Impresa4 | AL19: =IF('Dati Gen'!$B$42<>"",'Dati Gen'!$B$42,"") ->  | AO19: Ripartizione Spese Tecniche / Professionista [ SAL. N.1 - INTERVENTI SB. ]
C20: ='Computo-Massimali'!C20 -> PV) Isolamento pareti perimetrali | E20: Interno | F20: ='Computo-Massimali'!F20 -> 0 | G20: =IF('Computo-Massimali'!F20<>0,'Computo-Massimali'!G20*F20/'Computo-Massimali'!F20,0) -> 0 | H20: =SUM(F20:G20) -> 0 | I20: =IF(('Computo-Massimali'!F20+'Computo-Massimali'!G20)<>0,'Computo-Massimali'!I20/('Computo-Massimali'!F20+'Computo-Massimali'!G20)*H20,0) -> 0 | J20: =H20+I20 -> 0 | K20: =IF('Computo-Massimali'!F20<>0,'Computo-Massimali'!K20*F20/'Computo-Massimali'!F20,0) -> 0 | L20: =SUM(J20:K20) -> 0 | M20: =IF(L20<=R20,L20*percDetr,R20*percDetr) -> 0 | N20: =IF('Computo-Massimali'!L20>0,L20/'Computo-Massimali'!L20,0) -> 0 | O20: =IF(F20>0,IF(ABS(F20-0.001)>'Computo-Massimali'!F20,">C.",""),"") ->  | P20: .. | Q20: =C20 -> PV) Isolamento pareti perimetrali | R20: ='Computo-Massimali'!T20 -> 0 | S20: =IF(L20>R20,"ko","ok") -> ok | U20: =IF(L24<>0,(L20/L24)*U24,0) -> 0 | W20: =IF(L20>R20,L20-R20,0) -> 0 | Y20: =IF(M20<>0,J20*M20/L20,0) -> 0 | AA20: =IF(M20<>0,K20*M20/L20,0) -> 0 | AG20: =Q20 -> PV) Isolamento pareti perimetrali | AH20: ='Computo-Massimali'!BJ20 -> 0 | AI20: ='Computo-Massimali'!BK20 -> 0 | AJ20: ='Computo-Massimali'!BL20 -> 0 | AK20: ='Computo-Massimali'!BM20 -> 0 | AL20: ='Computo-Massimali'!BN20 -> 0 | AM20: =IF(ABS(SUM(AH20:AL20)-H20)>0.01,"err. Somma",IF(AH20>'Computo-Massimali'!BJ20,"Err.1",IF(AI20>'Computo-Massimali'!BK20,"Err.2",IF(AJ20>'Computo-Massimali'!BL20,"Err.3",IF(AK20>'Computo-Massimali'!BM20,"Err.4",IF(AL20>'Computo-Massimali'!BN20,"Err.5","")))))) ->  | AO20: =IF('Dati Gen'!$B$44<>"",'Dati Gen'!$B$44,"") -> Tecnico1 | AP20: =IF('Dati Gen'!$B$45<>"",'Dati Gen'!$B$45,"") -> Tecnico2 | AQ20: =IF('Dati Gen'!$B$46<>"",'Dati Gen'!$B$46,"") -> Consulente | AR20: =IF('Dati Gen'!$B$47<>"",'Dati Gen'!$B$47,"") ->  | AT20: =IF('Dati Gen'!$B$48<>"",'Dati Gen'!$B$48,"") ->  | AV20: =IF('Dati Gen'!$B$49<>"",'Dati Gen'!$B$49,"") ->  | AX20: =IF('Dati Gen'!$B$50<>"",'Dati Gen'!$B$50,"") ->  | AZ20: =IF('Dati Gen'!$B$51<>"",'Dati Gen'!$B$51,"") -> 
C21: ='Computo-Massimali'!C21 -> PO) Isolamento coperture | E21: Esterno | F21: ='Computo-Massimali'!F21 -> 0 | G21: =IF('Computo-Massimali'!F21<>0,'Computo-Massimali'!G21*F21/'Computo-Massimali'!F21,0) -> 0 | H21: =SUM(F21:G21) -> 0 | I21: =IF(('Computo-Massimali'!F21+'Computo-Massimali'!G21)<>0,'Computo-Massimali'!I21/('Computo-Massimali'!F21+'Computo-Massimali'!G21)*H21,0) -> 0 | J21: =H21+I21 -> 0 | K21: =IF('Computo-Massimali'!F21<>0,'Computo-Massimali'!K21*F21/'Computo-Massimali'!F21,0) -> 0 | L21: =SUM(J21:K21) -> 0 | M21: =IF(L21<=R21,L21*percDetr,R21*percDetr) -> 0 | N21: =IF('Computo-Massimali'!L21>0,L21/'Computo-Massimali'!L21,0) -> 0 | O21: =IF(F21>0,IF(ABS(F21-0.001)>'Computo-Massimali'!F21,">C.",""),"") ->  | P21: .. | Q21: PO) Isolamento coperture | R21: ='Computo-Massimali'!T21 -> 0 | S21: ok | U21: =IF(L24<>0,(L21/L24)*U24,0) -> 0 | W21: 0 | Y21: 0 | AA21: 0 | AG21: PO) Isolamento coperture | AH21: ='Computo-Massimali'!BJ21 -> 0 | AI21: ='Computo-Massimali'!BK21 -> 0 | AJ21: ='Computo-Massimali'!BL21 -> 0 | AK21: ='Computo-Massimali'!BM21 -> 0 | AL21: ='Computo-Massimali'!BN21 -> 0 | AM21: =IF(ABS(SUM(AH21:AL21)-H21)>0.01,"err. Somma",IF(AH21>'Computo-Massimali'!BJ21,"Err.1",IF(AI21>'Computo-Massimali'!BK21,"Err.2",IF(AJ21>'Computo-Massimali'!BL21,"Err.3",IF(AK21>'Computo-Massimali'!BM21,"Err.4",IF(AL21>'Computo-Massimali'!BN21,"Err.5","")))))) ->  | AO21: =IF($AQ9=AO$20,$AZ9,0) -> 0 | AP21: =IF($AQ9=AP$20,$AZ9,0) -> 0 | AQ21: 0 | AR21: =IF($AQ9=AR$20,$AZ9,0) -> 0 | AT21: =IF($AQ9=AT$20,$AZ9,0) -> 0 | AV21: =IF($AQ9=AV$20,$AZ9,0) -> 0 | AX21: =IF($AQ9=AX$20,$AZ9,0) -> 0 | AZ21: =IF($AQ9=AZ$20,$AZ9,0) -> 0
C22: ='Computo-Massimali'!C22 -> PS) Isolamento Pavimenti | E22: Interno/terreno | F22: ='Computo-Massimali'!F22 -> 0 | G22: =IF('Computo-Massimali'!F22<>0,'Computo-Massimali'!G22*F22/'Computo-Massimali'!F22,0) -> 0 | H22: =SUM(F22:G22) -> 0 | I22: =IF(('Computo-Massimali'!F22+'Computo-Massimali'!G22)<>0,'Computo-Massimali'!I22/('Computo-Massimali'!F22+'Computo-Massimali'!G22)*H22,0) -> 0 | J22: =H22+I22 -> 0 | K22: =IF('Computo-Massimali'!F22<>0,'Computo-Massimali'!K22*F22/'Computo-Massimali'!F22,0) -> 0 | L22: =SUM(J22:K22) -> 0 | M22: =IF(L22<=R22,L22*percDetr,R22*percDetr) -> 0 | N22: =IF('Computo-Massimali'!L22>0,L22/'Computo-Massimali'!L22,0) -> 0 | O22: =IF(F22>0,IF(ABS(F22-0.001)>'Computo-Massimali'!F22,">C.",""),"") ->  | P22: .. | Q22: PS) Isolamento Pavimenti | R22: ='Computo-Massimali'!T22 -> 0 | S22: ok | U22: =IF(L24<>0,(L22/L24)*U24,0) -> 0 | W22: 0 | Y22: =IF(M22<>0,J22*M22/L22,0) -> 0 | AA22: 0 | AG22: PS) Isolamento Pavimenti | AH22: ='Computo-Massimali'!BJ22 -> 0 | AI22: ='Computo-Massimali'!BK22 -> 0 | AJ22: ='Computo-Massimali'!BL22 -> 0 | AK22: ='Computo-Massimali'!BM22 -> 0 | AL22: ='Computo-Massimali'!BN22 -> 0 | AM22: =IF(ABS(SUM(AH22:AL22)-H22)>0.01,"err. Somma",IF(AH22>'Computo-Massimali'!BJ22,"Err.1",IF(AI22>'Computo-Massimali'!BK22,"Err.2",IF(AJ22>'Computo-Massimali'!BL22,"Err.3",IF(AK22>'Computo-Massimali'!BM22,"Err.4",IF(AL22>'Computo-Massimali'!BN22,"Err.5","")))))) ->  | AO22: =IF($AQ10=AO$20,$AZ10,0) -> 0 | AP22: 0 | AQ22: 0 | AR22: =IF($AQ10=AR$20,$AZ10,0) -> 0 | AT22: =IF($AQ10=AT$20,$AZ10,0) -> 0 | AV22: =IF($AQ10=AV$20,$AZ10,0) -> 0 | AX22: =IF($AQ10=AX$20,$AZ10,0) -> 0 | AZ22: =IF($AQ10=AZ$20,$AZ10,0) -> 0
C23: ='Computo-Massimali'!C23 -> IN) Serramenti con chiusure oscuranti | E23: Zone D, E ed F | F23: ='Computo-Massimali'!F23 -> 0 | G23: =IF('Computo-Massimali'!F23<>0,'Computo-Massimali'!G23*F23/'Computo-Massimali'!F23,0) -> 0 | H23: =SUM(F23:G23) -> 0 | I23: =IF(('Computo-Massimali'!F23+'Computo-Massimali'!G23)<>0,'Computo-Massimali'!I23/('Computo-Massimali'!F23+'Computo-Massimali'!G23)*H23,0) -> 0 | J23: =H23+I23 -> 0 | K23: =IF('Computo-Massimali'!F23<>0,'Computo-Massimali'!K23*F23/'Computo-Massimali'!F23,0) -> 0 | L23: =SUM(J23:K23) -> 0 | M23: =IF(L23<=R23,L23*percDetr,R23*percDetr) -> 0 | N23: =IF('Computo-Massimali'!L23>0,L23/'Computo-Massimali'!L23,0) -> 0 | O23: =IF(F23>0,IF(ABS(F23-0.001)>'Computo-Massimali'!F23,">C.",""),"") ->  | P23: .. | Q23: IN) Serramenti con chiusure oscuranti | R23: ='Computo-Massimali'!T23 -> 0 | S23: ok | U23: =IF(L24<>0,(L23/L24)*U24,0) -> 0 | W23: 0 | Y23: 0 | AA23: 0 | AG23: IN) Serramenti con chiusure oscuranti | AH23: ='Computo-Massimali'!BJ23 -> 0 | AI23: ='Computo-Massimali'!BK23 -> 0 | AJ23: ='Computo-Massimali'!BL23 -> 0 | AK23: ='Computo-Massimali'!BM23 -> 0 | AL23: ='Computo-Massimali'!BN23 -> 0 | AM23: =IF(ABS(SUM(AH23:AL23)-H23)>0.01,"err. Somma",IF(AH23>'Computo-Massimali'!BJ23,"Err.1",IF(AI23>'Computo-Massimali'!BK23,"Err.2",IF(AJ23>'Computo-Massimali'!BL23,"Err.3",IF(AK23>'Computo-Massimali'!BM23,"Err.4",IF(AL23>'Computo-Massimali'!BN23,"Err.5","")))))) ->  | AO23: =IF($AQ11=AO$20,$AZ11,0) -> 0 | AP23: 0 | AQ23: 0 | AR23: 0 | AT23: =IF($AQ11=AT$20,$AZ11,0) -> 0 | AV23: 0 | AX23: 0 | AZ23: 0
C24: ='Computo-Massimali'!C24 -> Totali Isolamento PV) PO) PS) e IN) | F24: =SUM(F20:F23) -> 0 | G24: =SUM(G20:G23) -> 0 | H24: 0 | I24: =SUM(I20:I23) -> 0 | J24: 0 | K24: =SUM(K20:K23) -> 0 | L24: 0 | M24: =SUM(M20:M23) -> 0 | N24: =IF('Computo-Massimali'!L24>0,L24/'Computo-Massimali'!L24,0) -> 0 | O24: =IF(F24>0,IF(ABS(F24-0.001)>'Computo-Massimali'!F24,">C.",""),"") ->  | Q24: Totali Isolamento PV) PO) PS) e IN) | R24: ='Computo-Massimali'!T24 -> 0 | S24: ok | U24: =IF(L24<R24,L24,R24) -> 0 | W24: 0 | Y24: 0 | AA24: 0 | AG24: Totali Isolamento PV) PO) PS) e IN) | AH24: =SUM(AH20:AH23) -> 0 | AI24: =SUM(AI20:AI23) -> 0 | AJ24: =SUM(AJ20:AJ23) -> 0 | AK24: =SUM(AK20:AK23) -> 0 | AL24: =SUM(AL20:AL23) -> 0 | AO24: =IF($AQ12=AO$20,$AZ12,0) -> 0 | AP24: 0 | AQ24: 0 | AR24: 0 | AT24: 0 | AV24: 0 | AX24: 0 | AZ24: 0
C25: ='Computo-Massimali'!C25 -> SS) Schermature solari e chiusure oscuranti | F25: ='Computo-Massimali'!F25 -> 0 | G25: =IF('Computo-Massimali'!F25<>0,'Computo-Massimali'!G25*F25/'Computo-Massimali'!F25,0) -> 0 | H25: =SUM(F25:G25) -> 0 | I25: =IF(('Computo-Massimali'!F25+'Computo-Massimali'!G25)<>0,'Computo-Massimali'!I25/('Computo-Massimali'!F25+'Computo-Massimali'!G25)*H25,0) -> 0 | J25: =H25+I25 -> 0 | K25: =IF('Computo-Massimali'!F25<>0,'Computo-Massimali'!K25*F25/'Computo-Massimali'!F25,0) -> 0 | L25: =SUM(J25:K25) -> 0 | M25: =IF(L25<=R25,L25*percDetr,R25*percDetr) -> 0 | N25: =IF('Computo-Massimali'!L25>0,L25/'Computo-Massimali'!L25,0) -> 0 | O25: =IF(F25>0,IF(ABS(F25-0.001)>'Computo-Massimali'!F25,">C.",""),"") ->  | P25: .. | Q25: SS) Schermature solari e chiusure oscuranti | R25: ='Computo-Massimali'!T25 -> 0 | S25: ok | U25: =IF(L25<R25,L25,R25) -> 0 | W25: 0 | Y25: 0 | AA25: 0 | AG25: SS) Schermature solari e chiusure oscuranti | AH25: ='Computo-Massimali'!BJ25 -> 0 | AI25: ='Computo-Massimali'!BK25 -> 0 | AJ25: ='Computo-Massimali'!BL25 -> 0 | AK25: ='Computo-Massimali'!BM25 -> 0 | AL25: ='Computo-Massimali'!BN25 -> 0 | AM25: =IF(ABS(SUM(AH25:AL25)-H25)>0.01,"err. Somma",IF(AH25>'Computo-Massimali'!BJ25,"Err.1",IF(AI25>'Computo-Massimali'!BK25,"Err.2",IF(AJ25>'Computo-Massimali'!BL25,"Err.3",IF(AK25>'Computo-Massimali'!BM25,"Err.4",IF(AL25>'Computo-Massimali'!BN25,"Err.5","")))))) ->  | AO25: 0 | AP25: 0 | AQ25: 0 | AR25: 0 | AT25: 0 | AV25: 0 | AX25: 0 | AZ25: 0
C26: =CONCATENATE('Computo-Massimali'!C26," con ",'Computo-Massimali'!D26) -> Impianti climatizzazione con con CC)Caldaie a Condensazione | F26: ='Computo-Massimali'!F26 -> 0 | G26: =IF('Computo-Massimali'!F26<>0,'Computo-Massimali'!G26*F26/'Computo-Massimali'!F26,0) -> 0 | H26: =SUM(F26:G26) -> 0 | I26: =IF(('Computo-Massimali'!F26+'Computo-Massimali'!G26)<>0,'Computo-Massimali'!I26/('Computo-Massimali'!F26+'Computo-Massimali'!G26)*H26,0) -> 0 | J26: =H26+I26 -> 0 | K26: =IF('Computo-Massimali'!F26<>0,'Computo-Massimali'!K26*F26/'Computo-Massimali'!F26,0) -> 0 | L26: =SUM(J26:K26) -> 0 | M26: =IF(L26<=R26,L26*percDetr,R26*percDetr) -> 0 | N26: =IF('Computo-Massimali'!L26>0,L26/'Computo-Massimali'!L26,0) -> 0 | O26: =IF(F26>0,IF(ABS(F26-0.001)>'Computo-Massimali'!F26,">C.",""),"") ->  | P26: .. | Q26: Impianti climatizzazione con con CC)Caldaie a Condensazione | R26: ='Computo-Massimali'!T26 -> 0 | S26: ok | U26: =IF(L26<R26,L26,R26) -> 0 | W26: 0 | Y26: 0 | AA26: 0 | AG26: Impianti climatizzazione con con CC)Caldaie a Condensazione | AH26: ='Computo-Massimali'!BJ26 -> 0 | AI26: ='Computo-Massimali'!BK26 -> 0 | AJ26: ='Computo-Massimali'!BL26 -> 0 | AK26: ='Computo-Massimali'!BM26 -> 0 | AL26: ='Computo-Massimali'!BN26 -> 0 | AM26: =IF(ABS(SUM(AH26:AL26)-H26)>0.01,"err. Somma",IF(AH26>'Computo-Massimali'!BJ26,"Err.1",IF(AI26>'Computo-Massimali'!BK26,"Err.2",IF(AJ26>'Computo-Massimali'!BL26,"Err.3",IF(AK26>'Computo-Massimali'!BM26,"Err.4",IF(AL26>'Computo-Massimali'!BN26,"Err.5","")))))) ->  | AO26: 0 | AP26: 0 | AQ26: 0 | AR26: 0 | AT26: 0 | AV26: 0 | AX26: =IF($AQ14=AX$20,$AZ14,0) -> 0 | AZ26: 0
C27: ='Computo-Massimali'!C27 -> GA) Generatori aria calda Condensazione | F27: ='Computo-Massimali'!F27 -> 0 | G27: =IF('Computo-Massimali'!F27<>0,'Computo-Massimali'!G27*F27/'Computo-Massimali'!F27,0) -> 0 | H27: =SUM(F27:G27) -> 0 | I27: =IF(('Computo-Massimali'!F27+'Computo-Massimali'!G27)<>0,'Computo-Massimali'!I27/('Computo-Massimali'!F27+'Computo-Massimali'!G27)*H27,0) -> 0 | J27: =H27+I27 -> 0 | K27: =IF('Computo-Massimali'!F27<>0,'Computo-Massimali'!K27*F27/'Computo-Massimali'!F27,0) -> 0 | L27: =SUM(J27:K27) -> 0 | M27: =IF(L27<=R27,L27*percDetr,R27*percDetr) -> 0 | N27: =IF('Computo-Massimali'!L27>0,L27/'Computo-Massimali'!L27,0) -> 0 | O27: =IF(F27>0,IF(ABS(F27-0.001)>'Computo-Massimali'!F27,">C.",""),"") ->  | P27: .. | Q27: GA) Generatori aria calda Condensazione | R27: ='Computo-Massimali'!T27 -> 0 | S27: ok | U27: =IF(L30<>0,(L27/L30)*U30,0) -> 0 | W27: 0 | Y27: 0 | AA27: 0 | AG27: GA) Generatori aria calda Condensazione | AH27: ='Computo-Massimali'!BJ27 -> 0 | AI27: ='Computo-Massimali'!BK27 -> 0 | AJ27: ='Computo-Massimali'!BL27 -> 0 | AK27: ='Computo-Massimali'!BM27 -> 0 | AL27: ='Computo-Massimali'!BN27 -> 0 | AM27: =IF(ABS(SUM(AH27:AL27)-H27)>0.01,"err. Somma",IF(AH27>'Computo-Massimali'!BJ27,"Err.1",IF(AI27>'Computo-Massimali'!BK27,"Err.2",IF(AJ27>'Computo-Massimali'!BL27,"Err.3",IF(AK27>'Computo-Massimali'!BM27,"Err.4",IF(AL27>'Computo-Massimali'!BN27,"Err.5","")))))) ->  | AO27: 0 | AP27: 0 | AQ27: 0 | AR27: 0 | AT27: 0 | AV27: 0 | AX27: 0 | AZ27: 0
C28: ='Computo-Massimali'!C28 -> IB) Impianti Biomassa | F28: ='Computo-Massimali'!F28 -> 0 | G28: =IF('Computo-Massimali'!F28<>0,'Computo-Massimali'!G28*F28/'Computo-Massimali'!F28,0) -> 0 | H28: =SUM(F28:G28) -> 0 | I28: =IF(('Computo-Massimali'!F28+'Computo-Massimali'!G28)<>0,'Computo-Massimali'!I28/('Computo-Massimali'!F28+'Computo-Massimali'!G28)*H28,0) -> 0 | J28: =H28+I28 -> 0 | K28: =IF('Computo-Massimali'!F28<>0,'Computo-Massimali'!K28*F28/'Computo-Massimali'!F28,0) -> 0 | L28: =SUM(J28:K28) -> 0 | M28: =IF(L28<=R28,L28*percDetr,R28*percDetr) -> 0 | N28: =IF('Computo-Massimali'!L28>0,L28/'Computo-Massimali'!L28,0) -> 0 | O28: =IF(F28>0,IF(ABS(F28-0.001)>'Computo-Massimali'!F28,">C.",""),"") ->  | P28: .. | Q28: IB) Impianti Biomassa | R28: ='Computo-Massimali'!T28 -> 0 | S28: ok | U28: =IF(L30<>0,(L28/L30)*U30,0) -> 0 | W28: 0 | Y28: 0 | AA28: 0 | AG28: IB) Impianti Biomassa | AH28: ='Computo-Massimali'!BJ28 -> 0 | AI28: ='Computo-Massimali'!BK28 -> 0 | AJ28: ='Computo-Massimali'!BL28 -> 0 | AK28: ='Computo-Massimali'!BM28 -> 0 | AL28: ='Computo-Massimali'!BN28 -> 0 | AM28: =IF(ABS(SUM(AH28:AL28)-H28)>0.01,"err. Somma",IF(AH28>'Computo-Massimali'!BJ28,"Err.1",IF(AI28>'Computo-Massimali'!BK28,"Err.2",IF(AJ28>'Computo-Massimali'!BL28,"Err.3",IF(AK28>'Computo-Massimali'!BM28,"Err.4",IF(AL28>'Computo-Massimali'!BN28,"Err.5","")))))) ->  | AO28: 0 | AP28: 0 | AQ28: 0 | AR28: 0 | AT28: 0 | AV28: 0 | AX28: 0 | AZ28: 0
C29: ='Computo-Massimali'!C29 -> SA) Scaldacqua a pompa di calore | F29: ='Computo-Massimali'!F29 -> 0 | G29: =IF('Computo-Massimali'!F29<>0,'Computo-Massimali'!G29*F29/'Computo-Massimali'!F29,0) -> 0 | H29: =SUM(F29:G29) -> 0 | I29: =IF(('Computo-Massimali'!F29+'Computo-Massimali'!G29)<>0,'Computo-Massimali'!I29/('Computo-Massimali'!F29+'Computo-Massimali'!G29)*H29,0) -> 0 | J29: =H29+I29 -> 0 | K29: =IF('Computo-Massimali'!F29<>0,'Computo-Massimali'!K29*F29/'Computo-Massimali'!F29,0) -> 0 | L29: =SUM(J29:K29) -> 0 | M29: =IF(L29<=R29,L29*percDetr,R29*percDetr) -> 0 | N29: =IF('Computo-Massimali'!L29>0,L29/'Computo-Massimali'!L29,0) -> 0 | O29: =IF(F29>0,IF(ABS(F29-0.001)>'Computo-Massimali'!F29,">C.",""),"") ->  | P29: .. | Q29: =C29 -> SA) Scaldacqua a pompa di calore | R29: ='Computo-Massimali'!T29 -> 0 | S29: ok | U29: =IF(L30<>0,(L29/L30)*U30,0) -> 0 | W29: 0 | Y29: 0 | AA29: 0 | AG29: SA) Scaldacqua a pompa di calore | AH29: ='Computo-Massimali'!BJ29 -> 0 | AI29: ='Computo-Massimali'!BK29 -> 0 | AJ29: ='Computo-Massimali'!BL29 -> 0 | AK29: ='Computo-Massimali'!BM29 -> 0 | AL29: ='Computo-Massimali'!BN29 -> 0 | AM29: =IF(ABS(SUM(AH29:AL29)-H29)>0.01,"err. Somma",IF(AH29>'Computo-Massimali'!BJ29,"Err.1",IF(AI29>'Computo-Massimali'!BK29,"Err.2",IF(AJ29>'Computo-Massimali'!BL29,"Err.3",IF(AK29>'Computo-Massimali'!BM29,"Err.4",IF(AL29>'Computo-Massimali'!BN29,"Err.5","")))))) ->  | AO29: =IF($AQ17=AO$20,$AZ17,0) -> 0 | AP29: 0 | AQ29: 0 | AR29: 0 | AT29: 0 | AV29: 0 | AX29: 0 | AZ29: 0
C30: ='Computo-Massimali'!C30 -> Totali GA) IB) SA) | F30: =SUM(F27:F29) -> 0 | G30: 0 | H30: 0 | I30: 0 | J30: 0 | K30: 0 | L30: 0 | M30: 0 | N30: =IF('Computo-Massimali'!L30>0,L30/'Computo-Massimali'!L30,0) -> 0 | O30: =IF(F30>0,IF(ABS(F30-0.001)>'Computo-Massimali'!F30,">C.",""),"") ->  | Q30: =C30 -> Totali GA) IB) SA) | R30: ='Computo-Massimali'!T30 -> 0 | S30: ok | U30: =IF(L30<R30,L30,R30) -> 0 | W30: 0 | Y30: 0 | AA30: 0 | AG30: Totali GA) IB) SA) | AH30: =SUM(AH27:AH29) -> 0 | AI30: =SUM(AI27:AI29) -> 0 | AJ30: =SUM(AJ27:AJ29) -> 0 | AK30: =SUM(AK27:AK29) -> 0 | AL30: =SUM(AL27:AL29) -> 0 | AO30: =SUM(AO21:AO29) -> 0 | AP30: =SUM(AP21:AP29) -> 0 | AQ30: =SUM(AQ21:AQ29) -> 0 | AR30: =SUM(AR21:AR29) -> 0 | AT30: =SUM(AT21:AT29) -> 0 | AV30: =SUM(AV21:AV29) -> 0 | AX30: =SUM(AX21:AX29) -> 0 | AZ30: =SUM(AZ21:AZ29) -> 0 | BB30: =SUM(AO30:BA30) -> 0
C31: =CONCATENATE('Computo-Massimali'!C31," - ",'Computo-Massimali'!E31) -> CO) Sistemi di Microgenerazione - Celle a combustibile | F31: ='Computo-Massimali'!F31 -> 0 | G31: =IF('Computo-Massimali'!F31<>0,'Computo-Massimali'!G31*F31/'Computo-Massimali'!F31,0) -> 0 | H31: =SUM(F31:G31) -> 0 | I31: =IF(('Computo-Massimali'!F31+'Computo-Massimali'!G31)<>0,'Computo-Massimali'!I31/('Computo-Massimali'!F31+'Computo-Massimali'!G31)*H31,0) -> 0 | J31: =H31+I31 -> 0 | K31: =IF('Computo-Massimali'!F31<>0,'Computo-Massimali'!K31*F31/'Computo-Massimali'!F31,0) -> 0 | L31: =SUM(J31:K31) -> 0 | M31: =IF(L31<=R31,L31*percDetr,R31*percDetr) -> 0 | N31: =IF('Computo-Massimali'!L31>0,L31/'Computo-Massimali'!L31,0) -> 0 | O31: =IF(F31>0,IF(ABS(F31-0.001)>'Computo-Massimali'!F31,">C.",""),"") ->  | P31: .. | Q31: CO) Sistemi di Microgenerazione - Celle a combustibile | R31: ='Computo-Massimali'!T31 -> 0 | S31: ok | U31: 0 | W31: 0 | Y31: 0 | AA31: 0 | AG31: CO) Sistemi di Microgenerazione - Celle a combustibile | AH31: ='Computo-Massimali'!BJ31 -> 0 | AI31: ='Computo-Massimali'!BK31 -> 0 | AJ31: ='Computo-Massimali'!BL31 -> 0 | AK31: ='Computo-Massimali'!BM31 -> 0 | AL31: ='Computo-Massimali'!BN31 -> 0 | AM31: =IF(ABS(SUM(AH31:AL31)-H31)>0.01,"err. Somma",IF(AH31>'Computo-Massimali'!BJ31,"Err.1",IF(AI31>'Computo-Massimali'!BK31,"Err.2",IF(AJ31>'Computo-Massimali'!BL31,"Err.3",IF(AK31>'Computo-Massimali'!BM31,"Err.4",IF(AL31>'Computo-Massimali'!BN31,"Err.5","")))))) ->  | AO31: =IF($BB$30<>0,AO30/$BB$30,0) -> 0 | AP31: =IF($BB$30<>0,AP30/$BB$30,0) -> 0 | AQ31: =IF($BB$30<>0,AQ30/$BB$30,0) -> 0 | AR31: =IF($BB$30<>0,AR30/$BB$30,0) -> 0 | AT31: =IF($BB$30<>0,AT30/$BB$30,0) -> 0 | AV31: =IF($BB$30<>0,AV30/$BB$30,0) -> 0 | AX31: =IF($BB$30<>0,AX30/$BB$30,0) -> 0 | AZ31: =IF($BB$30<>0,AZ30/$BB$30,0) -> 0
C32: ='Computo-Massimali'!C32 -> ST) Collettori Solari | E32: Piani Vetrati | F32: ='Computo-Massimali'!F32 -> 0 | G32: =IF('Computo-Massimali'!F32<>0,'Computo-Massimali'!G32*F32/'Computo-Massimali'!F32,0) -> 0 | H32: 0 | I32: =IF(('Computo-Massimali'!F32+'Computo-Massimali'!G32)<>0,'Computo-Massimali'!I32/('Computo-Massimali'!F32+'Computo-Massimali'!G32)*H32,0) -> 0 | J32: 0 | K32: =IF('Computo-Massimali'!F32<>0,'Computo-Massimali'!K32*F32/'Computo-Massimali'!F32,0) -> 0 | L32: 0 | M32: 0 | N32: =IF('Computo-Massimali'!L32>0,L32/'Computo-Massimali'!L32,0) -> 0 | O32: =IF(F32>0,IF(ABS(F32-0.001)>'Computo-Massimali'!F32,">C.",""),"") ->  | P32: .. | Q32: ST) Collettori Solari | R32: ='Computo-Massimali'!T32 -> 0 | S32: ok | U32: 0 | W32: 0 | Y32: 0 | AA32: 0 | AG32: ST) Collettori Solari | AH32: ='Computo-Massimali'!BJ32 -> 0 | AI32: ='Computo-Massimali'!BK32 -> 0 | AJ32: ='Computo-Massimali'!BL32 -> 0 | AK32: ='Computo-Massimali'!BM32 -> 0 | AL32: ='Computo-Massimali'!BN32 -> 0 | AM32: =IF(ABS(SUM(AH32:AL32)-H32)>0.01,"err. Somma",IF(AH32>'Computo-Massimali'!BJ32,"Err.1",IF(AI32>'Computo-Massimali'!BK32,"Err.2",IF(AJ32>'Computo-Massimali'!BL32,"Err.3",IF(AK32>'Computo-Massimali'!BM32,"Err.4",IF(AL32>'Computo-Massimali'!BN32,"Err.5","")))))) -> 
C33: ='Computo-Massimali'!C33 -> FV) Solare Fotovoltaico [ kWp ] | E33: 15.2 | F33: ='Computo-Massimali'!F33 -> 0 | G33: =IF('Computo-Massimali'!F33<>0,'Computo-Massimali'!G33*F33/'Computo-Massimali'!F33,0) -> 0 | H33: 0 | I33: =IF(('Computo-Massimali'!F33+'Computo-Massimali'!G33)<>0,'Computo-Massimali'!I33/('Computo-Massimali'!F33+'Computo-Massimali'!G33)*H33,0) -> 0 | J33: 0 | K33: =IF('Computo-Massimali'!F33<>0,'Computo-Massimali'!K33*F33/'Computo-Massimali'!F33,0) -> 0 | L33: 0 | M33: 0 | N33: =IF('Computo-Massimali'!L33>0,L33/'Computo-Massimali'!L33,0) -> 0 | O33: =IF(F33>0,IF(ABS(F33-0.001)>'Computo-Massimali'!F33,">C.",""),"") ->  | P33: .. | Q33: FV) Solare Fotovoltaico [ kWp ] | R33: ='Computo-Massimali'!T33 -> 36480 | S33: ok | U33: 0 | W33: 0 | Y33: 0 | AA33: 0 | AG33: FV) Solare Fotovoltaico [ kWp ] | AH33: ='Computo-Massimali'!BJ33 -> 0 | AI33: ='Computo-Massimali'!BK33 -> 0 | AJ33: ='Computo-Massimali'!BL33 -> 0 | AK33: ='Computo-Massimali'!BM33 -> 0 | AL33: ='Computo-Massimali'!BN33 -> 0 | AM33: =IF(ABS(SUM(AH33:AL33)-H33)>0.01,"err. Somma",IF(AH33>'Computo-Massimali'!BJ33,"Err.1",IF(AI33>'Computo-Massimali'!BK33,"Err.2",IF(AJ33>'Computo-Massimali'!BL33,"Err.3",IF(AK33>'Computo-Massimali'!BM33,"Err.4",IF(AL33>'Computo-Massimali'!BN33,"Err.5","")))))) -> 
C34: ='Computo-Massimali'!C34 -> AC) Sistema di Accumulo [ kWh ] | E34: 10 | F34: ='Computo-Massimali'!F34 -> 0 | G34: =IF('Computo-Massimali'!F34<>0,'Computo-Massimali'!G34*F34/'Computo-Massimali'!F34,0) -> 0 | H34: 0 | I34: =IF(('Computo-Massimali'!F34+'Computo-Massimali'!G34)<>0,'Computo-Massimali'!I34/('Computo-Massimali'!F34+'Computo-Massimali'!G34)*H34,0) -> 0 | J34: 0 | K34: =IF('Computo-Massimali'!F34<>0,'Computo-Massimali'!K34*F34/'Computo-Massimali'!F34,0) -> 0 | L34: 0 | M34: 0 | N34: =IF('Computo-Massimali'!L34>0,L34/'Computo-Massimali'!L34,0) -> 0 | O34: =IF(F34>0,IF(ABS(F34-0.001)>'Computo-Massimali'!F34,">C.",""),"") ->  | P34: .. | Q34: AC) Sistema di Accumulo [ kWh ] | R34: ='Computo-Massimali'!T34 -> 10000 | S34: ok | U34: 0 | W34: 0 | Y34: 0 | AA34: 0 | AG34: AC) Sistema di Accumulo [ kWh ] | AH34: ='Computo-Massimali'!BJ34 -> 0 | AI34: ='Computo-Massimali'!BK34 -> 0 | AJ34: ='Computo-Massimali'!BL34 -> 0 | AK34: ='Computo-Massimali'!BM34 -> 0 | AL34: ='Computo-Massimali'!BN34 -> 0 | AM34: =IF(ABS(SUM(AH34:AL34)-H34)>0.01,"err. Somma",IF(AH34>'Computo-Massimali'!BJ34,"Err.1",IF(AI34>'Computo-Massimali'!BK34,"Err.2",IF(AJ34>'Computo-Massimali'!BL34,"Err.3",IF(AK34>'Computo-Massimali'!BM34,"Err.4",IF(AL34>'Computo-Massimali'!BN34,"Err.5","")))))) -> 
C35: ='Computo-Massimali'!C35 -> CR) Colonnine di Ricarica [ N. ] | E35: 1 | F35: ='Computo-Massimali'!F35 -> 0 | G35: =IF('Computo-Massimali'!F35<>0,'Computo-Massimali'!G35*F35/'Computo-Massimali'!F35,0) -> 0 | H35: 0 | I35: =IF(('Computo-Massimali'!F35+'Computo-Massimali'!G35)<>0,'Computo-Massimali'!I35/('Computo-Massimali'!F35+'Computo-Massimali'!G35)*H35,0) -> 0 | J35: 0 | K35: =IF('Computo-Massimali'!F35<>0,'Computo-Massimali'!K35*F35/'Computo-Massimali'!F35,0) -> 0 | L35: 0 | M35: 0 | N35: =IF('Computo-Massimali'!L35>0,L35/'Computo-Massimali'!L35,0) -> 0 | O35: =IF(F35>0,IF(ABS(F35-0.001)>'Computo-Massimali'!F35,">C.",""),"") ->  | P35: .. | Q35: CR) Colonnine di Ricarica [ N. ] | R35: ='Computo-Massimali'!T35 -> 1500 | S35: ok | U35: 0 | W35: 0 | Y35: 0 | AA35: 0 | AG35: CR) Colonnine di Ricarica [ N. ] | AH35: ='Computo-Massimali'!BJ35 -> 0 | AI35: ='Computo-Massimali'!BK35 -> 0 | AJ35: ='Computo-Massimali'!BL35 -> 0 | AK35: ='Computo-Massimali'!BM35 -> 0 | AL35: ='Computo-Massimali'!BN35 -> 0 | AM35: =IF(ABS(SUM(AH35:AL35)-H35)>0.01,"err. Somma",IF(AH35>'Computo-Massimali'!BJ35,"Err.1",IF(AI35>'Computo-Massimali'!BK35,"Err.2",IF(AJ35>'Computo-Massimali'!BL35,"Err.3",IF(AK35>'Computo-Massimali'!BM35,"Err.4",IF(AL35>'Computo-Massimali'!BN35,"Err.5","")))))) -> 
C36: ='Computo-Massimali'!C36 -> EBA) Eliminazione Barriere architettoniche | F36: ='Computo-Massimali'!F36 -> 0 | G36: =IF('Computo-Massimali'!F36<>0,'Computo-Massimali'!G36*F36/'Computo-Massimali'!F36,0) -> 0 | H36: 0 | I36: =IF(('Computo-Massimali'!F36+'Computo-Massimali'!G36)<>0,'Computo-Massimali'!I36/('Computo-Massimali'!F36+'Computo-Massimali'!G36)*H36,0) -> 0 | J36: 0 | K36: =IF('Computo-Massimali'!F36<>0,'Computo-Massimali'!K36*F36/'Computo-Massimali'!F36,0) -> 0 | L36: 0 | M36: 0 | N36: =IF('Computo-Massimali'!L36>0,L36/'Computo-Massimali'!L36,0) -> 0 | O36: =IF(F36>0,IF(ABS(F36-0.001)>'Computo-Massimali'!F36,">C.",""),"") ->  | P36: .. | Q36: EBA) Eliminazione Barriere architettoniche | R36: ='Computo-Massimali'!T36 -> 96000 | S36: ok | U36: 0 | W36: 0 | Y36: 0 | AA36: 0 | AG36: EBA) Eliminazione Barriere architettoniche | AH36: ='Computo-Massimali'!BJ36 -> 0 | AI36: ='Computo-Massimali'!BK36 -> 0 | AJ36: ='Computo-Massimali'!BL36 -> 0 | AK36: ='Computo-Massimali'!BM36 -> 0 | AL36: ='Computo-Massimali'!BN36 -> 0 | AM36: =IF(ABS(SUM(AH36:AL36)-H36)>0.01,"err. Somma",IF(AH36>'Computo-Massimali'!BJ36,"Err.1",IF(AI36>'Computo-Massimali'!BK36,"Err.2",IF(AJ36>'Computo-Massimali'!BL36,"Err.3",IF(AK36>'Computo-Massimali'!BM36,"Err.4",IF(AL36>'Computo-Massimali'!BN36,"Err.5","")))))) -> 
C37: ='Computo-Massimali'!C37 -> Totale Interventi Trainati Parti Comuni : | F37: =SUM(F24:F26)+SUM(F30:F36) -> 0 | G37: =SUM(G24:G26)+SUM(G30:G36) -> 0 | H37: =SUM(H24:H26)+SUM(H30:H36) -> 0 | I37: 0 | J37: 0 | K37: 0 | L37: 0 | M37: 0 | N37: =IF('Computo-Massimali'!L37>0,L37/'Computo-Massimali'!L37,0) -> 0 | O37: =IF(F37>0,IF(ABS(F37-0.001)>'Computo-Massimali'!F37,">C.",""),"") ->  | R37: =C37 -> Totale Interventi Trainati Parti Comuni : | U37: =U24+U25+U26+SUM(U30:V36) -> 0 | W37: =W24+W25+W26+SUM(W30:X36) -> 0 | Y37: =Y24+Y25+Y26+SUM(Y30:Z36) -> 0 | AA37: =AA24+AA25+AA26+SUM(AA30:AB36) -> 0 | AG37: =R37 -> Totale Interventi Trainati Parti Comuni : | AH37: =AH24+AH25+AH26+SUM(AH30:AH36) -> 0 | AI37: =AI24+AI25+AI26+SUM(AI30:AI36) -> 0 | AJ37: =AJ24+AJ25+AJ26+SUM(AJ30:AJ36) -> 0 | AK37: =AK24+AK25+AK26+SUM(AK30:AK36) -> 0 | AL37: =AL24+AL25+AL26+SUM(AL30:AL36) -> 0
C40: INTERVENTI TRAINATI | O40: .. | Q40: =CONCATENATE("Verifica Massimali di Spesa ",C40) -> Verifica Massimali di Spesa INTERVENTI TRAINATI | AG40: ='Computo-Massimali'!BI40 -> Ripartizione tra le Imprese - Imponibile Lavori INTERVENTI TRAINATI | AO40: Ripartizione Spese Tecniche / Prestazione Professionale [ SAL. N.1 - ALTRI INTERVENTI ]
C41: Interventi | F41: Importo Lavori | G41: Incidenza Sicurezza | H41: Imponibile | I41: Iva | J41: Importo c.iva | K41: Spese tecniche | L41: Totale | M41: =$M$8 -> Credito Spettante 75% Spesa Ammessa | N41: %SAL | Q41: Interventi | R41: Massimale spesa | S41: Verifica Max | U41: Spesa Ammessa | W41: Quota Eccedente Spesa Ammessa | Y41: =$Y$8 -> Credito Spettante 75% Spesa Ammessa Quota Imprese | Quota Tecnici | AG41: Interventi | AH41: =IF('Dati Gen'!$B$38<>"",'Dati Gen'!$B$38,"") -> Impresa1 | AI41: =IF('Dati Gen'!$B$39<>"",'Dati Gen'!$B$39,"") -> Impresa2 | AJ41: =IF('Dati Gen'!$B$40<>"",'Dati Gen'!$B$40,"") -> Impresa3 | AK41: =IF('Dati Gen'!$B$41<>"",'Dati Gen'!$B$41,"") -> Impresa4 | AL41: =IF('Dati Gen'!$B$42<>"",'Dati Gen'!$B$42,"") ->  | AO41: Lavoro | AQ41: Tecnico | AR41: Onorario | AT41: C.Cassa | AV41: Imponibile | AX41: IVA | AZ41: Totale | BB41: Applica Sconto in Fattura | BC41: =IF(ABS(SUM(AZ42:AZ50)-AZ51)>0.01,CONCATENATE("Errore: ",CHAR(10),"Somma Ripartizione Totale Altri Interventi =",ROUND(SUM(AZ42:AZ50),2), " €. <> ",CHAR(10),"Totale Spese Tecniche =",ROUND(AZ51,2)," €."),"") -> 
C42: ='Computo-Massimali'!C42 -> PV) Isolamento pareti perimetrali | E42: ='Computo-Massimali'!E42 -> Esterno | F42: ='Computo-Massimali'!F42 -> 0 | G42: =IF('Computo-Massimali'!F42<>0,'Computo-Massimali'!G42*F42/'Computo-Massimali'!F42,0) -> 0 | H42: =SUM(F42:G42) -> 0 | I42: =IF(('Computo-Massimali'!F42+'Computo-Massimali'!G42)<>0,'Computo-Massimali'!I42/('Computo-Massimali'!F42+'Computo-Massimali'!G42)*H42,0) -> 0 | J42: =H42+I42 -> 0 | K42: =IF('Computo-Massimali'!F42<>0,'Computo-Massimali'!K42*F42/'Computo-Massimali'!F42,0) -> 0 | L42: =SUM(J42:K42) -> 0 | M42: =IF(L42<=R42,L42*percDetr,R42*percDetr) -> 0 | N42: =IF('Computo-Massimali'!L42>0,L42/'Computo-Massimali'!L42,0) -> 0 | O42: =IF(F42>0,IF(ABS(F42-0.001)>'Computo-Massimali'!F42,">C.",""),"") ->  | P42: .. | Q42: =C42 -> PV) Isolamento pareti perimetrali | R42: ='Computo-Massimali'!T42 -> 0 | S42: =IF(L42>R42,"ko","ok") -> ok | U42: =IF(L46<>0,(L42/L46)*U46,0) -> 0 | W42: =IF(L42>R42,L42-R42,0) -> 0 | Y42: =IF(M42<>0,J42*M42/L42,0) -> 0 | AA42: =IF(M42<>0,K42*M42/L42,0) -> 0 | AG42: =Q42 -> PV) Isolamento pareti perimetrali | AH42: ='Computo-Massimali'!BJ42 -> 0 | AI42: ='Computo-Massimali'!BK42 -> 0 | AJ42: ='Computo-Massimali'!BL42 -> 0 | AK42: ='Computo-Massimali'!BM42 -> 0 | AL42: ='Computo-Massimali'!BN42 -> 0 | AM42: =IF(ABS(SUM(AH42:AL42)-H42)>0.01,"err. Somma",IF(AH42>'Computo-Massimali'!BJ42,"Err.1",IF(AI42>'Computo-Massimali'!BK42,"Err.2",IF(AJ42>'Computo-Massimali'!BL42,"Err.3",IF(AK42>'Computo-Massimali'!BM42,"Err.4",IF(AL42>'Computo-Massimali'!BN42,"Err.5","")))))) ->  | AO42: =IF('Dati Gen'!$B$25<>"",'Dati Gen'!$B$25,"") -> Progettazione Architettonica, strutturale, Dir.Lav. Misure e contabilità | AQ42: =IF('Dati Gen'!$C$25<>"",'Dati Gen'!$C$25,"") -> Tecnico1 | AR42: =AV42/(1+AT42) -> 1356.784273 | AT42: ='Dati Gen'!G25 -> 0.04 | AU42: =AR42*AT42 -> 54.27137093 | AV42: =AZ42/(1+AX42) -> 1411.055644 | AX42: ='Dati Gen'!J25 -> 0.22 | AY42: =AX42*(AR42+AU42) -> 310.4322417 | AZ42: =IF('Dati Gen'!$M$36<>0,$AZ$51*'Dati Gen'!M25/'Dati Gen'!$M$36,0) -> 1721.487886 | BB42: =IF(AQ42<>"",VLOOKUP(AQ42,'Dati Gen'!$B$44:$D$51,3,0),"") -> NO
C43: ='Computo-Massimali'!C43 -> PO) Isolamento coperture | E43: ='Computo-Massimali'!E43 -> Esterno | F43: ='Computo-Massimali'!F43 -> 0 | G43: =IF('Computo-Massimali'!F43<>0,'Computo-Massimali'!G43*F43/'Computo-Massimali'!F43,0) -> 0 | H43: =SUM(F43:G43) -> 0 | I43: =IF(('Computo-Massimali'!F43+'Computo-Massimali'!G43)<>0,'Computo-Massimali'!I43/('Computo-Massimali'!F43+'Computo-Massimali'!G43)*H43,0) -> 0 | J43: =H43+I43 -> 0 | K43: =IF('Computo-Massimali'!F43<>0,'Computo-Massimali'!K43*F43/'Computo-Massimali'!F43,0) -> 0 | L43: =SUM(J43:K43) -> 0 | M43: =IF(L43<=R43,L43*percDetr,R43*percDetr) -> 0 | N43: =IF('Computo-Massimali'!L43>0,L43/'Computo-Massimali'!L43,0) -> 0 | O43: =IF(F43>0,IF(ABS(F43-0.001)>'Computo-Massimali'!F43,">C.",""),"") ->  | P43: .. | Q43: PO) Isolamento coperture | R43: ='Computo-Massimali'!T43 -> 0 | S43: ok | U43: =IF(L46<>0,(L43/L46)*U46,0) -> 0 | W43: 0 | Y43: 0 | AA43: 0 | AG43: PO) Isolamento coperture | AH43: ='Computo-Massimali'!BJ43 -> 0 | AI43: ='Computo-Massimali'!BK43 -> 0 | AJ43: ='Computo-Massimali'!BL43 -> 0 | AK43: ='Computo-Massimali'!BM43 -> 0 | AL43: ='Computo-Massimali'!BN43 -> 0 | AM43: =IF(ABS(SUM(AH43:AL43)-H43)>0.01,"err. Somma",IF(AH43>'Computo-Massimali'!BJ43,"Err.1",IF(AI43>'Computo-Massimali'!BK43,"Err.2",IF(AJ43>'Computo-Massimali'!BL43,"Err.3",IF(AK43>'Computo-Massimali'!BM43,"Err.4",IF(AL43>'Computo-Massimali'!BN43,"Err.5","")))))) ->  | AO43: =IF('Dati Gen'!$B$26<>"",'Dati Gen'!$B$26,"") ->  | AQ43: =IF('Dati Gen'!$C$26<>"",'Dati Gen'!$C$26,"") ->  | AR43: 0 | AT43: ='Dati Gen'!G26 -> 0.04 | AU43: 0 | AV43: =AZ43/(1+AX43) -> 0 | AX43: ='Dati Gen'!J26 -> 0.22 | AY43: =(AR43+AU43)*AX43 -> 0 | AZ43: =IF('Dati Gen'!$M$36<>0,$AZ$51*'Dati Gen'!M26/'Dati Gen'!$M$36,0) -> 0 | BB43: =IF(AQ43<>"",VLOOKUP(AQ43,'Dati Gen'!$B$44:$D$51,3,0),"") -> 
C44: ='Computo-Massimali'!C44 -> PS) Isolamento Pavimenti | E44: ='Computo-Massimali'!E44 -> Esterno | F44: ='Computo-Massimali'!F44 -> 0 | G44: =IF('Computo-Massimali'!F44<>0,'Computo-Massimali'!G44*F44/'Computo-Massimali'!F44,0) -> 0 | H44: =SUM(F44:G44) -> 0 | I44: =IF(('Computo-Massimali'!F44+'Computo-Massimali'!G44)<>0,'Computo-Massimali'!I44/('Computo-Massimali'!F44+'Computo-Massimali'!G44)*H44,0) -> 0 | J44: =H44+I44 -> 0 | K44: =IF('Computo-Massimali'!F44<>0,'Computo-Massimali'!K44*F44/'Computo-Massimali'!F44,0) -> 0 | L44: =SUM(J44:K44) -> 0 | M44: =IF(L44<=R44,L44*percDetr,R44*percDetr) -> 0 | N44: =IF('Computo-Massimali'!L44>0,L44/'Computo-Massimali'!L44,0) -> 0 | O44: =IF(F44>0,IF(ABS(F44-0.001)>'Computo-Massimali'!F44,">C.",""),"") ->  | P44: .. | Q44: PS) Isolamento Pavimenti | R44: ='Computo-Massimali'!T44 -> 0 | S44: ok | U44: =IF(L46<>0,(L44/L46)*U46,0) -> 0 | W44: 0 | Y44: 0 | AA44: 0 | AG44: PS) Isolamento Pavimenti | AH44: ='Computo-Massimali'!BJ44 -> 0 | AI44: ='Computo-Massimali'!BK44 -> 0 | AJ44: ='Computo-Massimali'!BL44 -> 0 | AK44: ='Computo-Massimali'!BM44 -> 0 | AL44: ='Computo-Massimali'!BN44 -> 0 | AM44: =IF(ABS(SUM(AH44:AL44)-H44)>0.01,"err. Somma",IF(AH44>'Computo-Massimali'!BJ44,"Err.1",IF(AI44>'Computo-Massimali'!BK44,"Err.2",IF(AJ44>'Computo-Massimali'!BL44,"Err.3",IF(AK44>'Computo-Massimali'!BM44,"Err.4",IF(AL44>'Computo-Massimali'!BN44,"Err.5","")))))) ->  | AO44: =IF('Dati Gen'!$B$27<>"",'Dati Gen'!$B$27,"") ->  | AQ44: =IF('Dati Gen'!$C$27<>"",'Dati Gen'!$C$27,"") ->  | AR44: 0 | AT44: ='Dati Gen'!G27 -> 0.04 | AU44: 0 | AV44: =AZ44/(1+AX44) -> 0 | AX44: ='Dati Gen'!J27 -> 0 | AY44: 0 | AZ44: =IF('Dati Gen'!$M$36<>0,$AZ$51*'Dati Gen'!M27/'Dati Gen'!$M$36,0) -> 0 | BB44: =IF(AQ44<>"",VLOOKUP(AQ44,'Dati Gen'!$B$44:$D$51,3,0),"") -> 
C45: ='Computo-Massimali'!C45 -> IN) Serramenti con chiusure oscuranti | E45: ='Computo-Massimali'!E45 -> Zone D, E ed F | F45: ='Computo-Massimali'!F45 -> 0 | G45: =IF('Computo-Massimali'!F45<>0,'Computo-Massimali'!G45*F45/'Computo-Massimali'!F45,0) -> 0 | H45: =SUM(F45:G45) -> 0 | I45: =IF(('Computo-Massimali'!F45+'Computo-Massimali'!G45)<>0,'Computo-Massimali'!I45/('Computo-Massimali'!F45+'Computo-Massimali'!G45)*H45,0) -> 0 | J45: =H45+I45 -> 0 | K45: =IF('Computo-Massimali'!F45<>0,'Computo-Massimali'!K45*F45/'Computo-Massimali'!F45,0) -> 0 | L45: =SUM(J45:K45) -> 0 | M45: =IF(L45<=R45,L45*percDetr,R45*percDetr) -> 0 | N45: =IF('Computo-Massimali'!L45>0,L45/'Computo-Massimali'!L45,0) -> 0 | O45: =IF(F45>0,IF(ABS(F45-0.001)>'Computo-Massimali'!F45,">C.",""),"") ->  | P45: .. | Q45: IN) Serramenti con chiusure oscuranti | R45: ='Computo-Massimali'!T45 -> 0 | S45: ok | U45: =IF(L46<>0,(L45/L46)*U46,0) -> 0 | W45: 0 | Y45: 0 | AA45: 0 | AG45: IN) Serramenti con chiusure oscuranti | AH45: ='Computo-Massimali'!BJ45 -> 0 | AI45: ='Computo-Massimali'!BK45 -> 0 | AJ45: ='Computo-Massimali'!BL45 -> 0 | AK45: ='Computo-Massimali'!BM45 -> 0 | AL45: ='Computo-Massimali'!BN45 -> 0 | AM45: =IF(ABS(SUM(AH45:AL45)-H45)>0.01,"err. Somma",IF(AH45>'Computo-Massimali'!BJ45,"Err.1",IF(AI45>'Computo-Massimali'!BK45,"Err.2",IF(AJ45>'Computo-Massimali'!BL45,"Err.3",IF(AK45>'Computo-Massimali'!BM45,"Err.4",IF(AL45>'Computo-Massimali'!BN45,"Err.5","")))))) ->  | AO45: =IF('Dati Gen'!$B$28<>"",'Dati Gen'!$B$28,"") ->  | AQ45: =IF('Dati Gen'!$C$28<>"",'Dati Gen'!$C$28,"") ->  | AR45: 0 | AT45: ='Dati Gen'!G28 -> 0.04 | AU45: 0 | AV45: 0 | AX45: ='Dati Gen'!J28 -> 0.22 | AY45: 0 | AZ45: =IF('Dati Gen'!$M$36<>0,$AZ$51*'Dati Gen'!M28/'Dati Gen'!$M$36,0) -> 0 | BB45: =IF(AQ45<>"",VLOOKUP(AQ45,'Dati Gen'!$B$44:$D$51,3,0),"") -> 
C46: ='Computo-Massimali'!C46 -> Totali Isolamento PV) PO) PS) e IN | F46: =SUM(F42:F45) -> 0 | G46: =SUM(G42:G45) -> 0 | H46: 0 | I46: 0 | J46: 0 | K46: =SUM(K42:K45) -> 0 | L46: 0 | M46: 0 | N46: =IF('Computo-Massimali'!L46>0,L46/'Computo-Massimali'!L46,0) -> 0 | O46: =IF(F46>0,IF(ABS(F46-0.001)>'Computo-Massimali'!F46,">C.",""),"") ->  | Q46: Totali Isolamento PV) PO) PS) e IN | R46: ='Computo-Massimali'!T46 -> 0 | S46: ok | U46: =IF(L46<R46,L46,R46) -> 0 | W46: 0 | Y46: 0 | AA46: 0 | AG46: Totali Isolamento PV) PO) PS) e IN | AH46: =SUM(AH42:AH45) -> 0 | AI46: =SUM(AI42:AI45) -> 0 | AJ46: =SUM(AJ42:AJ45) -> 0 | AK46: =SUM(AK42:AK45) -> 0 | AL46: =SUM(AL42:AL45) -> 0 | AO46: =IF('Dati Gen'!$B$29<>"",'Dati Gen'!$B$29,"") ->  | AQ46: =IF('Dati Gen'!$C$29<>"",'Dati Gen'!$C$29,"") ->  | AR46: 0 | AT46: ='Dati Gen'!G29 -> 0.04 | AU46: 0 | AV46: 0 | AX46: ='Dati Gen'!J29 -> 0.22 | AY46: 0 | AZ46: =IF('Dati Gen'!$M$36<>0,$AZ$51*'Dati Gen'!M29/'Dati Gen'!$M$36,0) -> 0 | BB46: =IF(AQ46<>"",VLOOKUP(AQ46,'Dati Gen'!$B$44:$D$51,3,0),"") -> 
C47: ='Computo-Massimali'!C47 -> SS) Schermature solari e chiusure oscuranti | F47: ='Computo-Massimali'!F47 -> 0 | G47: =IF('Computo-Massimali'!F47<>0,'Computo-Massimali'!G47*F47/'Computo-Massimali'!F47,0) -> 0 | H47: =SUM(F47:G47) -> 0 | I47: =IF(('Computo-Massimali'!F47+'Computo-Massimali'!G47)<>0,'Computo-Massimali'!I47/('Computo-Massimali'!F47+'Computo-Massimali'!G47)*H47,0) -> 0 | J47: =H47+I47 -> 0 | K47: =IF('Computo-Massimali'!F47<>0,'Computo-Massimali'!K47*F47/'Computo-Massimali'!F47,0) -> 0 | L47: =SUM(J47:K47) -> 0 | M47: =IF(L47<=R47,L47*percDetr,R47*percDetr) -> 0 | N47: =IF('Computo-Massimali'!L47>0,L47/'Computo-Massimali'!L47,0) -> 0 | O47: =IF(F47>0,IF(ABS(F47-0.001)>'Computo-Massimali'!F47,">C.",""),"") ->  | P47: .. | Q47: SS) Schermature solari e chiusure oscuranti | R47: ='Computo-Massimali'!T47 -> 0 | S47: ok | U47: =IF(L47<R47,L47,R47) -> 0 | W47: 0 | Y47: 0 | AA47: 0 | AG47: SS) Schermature solari e chiusure oscuranti | AH47: ='Computo-Massimali'!BJ47 -> 0 | AI47: ='Computo-Massimali'!BK47 -> 0 | AJ47: ='Computo-Massimali'!BL47 -> 0 | AK47: ='Computo-Massimali'!BM47 -> 0 | AL47: ='Computo-Massimali'!BN47 -> 0 | AM47: =IF(ABS(SUM(AH47:AL47)-H47)>0.01,"err. Somma",IF(AH47>'Computo-Massimali'!BJ47,"Err.1",IF(AI47>'Computo-Massimali'!BK47,"Err.2",IF(AJ47>'Computo-Massimali'!BL47,"Err.3",IF(AK47>'Computo-Massimali'!BM47,"Err.4",IF(AL47>'Computo-Massimali'!BN47,"Err.5","")))))) ->  | AO47: =IF('Dati Gen'!$B$30<>"",'Dati Gen'!$B$30,"") ->  | AQ47: =IF('Dati Gen'!$C$30<>"",'Dati Gen'!$C$30,"") ->  | AR47: 0 | AT47: ='Dati Gen'!G30 -> 0.04 | AU47: 0 | AV47: =AZ47/(1+AX47) -> 0 | AX47: ='Dati Gen'!J30 -> 0.22 | AY47: 0 | AZ47: =IF('Dati Gen'!$M$36<>0,$AZ$51*'Dati Gen'!M30/'Dati Gen'!$M$36,0) -> 0 | BB47: =IF(AQ47<>"",VLOOKUP(AQ47,'Dati Gen'!$B$44:$D$51,3,0),"") -> 
C48: =CONCATENATE('Computo-Massimali'!C48," con ",'Computo-Massimali'!D48) -> Impianti climatizzazione con con CC)Caldaie a Condensazione | F48: ='Computo-Massimali'!F48 -> 0 | G48: =IF('Computo-Massimali'!F48<>0,'Computo-Massimali'!G48*F48/'Computo-Massimali'!F48,0) -> 0 | H48: =SUM(F48:G48) -> 0 | I48: =IF(('Computo-Massimali'!F48+'Computo-Massimali'!G48)<>0,'Computo-Massimali'!I48/('Computo-Massimali'!F48+'Computo-Massimali'!G48)*H48,0) -> 0 | J48: =H48+I48 -> 0 | K48: =IF('Computo-Massimali'!F48<>0,'Computo-Massimali'!K48*F48/'Computo-Massimali'!F48,0) -> 0 | L48: =SUM(J48:K48) -> 0 | M48: =IF(L48<=R48,L48*percDetr,R48*percDetr) -> 0 | N48: =IF('Computo-Massimali'!L48>0,L48/'Computo-Massimali'!L48,0) -> 0 | O48: =IF(F48>0,IF(ABS(F48-0.001)>'Computo-Massimali'!F48,">C.",""),"") ->  | P48: .. | Q48: Impianti climatizzazione con con CC)Caldaie a Condensazione | R48: ='Computo-Massimali'!T48 -> 0 | S48: ok | U48: =IF(L50<>0,(L48/L50)*U50,0) -> 0 | W48: 0 | Y48: 0 | AA48: 0 | AG48: Impianti climatizzazione con con CC)Caldaie a Condensazione | AH48: ='Computo-Massimali'!BJ48 -> 0 | AI48: ='Computo-Massimali'!BK48 -> 0 | AJ48: ='Computo-Massimali'!BL48 -> 0 | AK48: ='Computo-Massimali'!BM48 -> 0 | AL48: ='Computo-Massimali'!BN48 -> 0 | AM48: =IF(ABS(SUM(AH48:AL48)-H48)>0.01,"err. Somma",IF(AH48>'Computo-Massimali'!BJ48,"Err.1",IF(AI48>'Computo-Massimali'!BK48,"Err.2",IF(AJ48>'Computo-Massimali'!BL48,"Err.3",IF(AK48>'Computo-Massimali'!BM48,"Err.4",IF(AL48>'Computo-Massimali'!BN48,"Err.5","")))))) ->  | AO48: =IF('Dati Gen'!$B$31<>"",'Dati Gen'!$B$31,"") ->  | AQ48: =IF('Dati Gen'!$C$31<>"",'Dati Gen'!$C$31,"") ->  | AR48: 0 | AT48: ='Dati Gen'!G31 -> 0.04 | AU48: 0 | AV48: 0 | AX48: ='Dati Gen'!J31 -> 0.22 | AY48: 0 | AZ48: =IF('Dati Gen'!$M$36<>0,$AZ$51*'Dati Gen'!M31/'Dati Gen'!$M$36,0) -> 0 | BB48: =IF(AQ48<>"",VLOOKUP(AQ48,'Dati Gen'!$B$44:$D$51,3,0),"") -> 
C49: ='Computo-Massimali'!C49 -> SA) Scaldacqua a pompa di calore | F49: ='Computo-Massimali'!F49 -> 0 | G49: =IF('Computo-Massimali'!F49<>0,'Computo-Massimali'!G49*F49/'Computo-Massimali'!F49,0) -> 0 | H49: =SUM(F49:G49) -> 0 | I49: =IF(('Computo-Massimali'!F49+'Computo-Massimali'!G49)<>0,'Computo-Massimali'!I49/('Computo-Massimali'!F49+'Computo-Massimali'!G49)*H49,0) -> 0 | J49: =H49+I49 -> 0 | K49: =IF('Computo-Massimali'!F49<>0,'Computo-Massimali'!K49*F49/'Computo-Massimali'!F49,0) -> 0 | L49: =SUM(J49:K49) -> 0 | M49: =IF(L49<=R49,L49*percDetr,R49*percDetr) -> 0 | N49: =IF('Computo-Massimali'!L49>0,L49/'Computo-Massimali'!L49,0) -> 0 | O49: =IF(F49>0,IF(ABS(F49-0.001)>'Computo-Massimali'!F49,">C.",""),"") ->  | P49: .. | Q49: SA) Scaldacqua a pompa di calore | R49: ='Computo-Massimali'!T49 -> 0 | S49: ok | U49: =IF(L50<>0,(L49/L50)*U50,0) -> 0 | W49: 0 | Y49: 0 | AA49: 0 | AG49: SA) Scaldacqua a pompa di calore | AH49: ='Computo-Massimali'!BJ49 -> 0 | AI49: ='Computo-Massimali'!BK49 -> 0 | AJ49: ='Computo-Massimali'!BL49 -> 0 | AK49: ='Computo-Massimali'!BM49 -> 0 | AL49: ='Computo-Massimali'!BN49 -> 0 | AM49: =IF(ABS(SUM(AH49:AL49)-H49)>0.01,"err. Somma",IF(AH49>'Computo-Massimali'!BJ49,"Err.1",IF(AI49>'Computo-Massimali'!BK49,"Err.2",IF(AJ49>'Computo-Massimali'!BL49,"Err.3",IF(AK49>'Computo-Massimali'!BM49,"Err.4",IF(AL49>'Computo-Massimali'!BN49,"Err.5","")))))) ->  | AO49: =IF('Dati Gen'!$B$32<>"",'Dati Gen'!$B$32,"") ->  | AQ49: =IF('Dati Gen'!$C$32<>"",'Dati Gen'!$C$32,"") ->  | AR49: 0 | AT49: ='Dati Gen'!G32 -> 0.04 | AU49: 0 | AV49: 0 | AX49: ='Dati Gen'!J32 -> 0.22 | AY49: 0 | AZ49: =IF('Dati Gen'!$M$36<>0,$AZ$51*'Dati Gen'!M32/'Dati Gen'!$M$36,0) -> 0 | BB49: =IF(AQ49<>"",VLOOKUP(AQ49,'Dati Gen'!$B$44:$D$51,3,0),"") -> 
C50: ='Computo-Massimali'!C50 -> Totali Impianti ed SA) | F50: =SUM(F48:F49) -> 0 | G50: =SUM(G48:G49) -> 0 | H50: 0 | I50: 0 | J50: 0 | K50: =SUM(K48:K49) -> 0 | L50: 0 | M50: =SUM(M48:M49) -> 0 | N50: =IF('Computo-Massimali'!L50>0,L50/'Computo-Massimali'!L50,0) -> 0 | O50: =IF(F50>0,IF(ABS(F50-0.001)>'Computo-Massimali'!F50,">C.",""),"") ->  | Q50: Totali Impianti ed SA) | R50: ='Computo-Massimali'!T50 -> 0 | S50: ok | U50: =IF(L50<R50,L50,R50) -> 0 | W50: 0 | Y50: 0 | AA50: 0 | AG50: Totali Impianti ed SA) | AH50: =SUM(AH48:AH49) -> 0 | AI50: =SUM(AI48:AI49) -> 0 | AJ50: =SUM(AJ48:AJ49) -> 0 | AK50: =SUM(AK48:AK49) -> 0 | AL50: =SUM(AL48:AL49) -> 0 | AO50: =IF('Dati Gen'!$B$35<>"",'Dati Gen'!$B$35,"") -> Visto Conformità | AQ50: =IF('Dati Gen'!$C$35<>"",'Dati Gen'!$C$35,"") -> Consulente | AR50: 455.5373047 | AT50: ='Dati Gen'!G35 -> 0.04 | AU50: 18.22149219 | AV50: =AZ50/(1+AX50) -> 473.7587969 | AX50: ='Dati Gen'!J35 -> 0.22 | AY50: 104.2269353 | AZ50: =IF('Dati Gen'!$M$36<>0,$AZ$51*'Dati Gen'!M35/'Dati Gen'!$M$36,0) -> 577.9857322 | BB50: =IF(AQ50<>"",VLOOKUP(AQ50,'Dati Gen'!$B$44:$D$51,3,0),"") -> NO
C51: =CONCATENATE('Computo-Massimali'!C51," - ",'Computo-Massimali'!E51) -> CO) Sistemi di Microgenerazione - Celle a combustibile | F51: ='Computo-Massimali'!F51 -> 0 | G51: =IF('Computo-Massimali'!F51<>0,'Computo-Massimali'!G51*F51/'Computo-Massimali'!F51,0) -> 0 | H51: =SUM(F51:G51) -> 0 | I51: =IF(('Computo-Massimali'!F51+'Computo-Massimali'!G51)<>0,'Computo-Massimali'!I51/('Computo-Massimali'!F51+'Computo-Massimali'!G51)*H51,0) -> 0 | J51: =H51+I51 -> 0 | K51: =IF('Computo-Massimali'!F51<>0,'Computo-Massimali'!K51*F51/'Computo-Massimali'!F51,0) -> 0 | L51: =SUM(J51:K51) -> 0 | M51: =IF(L51<=R51,L51*percDetr,R51*percDetr) -> 0 | N51: =IF('Computo-Massimali'!L51>0,L51/'Computo-Massimali'!L51,0) -> 0 | O51: =IF(F51>0,IF(ABS(F51-0.001)>'Computo-Massimali'!F51,">C.",""),"") ->  | P51: .. | Q51: CO) Sistemi di Microgenerazione - Celle a combustibile | R51: ='Computo-Massimali'!T51 -> 0 | S51: ok | U51: 0 | W51: 0 | Y51: 0 | AA51: 0 | AG51: CO) Sistemi di Microgenerazione - Celle a combustibile | AH51: ='Computo-Massimali'!BJ51 -> 0 | AI51: ='Computo-Massimali'!BK51 -> 0 | AJ51: ='Computo-Massimali'!BL51 -> 0 | AK51: ='Computo-Massimali'!BM51 -> 0 | AL51: ='Computo-Massimali'!BN51 -> 0 | AM51: =IF(ABS(SUM(AH51:AL51)-H51)>0.01,"err. Somma",IF(AH51>'Computo-Massimali'!BJ51,"Err.1",IF(AI51>'Computo-Massimali'!BK51,"Err.2",IF(AJ51>'Computo-Massimali'!BL51,"Err.3",IF(AK51>'Computo-Massimali'!BM51,"Err.4",IF(AL51>'Computo-Massimali'!BN51,"Err.5","")))))) ->  | AR51: =SUM(AR42:AS50) -> 1812.321578 | AT51: =SUM(AU42:AU50) -> 72.49286312 | AV51: =SUM(AV42:AW50) -> 1884.814441 | AY51: =SUM(AY42:AY50) -> 414.659177 | AZ51: =K93 -> 2299.473618
C52: ='Computo-Massimali'!C52 -> IB) Generatori a Biomassa | F52: ='Computo-Massimali'!F52 -> 0 | G52: =IF('Computo-Massimali'!F52<>0,'Computo-Massimali'!G52*F52/'Computo-Massimali'!F52,0) -> 0 | H52: 0 | I52: =IF(('Computo-Massimali'!F52+'Computo-Massimali'!G52)<>0,'Computo-Massimali'!I52/('Computo-Massimali'!F52+'Computo-Massimali'!G52)*H52,0) -> 0 | J52: 0 | K52: =IF('Computo-Massimali'!F52<>0,'Computo-Massimali'!K52*F52/'Computo-Massimali'!F52,0) -> 0 | L52: 0 | M52: 0 | N52: =IF('Computo-Massimali'!L52>0,L52/'Computo-Massimali'!L52,0) -> 0 | O52: =IF(F52>0,IF(ABS(F52-0.001)>'Computo-Massimali'!F52,">C.",""),"") ->  | P52: .. | Q52: IB) Generatori a Biomassa | R52: ='Computo-Massimali'!T52 -> 0 | S52: ok | U52: 0 | W52: 0 | Y52: 0 | AA52: 0 | AG52: IB) Generatori a Biomassa | AH52: ='Computo-Massimali'!BJ52 -> 0 | AI52: ='Computo-Massimali'!BK52 -> 0 | AJ52: ='Computo-Massimali'!BL52 -> 0 | AK52: ='Computo-Massimali'!BM52 -> 0 | AL52: ='Computo-Massimali'!BN52 -> 0 | AM52: =IF(ABS(SUM(AH52:AL52)-H52)>0.01,"err. Somma",IF(AH52>'Computo-Massimali'!BJ52,"Err.1",IF(AI52>'Computo-Massimali'!BK52,"Err.2",IF(AJ52>'Computo-Massimali'!BL52,"Err.3",IF(AK52>'Computo-Massimali'!BM52,"Err.4",IF(AL52>'Computo-Massimali'!BN52,"Err.5","")))))) ->  | AO52: Ripartizione Spese Tecniche / Professionista : SAL. N.2 - ALTRI INTERVENTI
C53: ='Computo-Massimali'!C53 -> BA) Building Automation | F53: ='Computo-Massimali'!F53 -> 0 | G53: =IF('Computo-Massimali'!F53<>0,'Computo-Massimali'!G53*F53/'Computo-Massimali'!F53,0) -> 0 | H53: 0 | I53: =IF(('Computo-Massimali'!F53+'Computo-Massimali'!G53)<>0,'Computo-Massimali'!I53/('Computo-Massimali'!F53+'Computo-Massimali'!G53)*H53,0) -> 0 | J53: 0 | K53: =IF('Computo-Massimali'!F53<>0,'Computo-Massimali'!K53*F53/'Computo-Massimali'!F53,0) -> 0 | L53: 0 | M53: 0 | N53: =IF('Computo-Massimali'!L53>0,L53/'Computo-Massimali'!L53,0) -> 0 | O53: =IF(F53>0,IF(ABS(F53-0.001)>'Computo-Massimali'!F53,">C.",""),"") ->  | P53: .. | Q53: BA) Building Automation | R53: ='Computo-Massimali'!T53 -> 0 | S53: ok | U53: 0 | W53: 0 | Y53: 0 | AA53: 0 | AG53: BA) Building Automation | AH53: ='Computo-Massimali'!BJ53 -> 0 | AI53: ='Computo-Massimali'!BK53 -> 0 | AJ53: ='Computo-Massimali'!BL53 -> 0 | AK53: ='Computo-Massimali'!BM53 -> 0 | AL53: ='Computo-Massimali'!BN53 -> 0 | AM53: =IF(ABS(SUM(AH53:AL53)-H53)>0.01,"err. Somma",IF(AH53>'Computo-Massimali'!BJ53,"Err.1",IF(AI53>'Computo-Massimali'!BK53,"Err.2",IF(AJ53>'Computo-Massimali'!BL53,"Err.3",IF(AK53>'Computo-Massimali'!BM53,"Err.4",IF(AL53>'Computo-Massimali'!BN53,"Err.5","")))))) ->  | AO53: =IF('Dati Gen'!$B$44<>"",'Dati Gen'!$B$44,"") -> Tecnico1 | AP53: =IF('Dati Gen'!$B$45<>"",'Dati Gen'!$B$45,"") -> Tecnico2 | AQ53: =IF('Dati Gen'!$B$46<>"",'Dati Gen'!$B$46,"") -> Consulente | AR53: =IF('Dati Gen'!$B$47<>"",'Dati Gen'!$B$47,"") ->  | AT53: =IF('Dati Gen'!$B$48<>"",'Dati Gen'!$B$48,"") ->  | AV53: =IF('Dati Gen'!$B$49<>"",'Dati Gen'!$B$49,"") ->  | AX53: =IF('Dati Gen'!$B$50<>"",'Dati Gen'!$B$50,"") ->  | AZ53: =IF('Dati Gen'!$B$51<>"",'Dati Gen'!$B$51,"") -> 
C54: ='Computo-Massimali'!C54 -> ST) Collettori Solari | E54: ='Computo-Massimali'!E54 -> Piani Vetrati | F54: ='Computo-Massimali'!F54 -> 0 | G54: =IF('Computo-Massimali'!F54<>0,'Computo-Massimali'!G54*F54/'Computo-Massimali'!F54,0) -> 0 | H54: 0 | I54: =IF(('Computo-Massimali'!F54+'Computo-Massimali'!G54)<>0,'Computo-Massimali'!I54/('Computo-Massimali'!F54+'Computo-Massimali'!G54)*H54,0) -> 0 | J54: 0 | K54: =IF('Computo-Massimali'!F54<>0,'Computo-Massimali'!K54*F54/'Computo-Massimali'!F54,0) -> 0 | L54: 0 | M54: 0 | N54: =IF('Computo-Massimali'!L54>0,L54/'Computo-Massimali'!L54,0) -> 0 | O54: =IF(F54>0,IF(ABS(F54-0.001)>'Computo-Massimali'!F54,">C.",""),"") ->  | P54: .. | Q54: ST) Collettori Solari | R54: ='Computo-Massimali'!T54 -> 0 | S54: ok | U54: 0 | W54: 0 | Y54: 0 | AA54: 0 | AG54: ST) Collettori Solari | AH54: ='Computo-Massimali'!BJ54 -> 0 | AI54: ='Computo-Massimali'!BK54 -> 0 | AJ54: ='Computo-Massimali'!BL54 -> 0 | AK54: ='Computo-Massimali'!BM54 -> 0 | AL54: ='Computo-Massimali'!BN54 -> 0 | AM54: =IF(ABS(SUM(AH54:AL54)-H54)>0.01,"err. Somma",IF(AH54>'Computo-Massimali'!BJ54,"Err.1",IF(AI54>'Computo-Massimali'!BK54,"Err.2",IF(AJ54>'Computo-Massimali'!BL54,"Err.3",IF(AK54>'Computo-Massimali'!BM54,"Err.4",IF(AL54>'Computo-Massimali'!BN54,"Err.5","")))))) ->  | AO54: =IF($AQ42=AO$53,$AZ42,0) -> 1721.487886 | AP54: 0 | AQ54: 0 | AR54: 0 | AT54: =IF($AQ42=AT$53,$AZ42,0) -> 0 | AV54: =IF($AQ42=AV$53,$AZ42,0) -> 0 | AX54: =IF($AQ42=AX$53,$AZ42,0) -> 0 | AZ54: =IF($AQ42=AZ$53,$AZ42,0) -> 0
C55: ='Computo-Massimali'!C55 -> FV) Solare Fotovoltaico [ kWp ] | E55: ='Computo-Massimali'!E55 -> 6.72 | F55: ='Computo-Massimali'!F55 -> 0 | G55: =IF('Computo-Massimali'!F55<>0,'Computo-Massimali'!G55*F55/'Computo-Massimali'!F55,0) -> 0 | H55: 0 | I55: =IF(('Computo-Massimali'!F55+'Computo-Massimali'!G55)<>0,'Computo-Massimali'!I55/('Computo-Massimali'!F55+'Computo-Massimali'!G55)*H55,0) -> 0 | J55: 0 | K55: =IF('Computo-Massimali'!F55<>0,'Computo-Massimali'!K55*F55/'Computo-Massimali'!F55,0) -> 0 | L55: 0 | M55: 0 | N55: =IF('Computo-Massimali'!L55>0,L55/'Computo-Massimali'!L55,0) -> 0 | O55: =IF(F55>0,IF(ABS(F55-0.001)>'Computo-Massimali'!F55,">C.",""),"") ->  | P55: .. | Q55: FV) Solare Fotovoltaico [ kWp ] | R55: ='Computo-Massimali'!T55 -> 16128 | S55: ok | U55: 0 | W55: 0 | Y55: 0 | AA55: 0 | AG55: FV) Solare Fotovoltaico [ kWp ] | AH55: ='Computo-Massimali'!BJ55 -> 0 | AI55: ='Computo-Massimali'!BK55 -> 0 | AJ55: ='Computo-Massimali'!BL55 -> 0 | AK55: ='Computo-Massimali'!BM55 -> 0 | AL55: ='Computo-Massimali'!BN55 -> 0 | AM55: =IF(ABS(SUM(AH55:AL55)-H55)>0.01,"err. Somma",IF(AH55>'Computo-Massimali'!BJ55,"Err.1",IF(AI55>'Computo-Massimali'!BK55,"Err.2",IF(AJ55>'Computo-Massimali'!BL55,"Err.3",IF(AK55>'Computo-Massimali'!BM55,"Err.4",IF(AL55>'Computo-Massimali'!BN55,"Err.5","")))))) ->  | AO55: 0 | AP55: 0 | AQ55: 0 | AR55: 0 | AT55: 0 | AV55: 0 | AX55: 0 | AZ55: 0
C56: ='Computo-Massimali'!C56 -> AC) Sistema di Accumulo [ kWh ] | E56: ='Computo-Massimali'!E56 -> 10 | F56: ='Computo-Massimali'!F56 -> 0 | G56: =IF('Computo-Massimali'!F56<>0,'Computo-Massimali'!G56*F56/'Computo-Massimali'!F56,0) -> 0 | H56: 0 | I56: =IF(('Computo-Massimali'!F56+'Computo-Massimali'!G56)<>0,'Computo-Massimali'!I56/('Computo-Massimali'!F56+'Computo-Massimali'!G56)*H56,0) -> 0 | J56: 0 | K56: =IF('Computo-Massimali'!F56<>0,'Computo-Massimali'!K56*F56/'Computo-Massimali'!F56,0) -> 0 | L56: 0 | M56: 0 | N56: =IF('Computo-Massimali'!L56>0,L56/'Computo-Massimali'!L56,0) -> 0 | O56: =IF(F56>0,IF(ABS(F56-0.001)>'Computo-Massimali'!F56,">C.",""),"") ->  | P56: .. | Q56: AC) Sistema di Accumulo [ kWh ] | R56: ='Computo-Massimali'!T56 -> 10000 | S56: ok | U56: 0 | W56: 0 | Y56: 0 | AA56: 0 | AG56: AC) Sistema di Accumulo [ kWh ] | AH56: ='Computo-Massimali'!BJ56 -> 0 | AI56: ='Computo-Massimali'!BK56 -> 0 | AJ56: ='Computo-Massimali'!BL56 -> 0 | AK56: ='Computo-Massimali'!BM56 -> 0 | AL56: ='Computo-Massimali'!BN56 -> 0 | AM56: =IF(ABS(SUM(AH56:AL56)-H56)>0.01,"err. Somma",IF(AH56>'Computo-Massimali'!BJ56,"Err.1",IF(AI56>'Computo-Massimali'!BK56,"Err.2",IF(AJ56>'Computo-Massimali'!BL56,"Err.3",IF(AK56>'Computo-Massimali'!BM56,"Err.4",IF(AL56>'Computo-Massimali'!BN56,"Err.5","")))))) ->  | AO56: 0 | AP56: 0 | AQ56: 0 | AR56: 0 | AT56: 0 | AV56: 0 | AX56: 0 | AZ56: 0
C57: ='Computo-Massimali'!C57 -> CR) Colonnine di Ricarica | E57: ='Computo-Massimali'!E57 -> 1 | F57: ='Computo-Massimali'!F57 -> 0 | G57: =IF('Computo-Massimali'!F57<>0,'Computo-Massimali'!G57*F57/'Computo-Massimali'!F57,0) -> 0 | H57: 0 | I57: =IF(('Computo-Massimali'!F57+'Computo-Massimali'!G57)<>0,'Computo-Massimali'!I57/('Computo-Massimali'!F57+'Computo-Massimali'!G57)*H57,0) -> 0 | J57: 0 | K57: =IF('Computo-Massimali'!F57<>0,'Computo-Massimali'!K57*F57/'Computo-Massimali'!F57,0) -> 0 | L57: 0 | M57: 0 | N57: =IF('Computo-Massimali'!L57>0,L57/'Computo-Massimali'!L57,0) -> 0 | O57: =IF(F57>0,IF(ABS(F57-0.001)>'Computo-Massimali'!F57,">C.",""),"") ->  | P57: .. | Q57: CR) Colonnine di Ricarica | R57: ='Computo-Massimali'!T57 -> 2000 | S57: ok | U57: 0 | W57: 0 | Y57: 0 | AA57: 0 | AG57: CR) Colonnine di Ricarica | AH57: ='Computo-Massimali'!BJ57 -> 0 | AI57: ='Computo-Massimali'!BK57 -> 0 | AJ57: ='Computo-Massimali'!BL57 -> 0 | AK57: ='Computo-Massimali'!BM57 -> 0 | AL57: ='Computo-Massimali'!BN57 -> 0 | AM57: =IF(ABS(SUM(AH57:AL57)-H57)>0.01,"err. Somma",IF(AH57>'Computo-Massimali'!BJ57,"Err.1",IF(AI57>'Computo-Massimali'!BK57,"Err.2",IF(AJ57>'Computo-Massimali'!BL57,"Err.3",IF(AK57>'Computo-Massimali'!BM57,"Err.4",IF(AL57>'Computo-Massimali'!BN57,"Err.5","")))))) ->  | AO57: 0 | AP57: 0 | AQ57: 0 | AR57: 0 | AT57: 0 | AV57: 0 | AX57: 0 | AZ57: 0
C58: EBA) Eliminazione Barriere architettoniche | F58: ='Computo-Massimali'!F58 -> 0 | G58: =IF('Computo-Massimali'!F58<>0,'Computo-Massimali'!G58*F58/'Computo-Massimali'!F58,0) -> 0 | H58: 0 | I58: =IF(('Computo-Massimali'!F58+'Computo-Massimali'!G58)<>0,'Computo-Massimali'!I58/('Computo-Massimali'!F58+'Computo-Massimali'!G58)*H58,0) -> 0 | J58: 0 | K58: =IF('Computo-Massimali'!F58<>0,'Computo-Massimali'!K58*F58/'Computo-Massimali'!F58,0) -> 0 | L58: 0 | M58: 0 | N58: =IF('Computo-Massimali'!L58>0,L58/'Computo-Massimali'!L58,0) -> 0 | O58: =IF(F58>0,IF(ABS(F58-0.001)>'Computo-Massimali'!F58,">C.",""),"") ->  | P58: .. | Q58: EBA) Eliminazione Barriere architettoniche | R58: ='Computo-Massimali'!T58 -> 96000 | S58: ok | U58: 0 | W58: 0 | Y58: 0 | AA58: 0 | AG58: EBA) Eliminazione Barriere architettoniche | AH58: ='Computo-Massimali'!BJ58 -> 0 | AI58: ='Computo-Massimali'!BK58 -> 0 | AJ58: ='Computo-Massimali'!BL58 -> 0 | AK58: ='Computo-Massimali'!BM58 -> 0 | AL58: ='Computo-Massimali'!BN58 -> 0 | AM58: =IF(ABS(SUM(AH58:AL58)-H58)>0.01,"err. Somma",IF(AH58>'Computo-Massimali'!BJ58,"Err.1",IF(AI58>'Computo-Massimali'!BK58,"Err.2",IF(AJ58>'Computo-Massimali'!BL58,"Err.3",IF(AK58>'Computo-Massimali'!BM58,"Err.4",IF(AL58>'Computo-Massimali'!BN58,"Err.5","")))))) ->  | AO58: 0 | AP58: 0 | AQ58: 0 | AR58: 0 | AT58: 0 | AV58: 0 | AX58: 0 | AZ58: 0
C59: Totale Interventi trainati | F59: =IF(Titolare!$B$16="Versione Demo",0,F46+F47+SUM(F50:F58)) -> 0 | G59: =G46+G47+SUM(G50:G58) -> 0 | H59: 0 | I59: 0 | J59: 0 | K59: 0 | L59: 0 | M59: 0 | N59: =IF('Computo-Massimali'!L59>0,L59/'Computo-Massimali'!L59,0) -> 0 | O59: =IF(F59>0,IF(ABS(F59-0.001)>'Computo-Massimali'!F59,">C.",""),"") ->  | R59: =C59 -> Totale Interventi trainati | U59: =U46+U47+SUM(U50:V58) -> 0 | W59: =W46+W47+SUM(W50:X58) -> 0 | Y59: =Y46+Y47+SUM(Y50:Z58) -> 0 | AA59: =AA46+AA47+SUM(AA50:AB58) -> 0 | AG59: =R59 -> Totale Interventi trainati | AH59: =AH46+AH47+SUM(AH50:AH58) -> 0 | AI59: =AI46+AI47+SUM(AI50:AI58) -> 0 | AJ59: =AJ46+AJ47+SUM(AJ50:AJ58) -> 0 | AK59: =AK46+AK47+SUM(AK50:AK58) -> 0 | AL59: =AL46+AL47+SUM(AL50:AL58) -> 0 | AO59: 0 | AP59: 0 | AQ59: 0 | AR59: 0 | AT59: 0 | AV59: 0 | AX59: 0 | AZ59: 0
AO60: 0 | AP60: 0 | AQ60: 0 | AR60: 0 | AT60: 0 | AV60: 0 | AX60: 0 | AZ60: 0
AO61: 0 | AP61: 0 | AQ61: 0 | AR61: 0 | AT61: 0 | AV61: 0 | AX61: 0 | AZ61: 0
AO62: 0 | AP62: 0 | AQ62: 577.9857322 | AR62: 0 | AT62: 0 | AV62: 0 | AX62: 0 | AZ62: 0
AO63: =SUM(AO54:AO62) -> 1721.487886 | AP63: =SUM(AP54:AP62) -> 0 | AQ63: =SUM(AQ54:AQ62) -> 577.9857322 | AR63: =SUM(AR54:AR62) -> 0 | AT63: =SUM(AT54:AT62) -> 0 | AV63: =SUM(AV54:AV62) -> 0 | AX63: =SUM(AX54:AX62) -> 0 | AZ63: =SUM(AZ54:AZ62) -> 0 | BB63: =SUM(AO63:BA63) -> 2299.473618
AO64: =IF($BB$63<>0,AO63/$BB$63,0) -> 0.7486443299 | AP64: =IF($BB$63<>0,AP63/$BB$63,0) -> 0 | AQ64: =IF($BB$63<>0,AQ63/$BB$63,0) -> 0.2513556701 | AR64: =IF($BB$63<>0,AR63/$BB$63,0) -> 0 | AT64: =IF($BB$63<>0,AT63/$BB$63,0) -> 0 | AV64: =IF($BB$63<>0,AV63/$BB$63,0) -> 0 | AX64: =IF($BB$63<>0,AX63/$BB$63,0) -> 0 | AZ64: =IF($BB$63<>0,AZ63/$BB$63,0) -> 0
C70: Note
C78: SimMZ
AG79: ='Computo-Massimali'!BI78 -> Ripartizione tra le Imprese - Imponibile Lavori INTERVENTI SB.
C80: TOTALI SAL N.1 - INTERVENTI SB. | F80: Importo Lavori | G80: Incidenza Sicurezza | H80: Imponibile | I80: Iva | J80: Importo c.iva | K80: Spese tecniche | L80: Totale | M80: =$M$8 -> Credito Spettante 75% Spesa Ammessa | N80: %SAL | Q80: =C80 -> TOTALI SAL N.1 - INTERVENTI SB. | U80: Spesa Ammessa | W80: Quota Eccedente Spesa Ammessa | Y80: =$Y$8 -> Credito Spettante 75% Spesa Ammessa Quota Imprese | Quota Tecnici | AG80: =Q80 -> TOTALI SAL N.1 - INTERVENTI SB. | AH80: =IF('Dati Gen'!$B$38<>"",'Dati Gen'!$B$38,"") -> Impresa1 | AI80: =IF('Dati Gen'!$B$39<>"",'Dati Gen'!$B$39,"") -> Impresa2 | AJ80: =IF('Dati Gen'!$B$40<>"",'Dati Gen'!$B$40,"") -> Impresa3 | AK80: =IF('Dati Gen'!$B$41<>"",'Dati Gen'!$B$41,"") -> Impresa4 | AL80: =IF('Dati Gen'!$B$42<>"",'Dati Gen'!$B$42,"") -> 
F81: =F16+F59 -> 0 | G81: 0 | H81: 0 | I81: 0 | J81: 0 | K81: 0 | L81: 0 | M81: 0 | N81: =IF('Computo-Massimali'!L81>0,L81/'Computo-Massimali'!L81,0) -> 0 | O81: =IF(F81>0,IF(ABS(F81-0.001)>'Computo-Massimali'!F81,">C.",""),"") ->  | U81: =U16+U59 -> 0 | W81: =W16+W59 -> 0 | Y81: =Y16+Y59 -> 0 | AA81: =AA16+AA59 -> 0 | AH81: =AH16+AH59 -> 0 | AI81: =AI16+AI59 -> 0 | AJ81: =AJ16+AJ59 -> 0 | AK81: =AK16+AK59 -> 0 | AL81: =AL16+AL59 -> 0
C82: =CONCATENATE("Quota a Carico Cliente per Interventi SB = Eccedenza Spesa Ammessa ",IF(percDetr<1,CONCATENATE("+",100*(1-percDetr),"%·Spesa Ammessa =")," =")) -> Quota a Carico Cliente per Interventi SB = Eccedenza Spesa Ammessa +25%·Spesa Ammessa = | L82: =IF((1-percDetr)*SpesaAmmessa30>0,QuotaEcced30+(1-percDetr)*SpesaAmmessa30,QuotaEcced30) -> 0 | M82: =IF('Computo-Massimali'!L15<>0,IF('Computo-Massimali'!L81-'Computo-Massimali'!L15>0,"SAL SB. - Sisma=",""),"") ->  | N82: =IF('Computo-Massimali'!L15<>0,IF('Computo-Massimali'!L81-'Computo-Massimali'!L15>0,(Totale30-L15)/('Computo-Massimali'!L81-'Computo-Massimali'!L15),""),"") -> 
K83: =CONCATENATE("Quota Cedibile = ",100*percDetr,"%·Spesa Ammessa = ") -> Quota Cedibile = 75%·Spesa Ammessa = | L83: =SpesaAmmessa30*percDetr -> 0
C84: =IF(N81<30%,"Attenzione! SAL Superbonus inferiore 30%","") -> Attenzione! SAL Superbonus inferiore 30%
C87: ALTRI INTERVENTI | Q87: =CONCATENATE("Verifica Massimali di Spesa ",C87) -> Verifica Massimali di Spesa ALTRI INTERVENTI | AG87: ='Computo-Massimali'!BI87 -> Ripartizione tra le Imprese - Imponibile Lavori ALTRI INTERVENTI
C88: Interventi | E88: x% Credito ceduto | F88: Importo Lavori | G88: Incidenza Sicurezza | H88: Imponibile | I88: Iva | J88: Importo c.iva | K88: Spese tecniche | L88: Totale | M88: Credito Spettante x% Spesa Ammessa | N88: %SAL | R88: Massimale spesa | S88: Verifica Max | U88: Spesa Ammessa | W88: Quota Eccedente Spesa Ammessa | Y88: Credito Spettante x% Spesa Ammessa Quota Imprese | Quota Tecnici | AG88: Interventi | AH88: =IF('Dati Gen'!$B$38<>"",'Dati Gen'!$B$38,"") -> Impresa1 | AI88: =IF('Dati Gen'!$B$39<>"",'Dati Gen'!$B$39,"") -> Impresa2 | AJ88: =IF('Dati Gen'!$B$40<>"",'Dati Gen'!$B$40,"") -> Impresa3 | AK88: =IF('Dati Gen'!$B$41<>"",'Dati Gen'!$B$41,"") -> Impresa4 | AL88: =IF('Dati Gen'!$B$42<>"",'Dati Gen'!$B$42,"") -> 
C89: =IF('Computo-Massimali'!C89<>"",'Computo-Massimali'!C89,"") -> Manutenzione straordinaria, restauro e recupero conservativo | E89: ='Computo-Massimali'!E89 -> 0.75 | F89: 15000 | G89: =IF('Computo-Massimali'!F89<>0,'Computo-Massimali'!G89*F89/'Computo-Massimali'!F89,0) -> 0 | H89: =SUM(F89:G89) -> 15000 | I89: =IF(('Computo-Massimali'!F89+'Computo-Massimali'!G89)<>0,'Computo-Massimali'!I89/('Computo-Massimali'!F89+'Computo-Massimali'!G89)*H89,0) -> 1500 | J89: =H89+I89 -> 16500 | K89: =IF('Computo-Massimali'!F89<>0,'Computo-Massimali'!K89*F89/'Computo-Massimali'!F89,0) -> 2299.473618 | L89: =SUM(J89:K89) -> 18799.47362 | M89: =IF(L89<=R89,L89*E89,R89*E89) -> 14099.60521 | N89: =IF('Computo-Massimali'!L89>0,L89/'Computo-Massimali'!L89,0) -> 0.3768844221 | O89: =IF(F89>0,IF(ABS(F89-0.001)>'Computo-Massimali'!F89,">C.",""),"") ->  | P89: .. | Q89: =IF(C89<>"",C89,"") -> Manutenzione straordinaria, restauro e recupero conservativo | R89: ='Computo-Massimali'!T89 -> 96000 | S89: =IF(L89>R89,"KO Tot.>Detr.","ok") -> ok | U89: =IF(L89<R89,L89,R89) -> 18799.47362 | W89: =IF(L89>R89,L89-R89,0) -> 0 | Y89: =IF(M89<>0,J89*M89/L89,0) -> 12375 | AA89: =IF(M89<>0,K89*M89/L89,0) -> 1724.605214 | AG89: =Q89 -> Manutenzione straordinaria, restauro e recupero conservativo | AH89: 13500.00098 | AI89: 1499.99902 | AJ89: 0 | AK89: 0 | AL89: 0 | AM89: =IF(ABS(SUM(AH89:AL89)-H89)>0.01,"err. Somma",IF(AH89>'Computo-Massimali'!BJ89,"Err.1",IF(AI89>'Computo-Massimali'!BK89,"Err.2",IF(AJ89>'Computo-Massimali'!BL89,"Err.3",IF(AK89>'Computo-Massimali'!BM89,"Err.4",IF(AL89>'Computo-Massimali'!BN89,"Err.5","")))))) -> 
C90: =IF('Computo-Massimali'!C90<>"",'Computo-Massimali'!C90,"") ->  | D90: =IF('Computo-Massimali'!D90<>"",'Computo-Massimali'!D90,"") ->  | E90: ='Computo-Massimali'!E90 -> 0.6 | F90: ='Computo-Massimali'!F90 -> 0 | G90: =IF('Computo-Massimali'!F90<>0,'Computo-Massimali'!G90*F90/'Computo-Massimali'!F90,0) -> 0 | H90: =SUM(F90:G90) -> 0 | I90: =IF(('Computo-Massimali'!F90+'Computo-Massimali'!G90)<>0,'Computo-Massimali'!I90/('Computo-Massimali'!F90+'Computo-Massimali'!G90)*H90,0) -> 0 | J90: =H90+I90 -> 0 | K90: =IF('Computo-Massimali'!F90<>0,'Computo-Massimali'!K90*F90/'Computo-Massimali'!F90,0) -> 0 | L90: =SUM(J90:K90) -> 0 | M90: =IF(L90<=R90,L90*E90,R90*E90) -> 0 | N90: =IF('Computo-Massimali'!L90>0,L90/'Computo-Massimali'!L90,0) -> 0 | O90: =IF(F90>0,IF(ABS(F90-0.001)>'Computo-Massimali'!F90,">C.",""),"") ->  | P90: .. | Q90: =IF(C90<>"",C90,"") ->  | R90: ='Computo-Massimali'!T90 -> 96000 | S90: =IF(L90>R90,"KO Tot.>Detr.","ok") -> ok | U90: =IF(L90<R90,L90,R90) -> 0 | W90: =IF(L90>R90,L90-R90,0) -> 0 | Y90: =IF(M90<>0,J90*M90/L90,0) -> 0 | AA90: =IF(M90<>0,K90*M90/L90,0) -> 0 | AG90: =Q90 ->  | AH90: ='Computo-Massimali'!BJ90 -> 0 | AI90: ='Computo-Massimali'!BK90 -> 0 | AJ90: ='Computo-Massimali'!BL90 -> 0 | AK90: ='Computo-Massimali'!BM90 -> 0 | AL90: ='Computo-Massimali'!BN90 -> 0 | AM90: =IF(ABS(SUM(AH90:AL90)-H90)>0.01,"err. Somma",IF(AH90>'Computo-Massimali'!BJ90,"Err.1",IF(AI90>'Computo-Massimali'!BK90,"Err.2",IF(AJ90>'Computo-Massimali'!BL90,"Err.3",IF(AK90>'Computo-Massimali'!BM90,"Err.4",IF(AL90>'Computo-Massimali'!BN90,"Err.5","")))))) -> 
C91: =IF('Computo-Massimali'!C91<>"",'Computo-Massimali'!C91,"") ->  | D91: =IF('Computo-Massimali'!D91<>"",'Computo-Massimali'!D91,"") ->  | E91: ='Computo-Massimali'!E91 -> 0.7 | F91: ='Computo-Massimali'!F91 -> 0 | G91: =IF('Computo-Massimali'!F91<>0,'Computo-Massimali'!G91*F91/'Computo-Massimali'!F91,0) -> 0 | H91: =SUM(F91:G91) -> 0 | I91: =IF(('Computo-Massimali'!F91+'Computo-Massimali'!G91)<>0,'Computo-Massimali'!I91/('Computo-Massimali'!F91+'Computo-Massimali'!G91)*H91,0) -> 0 | J91: =H91+I91 -> 0 | K91: =IF('Computo-Massimali'!F91<>0,'Computo-Massimali'!K91*F91/'Computo-Massimali'!F91,0) -> 0 | L91: =SUM(J91:K91) -> 0 | M91: =IF(L91<=R91,L91*E91,R91*E91) -> 0 | N91: =IF('Computo-Massimali'!L91>0,L91/'Computo-Massimali'!L91,0) -> 0 | O91: =IF(F91>0,IF(ABS(F91-0.001)>'Computo-Massimali'!F91,">C.",""),"") ->  | P91: .. | Q91: =IF(C91<>"",C91,"") ->  | R91: ='Computo-Massimali'!T91 -> 96000 | S91: =IF(L91>R91,"KO Tot.>Detr.","ok") -> ok | U91: =IF(L91<R91,L91,R91) -> 0 | W91: =IF(L91>R91,L91-R91,0) -> 0 | Y91: =IF(M91<>0,J91*M91/L91,0) -> 0 | AA91: =IF(M91<>0,K91*M91/L91,0) -> 0 | AG91: =Q91 ->  | AH91: ='Computo-Massimali'!BJ91 -> 0 | AI91: ='Computo-Massimali'!BK91 -> 0 | AJ91: ='Computo-Massimali'!BL91 -> 0 | AK91: ='Computo-Massimali'!BM91 -> 0 | AL91: ='Computo-Massimali'!BN91 -> 0 | AM91: =IF(ABS(SUM(AH91:AL91)-H91)>0.01,"err. Somma",IF(AH91>'Computo-Massimali'!BJ91,"Err.1",IF(AI91>'Computo-Massimali'!BK91,"Err.2",IF(AJ91>'Computo-Massimali'!BL91,"Err.3",IF(AK91>'Computo-Massimali'!BM91,"Err.4",IF(AL91>'Computo-Massimali'!BN91,"Err.5","")))))) -> 
C92: =IF('Computo-Massimali'!C92<>"",'Computo-Massimali'!C92,"") ->  | D92: =IF('Computo-Massimali'!D92<>"",'Computo-Massimali'!D92,"") ->  | E92: ='Computo-Massimali'!E92 -> 0 | F92: ='Computo-Massimali'!F92 -> 0 | G92: =IF('Computo-Massimali'!F92<>0,'Computo-Massimali'!G92*F92/'Computo-Massimali'!F92,0) -> 0 | H92: =SUM(F92:G92) -> 0 | I92: =IF(('Computo-Massimali'!F92+'Computo-Massimali'!G92)<>0,'Computo-Massimali'!I92/('Computo-Massimali'!F92+'Computo-Massimali'!G92)*H92,0) -> 0 | J92: =H92+I92 -> 0 | K92: =IF('Computo-Massimali'!F92<>0,'Computo-Massimali'!K92*F92/'Computo-Massimali'!F92,0) -> 0 | L92: =SUM(J92:K92) -> 0 | M92: =IF(L92<=R92,L92*E92,R92*E92) -> 0 | N92: =IF('Computo-Massimali'!L92>0,L92/'Computo-Massimali'!L92,0) -> 0 | O92: =IF(F92>0,IF(ABS(F92-0.001)>'Computo-Massimali'!F92,">C.",""),"") ->  | P92: .. | Q92: =IF(C92<>"",C92,"") ->  | R92: ='Computo-Massimali'!T92 -> 96000 | S92: =IF(L92>R92,"KO Tot.>Detr.","ok") -> ok | U92: =IF(L92<R92,L92,R92) -> 0 | W92: =IF(L92>R92,L92-R92,0) -> 0 | Y92: =IF(M92<>0,J92*M92/L92,0) -> 0 | AA92: =IF(M92<>0,K92*M92/L92,0) -> 0 | AG92: =Q92 ->  | AH92: ='Computo-Massimali'!BJ92 -> 0 | AI92: ='Computo-Massimali'!BK92 -> 0 | AJ92: ='Computo-Massimali'!BL92 -> 0 | AK92: ='Computo-Massimali'!BM92 -> 0 | AL92: ='Computo-Massimali'!BN92 -> 0 | AM92: =IF(ABS(SUM(AH92:AL92)-H92)>0.01,"err. Somma",IF(AH92>'Computo-Massimali'!BJ92,"Err.1",IF(AI92>'Computo-Massimali'!BK92,"Err.2",IF(AJ92>'Computo-Massimali'!BL92,"Err.3",IF(AK92>'Computo-Massimali'!BM92,"Err.4",IF(AL92>'Computo-Massimali'!BN92,"Err.5","")))))) -> 
C93: TotalI SAL N.1 - Altri Interventi : | F93: =SUM(F89:F92) -> 15000 | G93: =SUM(G89:G92) -> 0 | H93: =SUM(H89:H92) -> 15000 | I93: 1500 | J93: 16500 | K93: 2299.473618 | L93: 18799.47362 | M93: 14099.60521 | N93: =IF('Computo-Massimali'!L93>0,L93/'Computo-Massimali'!L93,0) -> 0.3768844221 | O93: =IF(F93>0,IF(ABS(F93-0.001)>'Computo-Massimali'!F93,">C.",""),"") ->  | R93: =C93 -> TotalI SAL N.1 - Altri Interventi : | U93: =SUM(U89:V92) -> 18799.47362 | W93: =SUM(W89:X92) -> 0 | Y93: =SUM(Y89:Z92) -> 12375 | AA93: =SUM(AA89:AB92) -> 1724.605214 | AG93: =R93 -> TotalI SAL N.1 - Altri Interventi : | AH93: =SUM(AH89:AH92) -> 13500.00098 | AI93: =SUM(AI89:AI92) -> 1499.99902 | AJ93: 0 | AK93: 0 | AL93: 0
C94: Quota a Carico Cliente per Altri Interventi = Eccedenza Spesa Ammessa + (100-x)%·Spesa Ammessa = | L94: =IF((1-E89)*U89+(1-E90)*U90+(1-E91)*U91+(1-E92)*U92>0,W93+(1-E89)*U89+(1-E90)*U90+(1-E91)*U91+(1-E92)*U92,W93) -> 4699.868405
K95: Quota Cedibile = x%·Spesa Ammessa = | L95: =U89*E89+U90*E90+U91*E91+U92*E92 -> 14099.60521 | AG95: ='Computo-Massimali'!BI98 -> Ripartizione tra le Imprese - Imponibile Lavori
C96: TOTALI SAL N.1 | F96: Importo Lavori Eseguiti | G96: Incidenza Sicurezza | H96: Imponibile | I96: Iva | J96: Importo c.iva | K96: Spese tecniche | L96: Totale | M96: Credito Spettante | N96: %SAL | Q96: =C96 -> TOTALI SAL N.1 | U96: Spesa Ammessa | W96: Quota Eccedente Spesa Ammessa | Y96: Credito Spettante Quota Imprese | Quota Tecnici | AG96: =Q96 -> TOTALI SAL N.1 | AH96: =IF('Dati Gen'!$B$38<>"",'Dati Gen'!$B$38,"") -> Impresa1 | AI96: =IF('Dati Gen'!$B$39<>"",'Dati Gen'!$B$39,"") -> Impresa2 | AJ96: =IF('Dati Gen'!$B$40<>"",'Dati Gen'!$B$40,"") -> Impresa3 | AK96: =IF('Dati Gen'!$B$41<>"",'Dati Gen'!$B$41,"") -> Impresa4 | AL96: =IF('Dati Gen'!$B$42<>"",'Dati Gen'!$B$42,"") -> 
F97: =F81+F93 -> 15000 | G97: =G81+G93 -> 0 | H97: 15000 | I97: 1500 | J97: 16500 | K97: 2299.473618 | L97: 18799.47362 | M97: =M81+M93 -> 14099.60521 | N97: =IF('Computo-Massimali'!L100>0,L97/'Computo-Massimali'!L100,0) -> 0.3768844221 | O97: =IF(F97>0,IF(ABS(F97-0.001)>'Computo-Massimali'!F100,">C.",""),"") ->  | U97: =U81+U93 -> 18799.47362 | W97: =W81+W93 -> 0 | Y97: =Y81+Y93 -> 12375 | AA97: =AA81+AA93 -> 1724.605214 | AH97: =AH81+AH93 -> 13500.00098 | AI97: =AI81+AI93 -> 1499.99902 | AJ97: =AJ81+AJ93 -> 0 | AK97: =AK81+AK93 -> 0 | AL97: =AL81+AL93 -> 0
C98: Quota Totale a Carico Cliente = | L98: =L82+L94 -> 4699.868405
C100: =IF(ABS(D5-G97)>0.01,"Importo Effettivo Lavori Eseguiti","") ->  | F100: =IF($C$100<>"",F97,"") ->  | G100: =IF($C$100<>"",G97,"") ->  | H100: =IF($C$100<>"",F100+G100,"") ->  | I100: =IF($C$100<>"",H100*AliqIva,"") ->  | J100: =IF($C$100<>"",H100+I100,"") ->  | K100: =IF($C$100<>"",K97,"") ->  | L100: =IF($C$100<>"",J100+K100,"") ->  | M100: =IF($C$100<>"",L100*percDetr,"") ->  | N100: =IF($C$100<>"",L100/'Computo-Massimali'!L100,"") ->  | R100: ·
C101: =IF($C$100<>"","Oneri/Lavori Sicurezza non imputabili al SAL, per lavori non eseguiti","") ->  | G101: =IF($C$101<>"",D5-G97,"") -> 
C104: Quota % effettiva per cessione credito a Banca o Impresa "Interventi SB." | H104: ='Computo-Massimali'!H104 -> 0.9090909091 | I104: ='Computo-Massimali'!I104 -> 90.90909091 | J104: Importo Ricevuto | K104: =L83*H104 -> 0 | L104: Costo Cess. SB | M104: =IF(L81-L82-K104>0,L81-L82-K104,0) -> 0
G105: Quota % effettiva per cessione credito a Banca o Impresa "Altri Interventi" | H105: ='Computo-Massimali'!H105 -> 1 | I105: ='Computo-Massimali'!I105 -> 100 | J105: Importo Ricevuto | K105: =L95*H105 -> 14099.60521 | L105: Costo Cess. Altri | M105: =IF(L95-K105>0,L95-K105,0) -> 0
F107: Costi Cliente | G107: Quota Imprese | H107: Quota Tecnici | K107: Costi Totali | L107: Quota Imprese | M107: Quota Tecnici
E108: Quota a Carico x Interventi Superbonus | F108: =L82 -> 0 | G108: =IF(Totale30<>0,F108*Import30/Totale30,0) -> 0 | H108: =IF(Totale30<>0,F108*SpeseTec30/Totale30,0) -> 0 | J108: Interventi Superbonus | K108: =Totale30 -> 0 | L108: =IF(Totale30<>0,K108*Import30/Totale30,0) -> 0 | M108: =IF(Totale30<>0,K108*SpeseTec30/Totale30,0) -> 0
E109: Quota a Carico x Altri Interventi | F109: =L94 -> 4699.868405 | G109: =IF(L93<>0,F109*J93/L93,0) -> 4125 | H109: =IF(L93<>0,F109*K93/L93,0) -> 574.8684045 | J109: Altri Interventi | K109: =L93 -> 18799.47362 | L109: =IF(L93<>0,K109*J93/L93,0) -> 16500 | M109: =IF(L93<>0,K109*K93/L93,0) -> 2299.473618
E110: per Cessione Credito Superbonus | F110: =M104 -> 0 | G110: =IF(Totale30<>0,F110*Import30/Totale30,0) -> 0 | H110: =IF(Totale30<>0,F110*SpeseTec30/Totale30,0) -> 0 | J110: Costi Cessione | K110: =F110+F111 -> 0 | L110: =G110+G111 -> 0 | M110: =H110+H111 -> 0
E111: per Cessione Credito Altri Interventi | F111: =M105 -> 0 | G111: =IF(L93<>0,F111*J93/L93,0) -> 0 | H111: =IF(L93<>0,F111*K93/L93,0) -> 0 | J111: Sommano | K111: =SUM(K108:K110) -> 18799.47362 | L111: =SUM(L108:L110) -> 16500 | M111: =SUM(M108:M110) -> 2299.473618
E112: Sommano | F112: =SUM(F108:F111) -> 4699.868405 | G112: =SUM(G108:G111) -> 4125 | H112: =SUM(H108:H111) -> 574.8684045

Sheet SAL.60%
P1: =MATCH("SimMZ",C:C,0) -> 78
C2: ='SAL.30%'!C2 -> Tizio Caio FG.12 P.LLA.510 Sub.4 - Roma | F2: DATI PROGETTO : | G2: IMPONIBILE | H2: IVA | I2: IMPORTO | K2: IMPONIBILE | L2: IVA | M2: IMPORTO | N2: Pratica.SB
C3: STATO AVANZAMENTO LAVORI N.2 | F3: Importo Lavori | G3: ='Dati Gen'!G18 -> 39800 | H3: ='Dati Gen'!K18 -> 3980 | I3: ='Dati Gen'!M18 -> 43780 | J3: Importo Netto | K3: ='Dati Gen'!G20 -> 39800 | L3: ='Dati Gen'!K20 -> 3980 | M3: ='Dati Gen'!M20 -> 43780 | P3: *
C4: 21/12/2023 | F4: Oneri Sicurezza | G4: ='Dati Gen'!G19 -> 0 | H4: ='Dati Gen'!K19 -> 0 | I4: ='Dati Gen'!M19 -> 0 | J4: Spese Tecniche | K4: ='Dati Gen'!G21 -> 6101.26841 | L4: ='Dati Gen'!K21 -> 0 | M4: ='Dati Gen'!M21 -> 6101.26841 | Q4: =IF(Titolare!$B$16="Versione Demo","Versione Demo",IF('Computo-Massimali'!C6<>"","Attenzione! Tabella Computo-Massimali non completa. Si consiglia di completare, prima di registrare Voci di SAL","")) -> Versione Demo
C5: Oneri/Lavori x Sicurezza | D5: 15812.03 | K5: ='Dati Gen'!G22 -> Importo Complessivo Progetto | M5: ='Dati Gen'!M22 -> 49881.26841
C7: INTERVENTI TRAINANTI | O7: .. | Q7: =CONCATENATE("Verifica Massimali di Spesa ",C7) -> Verifica Massimali di Spesa INTERVENTI TRAINANTI | AG7: ='Computo-Massimali'!BI7 -> Ripartizione tra le Imprese - Imponibile Lavori INTERVENTI TRAINANTI | AO7: Ripartizione Spese Tecniche / Lavoro : SAL. N.2 - INTERVENTI SB.
C8: Interventi | F8: Importo Lavori | G8: Incidenza Sicurezza | H8: Imponibile | I8: Iva | J8: Importo c.iva | K8: Spese tecniche | L8: Totale | M8: =CONCATENATE("Credito Spettante ", percDetr*100,"% Spesa Ammessa") -> Credito Spettante 75% Spesa Ammessa | N8: %SAL | Q8: Interventi | R8: Massimale spesa | S8: Verifica Max | U8: Spesa Ammessa | W8: Quota Eccedente Massimale Spesa | Y8: =CONCATENATE("Credito Spettante",CHAR(10), percDetr*100,"% Spesa Ammessa",CHAR(10),"Quota Imprese | Quota Tecnici") -> Credito Spettante 75% Spesa Ammessa Quota Imprese | Quota Tecnici | AG8: Interventi | AH8: =IF('Dati Gen'!$B$38<>"",'Dati Gen'!$B$38,"") -> Impresa1 | AI8: =IF('Dati Gen'!$B$39<>"",'Dati Gen'!$B$39,"") -> Impresa2 | AJ8: =IF('Dati Gen'!$B$40<>"",'Dati Gen'!$B$40,"") -> Impresa3 | AK8: =IF('Dati Gen'!$B$41<>"",'Dati Gen'!$B$41,"") -> Impresa4 | AL8: =IF('Dati Gen'!$B$42<>"",'Dati Gen'!$B$42,"") ->  | AO8: Lavoro | AQ8: Tecnico | AR8: Onorario | AT8: C.Cassa | AV8: Imponibile | AX8: IVA | AZ8: Totale | BB8: Applica Sconto in Fattura | BC8: =IF(ABS(SUM(AZ9:AZ17)-AZ18)>0.01,CONCATENATE("Errore: ",CHAR(10),"Somma Ripartizione Totale SB =",ROUND(SUM(AZ9:AZ17),2), " €. <> ",CHAR(10),"Totale Spese Tecniche =",ROUND(AZ18,2)," €."),"") -> 
C9: ='Computo-Massimali'!C9 -> PV) Isolamento pareti perimetrali | E9: ='Computo-Massimali'!E9 -> Esterno | F9: 0 | G9: =IF('Computo-Massimali'!F9<>0,'Computo-Massimali'!G9*F9/'Computo-Massimali'!F9,0) -> 0 | H9: =SUM(F9:G9) -> 0 | I9: =IF(('Computo-Massimali'!F9+'Computo-Massimali'!G9)<>0,'Computo-Massimali'!I9/('Computo-Massimali'!F9+'Computo-Massimali'!G9)*H9,0) -> 0 | J9: =H9+I9 -> 0 | K9: =IF('Computo-Massimali'!F9<>0,'Computo-Massimali'!K9*F9/'Computo-Massimali'!F9,0) -> 0 | L9: =SUM(J9:K9) -> 0 | M9: =IF(L9<=R9,L9*percDetr,R9*percDetr) -> 0 | N9: =IF('Computo-Massimali'!L9>0,L9/'Computo-Massimali'!L9,0) -> 0 | O9: =IF(F9>0,IF(F9-0.001>'Computo-Massimali'!F9,">C.",IF(F9+0.001<'SAL.30%'!F9,"<S1","")),"") ->  | P9: .. | Q9: =C9 -> PV) Isolamento pareti perimetrali | R9: ='Computo-Massimali'!T9 -> 0 | S9: =IF(L9>R9,"ko","ok") -> ok | U9: =IF(L13<>0,(L9/L13)*U13,0) -> 0 | W9: =IF(L9>R9,L9-R9,0) -> 0 | Y9: =IF(M9<>0,J9*M9/L9,0) -> 0 | AA9: =IF(M9<>0,K9*M9/L9,0) -> 0 | AG9: =Q9 -> PV) Isolamento pareti perimetrali | AH9: 0 | AI9: 0 | AJ9: 0 | AK9: 0 | AL9: 0 | AM9: =IF(ABS(SUM(AH9:AL9)-H9)>0.01,"err. Somma",IF(AH9>'Computo-Massimali'!BJ9,"Err.1",IF(AI9>'Computo-Massimali'!BK9,"Err.2",IF(AJ9>'Computo-Massimali'!BL9,"Err.3",IF(AK9>'Computo-Massimali'!BM9,"Err.4",IF(AL9>'Computo-Massimali'!BN9,"Err.5","")))))) ->  | AO9: =IF('Dati Gen'!$B$25<>"",'Dati Gen'!$B$25,"") -> Progettazione Architettonica, strutturale, Dir.Lav. Misure e contabilità | AQ9: =IF('Dati Gen'!$C$25<>"",'Dati Gen'!$C$25,"") -> Tecnico1 | AR9: =AV9/(1+AT9) -> 0 | AT9: ='Dati Gen'!G25 -> 0.04 | AU9: =AR9*AT9 -> 0 | AV9: =AZ9/(1+AX9) -> 0 | AX9: ='Dati Gen'!J25 -> 0.22 | AY9: =AX9*(AR9+AU9) -> 0 | AZ9: =IF('Dati Gen'!$M$36<>0,$AZ$18*'Dati Gen'!M25/'Dati Gen'!$M$36,0) -> 0 | BB9: =IF(AQ9<>"",VLOOKUP(AQ9,'Dati Gen'!$B$44:$D$51,3,0),"") -> NO
C10: ='Computo-Massimali'!C10 -> PO) Isolamento coperture | E10: ='Computo-Massimali'!E10 -> Esterno | F10: 0 | G10: =IF('Computo-Massimali'!F10<>0,'Computo-Massimali'!G10*F10/'Computo-Massimali'!F10,0) -> 0 | H10: =SUM(F10:G10) -> 0 | I10: =IF(('Computo-Massimali'!F10+'Computo-Massimali'!G10)<>0,'Computo-Massimali'!I10/('Computo-Massimali'!F10+'Computo-Massimali'!G10)*H10,0) -> 0 | J10: =H10+I10 -> 0 | K10: =IF('Computo-Massimali'!F10<>0,'Computo-Massimali'!K10*F10/'Computo-Massimali'!F10,0) -> 0 | L10: =SUM(J10:K10) -> 0 | M10: =IF(L10<=R10,L10*percDetr,R10*percDetr) -> 0 | N10: =IF('Computo-Massimali'!L10>0,L10/'Computo-Massimali'!L10,0) -> 0 | O10: =IF(F10>0,IF(F10-0.001>'Computo-Massimali'!F10,">C.",IF(F10+0.001<'SAL.30%'!F10,"<S1","")),"") ->  | P10: .. | Q10: PO) Isolamento coperture | R10: ='Computo-Massimali'!T10 -> 0 | S10: =IF(L10>R10,"ko","ok") -> ok | U10: =IF(L13<>0,(L10/L13)*U13,0) -> 0 | W10: 0 | Y10: 0 | AA10: 0 | AG10: PO) Isolamento coperture | AH10: 0 | AI10: 0 | AJ10: 0 | AK10: 0 | AL10: 0 | AM10: =IF(ABS(SUM(AH10:AL10)-H10)>0.01,"err. Somma",IF(AH10>'Computo-Massimali'!BJ10,"Err.1",IF(AI10>'Computo-Massimali'!BK10,"Err.2",IF(AJ10>'Computo-Massimali'!BL10,"Err.3",IF(AK10>'Computo-Massimali'!BM10,"Err.4",IF(AL10>'Computo-Massimali'!BN10,"Err.5","")))))) ->  | AO10: =IF('Dati Gen'!$B$26<>"",'Dati Gen'!$B$26,"") ->  | AQ10: =IF('Dati Gen'!$C$26<>"",'Dati Gen'!$C$26,"") ->  | AR10: =AV10/(1+AT10) -> 0 | AT10: ='Dati Gen'!G26 -> 0.04 | AU10: 0 | AV10: =AZ10/(1+AX10) -> 0 | AX10: ='Dati Gen'!J26 -> 0.22 | AY10: =(AR10+AU10)*AX10 -> 0 | AZ10: =IF('Dati Gen'!$M$36<>0,$AZ$18*'Dati Gen'!M26/'Dati Gen'!$M$36,0) -> 0 | BB10: =IF(AQ10<>"",VLOOKUP(AQ10,'Dati Gen'!$B$44:$D$51,3,0),"") -> 
C11: ='Computo-Massimali'!C11 -> POND) Isol. coperture non disperdenti | E11: ='Computo-Massimali'!E11 -> Esterno | F11: 0 | G11: =IF('Computo-Massimali'!F11<>0,'Computo-Massimali'!G11*F11/'Computo-Massimali'!F11,0) -> 0 | H11: =SUM(F11:G11) -> 0 | I11: =IF(('Computo-Massimali'!F11+'Computo-Massimali'!G11)<>0,'Computo-Massimali'!I11/('Computo-Massimali'!F11+'Computo-Massimali'!G11)*H11,0) -> 0 | J11: =H11+I11 -> 0 | K11: =IF('Computo-Massimali'!F11<>0,'Computo-Massimali'!K11*F11/'Computo-Massimali'!F11,0) -> 0 | L11: =SUM(J11:K11) -> 0 | M11: 0 | N11: =IF('Computo-Massimali'!L11>0,L11/'Computo-Massimali'!L11,0) -> 0 | O11: =IF(F11>0,IF(F11-0.001>'Computo-Massimali'!F11,">C.",IF(F11+0.001<'SAL.30%'!F11,"<S1","")),"") ->  | P11: .. | Q11: POND) Isol. coperture non disperdenti | R11: ='Computo-Massimali'!T11 -> 0 | S11: ok | U11: =IF(L13<>0,(L11/L13)*U13,0) -> 0 | W11: 0 | Y11: 0 | AA11: 0 | AG11: POND) Isol. coperture non disperdenti | AH11: 0 | AI11: 0 | AJ11: 0 | AK11: 0 | AL11: 0 | AM11: =IF(ABS(SUM(AH11:AL11)-H11)>0.01,"err. Somma",IF(AH11>'Computo-Massimali'!BJ11,"Err.1",IF(AI11>'Computo-Massimali'!BK11,"Err.2",IF(AJ11>'Computo-Massimali'!BL11,"Err.3",IF(AK11>'Computo-Massimali'!BM11,"Err.4",IF(AL11>'Computo-Massimali'!BN11,"Err.5","")))))) ->  | AO11: =IF('Dati Gen'!$B$27<>"",'Dati Gen'!$B$27,"") ->  | AQ11: =IF('Dati Gen'!$C$27<>"",'Dati Gen'!$C$27,"") ->  | AR11: 0 | AT11: ='Dati Gen'!G27 -> 0.04 | AU11: 0 | AV11: 0 | AX11: ='Dati Gen'!J27 -> 0 | AY11: 0 | AZ11: =IF('Dati Gen'!$M$36<>0,$AZ$18*'Dati Gen'!M27/'Dati Gen'!$M$36,0) -> 0 | BB11: =IF(AQ11<>"",VLOOKUP(AQ11,'Dati Gen'!$B$44:$D$51,3,0),"") -> 
C12: ='Computo-Massimali'!C12 -> PS) Isolamento Pavimenti | E12: ='Computo-Massimali'!E12 -> Interno/terreno | F12: 0 | G12: =IF('Computo-Massimali'!F12<>0,'Computo-Massimali'!G12*F12/'Computo-Massimali'!F12,0) -> 0 | H12: =SUM(F12:G12) -> 0 | I12: =IF(('Computo-Massimali'!F12+'Computo-Massimali'!G12)<>0,'Computo-Massimali'!I12/('Computo-Massimali'!F12+'Computo-Massimali'!G12)*H12,0) -> 0 | J12: =H12+I12 -> 0 | K12: =IF('Computo-Massimali'!F12<>0,'Computo-Massimali'!K12*F12/'Computo-Massimali'!F12,0) -> 0 | L12: =SUM(J12:K12) -> 0 | M12: 0 | N12: =IF('Computo-Massimali'!L12>0,L12/'Computo-Massimali'!L12,0) -> 0 | O12: =IF(F12>0,IF(F12-0.001>'Computo-Massimali'!F12,">C.",IF(F12+0.001<'SAL.30%'!F12,"<S1","")),"") ->  | P12: .. | Q12: PS) Isolamento Pavimenti | R12: ='Computo-Massimali'!T12 -> 0 | S12: ok | U12: =IF(L13<>0,(L12/L13)*U13,0) -> 0 | W12: 0 | Y12: 0 | AA12: 0 | AG12: PS) Isolamento Pavimenti | AH12: 0 | AI12: 0 | AJ12: 0 | AK12: 0 | AL12: 0 | AM12: =IF(ABS(SUM(AH12:AL12)-H12)>0.01,"err. Somma",IF(AH12>'Computo-Massimali'!BJ12,"Err.1",IF(AI12>'Computo-Massimali'!BK12,"Err.2",IF(AJ12>'Computo-Massimali'!BL12,"Err.3",IF(AK12>'Computo-Massimali'!BM12,"Err.4",IF(AL12>'Computo-Massimali'!BN12,"Err.5","")))))) ->  | AO12: =IF('Dati Gen'!$B$28<>"",'Dati Gen'!$B$28,"") ->  | AQ12: =IF('Dati Gen'!$C$28<>"",'Dati Gen'!$C$28,"") ->  | AR12: 0 | AT12: ='Dati Gen'!G28 -> 0.04 | AU12: 0 | AV12: 0 | AX12: ='Dati Gen'!J28 -> 0.22 | AY12: 0 | AZ12: =IF('Dati Gen'!$M$36<>0,$AZ$18*'Dati Gen'!M28/'Dati Gen'!$M$36,0) -> 0 | BB12: =IF(AQ12<>"",VLOOKUP(AQ12,'Dati Gen'!$B$44:$D$51,3,0),"") -> 
C13: ='Computo-Massimali'!C13 -> Totali Isolamento PV) PO) POND) PS) | F13: =SUM(F9:F12) -> 0 | G13: =SUM(G9:G12) -> 0 | H13: =SUM(H9:H12) -> 0 | I13: 0 | J13: 0 | K13: 0 | L13: 0 | M13: 0 | N13: =IF('Computo-Massimali'!L13>0,L13/'Computo-Massimali'!L13,0) -> 0 | O13: =IF(F13>0,IF(F13-0.001>'Computo-Massimali'!F13,">C.",IF(F13+0.001<'SAL.30%'!F13,"<S1","")),"") ->  | Q13: Totali Isolamento PV) PO) POND) PS) | R13: ='Computo-Massimali'!T13 -> 0 | S13: ok | U13: =IF(L13<R13,L13,R13) -> 0 | W13: 0 | Y13: 0 | AA13: 0 | AG13: Totali Isolamento PV) PO) POND) PS) | AH13: =SUM(AH9:AH12) -> 0 | AI13: =SUM(AI9:AI12) -> 0 | AJ13: =SUM(AJ9:AJ12) -> 0 | AK13: =SUM(AK9:AK12) -> 0 | AL13: =SUM(AL9:AL12) -> 0 | AO13: =IF('Dati Gen'!$B$29<>"",'Dati Gen'!$B$29,"") ->  | AQ13: =IF('Dati Gen'!$C$29<>"",'Dati Gen'!$C$29,"") ->  | AR13: =AV13/(1+AT13) -> 0 | AT13: ='Dati Gen'!G29 -> 0.04 | AU13: 0 | AV13: 0 | AX13: ='Dati Gen'!J29 -> 0.22 | AY13: 0 | AZ13: =IF('Dati Gen'!$M$36<>0,$AZ$18*'Dati Gen'!M29/'Dati Gen'!$M$36,0) -> 0 | BB13: =IF(AQ13<>"",VLOOKUP(AQ13,'Dati Gen'!$B$44:$D$51,3,0),"") -> 
C14: =CONCATENATE('Computo-Massimali'!C14," con ",'Computo-Massimali'!D14) -> Impianti climatizzazione e ACS con PC)Aria/Aria | F14: 0 | G14: =IF('Computo-Massimali'!F14<>0,'Computo-Massimali'!G14*F14/'Computo-Massimali'!F14,0) -> 0 | H14: =SUM(F14:G14) -> 0 | I14: =IF(('Computo-Massimali'!F14+'Computo-Massimali'!G14)<>0,'Computo-Massimali'!I14/('Computo-Massimali'!F14+'Computo-Massimali'!G14)*H14,0) -> 0 | J14: =H14+I14 -> 0 | K14: =IF('Computo-Massimali'!F14<>0,'Computo-Massimali'!K14*F14/'Computo-Massimali'!F14,0) -> 0 | L14: =SUM(J14:K14) -> 0 | M14: 0 | N14: =IF('Computo-Massimali'!L14>0,L14/'Computo-Massimali'!L14,0) -> 0 | O14: =IF(F14>0,IF(F14-0.001>'Computo-Massimali'!F14,">C.",IF(F14+0.001<'SAL.30%'!F14,"<S1","")),"") ->  | P14: .. | Q14: Impianti climatizzazione e ACS con PC)Aria/Aria | R14: ='Computo-Massimali'!T14 -> 0 | S14: ok | U14: =IF(L14<R14,L14,R14) -> 0 | W14: 0 | Y14: 0 | AA14: 0 | AG14: Impianti climatizzazione e ACS con PC)Aria/Aria | AH14: 0 | AI14: 0 | AJ14: 0 | AK14: 0 | AL14: 0 | AM14: =IF(ABS(SUM(AH14:AL14)-H14)>0.01,"err. Somma",IF(AH14>'Computo-Massimali'!BJ14,"Err.1",IF(AI14>'Computo-Massimali'!BK14,"Err.2",IF(AJ14>'Computo-Massimali'!BL14,"Err.3",IF(AK14>'Computo-Massimali'!BM14,"Err.4",IF(AL14>'Computo-Massimali'!BN14,"Err.5","")))))) ->  | AO14: =IF('Dati Gen'!$B$30<>"",'Dati Gen'!$B$30,"") ->  | AQ14: =IF('Dati Gen'!$C$30<>"",'Dati Gen'!$C$30,"") ->  | AR14: =AV14/(1+AT14) -> 0 | AT14: ='Dati Gen'!G30 -> 0.04 | AU14: 0 | AV14: 0 | AX14: ='Dati Gen'!J30 -> 0.22 | AY14: 0 | AZ14: =IF('Dati Gen'!$M$36<>0,$AZ$18*'Dati Gen'!M30/'Dati Gen'!$M$36,0) -> 0 | BB14: =IF(AQ14<>"",VLOOKUP(AQ14,'Dati Gen'!$B$44:$D$51,3,0),"") -> 
C15: =CONCATENATE('Computo-Massimali'!C15,'Computo-Massimali'!E15) -> SismaBonus Zona 1,2 o 3 P.Classi = 1 | F15: 0 | G15: =IF('Computo-Massimali'!F15<>0,'Computo-Massimali'!G15*F15/'Computo-Massimali'!F15,0) -> 0 | H15: =SUM(F15:G15) -> 0 | I15: =IF(('Computo-Massimali'!F15+'Computo-Massimali'!G15)<>0,'Computo-Massimali'!I15/('Computo-Massimali'!F15+'Computo-Massimali'!G15)*H15,0) -> 0 | J15: =H15+I15 -> 0 | K15: =IF('Computo-Massimali'!F15<>0,'Computo-Massimali'!K15*F15/'Computo-Massimali'!F15,0) -> 0 | L15: =SUM(J15:K15) -> 0 | M15: 0 | N15: =IF('Computo-Massimali'!L15>0,L15/'Computo-Massimali'!L15,0) -> 0 | O15: =IF(F15>0,IF(F15-0.001>'Computo-Massimali'!F15,">C.",IF(F15+0.001<'SAL.30%'!F15,"<S1","")),"") ->  | P15: .. | Q15: SismaBonus Zona 1,2 o 3 P.Classi = 1 | R15: ='Computo-Massimali'!T15 -> 96000 | S15: ok | U15: =IF(L15<R15,L15,R15) -> 0 | W15: 0 | Y15: 0 | AA15: 0 | AG15: SismaBonus Zona 1,2 o 3 P.Classi = 1 | AH15: 0 | AI15: 0 | AJ15: 0 | AK15: 0 | AL15: 0 | AM15: =IF(ABS(SUM(AH15:AL15)-H15)>0.01,"err. Somma",IF(AH15>'Computo-Massimali'!BJ15,"Err.1",IF(AI15>'Computo-Massimali'!BK15,"Err.2",IF(AJ15>'Computo-Massimali'!BL15,"Err.3",IF(AK15>'Computo-Massimali'!BM15,"Err.4",IF(AL15>'Computo-Massimali'!BN15,"Err.5","")))))) ->  | AO15: =IF('Dati Gen'!$B$31<>"",'Dati Gen'!$B$31,"") ->  | AQ15: =IF('Dati Gen'!$C$31<>"",'Dati Gen'!$C$31,"") ->  | AR15: 0 | AT15: ='Dati Gen'!G31 -> 0.04 | AU15: 0 | AV15: 0 | AX15: ='Dati Gen'!J31 -> 0.22 | AY15: 0 | AZ15: =IF('Dati Gen'!$M$36<>0,$AZ$18*'Dati Gen'!M31/'Dati Gen'!$M$36,0) -> 0 | BB15: =IF(AQ15<>"",VLOOKUP(AQ15,'Dati Gen'!$B$44:$D$51,3,0),"") -> 
C16: ='Computo-Massimali'!C16 -> Totale interventi Trainanti : | F16: =IF(Titolare!$B$16="Versione Demo",0,SUM(F13:F15)) -> 0 | G16: =SUM(G13:G15) -> 0 | H16: 0 | I16: 0 | J16: 0 | K16: 0 | L16: 0 | M16: =SUM(M13:M15) -> 0 | N16: =IF('Computo-Massimali'!L16>0,L16/'Computo-Massimali'!L16,0) -> 0 | O16: =IF(F16>0,IF(F16-0.001>'Computo-Massimali'!F16,">C.",IF(F16+0.001<'SAL.30%'!F16,"<S1","")),"") ->  | R16: =C16 -> Totale interventi Trainanti : | U16: =SUM(U13:V15) -> 0 | W16: =SUM(W13:X15) -> 0 | Y16: =SUM(Y13:Z15) -> 0 | AA16: =SUM(AA13:AB15) -> 0 | AG16: =R16 -> Totale interventi Trainanti : | AH16: =SUM(AH13:AH15) -> 0 | AI16: =SUM(AI13:AI15) -> 0 | AJ16: =SUM(AJ13:AJ15) -> 0 | AK16: =SUM(AK13:AK15) -> 0 | AL16: =SUM(AL13:AL15) -> 0 | AO16: =IF('Dati Gen'!$B$32<>"",'Dati Gen'!$B$32,"") ->  | AQ16: =IF('Dati Gen'!$C$32<>"",'Dati Gen'!$C$32,"") ->  | AR16: 0 | AT16: ='Dati Gen'!G32 -> 0.04 | AU16: 0 | AV16: 0 | AX16: ='Dati Gen'!J32 -> 0.22 | AY16: 0 | AZ16: =IF('Dati Gen'!$M$36<>0,$AZ$18*'Dati Gen'!M32/'Dati Gen'!$M$36,0) -> 0 | BB16: =IF(AQ16<>"",VLOOKUP(AQ16,'Dati Gen'!$B$44:$D$51,3,0),"") -> 
AO17: =IF('Dati Gen'!$B$35<>"",'Dati Gen'!$B$35,"") -> Visto Conformità | AQ17: =IF('Dati Gen'!$C$35<>"",'Dati Gen'!$C$35,"") -> Consulente | AR17: 0 | AT17: ='Dati Gen'!G35 -> 0.04 | AU17: 0 | AV17: 0 | AX17: ='Dati Gen'!J35 -> 0.22 | AY17: 0 | AZ17: =IF('Dati Gen'!$M$36<>0,$AZ$18*'Dati Gen'!M35/'Dati Gen'!$M$36,0) -> 0 | BB17: =IF(AQ17<>"",VLOOKUP(AQ17,'Dati Gen'!$B$44:$D$51,3,0),"") -> NO
C18: INTERVENTI TRAINATI PARTI COMUNI CONDOMINIALI | O18: .. | Q18: =CONCATENATE("Verifica Massimali di Spesa ",C18) -> Verifica Massimali di Spesa INTERVENTI TRAINATI PARTI COMUNI CONDOMINIALI | AG18: ='Computo-Massimali'!BI18 -> Ripartizione tra le Imprese - Imponibile Lavori INTERVENTI TRAINATI PARTI COMUNI CONDOMINIALI | AR18: =SUM(AR9:AS17) -> 0 | AT18: =SUM(AU9:AU17) -> 0 | AV18: =SUM(AV9:AW17) -> 0 | AY18: =SUM(AY9:AY17) -> 0 | AZ18: =K81 -> 0
C19: Interventi | F19: Importo Lavori | G19: Incidenza Sicurezza | H19: Imponibile | I19: Iva | J19: Importo c.iva | K19: Spese tecniche | L19: Totale | M19: =$M$8 -> Credito Spettante 75% Spesa Ammessa | N19: %SAL | Q19: Interventi | R19: Massimale spesa | S19: Verifica Max | U19: Spesa Ammessa | W19: Quota Eccedente Massimale Spesa | Y19: =$Y$8 -> Credito Spettante 75% Spesa Ammessa Quota Imprese | Quota Tecnici | AG19: Interventi | AH19: =IF('Dati Gen'!$B$38<>"",'Dati Gen'!$B$38,"") -> Impresa1 | AI19: =IF('Dati Gen'!$B$39<>"",'Dati Gen'!$B$39,"") -> Impresa2 | AJ19: =IF('Dati Gen'!$B$40<>"",'Dati Gen'!$B$40,"") -> Impresa3 | AK19: =IF('Dati Gen'!$B$41<>"",'Dati Gen'!$B$41,"") -> Impresa4 | AL19: =IF('Dati Gen'!$B$42<>"",'Dati Gen'!$B$42,"") ->  | AO19: Ripartizione Spese Tecniche / Professionista : SAL. N.2 - INTERVENTI SB.
C20: ='Computo-Massimali'!C20 -> PV) Isolamento pareti perimetrali | E20: ='Computo-Massimali'!E20 -> Esterno | F20: 0 | G20: =IF('Computo-Massimali'!F20<>0,'Computo-Massimali'!G20*F20/'Computo-Massimali'!F20,0) -> 0 | H20: =SUM(F20:G20) -> 0 | I20: =IF(('Computo-Massimali'!F20+'Computo-Massimali'!G20)<>0,'Computo-Massimali'!I20/('Computo-Massimali'!F20+'Computo-Massimali'!G20)*H20,0) -> 0 | J20: =H20+I20 -> 0 | K20: =IF('Computo-Massimali'!F20<>0,'Computo-Massimali'!K20*F20/'Computo-Massimali'!F20,0) -> 0 | L20: =SUM(J20:K20) -> 0 | M20: =IF(L20<=R20,L20*percDetr,R20*percDetr) -> 0 | N20: =IF('Computo-Massimali'!L20>0,L20/'Computo-Massimali'!L20,0) -> 0 | O20: =IF(F20>0,IF(F20-0.001>'Computo-Massimali'!F20,">C.",IF(F20+0.001<'SAL.30%'!F20,"<S1","")),"") ->  | P20: .. | Q20: =C20 -> PV) Isolamento pareti perimetrali | R20: ='Computo-Massimali'!T20 -> 0 | S20: =IF(L20>R20,"ko","ok") -> ok | U20: =IF(L24<>0,(L20/L24)*U24,0) -> 0 | W20: =IF(L20>R20,L20-R20,0) -> 0 | Y20: =IF(M20<>0,J20*M20/L20,0) -> 0 | AA20: =IF(M20<>0,K20*M20/L20,0) -> 0 | AG20: =Q20 -> PV) Isolamento pareti perimetrali | AH20: 0 | AI20: 0 | AJ20: 0 | AK20: 0 | AL20: 0 | AM20: =IF(ABS(SUM(AH20:AL20)-H20)>0.01,"err. Somma",IF(AH20>'Computo-Massimali'!BJ20,"Err.1",IF(AI20>'Computo-Massimali'!BK20,"Err.2",IF(AJ20>'Computo-Massimali'!BL20,"Err.3",IF(AK20>'Computo-Massimali'!BM20,"Err.4",IF(AL20>'Computo-Massimali'!BN20,"Err.5","")))))) ->  | AO20: =IF('Dati Gen'!$B$44<>"",'Dati Gen'!$B$44,"") -> Tecnico1 | AP20: =IF('Dati Gen'!$B$45<>"",'Dati Gen'!$B$45,"") -> Tecnico2 | AQ20: =IF('Dati Gen'!$B$46<>"",'Dati Gen'!$B$46,"") -> Consulente | AR20: =IF('Dati Gen'!$B$47<>"",'Dati Gen'!$B$47,"") ->  | AT20: =IF('Dati Gen'!$B$48<>"",'Dati Gen'!$B$48,"") ->  | AV20: =IF('Dati Gen'!$B$49<>"",'Dati Gen'!$B$49,"") ->  | AX20: =IF('Dati Gen'!$B$50<>"",'Dati Gen'!$B$50,"") ->  | AZ20: =IF('Dati Gen'!$B$51<>"",'Dati Gen'!$B$51,"") -> 
C21: ='Computo-Massimali'!C21 -> PO) Isolamento coperture | E21: ='Computo-Massimali'!E21 -> Esterno | F21: 0 | G21: =IF('Computo-Massimali'!F21<>0,'Computo-Massimali'!G21*F21/'Computo-Massimali'!F21,0) -> 0 | H21: =SUM(F21:G21) -> 0 | I21: =IF(('Computo-Massimali'!F21+'Computo-Massimali'!G21)<>0,'Computo-Massimali'!I21/('Computo-Massimali'!F21+'Computo-Massimali'!G21)*H21,0) -> 0 | J21: =H21+I21 -> 0 | K21: =IF('Computo-Massimali'!F21<>0,'Computo-Massimali'!K21*F21/'Computo-Massimali'!F21,0) -> 0 | L21: =SUM(J21:K21) -> 0 | M21: =IF(L21<=R21,L21*percDetr,R21*percDetr) -> 0 | N21: =IF('Computo-Massimali'!L21>0,L21/'Computo-Massimali'!L21,0) -> 0 | O21: =IF(F21>0,IF(F21-0.001>'Computo-Massimali'!F21,">C.",IF(F21+0.001<'SAL.30%'!F21,"<S1","")),"") ->  | P21: .. | Q21: PO) Isolamento coperture | R21: ='Computo-Massimali'!T21 -> 0 | S21: ok | U21: =IF(L24<>0,(L21/L24)*U24,0) -> 0 | W21: 0 | Y21: 0 | AA21: 0 | AG21: PO) Isolamento coperture | AH21: 0 | AI21: 0 | AJ21: 0 | AK21: 0 | AL21: 0 | AM21: =IF(ABS(SUM(AH21:AL21)-H21)>0.01,"err. Somma",IF(AH21>'Computo-Massimali'!BJ21,"Err.1",IF(AI21>'Computo-Massimali'!BK21,"Err.2",IF(AJ21>'Computo-Massimali'!BL21,"Err.3",IF(AK21>'Computo-Massimali'!BM21,"Err.4",IF(AL21>'Computo-Massimali'!BN21,"Err.5","")))))) ->  | AO21: =IF($AQ9=AO$20,$AZ9,0) -> 0 | AP21: =IF($AQ9=AP$20,$AZ9,0) -> 0 | AQ21: 0 | AR21: =IF($AQ9=AR$20,$AZ9,0) -> 0 | AT21: =IF($AQ9=AT$20,$AZ9,0) -> 0 | AV21: =IF($AQ9=AV$20,$AZ9,0) -> 0 | AX21: =IF($AQ9=AX$20,$AZ9,0) -> 0 | AZ21: =IF($AQ9=AZ$20,$AZ9,0) -> 0
C22: ='Computo-Massimali'!C22 -> PS) Isolamento Pavimenti | E22: ='Computo-Massimali'!E22 -> Interno/terreno | F22: 0 | G22: =IF('Computo-Massimali'!F22<>0,'Computo-Massimali'!G22*F22/'Computo-Massimali'!F22,0) -> 0 | H22: =SUM(F22:G22) -> 0 | I22: =IF(('Computo-Massimali'!F22+'Computo-Massimali'!G22)<>0,'Computo-Massimali'!I22/('Computo-Massimali'!F22+'Computo-Massimali'!G22)*H22,0) -> 0 | J22: =H22+I22 -> 0 | K22: =IF('Computo-Massimali'!F22<>0,'Computo-Massimali'!K22*F22/'Computo-Massimali'!F22,0) -> 0 | L22: =SUM(J22:K22) -> 0 | M22: =IF(L22<=R22,L22*percDetr,R22*percDetr) -> 0 | N22: =IF('Computo-Massimali'!L22>0,L22/'Computo-Massimali'!L22,0) -> 0 | O22: =IF(F22>0,IF(F22-0.001>'Computo-Massimali'!F22,">C.",IF(F22+0.001<'SAL.30%'!F22,"<S1","")),"") ->  | P22: .. | Q22: PS) Isolamento Pavimenti | R22: ='Computo-Massimali'!T22 -> 0 | S22: ok | U22: =IF(L24<>0,(L22/L24)*U24,0) -> 0 | W22: 0 | Y22: 0 | AA22: 0 | AG22: PS) Isolamento Pavimenti | AH22: 0 | AI22: 0 | AJ22: 0 | AK22: 0 | AL22: 0 | AM22: =IF(ABS(SUM(AH22:AL22)-H22)>0.01,"err. Somma",IF(AH22>'Computo-Massimali'!BJ22,"Err.1",IF(AI22>'Computo-Massimali'!BK22,"Err.2",IF(AJ22>'Computo-Massimali'!BL22,"Err.3",IF(AK22>'Computo-Massimali'!BM22,"Err.4",IF(AL22>'Computo-Massimali'!BN22,"Err.5","")))))) ->  | AO22: =IF($AQ10=AO$20,$AZ10,0) -> 0 | AP22: 0 | AQ22: 0 | AR22: =IF($AQ10=AR$20,$AZ10,0) -> 0 | AT22: =IF($AQ10=AT$20,$AZ10,0) -> 0 | AV22: =IF($AQ10=AV$20,$AZ10,0) -> 0 | AX22: =IF($AQ10=AX$20,$AZ10,0) -> 0 | AZ22: =IF($AQ10=AZ$20,$AZ10,0) -> 0
C23: ='Computo-Massimali'!C23 -> IN) Serramenti con chiusure oscuranti | E23: ='Computo-Massimali'!E23 -> Zone D, E ed F | F23: 0 | G23: =IF('Computo-Massimali'!F23<>0,'Computo-Massimali'!G23*F23/'Computo-Massimali'!F23,0) -> 0 | H23: =SUM(F23:G23) -> 0 | I23: =IF(('Computo-Massimali'!F23+'Computo-Massimali'!G23)<>0,'Computo-Massimali'!I23/('Computo-Massimali'!F23+'Computo-Massimali'!G23)*H23,0) -> 0 | J23: =H23+I23 -> 0 | K23: =IF('Computo-Massimali'!F23<>0,'Computo-Massimali'!K23*F23/'Computo-Massimali'!F23,0) -> 0 | L23: =SUM(J23:K23) -> 0 | M23: =IF(L23<=R23,L23*percDetr,R23*percDetr) -> 0 | N23: =IF('Computo-Massimali'!L23>0,L23/'Computo-Massimali'!L23,0) -> 0 | O23: =IF(F23>0,IF(F23-0.001>'Computo-Massimali'!F23,">C.",IF(F23+0.001<'SAL.30%'!F23,"<S1","")),"") ->  | P23: .. | Q23: IN) Serramenti con chiusure oscuranti | R23: ='Computo-Massimali'!T23 -> 0 | S23: ok | U23: =IF(L24<>0,(L23/L24)*U24,0) -> 0 | W23: 0 | Y23: 0 | AA23: 0 | AG23: IN) Serramenti con chiusure oscuranti | AH23: 0 | AI23: 0 | AJ23: 0 | AK23: 0 | AL23: 0 | AM23: =IF(ABS(SUM(AH23:AL23)-H23)>0.01,"err. Somma",IF(AH23>'Computo-Massimali'!BJ23,"Err.1",IF(AI23>'Computo-Massimali'!BK23,"Err.2",IF(AJ23>'Computo-Massimali'!BL23,"Err.3",IF(AK23>'Computo-Massimali'!BM23,"Err.4",IF(AL23>'Computo-Massimali'!BN23,"Err.5","")))))) ->  | AO23: =IF($AQ11=AO$20,$AZ11,0) -> 0 | AP23: 0 | AQ23: 0 | AR23: 0 | AT23: =IF($AQ11=AT$20,$AZ11,0) -> 0 | AV23: 0 | AX23: 0 | AZ23: 0
C24: ='Computo-Massimali'!C24 -> Totali Isolamento PV) PO) PS) e IN) | F24: =SUM(F20:F23) -> 0 | G24: =SUM(G20:G23) -> 0 | H24: =SUM(H20:H23) -> 0 | I24: 0 | J24: 0 | K24: =SUM(K20:K23) -> 0 | L24: 0 | M24: 0 | N24: =IF('Computo-Massimali'!L24>0,L24/'Computo-Massimali'!L24,0) -> 0 | O24: =IF(F24>0,IF(F24-0.001>'Computo-Massimali'!F24,">C.",IF(F24+0.001<'SAL.30%'!F24,"<S1","")),"") ->  | Q24: Totali Isolamento PV) PO) PS) e IN) | R24: ='Computo-Massimali'!T24 -> 0 | S24: ok | U24: =IF(L24<R24,L24,R24) -> 0 | W24: 0 | Y24: 0 | AA24: 0 | AG24: Totali Isolamento PV) PO) PS) e IN) | AH24: =SUM(AH20:AH23) -> 0 | AI24: =SUM(AI20:AI23) -> 0 | AJ24: =SUM(AJ20:AJ23) -> 0 | AK24: =SUM(AK20:AK23) -> 0 | AL24: =SUM(AL20:AL23) -> 0 | AO24: =IF($AQ12=AO$20,$AZ12,0) -> 0 | AP24: =IF($AQ12=AP$20,$AZ12,0) -> 0 | AQ24: 0 | AR24: 0 | AT24: 0 | AV24: 0 | AX24: 0 | AZ24: 0
C25: ='Computo-Massimali'!C25 -> SS) Schermature solari e chiusure oscuranti | F25: 0 | G25: =IF('Computo-Massimali'!F25<>0,'Computo-Massimali'!G25*F25/'Computo-Massimali'!F25,0) -> 0 | H25: =SUM(F25:G25) -> 0 | I25: =IF(('Computo-Massimali'!F25+'Computo-Massimali'!G25)<>0,'Computo-Massimali'!I25/('Computo-Massimali'!F25+'Computo-Massimali'!G25)*H25,0) -> 0 | J25: =H25+I25 -> 0 | K25: =IF('Computo-Massimali'!F25<>0,'Computo-Massimali'!K25*F25/'Computo-Massimali'!F25,0) -> 0 | L25: =SUM(J25:K25) -> 0 | M25: =IF(L25<=R25,L25*percDetr,R25*percDetr) -> 0 | N25: =IF('Computo-Massimali'!L25>0,L25/'Computo-Massimali'!L25,0) -> 0 | O25: =IF(F25>0,IF(F25-0.001>'Computo-Massimali'!F25,">C.",IF(F25+0.001<'SAL.30%'!F25,"<S1","")),"") ->  | P25: .. | Q25: SS) Schermature solari e chiusure oscuranti | R25: ='Computo-Massimali'!T25 -> 0 | S25: ok | U25: =IF(L25<R25,L25,R25) -> 0 | W25: 0 | Y25: 0 | AA25: 0 | AG25: SS) Schermature solari e chiusure oscuranti | AH25: 0 | AI25: 0 | AJ25: 0 | AK25: 0 | AL25: 0 | AM25: =IF(ABS(SUM(AH25:AL25)-H25)>0.01,"err. Somma",IF(AH25>'Computo-Massimali'!BJ25,"Err.1",IF(AI25>'Computo-Massimali'!BK25,"Err.2",IF(AJ25>'Computo-Massimali'!BL25,"Err.3",IF(AK25>'Computo-Massimali'!BM25,"Err.4",IF(AL25>'Computo-Massimali'!BN25,"Err.5","")))))) ->  | AO25: 0 | AP25: 0 | AQ25: 0 | AR25: 0 | AT25: 0 | AV25: 0 | AX25: 0 | AZ25: 0
C26: =CONCATENATE('Computo-Massimali'!C26," con ",'Computo-Massimali'!D26) -> Impianti climatizzazione con con CC)Caldaie a Condensazione | F26: 0 | G26: =IF('Computo-Massimali'!F26<>0,'Computo-Massimali'!G26*F26/'Computo-Massimali'!F26,0) -> 0 | H26: =SUM(F26:G26) -> 0 | I26: =IF(('Computo-Massimali'!F26+'Computo-Massimali'!G26)<>0,'Computo-Massimali'!I26/('Computo-Massimali'!F26+'Computo-Massimali'!G26)*H26,0) -> 0 | J26: =H26+I26 -> 0 | K26: =IF('Computo-Massimali'!F26<>0,'Computo-Massimali'!K26*F26/'Computo-Massimali'!F26,0) -> 0 | L26: 0 | M26: =IF(L26<=R26,L26*percDetr,R26*percDetr) -> 0 | N26: =IF('Computo-Massimali'!L26>0,L26/'Computo-Massimali'!L26,0) -> 0 | O26: =IF(F26>0,IF(F26-0.001>'Computo-Massimali'!F26,">C.",IF(F26+0.001<'SAL.30%'!F26,"<S1","")),"") ->  | P26: .. | Q26: Impianti climatizzazione con con CC)Caldaie a Condensazione | R26: ='Computo-Massimali'!T26 -> 0 | S26: ok | U26: =IF(L26<R26,L26,R26) -> 0 | W26: 0 | Y26: 0 | AA26: 0 | AG26: Impianti climatizzazione con con CC)Caldaie a Condensazione | AH26: 0 | AI26: 0 | AJ26: 0 | AK26: 0 | AL26: 0 | AM26: =IF(ABS(SUM(AH26:AL26)-H26)>0.01,"err. Somma",IF(AH26>'Computo-Massimali'!BJ26,"Err.1",IF(AI26>'Computo-Massimali'!BK26,"Err.2",IF(AJ26>'Computo-Massimali'!BL26,"Err.3",IF(AK26>'Computo-Massimali'!BM26,"Err.4",IF(AL26>'Computo-Massimali'!BN26,"Err.5","")))))) ->  | AO26: 0 | AP26: 0 | AQ26: 0 | AR26: 0 | AT26: 0 | AV26: 0 | AX26: =IF($AQ14=AX$20,$AZ14,0) -> 0 | AZ26: 0
C27: ='Computo-Massimali'!C27 -> GA) Generatori aria calda Condensazione | F27: 0 | G27: =IF('Computo-Massimali'!F27<>0,'Computo-Massimali'!G27*F27/'Computo-Massimali'!F27,0) -> 0 | H27: =SUM(F27:G27) -> 0 | I27: =IF(('Computo-Massimali'!F27+'Computo-Massimali'!G27)<>0,'Computo-Massimali'!I27/('Computo-Massimali'!F27+'Computo-Massimali'!G27)*H27,0) -> 0 | J27: =H27+I27 -> 0 | K27: =IF('Computo-Massimali'!F27<>0,'Computo-Massimali'!K27*F27/'Computo-Massimali'!F27,0) -> 0 | L27: 0 | M27: =IF(L27<=R27,L27*percDetr,R27*percDetr) -> 0 | N27: =IF('Computo-Massimali'!L27>0,L27/'Computo-Massimali'!L27,0) -> 0 | O27: =IF(F27>0,IF(F27-0.001>'Computo-Massimali'!F27,">C.",IF(F27+0.001<'SAL.30%'!F27,"<S1","")),"") ->  | P27: .. | Q27: GA) Generatori aria calda Condensazione | R27: ='Computo-Massimali'!T27 -> 0 | S27: ok | U27: =IF(L30<>0,(L27/L30)*U30,0) -> 0 | W27: =IF(L27>R27,L27-R27,0) -> 0 | Y27: 0 | AA27: 0 | AG27: GA) Generatori aria calda Condensazione | AH27: 0 | AI27: 0 | AJ27: 0 | AK27: 0 | AL27: 0 | AM27: =IF(ABS(SUM(AH27:AL27)-H27)>0.01,"err. Somma",IF(AH27>'Computo-Massimali'!BJ27,"Err.1",IF(AI27>'Computo-Massimali'!BK27,"Err.2",IF(AJ27>'Computo-Massimali'!BL27,"Err.3",IF(AK27>'Computo-Massimali'!BM27,"Err.4",IF(AL27>'Computo-Massimali'!BN27,"Err.5","")))))) ->  | AO27: 0 | AP27: 0 | AQ27: 0 | AR27: 0 | AT27: 0 | AV27: 0 | AX27: 0 | AZ27: 0
C28: ='Computo-Massimali'!C28 -> IB) Impianti Biomassa | F28: 0 | G28: =IF('Computo-Massimali'!F28<>0,'Computo-Massimali'!G28*F28/'Computo-Massimali'!F28,0) -> 0 | H28: =SUM(F28:G28) -> 0 | I28: =IF(('Computo-Massimali'!F28+'Computo-Massimali'!G28)<>0,'Computo-Massimali'!I28/('Computo-Massimali'!F28+'Computo-Massimali'!G28)*H28,0) -> 0 | J28: =H28+I28 -> 0 | K28: =IF('Computo-Massimali'!F28<>0,'Computo-Massimali'!K28*F28/'Computo-Massimali'!F28,0) -> 0 | L28: 0 | M28: =IF(L28<=R28,L28*percDetr,R28*percDetr) -> 0 | N28: =IF('Computo-Massimali'!L28>0,L28/'Computo-Massimali'!L28,0) -> 0 | O28: =IF(F28>0,IF(F28-0.001>'Computo-Massimali'!F28,">C.",IF(F28+0.001<'SAL.30%'!F28,"<S1","")),"") ->  | P28: .. | Q28: IB) Impianti Biomassa | R28: ='Computo-Massimali'!T28 -> 0 | S28: ok | U28: =IF(L30<>0,(L28/L30)*U30,0) -> 0 | W28: 0 | Y28: 0 | AA28: 0 | AG28: IB) Impianti Biomassa | AH28: 0 | AI28: 0 | AJ28: 0 | AK28: 0 | AL28: 0 | AM28: =IF(ABS(SUM(AH28:AL28)-H28)>0.01,"err. Somma",IF(AH28>'Computo-Massimali'!BJ28,"Err.1",IF(AI28>'Computo-Massimali'!BK28,"Err.2",IF(AJ28>'Computo-Massimali'!BL28,"Err.3",IF(AK28>'Computo-Massimali'!BM28,"Err.4",IF(AL28>'Computo-Massimali'!BN28,"Err.5","")))))) ->  | AO28: 0 | AP28: 0 | AQ28: 0 | AR28: 0 | AT28: 0 | AV28: 0 | AX28: 0 | AZ28: 0
C29: ='Computo-Massimali'!C29 -> SA) Scaldacqua a pompa di calore | F29: 0 | G29: =IF('Computo-Massimali'!F29<>0,'Computo-Massimali'!G29*F29/'Computo-Massimali'!F29,0) -> 0 | H29: =SUM(F29:G29) -> 0 | I29: =IF(('Computo-Massimali'!F29+'Computo-Massimali'!G29)<>0,'Computo-Massimali'!I29/('Computo-Massimali'!F29+'Computo-Massimali'!G29)*H29,0) -> 0 | J29: =H29+I29 -> 0 | K29: =IF('Computo-Massimali'!F29<>0,'Computo-Massimali'!K29*F29/'Computo-Massimali'!F29,0) -> 0 | L29: 0 | M29: =IF(L29<=R29,L29*percDetr,R29*percDetr) -> 0 | N29: =IF('Computo-Massimali'!L29>0,L29/'Computo-Massimali'!L29,0) -> 0 | O29: =IF(F29>0,IF(F29-0.001>'Computo-Massimali'!F29,">C.",IF(F29+0.001<'SAL.30%'!F29,"<S1","")),"") ->  | P29: .. | Q29: SA) Scaldacqua a pompa di calore | R29: ='Computo-Massimali'!T29 -> 0 | S29: ok | U29: =IF(L30<>0,(L29/L30)*U30,0) -> 0 | W29: 0 | Y29: 0 | AA29: 0 | AG29: SA) Scaldacqua a pompa di calore | AH29: 0 | AI29: 0 | AJ29: 0 | AK29: 0 | AL29: 0 | AM29: =IF(ABS(SUM(AH29:AL29)-H29)>0.01,"err. Somma",IF(AH29>'Computo-Massimali'!BJ29,"Err.1",IF(AI29>'Computo-Massimali'!BK29,"Err.2",IF(AJ29>'Computo-Massimali'!BL29,"Err.3",IF(AK29>'Computo-Massimali'!BM29,"Err.4",IF(AL29>'Computo-Massimali'!BN29,"Err.5","")))))) ->  | AO29: 0 | AP29: 0 | AQ29: 0 | AR29: 0 | AT29: 0 | AV29: 0 | AX29: 0 | AZ29: 0
C30: ='Computo-Massimali'!C30 -> Totali GA) IB) SA) | F30: =SUM(F27:F29) -> 0 | G30: 0 | H30: 0 | I30: 0 | J30: 0 | K30: 0 | L30: 0 | M30: 0 | N30: =IF('Computo-Massimali'!L30>0,L30/'Computo-Massimali'!L30,0) -> 0 | O30: =IF(F30>0,IF(F30-0.001>'Computo-Massimali'!F30,">C.",IF(F30+0.001<'SAL.30%'!F30,"<S1","")),"") ->  | Q30: Totali GA) IB) SA) | R30: ='Computo-Massimali'!T30 -> 0 | S30: ok | U30: =IF(L30<R30,L30,R30) -> 0 | W30: 0 | Y30: 0 | AA30: 0 | AG30: Totali GA) IB) SA) | AH30: =SUM(AH27:AH29) -> 0 | AI30: =SUM(AI27:AI29) -> 0 | AJ30: =SUM(AJ27:AJ29) -> 0 | AK30: =SUM(AK27:AK29) -> 0 | AL30: =SUM(AL27:AL29) -> 0 | AO30: =SUM(AO21:AO29) -> 0 | AP30: =SUM(AP21:AP29) -> 0 | AQ30: =SUM(AQ21:AQ29) -> 0 | AR30: =SUM(AR21:AR29) -> 0 | AT30: =SUM(AT21:AT29) -> 0 | AV30: =SUM(AV21:AV29) -> 0 | AX30: =SUM(AX21:AX29) -> 0 | AZ30: =SUM(AZ21:AZ29) -> 0 | BB30: =SUM(AO30:BA30) -> 0
C31: =CONCATENATE('Computo-Massimali'!C31," - ",'Computo-Massimali'!E31) -> CO) Sistemi di Microgenerazione - Celle a combustibile | F31: 0 | G31: =IF('Computo-Massimali'!F31<>0,'Computo-Massimali'!G31*F31/'Computo-Massimali'!F31,0) -> 0 | H31: =SUM(F31:G31) -> 0 | I31: =IF(('Computo-Massimali'!F31+'Computo-Massimali'!G31)<>0,'Computo-Massimali'!I31/('Computo-Massimali'!F31+'Computo-Massimali'!G31)*H31,0) -> 0 | J31: =H31+I31 -> 0 | K31: =IF('Computo-Massimali'!F31<>0,'Computo-Massimali'!K31*F31/'Computo-Massimali'!F31,0) -> 0 | L31: =SUM(J31:K31) -> 0 | M31: =IF(L31<=R31,L31*percDetr,R31*percDetr) -> 0 | N31: =IF('Computo-Massimali'!L31>0,L31/'Computo-Massimali'!L31,0) -> 0 | O31: =IF(F31>0,IF(F31-0.001>'Computo-Massimali'!F31,">C.",IF(F31+0.001<'SAL.30%'!F31,"<S1","")),"") ->  | P31: .. | Q31: CO) Sistemi di Microgenerazione - Celle a combustibile | R31: ='Computo-Massimali'!T31 -> 0 | S31: ok | U31: 0 | W31: 0 | Y31: 0 | AA31: 0 | AG31: CO) Sistemi di Microgenerazione - Celle a combustibile | AH31: 0 | AI31: 0 | AJ31: 0 | AK31: 0 | AL31: 0 | AM31: =IF(ABS(SUM(AH31:AL31)-H31)>0.01,"err. Somma",IF(AH31>'Computo-Massimali'!BJ31,"Err.1",IF(AI31>'Computo-Massimali'!BK31,"Err.2",IF(AJ31>'Computo-Massimali'!BL31,"Err.3",IF(AK31>'Computo-Massimali'!BM31,"Err.4",IF(AL31>'Computo-Massimali'!BN31,"Err.5","")))))) ->  | AO31: =IF($BB$30<>0,AO30/$BB$30,0) -> 0 | AP31: =IF($BB$30<>0,AP30/$BB$30,0) -> 0 | AQ31: =IF($BB$30<>0,AQ30/$BB$30,0) -> 0 | AR31: =IF($BB$30<>0,AR30/$BB$30,0) -> 0 | AT31: =IF($BB$30<>0,AT30/$BB$30,0) -> 0 | AV31: =IF($BB$30<>0,AV30/$BB$30,0) -> 0 | AX31: =IF($BB$30<>0,AX30/$BB$30,0) -> 0 | AZ31: =IF($BB$30<>0,AZ30/$BB$30,0) -> 0
C32: ='Computo-Massimali'!C32 -> ST) Collettori Solari | E32: ='Computo-Massimali'!E32 -> Piani Vetrati | F32: 0 | G32: =IF('Computo-Massimali'!F32<>0,'Computo-Massimali'!G32*F32/'Computo-Massimali'!F32,0) -> 0 | H32: 0 | I32: =IF(('Computo-Massimali'!F32+'Computo-Massimali'!G32)<>0,'Computo-Massimali'!I32/('Computo-Massimali'!F32+'Computo-Massimali'!G32)*H32,0) -> 0 | J32: 0 | K32: =IF('Computo-Massimali'!F32<>0,'Computo-Massimali'!K32*F32/'Computo-Massimali'!F32,0) -> 0 | L32: =SUM(J32:K32) -> 0 | M32: 0 | N32: =IF('Computo-Massimali'!L32>0,L32/'Computo-Massimali'!L32,0) -> 0 | O32: =IF(F32>0,IF(F32-0.001>'Computo-Massimali'!F32,">C.",IF(F32+0.001<'SAL.30%'!F32,"<S1","")),"") ->  | P32: .. | Q32: ST) Collettori Solari | R32: ='Computo-Massimali'!T32 -> 0 | S32: ok | U32: 0 | W32: 0 | Y32: 0 | AA32: 0 | AG32: ST) Collettori Solari | AH32: 0 | AI32: 0 | AJ32: 0 | AK32: 0 | AL32: 0 | AM32: =IF(ABS(SUM(AH32:AL32)-H32)>0.01,"err. Somma",IF(AH32>'Computo-Massimali'!BJ32,"Err.1",IF(AI32>'Computo-Massimali'!BK32,"Err.2",IF(AJ32>'Computo-Massimali'!BL32,"Err.3",IF(AK32>'Computo-Massimali'!BM32,"Err.4",IF(AL32>'Computo-Massimali'!BN32,"Err.5","")))))) -> 
C33: ='Computo-Massimali'!C33 -> FV) Solare Fotovoltaico [ kWp ] | E33: ='Computo-Massimali'!E33 -> 15.2 | F33: 0 | G33: =IF('Computo-Massimali'!F33<>0,'Computo-Massimali'!G33*F33/'Computo-Massimali'!F33,0) -> 0 | H33: 0 | I33: =IF(('Computo-Massimali'!F33+'Computo-Massimali'!G33)<>0,'Computo-Massimali'!I33/('Computo-Massimali'!F33+'Computo-Massimali'!G33)*H33,0) -> 0 | J33: 0 | K33: =IF('Computo-Massimali'!F33<>0,'Computo-Massimali'!K33*F33/'Computo-Massimali'!F33,0) -> 0 | L33: =SUM(J33:K33) -> 0 | M33: 0 | N33: =IF('Computo-Massimali'!L33>0,L33/'Computo-Massimali'!L33,0) -> 0 | O33: =IF(F33>0,IF(F33-0.001>'Computo-Massimali'!F33,">C.",IF(F33+0.001<'SAL.30%'!F33,"<S1","")),"") ->  | P33: .. | Q33: FV) Solare Fotovoltaico [ kWp ] | R33: ='Computo-Massimali'!T33 -> 36480 | S33: ok | U33: 0 | W33: 0 | Y33: 0 | AA33: 0 | AG33: FV) Solare Fotovoltaico [ kWp ] | AH33: 0 | AI33: 0 | AJ33: 0 | AK33: 0 | AL33: 0 | AM33: =IF(ABS(SUM(AH33:AL33)-H33)>0.01,"err. Somma",IF(AH33>'Computo-Massimali'!BJ33,"Err.1",IF(AI33>'Computo-Massimali'!BK33,"Err.2",IF(AJ33>'Computo-Massimali'!BL33,"Err.3",IF(AK33>'Computo-Massimali'!BM33,"Err.4",IF(AL33>'Computo-Massimali'!BN33,"Err.5","")))))) -> 
C34: ='Computo-Massimali'!C34 -> AC) Sistema di Accumulo [ kWh ] | E34: ='Computo-Massimali'!E34 -> 10 | F34: 0 | G34: =IF('Computo-Massimali'!F34<>0,'Computo-Massimali'!G34*F34/'Computo-Massimali'!F34,0) -> 0 | H34: 0 | I34: =IF(('Computo-Massimali'!F34+'Computo-Massimali'!G34)<>0,'Computo-Massimali'!I34/('Computo-Massimali'!F34+'Computo-Massimali'!G34)*H34,0) -> 0 | J34: 0 | K34: =IF('Computo-Massimali'!F34<>0,'Computo-Massimali'!K34*F34/'Computo-Massimali'!F34,0) -> 0 | L34: =SUM(J34:K34) -> 0 | M34: 0 | N34: =IF('Computo-Massimali'!L34>0,L34/'Computo-Massimali'!L34,0) -> 0 | O34: =IF(F34>0,IF(F34-0.001>'Computo-Massimali'!F34,">C.",IF(F34+0.001<'SAL.30%'!F34,"<S1","")),"") ->  | P34: .. | Q34: AC) Sistema di Accumulo [ kWh ] | R34: ='Computo-Massimali'!T34 -> 10000 | S34: ok | U34: 0 | W34: 0 | Y34: 0 | AA34: 0 | AG34: AC) Sistema di Accumulo [ kWh ] | AH34: 0 | AI34: 0 | AJ34: 0 | AK34: 0 | AL34: 0 | AM34: =IF(ABS(SUM(AH34:AL34)-H34)>0.01,"err. Somma",IF(AH34>'Computo-Massimali'!BJ34,"Err.1",IF(AI34>'Computo-Massimali'!BK34,"Err.2",IF(AJ34>'Computo-Massimali'!BL34,"Err.3",IF(AK34>'Computo-Massimali'!BM34,"Err.4",IF(AL34>'Computo-Massimali'!BN34,"Err.5","")))))) -> 
C35: ='Computo-Massimali'!C35 -> CR) Colonnine di Ricarica [ N. ] | E35: ='Computo-Massimali'!E35 -> 1 | F35: 0 | G35: =IF('Computo-Massimali'!F35<>0,'Computo-Massimali'!G35*F35/'Computo-Massimali'!F35,0) -> 0 | H35: 0 | I35: =IF(('Computo-Massimali'!F35+'Computo-Massimali'!G35)<>0,'Computo-Massimali'!I35/('Computo-Massimali'!F35+'Computo-Massimali'!G35)*H35,0) -> 0 | J35: 0 | K35: =IF('Computo-Massimali'!F35<>0,'Computo-Massimali'!K35*F35/'Computo-Massimali'!F35,0) -> 0 | L35: 0 | M35: 0 | N35: =IF('Computo-Massimali'!L35>0,L35/'Computo-Massimali'!L35,0) -> 0 | O35: =IF(F35>0,IF(F35-0.001>'Computo-Massimali'!F35,">C.",IF(F35+0.001<'SAL.30%'!F35,"<S1","")),"") ->  | P35: .. | Q35: CR) Colonnine di Ricarica [ N. ] | R35: ='Computo-Massimali'!T35 -> 1500 | S35: ok | U35: 0 | W35: 0 | Y35: 0 | AA35: 0 | AG35: CR) Colonnine di Ricarica [ N. ] | AH35: 0 | AI35: 0 | AJ35: 0 | AK35: 0 | AL35: 0 | AM35: =IF(ABS(SUM(AH35:AL35)-H35)>0.01,"err. Somma",IF(AH35>'Computo-Massimali'!BJ35,"Err.1",IF(AI35>'Computo-Massimali'!BK35,"Err.2",IF(AJ35>'Computo-Massimali'!BL35,"Err.3",IF(AK35>'Computo-Massimali'!BM35,"Err.4",IF(AL35>'Computo-Massimali'!BN35,"Err.5","")))))) -> 
C36: ='Computo-Massimali'!C36 -> EBA) Eliminazione Barriere architettoniche | F36: 0 | G36: =IF('Computo-Massimali'!F36<>0,'Computo-Massimali'!G36*F36/'Computo-Massimali'!F36,0) -> 0 | H36: 0 | I36: =IF(('Computo-Massimali'!F36+'Computo-Massimali'!G36)<>0,'Computo-Massimali'!I36/('Computo-Massimali'!F36+'Computo-Massimali'!G36)*H36,0) -> 0 | J36: 0 | K36: =IF('Computo-Massimali'!F36<>0,'Computo-Massimali'!K36*F36/'Computo-Massimali'!F36,0) -> 0 | L36: 0 | M36: 0 | N36: =IF('Computo-Massimali'!L36>0,L36/'Computo-Massimali'!L36,0) -> 0 | O36: =IF(F36>0,IF(F36-0.001>'Computo-Massimali'!F36,">C.",IF(F36+0.001<'SAL.30%'!F36,"<S1","")),"") ->  | P36: .. | Q36: EBA) Eliminazione Barriere architettoniche | R36: ='Computo-Massimali'!T36 -> 96000 | S36: ok | U36: 0 | W36: 0 | Y36: 0 | AA36: 0 | AG36: EBA) Eliminazione Barriere architettoniche | AH36: 0 | AI36: 0 | AJ36: 0 | AK36: 0 | AL36: 0 | AM36: =IF(ABS(SUM(AH36:AL36)-H36)>0.01,"err. Somma",IF(AH36>'Computo-Massimali'!BJ36,"Err.1",IF(AI36>'Computo-Massimali'!BK36,"Err.2",IF(AJ36>'Computo-Massimali'!BL36,"Err.3",IF(AK36>'Computo-Massimali'!BM36,"Err.4",IF(AL36>'Computo-Massimali'!BN36,"Err.5","")))))) -> 
C37: ='Computo-Massimali'!C37 -> Totale Interventi Trainati Parti Comuni : | F37: =SUM(F24:F26)+SUM(F30:F36) -> 0 | G37: =SUM(G24:G26)+SUM(G30:G36) -> 0 | H37: 0 | I37: 0 | J37: 0 | K37: 0 | L37: 0 | M37: 0 | N37: =IF('Computo-Massimali'!L37>0,L37/'Computo-Massimali'!L37,0) -> 0 | O37: =IF(F37>0,IF(F37-0.001>'Computo-Massimali'!F37,">C.",IF(F37+0.001<'SAL.30%'!F37,"<S1","")),"") ->  | R37: =C37 -> Totale Interventi Trainati Parti Comuni : | U37: =U24+U25+U26+SUM(U30:V36) -> 0 | W37: =W24+W25+W26+SUM(W30:X36) -> 0 | Y37: =Y24+Y25+Y26+SUM(Y30:Z36) -> 0 | AA37: =AA24+AA25+AA26+SUM(AA30:AB36) -> 0 | AG37: =R37 -> Totale Interventi Trainati Parti Comuni : | AH37: =AH24+AH25+AH26+SUM(AH30:AH36) -> 0 | AI37: =AI24+AI25+AI26+SUM(AI30:AI36) -> 0 | AJ37: =AJ24+AJ25+AJ26+SUM(AJ30:AJ36) -> 0 | AK37: =AK24+AK25+AK26+SUM(AK30:AK36) -> 0 | AL37: =AL24+AL25+AL26+SUM(AL30:AL36) -> 0
C40: INTERVENTI TRAINATI | O40: .. | Q40: =CONCATENATE("Verifica Massimali di Spesa ",C40) -> Verifica Massimali di Spesa INTERVENTI TRAINATI | AG40: ='Computo-Massimali'!BI40 -> Ripartizione tra le Imprese - Imponibile Lavori INTERVENTI TRAINATI | AO40: Ripartizione Spese Tecniche / Lavoro : SAL. N.2 - ALTRI INTERVENTI
C41: Interventi | F41: Importo Lavori | G41: Incidenza Sicurezza | H41: Imponibile | I41: Iva | J41: Importo c.iva | K41: Spese tecniche | L41: Totale | M41: =$M$8 -> Credito Spettante 75% Spesa Ammessa | N41: %SAL | Q41: Interventi | R41: Massimale spesa | S41: Verifica Max | U41: Spesa Ammessa | W41: Quota Eccedente Massimale Spesa | Y41: =$Y$8 -> Credito Spettante 75% Spesa Ammessa Quota Imprese | Quota Tecnici | AG41: Interventi | AH41: =IF('Dati Gen'!$B$38<>"",'Dati Gen'!$B$38,"") -> Impresa1 | AI41: =IF('Dati Gen'!$B$39<>"",'Dati Gen'!$B$39,"") -> Impresa2 | AJ41: =IF('Dati Gen'!$B$40<>"",'Dati Gen'!$B$40,"") -> Impresa3 | AK41: =IF('Dati Gen'!$B$41<>"",'Dati Gen'!$B$41,"") -> Impresa4 | AL41: =IF('Dati Gen'!$B$42<>"",'Dati Gen'!$B$42,"") ->  | AO41: Lavoro | AQ41: Tecnico | AR41: Onorario | AT41: C.Cassa | AV41: Imponibile | AX41: IVA | AZ41: Totale | BB41: Applica Sconto in Fattura | BC41: =IF(ABS(SUM(AZ42:AZ50)-AZ51)>0.01,CONCATENATE("Errore: ",CHAR(10),"Somma Ripartizione Totale Altri Interventi =",ROUND(SUM(AZ42:AZ50),2), " €. <> ",CHAR(10),"Totale Spese Tecniche =",ROUND(AZ51,2)," €."),"") -> 
C42: ='Computo-Massimali'!C42 -> PV) Isolamento pareti perimetrali | E42: ='Computo-Massimali'!E42 -> Esterno | F42: 0 | G42: =IF('Computo-Massimali'!F42<>0,'Computo-Massimali'!G42*F42/'Computo-Massimali'!F42,0) -> 0 | H42: =SUM(F42:G42) -> 0 | I42: =IF(('Computo-Massimali'!F42+'Computo-Massimali'!G42)<>0,'Computo-Massimali'!I42/('Computo-Massimali'!F42+'Computo-Massimali'!G42)*H42,0) -> 0 | J42: =H42+I42 -> 0 | K42: =IF('Computo-Massimali'!F42<>0,'Computo-Massimali'!K42*F42/'Computo-Massimali'!F42,0) -> 0 | L42: =SUM(J42:K42) -> 0 | M42: =IF(L42<=R42,L42*percDetr,R42*percDetr) -> 0 | N42: =IF('Computo-Massimali'!L42>0,L42/'Computo-Massimali'!L42,0) -> 0 | O42: =IF(F42>0,IF(F42-0.001>'Computo-Massimali'!F42,">C.",IF(F42+0.001<'SAL.30%'!F42,"<S1","")),"") ->  | P42: .. | Q42: =C42 -> PV) Isolamento pareti perimetrali | R42: ='Computo-Massimali'!T42 -> 0 | S42: =IF(L42>R42,"ko","ok") -> ok | U42: =IF(L46<>0,(L42/L46)*U46,0) -> 0 | W42: =IF(L42>R42,L42-R42,0) -> 0 | Y42: =IF(M42<>0,J42*M42/L42,0) -> 0 | AA42: =IF(M42<>0,K42*M42/L42,0) -> 0 | AG42: =Q42 -> PV) Isolamento pareti perimetrali | AH42: 0 | AI42: 0 | AJ42: 0 | AK42: 0 | AL42: 0 | AM42: =IF(ABS(SUM(AH42:AL42)-H42)>0.01,"err. Somma",IF(AH42>'Computo-Massimali'!BJ42,"Err.1",IF(AI42>'Computo-Massimali'!BK42,"Err.2",IF(AJ42>'Computo-Massimali'!BL42,"Err.3",IF(AK42>'Computo-Massimali'!BM42,"Err.4",IF(AL42>'Computo-Massimali'!BN42,"Err.5","")))))) ->  | AO42: =IF('Dati Gen'!$B$25<>"",'Dati Gen'!$B$25,"") -> Progettazione Architettonica, strutturale, Dir.Lav. Misure e contabilità | AQ42: =IF('Dati Gen'!$C$25<>"",'Dati Gen'!$C$25,"") -> Tecnico1 | AR42: =AV42/(1+AT42) -> 0 | AT42: ='Dati Gen'!G25 -> 0.04 | AU42: =AR42*AT42 -> 0 | AV42: =AZ42/(1+AX42) -> 0 | AX42: ='Dati Gen'!J25 -> 0.22 | AY42: =AX42*(AR42+AU42) -> 0 | AZ42: =IF('Dati Gen'!$M$36<>0,$AZ$51*'Dati Gen'!M25/'Dati Gen'!$M$36,0) -> 0 | BB42: =IF(AQ42<>"",VLOOKUP(AQ42,'Dati Gen'!$B$44:$D$51,3,0),"") -> NO
C43: ='Computo-Massimali'!C43 -> PO) Isolamento coperture | E43: ='Computo-Massimali'!E43 -> Esterno | F43: 0 | G43: =IF('Computo-Massimali'!F43<>0,'Computo-Massimali'!G43*F43/'Computo-Massimali'!F43,0) -> 0 | H43: =SUM(F43:G43) -> 0 | I43: =IF(('Computo-Massimali'!F43+'Computo-Massimali'!G43)<>0,'Computo-Massimali'!I43/('Computo-Massimali'!F43+'Computo-Massimali'!G43)*H43,0) -> 0 | J43: =H43+I43 -> 0 | K43: =IF('Computo-Massimali'!F43<>0,'Computo-Massimali'!K43*F43/'Computo-Massimali'!F43,0) -> 0 | L43: =SUM(J43:K43) -> 0 | M43: =IF(L43<=R43,L43*percDetr,R43*percDetr) -> 0 | N43: =IF('Computo-Massimali'!L43>0,L43/'Computo-Massimali'!L43,0) -> 0 | O43: =IF(F43>0,IF(F43-0.001>'Computo-Massimali'!F43,">C.",IF(F43+0.001<'SAL.30%'!F43,"<S1","")),"") ->  | P43: .. | Q43: PO) Isolamento coperture | R43: ='Computo-Massimali'!T43 -> 0 | S43: ok | U43: =IF(L46<>0,(L43/L46)*U46,0) -> 0 | W43: 0 | Y43: 0 | AA43: 0 | AG43: PO) Isolamento coperture | AH43: 0 | AI43: 0 | AJ43: 0 | AK43: 0 | AL43: 0 | AM43: =IF(ABS(SUM(AH43:AL43)-H43)>0.01,"err. Somma",IF(AH43>'Computo-Massimali'!BJ43,"Err.1",IF(AI43>'Computo-Massimali'!BK43,"Err.2",IF(AJ43>'Computo-Massimali'!BL43,"Err.3",IF(AK43>'Computo-Massimali'!BM43,"Err.4",IF(AL43>'Computo-Massimali'!BN43,"Err.5","")))))) ->  | AO43: =IF('Dati Gen'!$B$26<>"",'Dati Gen'!$B$26,"") ->  | AQ43: =IF('Dati Gen'!$C$26<>"",'Dati Gen'!$C$26,"") ->  | AR43: 0 | AT43: ='Dati Gen'!G26 -> 0.04 | AU43: 0 | AV43: =AZ43/(1+AX43) -> 0 | AX43: ='Dati Gen'!J26 -> 0.22 | AY43: =(AR43+AU43)*AX43 -> 0 | AZ43: =IF('Dati Gen'!$M$36<>0,$AZ$51*'Dati Gen'!M26/'Dati Gen'!$M$36,0) -> 0 | BB43: =IF(AQ43<>"",VLOOKUP(AQ43,'Dati Gen'!$B$44:$D$51,3,0),"") -> 
C44: ='Computo-Massimali'!C44 -> PS) Isolamento Pavimenti | E44: ='Computo-Massimali'!E44 -> Esterno | F44: 0 | G44: =IF('Computo-Massimali'!F44<>0,'Computo-Massimali'!G44*F44/'Computo-Massimali'!F44,0) -> 0 | H44: =SUM(F44:G44) -> 0 | I44: =IF(('Computo-Massimali'!F44+'Computo-Massimali'!G44)<>0,'Computo-Massimali'!I44/('Computo-Massimali'!F44+'Computo-Massimali'!G44)*H44,0) -> 0 | J44: =H44+I44 -> 0 | K44: =IF('Computo-Massimali'!F44<>0,'Computo-Massimali'!K44*F44/'Computo-Massimali'!F44,0) -> 0 | L44: =SUM(J44:K44) -> 0 | M44: =IF(L44<=R44,L44*percDetr,R44*percDetr) -> 0 | N44: =IF('Computo-Massimali'!L44>0,L44/'Computo-Massimali'!L44,0) -> 0 | O44: =IF(F44>0,IF(F44-0.001>'Computo-Massimali'!F44,">C.",IF(F44+0.001<'SAL.30%'!F44,"<S1","")),"") ->  | P44: .. | Q44: PS) Isolamento Pavimenti | R44: ='Computo-Massimali'!T44 -> 0 | S44: ok | U44: =IF(L46<>0,(L44/L46)*U46,0) -> 0 | W44: 0 | Y44: 0 | AA44: 0 | AG44: PS) Isolamento Pavimenti | AH44: 0 | AI44: 0 | AJ44: 0 | AK44: 0 | AL44: 0 | AM44: =IF(ABS(SUM(AH44:AL44)-H44)>0.01,"err. Somma",IF(AH44>'Computo-Massimali'!BJ44,"Err.1",IF(AI44>'Computo-Massimali'!BK44,"Err.2",IF(AJ44>'Computo-Massimali'!BL44,"Err.3",IF(AK44>'Computo-Massimali'!BM44,"Err.4",IF(AL44>'Computo-Massimali'!BN44,"Err.5","")))))) ->  | AO44: =IF('Dati Gen'!$B$27<>"",'Dati Gen'!$B$27,"") ->  | AQ44: =IF('Dati Gen'!$C$27<>"",'Dati Gen'!$C$27,"") ->  | AR44: 0 | AT44: ='Dati Gen'!G27 -> 0.04 | AU44: 0 | AV44: =AZ44/(1+AX44) -> 0 | AX44: ='Dati Gen'!J27 -> 0 | AY44: 0 | AZ44: =IF('Dati Gen'!$M$36<>0,$AZ$51*'Dati Gen'!M27/'Dati Gen'!$M$36,0) -> 0 | BB44: =IF(AQ44<>"",VLOOKUP(AQ44,'Dati Gen'!$B$44:$D$51,3,0),"") -> 
C45: ='Computo-Massimali'!C45 -> IN) Serramenti con chiusure oscuranti | E45: ='Computo-Massimali'!E45 -> Zone D, E ed F | F45: 0 | G45: =IF('Computo-Massimali'!F45<>0,'Computo-Massimali'!G45*F45/'Computo-Massimali'!F45,0) -> 0 | H45: =SUM(F45:G45) -> 0 | I45: =IF(('Computo-Massimali'!F45+'Computo-Massimali'!G45)<>0,'Computo-Massimali'!I45/('Computo-Massimali'!F45+'Computo-Massimali'!G45)*H45,0) -> 0 | J45: =H45+I45 -> 0 | K45: =IF('Computo-Massimali'!F45<>0,'Computo-Massimali'!K45*F45/'Computo-Massimali'!F45,0) -> 0 | L45: =SUM(J45:K45) -> 0 | M45: =IF(L45<=R45,L45*percDetr,R45*percDetr) -> 0 | N45: =IF('Computo-Massimali'!L45>0,L45/'Computo-Massimali'!L45,0) -> 0 | O45: =IF(F45>0,IF(F45-0.001>'Computo-Massimali'!F45,">C.",IF(F45+0.001<'SAL.30%'!F45,"<S1","")),"") ->  | P45: .. | Q45: IN) Serramenti con chiusure oscuranti | R45: ='Computo-Massimali'!T45 -> 0 | S45: ok | U45: =IF(L46<>0,(L45/L46)*U46,0) -> 0 | W45: 0 | Y45: 0 | AA45: 0 | AG45: IN) Serramenti con chiusure oscuranti | AH45: 0 | AI45: 0 | AJ45: 0 | AK45: 0 | AL45: 0 | AM45: =IF(ABS(SUM(AH45:AL45)-H45)>0.01,"err. Somma",IF(AH45>'Computo-Massimali'!BJ45,"Err.1",IF(AI45>'Computo-Massimali'!BK45,"Err.2",IF(AJ45>'Computo-Massimali'!BL45,"Err.3",IF(AK45>'Computo-Massimali'!BM45,"Err.4",IF(AL45>'Computo-Massimali'!BN45,"Err.5","")))))) ->  | AO45: =IF('Dati Gen'!$B$28<>"",'Dati Gen'!$B$28,"") ->  | AQ45: =IF('Dati Gen'!$C$28<>"",'Dati Gen'!$C$28,"") ->  | AR45: 0 | AT45: ='Dati Gen'!G28 -> 0.04 | AU45: 0 | AV45: 0 | AX45: ='Dati Gen'!J28 -> 0.22 | AY45: 0 | AZ45: =IF('Dati Gen'!$M$36<>0,$AZ$51*'Dati Gen'!M28/'Dati Gen'!$M$36,0) -> 0 | BB45: =IF(AQ45<>"",VLOOKUP(AQ45,'Dati Gen'!$B$44:$D$51,3,0),"") -> 
C46: ='Computo-Massimali'!C46 -> Totali Isolamento PV) PO) PS) e IN | F46: =SUM(F42:F45) -> 0 | G46: =SUM(G42:G45) -> 0 | H46: 0 | I46: 0 | J46: 0 | K46: =SUM(K42:K45) -> 0 | L46: 0 | M46: 0 | N46: =IF('Computo-Massimali'!L46>0,L46/'Computo-Massimali'!L46,0) -> 0 | O46: =IF(F46>0,IF(F46-0.001>'Computo-Massimali'!F46,">C.",IF(F46+0.001<'SAL.30%'!F46,"<S1","")),"") ->  | Q46: Totali Isolamento PV) PO) PS) e IN | R46: ='Computo-Massimali'!T46 -> 0 | S46: ok | U46: =IF(L46<R46,L46,R46) -> 0 | W46: 0 | Y46: 0 | AA46: 0 | AG46: Totali Isolamento PV) PO) PS) e IN | AH46: =SUM(AH42:AH45) -> 0 | AI46: =SUM(AI42:AI45) -> 0 | AJ46: =SUM(AJ42:AJ45) -> 0 | AK46: =SUM(AK42:AK45) -> 0 | AL46: =SUM(AL42:AL45) -> 0 | AO46: =IF('Dati Gen'!$B$29<>"",'Dati Gen'!$B$29,"") ->  | AQ46: =IF('Dati Gen'!$C$29<>"",'Dati Gen'!$C$29,"") ->  | AR46: 0 | AT46: ='Dati Gen'!G29 -> 0.04 | AU46: 0 | AV46: 0 | AX46: ='Dati Gen'!J29 -> 0.22 | AY46: 0 | AZ46: =IF('Dati Gen'!$M$36<>0,$AZ$51*'Dati Gen'!M29/'Dati Gen'!$M$36,0) -> 0 | BB46: =IF(AQ46<>"",VLOOKUP(AQ46,'Dati Gen'!$B$44:$D$51,3,0),"") -> 
C47: ='Computo-Massimali'!C47 -> SS) Schermature solari e chiusure oscuranti | F47: 0 | G47: =IF('Computo-Massimali'!F47<>0,'Computo-Massimali'!G47*F47/'Computo-Massimali'!F47,0) -> 0 | H47: =SUM(F47:G47) -> 0 | I47: =IF(('Computo-Massimali'!F47+'Computo-Massimali'!G47)<>0,'Computo-Massimali'!I47/('Computo-Massimali'!F47+'Computo-Massimali'!G47)*H47,0) -> 0 | J47: =H47+I47 -> 0 | K47: =IF('Computo-Massimali'!F47<>0,'Computo-Massimali'!K47*F47/'Computo-Massimali'!F47,0) -> 0 | L47: =SUM(J47:K47) -> 0 | M47: =IF(L47<=R47,L47*percDetr,R47*percDetr) -> 0 | N47: =IF('Computo-Massimali'!L47>0,L47/'Computo-Massimali'!L47,0) -> 0 | O47: =IF(F47>0,IF(F47-0.001>'Computo-Massimali'!F47,">C.",IF(F47+0.001<'SAL.30%'!F47,"<S1","")),"") ->  | P47: .. | Q47: SS) Schermature solari e chiusure oscuranti | R47: ='Computo-Massimali'!T47 -> 0 | S47: ok | U47: =IF(L47<R47,L47,R47) -> 0 | W47: 0 | Y47: 0 | AA47: 0 | AG47: SS) Schermature solari e chiusure oscuranti | AH47: 0 | AI47: 0 | AJ47: 0 | AK47: 0 | AL47: 0 | AM47: =IF(ABS(SUM(AH47:AL47)-H47)>0.01,"err. Somma",IF(AH47>'Computo-Massimali'!BJ47,"Err.1",IF(AI47>'Computo-Massimali'!BK47,"Err.2",IF(AJ47>'Computo-Massimali'!BL47,"Err.3",IF(AK47>'Computo-Massimali'!BM47,"Err.4",IF(AL47>'Computo-Massimali'!BN47,"Err.5","")))))) ->  | AO47: =IF('Dati Gen'!$B$30<>"",'Dati Gen'!$B$30,"") ->  | AQ47: =IF('Dati Gen'!$C$30<>"",'Dati Gen'!$C$30,"") ->  | AR47: 0 | AT47: ='Dati Gen'!G30 -> 0.04 | AU47: 0 | AV47: =AZ47/(1+AX47) -> 0 | AX47: ='Dati Gen'!J30 -> 0.22 | AY47: 0 | AZ47: =IF('Dati Gen'!$M$36<>0,$AZ$51*'Dati Gen'!M30/'Dati Gen'!$M$36,0) -> 0 | BB47: =IF(AQ47<>"",VLOOKUP(AQ47,'Dati Gen'!$B$44:$D$51,3,0),"") -> 
C48: =CONCATENATE('Computo-Massimali'!C48," con ",'Computo-Massimali'!D48) -> Impianti climatizzazione con con CC)Caldaie a Condensazione | F48: 0 | G48: =IF('Computo-Massimali'!F48<>0,'Computo-Massimali'!G48*F48/'Computo-Massimali'!F48,0) -> 0 | H48: =SUM(F48:G48) -> 0 | I48: =IF(('Computo-Massimali'!F48+'Computo-Massimali'!G48)<>0,'Computo-Massimali'!I48/('Computo-Massimali'!F48+'Computo-Massimali'!G48)*H48,0) -> 0 | J48: =H48+I48 -> 0 | K48: =IF('Computo-Massimali'!F48<>0,'Computo-Massimali'!K48*F48/'Computo-Massimali'!F48,0) -> 0 | L48: =SUM(J48:K48) -> 0 | M48: =IF(L48<=R48,L48*percDetr,R48*percDetr) -> 0 | N48: =IF('Computo-Massimali'!L48>0,L48/'Computo-Massimali'!L48,0) -> 0 | O48: =IF(F48>0,IF(F48-0.001>'Computo-Massimali'!F48,">C.",IF(F48+0.001<'SAL.30%'!F48,"<S1","")),"") ->  | P48: .. | Q48: Impianti climatizzazione con con CC)Caldaie a Condensazione | R48: ='Computo-Massimali'!T48 -> 0 | S48: ok | U48: =IF(L50<>0,(L48/L50)*U50,0) -> 0 | W48: =IF(L48>R48,L48-R48,0) -> 0 | Y48: 0 | AA48: 0 | AG48: Impianti climatizzazione con con CC)Caldaie a Condensazione | AH48: 0 | AI48: 0 | AJ48: 0 | AK48: 0 | AL48: 0 | AM48: =IF(ABS(SUM(AH48:AL48)-H48)>0.01,"err. Somma",IF(AH48>'Computo-Massimali'!BJ48,"Err.1",IF(AI48>'Computo-Massimali'!BK48,"Err.2",IF(AJ48>'Computo-Massimali'!BL48,"Err.3",IF(AK48>'Computo-Massimali'!BM48,"Err.4",IF(AL48>'Computo-Massimali'!BN48,"Err.5","")))))) ->  | AO48: =IF('Dati Gen'!$B$31<>"",'Dati Gen'!$B$31,"") ->  | AQ48: =IF('Dati Gen'!$C$31<>"",'Dati Gen'!$C$31,"") ->  | AR48: 0 | AT48: ='Dati Gen'!G31 -> 0.04 | AU48: 0 | AV48: 0 | AX48: ='Dati Gen'!J31 -> 0.22 | AY48: 0 | AZ48: =IF('Dati Gen'!$M$36<>0,$AZ$51*'Dati Gen'!M31/'Dati Gen'!$M$36,0) -> 0 | BB48: =IF(AQ48<>"",VLOOKUP(AQ48,'Dati Gen'!$B$44:$D$51,3,0),"") -> 
C49: ='Computo-Massimali'!C49 -> SA) Scaldacqua a pompa di calore | F49: 0 | G49: =IF('Computo-Massimali'!F49<>0,'Computo-Massimali'!G49*F49/'Computo-Massimali'!F49,0) -> 0 | H49: =SUM(F49:G49) -> 0 | I49: =IF(('Computo-Massimali'!F49+'Computo-Massimali'!G49)<>0,'Computo-Massimali'!I49/('Computo-Massimali'!F49+'Computo-Massimali'!G49)*H49,0) -> 0 | J49: =H49+I49 -> 0 | K49: =IF('Computo-Massimali'!F49<>0,'Computo-Massimali'!K49*F49/'Computo-Massimali'!F49,0) -> 0 | L49: =SUM(J49:K49) -> 0 | M49: =IF(L49<=R49,L49*percDetr,R49*percDetr) -> 0 | N49: =IF('Computo-Massimali'!L49>0,L49/'Computo-Massimali'!L49,0) -> 0 | O49: =IF(F49>0,IF(F49-0.001>'Computo-Massimali'!F49,">C.",IF(F49+0.001<'SAL.30%'!F49,"<S1","")),"") ->  | P49: .. | Q49: SA) Scaldacqua a pompa di calore | R49: ='Computo-Massimali'!T49 -> 0 | S49: ok | U49: =IF(L50<>0,(L49/L50)*U50,0) -> 0 | W49: 0 | Y49: 0 | AA49: 0 | AG49: SA) Scaldacqua a pompa di calore | AH49: 0 | AI49: 0 | AJ49: 0 | AK49: 0 | AL49: 0 | AM49: =IF(ABS(SUM(AH49:AL49)-H49)>0.01,"err. Somma",IF(AH49>'Computo-Massimali'!BJ49,"Err.1",IF(AI49>'Computo-Massimali'!BK49,"Err.2",IF(AJ49>'Computo-Massimali'!BL49,"Err.3",IF(AK49>'Computo-Massimali'!BM49,"Err.4",IF(AL49>'Computo-Massimali'!BN49,"Err.5","")))))) ->  | AO49: =IF('Dati Gen'!$B$32<>"",'Dati Gen'!$B$32,"") ->  | AQ49: =IF('Dati Gen'!$C$32<>"",'Dati Gen'!$C$32,"") ->  | AR49: 0 | AT49: ='Dati Gen'!G32 -> 0.04 | AU49: 0 | AV49: 0 | AX49: ='Dati Gen'!J32 -> 0.22 | AY49: 0 | AZ49: =IF('Dati Gen'!$M$36<>0,$AZ$51*'Dati Gen'!M32/'Dati Gen'!$M$36,0) -> 0 | BB49: =IF(AQ49<>"",VLOOKUP(AQ49,'Dati Gen'!$B$44:$D$51,3,0),"") -> 
C50: ='Computo-Massimali'!C50 -> Totali Impianti ed SA) | F50: =SUM(F48:F49) -> 0 | G50: =SUM(G48:G49) -> 0 | H50: 0 | I50: 0 | J50: 0 | K50: =SUM(K48:K49) -> 0 | L50: 0 | M50: 0 | N50: =IF('Computo-Massimali'!L50>0,L50/'Computo-Massimali'!L50,0) -> 0 | O50: =IF(F50>0,IF(F50-0.001>'Computo-Massimali'!F50,">C.",IF(F50+0.001<'SAL.30%'!F50,"<S1","")),"") ->  | Q50: Totali Impianti ed SA) | R50: ='Computo-Massimali'!T50 -> 0 | S50: ok | U50: =IF(L50<R50,L50,R50) -> 0 | W50: 0 | Y50: 0 | AA50: 0 | AG50: Totali Impianti ed SA) | AH50: =SUM(AH48:AH49) -> 0 | AI50: =SUM(AI48:AI49) -> 0 | AJ50: =SUM(AJ48:AJ49) -> 0 | AK50: =SUM(AK48:AK49) -> 0 | AL50: =SUM(AL48:AL49) -> 0 | AO50: =IF('Dati Gen'!$B$35<>"",'Dati Gen'!$B$35,"") -> Visto Conformità | AQ50: =IF('Dati Gen'!$C$35<>"",'Dati Gen'!$C$35,"") -> Consulente | AR50: 0 | AT50: ='Dati Gen'!G35 -> 0.04 | AU50: 0 | AV50: =AZ50/(1+AX50) -> 0 | AX50: ='Dati Gen'!J35 -> 0.22 | AY50: 0 | AZ50: =IF('Dati Gen'!$M$36<>0,$AZ$51*'Dati Gen'!M35/'Dati Gen'!$M$36,0) -> 0 | BB50: =IF(AQ50<>"",VLOOKUP(AQ50,'Dati Gen'!$B$44:$D$51,3,0),"") -> NO
C51: =CONCATENATE('Computo-Massimali'!C51," - ",'Computo-Massimali'!E51) -> CO) Sistemi di Microgenerazione - Celle a combustibile | F51: 0 | G51: =IF('Computo-Massimali'!F51<>0,'Computo-Massimali'!G51*F51/'Computo-Massimali'!F51,0) -> 0 | H51: =SUM(F51:G51) -> 0 | I51: =IF(('Computo-Massimali'!F51+'Computo-Massimali'!G51)<>0,'Computo-Massimali'!I51/('Computo-Massimali'!F51+'Computo-Massimali'!G51)*H51,0) -> 0 | J51: =H51+I51 -> 0 | K51: =IF('Computo-Massimali'!F51<>0,'Computo-Massimali'!K51*F51/'Computo-Massimali'!F51,0) -> 0 | L51: =SUM(J51:K51) -> 0 | M51: =IF(L51<=R51,L51*percDetr,R51*percDetr) -> 0 | N51: =IF('Computo-Massimali'!L51>0,L51/'Computo-Massimali'!L51,0) -> 0 | O51: =IF(F51>0,IF(F51-0.001>'Computo-Massimali'!F51,">C.",IF(F51+0.001<'SAL.30%'!F51,"<S1","")),"") ->  | P51: .. | Q51: CO) Sistemi di Microgenerazione - Celle a combustibile | R51: ='Computo-Massimali'!T51 -> 0 | S51: ok | U51: 0 | W51: 0 | Y51: 0 | AA51: 0 | AG51: CO) Sistemi di Microgenerazione - Celle a combustibile | AH51: 0 | AI51: 0 | AJ51: 0 | AK51: 0 | AL51: 0 | AM51: =IF(ABS(SUM(AH51:AL51)-H51)>0.01,"err. Somma",IF(AH51>'Computo-Massimali'!BJ51,"Err.1",IF(AI51>'Computo-Massimali'!BK51,"Err.2",IF(AJ51>'Computo-Massimali'!BL51,"Err.3",IF(AK51>'Computo-Massimali'!BM51,"Err.4",IF(AL51>'Computo-Massimali'!BN51,"Err.5","")))))) ->  | AR51: =SUM(AR42:AS50) -> 0 | AT51: =SUM(AU42:AU50) -> 0 | AV51: =SUM(AV42:AW50) -> 0 | AY51: =SUM(AY42:AY50) -> 0 | AZ51: =K93 -> 0
C52: ='Computo-Massimali'!C52 -> IB) Generatori a Biomassa | F52: 0 | G52: =IF('Computo-Massimali'!F52<>0,'Computo-Massimali'!G52*F52/'Computo-Massimali'!F52,0) -> 0 | H52: 0 | I52: =IF(('Computo-Massimali'!F52+'Computo-Massimali'!G52)<>0,'Computo-Massimali'!I52/('Computo-Massimali'!F52+'Computo-Massimali'!G52)*H52,0) -> 0 | J52: 0 | K52: =IF('Computo-Massimali'!F52<>0,'Computo-Massimali'!K52*F52/'Computo-Massimali'!F52,0) -> 0 | L52: 0 | M52: 0 | N52: =IF('Computo-Massimali'!L52>0,L52/'Computo-Massimali'!L52,0) -> 0 | O52: =IF(F52>0,IF(F52-0.001>'Computo-Massimali'!F52,">C.",IF(F52+0.001<'SAL.30%'!F52,"<S1","")),"") ->  | P52: .. | Q52: IB) Generatori a Biomassa | R52: ='Computo-Massimali'!T52 -> 0 | S52: ok | U52: 0 | W52: 0 | Y52: 0 | AA52: 0 | AG52: IB) Generatori a Biomassa | AH52: 0 | AI52: 0 | AJ52: 0 | AK52: 0 | AL52: 0 | AM52: =IF(ABS(SUM(AH52:AL52)-H52)>0.01,"err. Somma",IF(AH52>'Computo-Massimali'!BJ52,"Err.1",IF(AI52>'Computo-Massimali'!BK52,"Err.2",IF(AJ52>'Computo-Massimali'!BL52,"Err.3",IF(AK52>'Computo-Massimali'!BM52,"Err.4",IF(AL52>'Computo-Massimali'!BN52,"Err.5","")))))) ->  | AO52: Ripartizione Spese Tecniche / Professionista : SAL. N.2 - ALTRI INTERVENTI
C53: ='Computo-Massimali'!C53 -> BA) Building Automation | F53: 0 | G53: =IF('Computo-Massimali'!F53<>0,'Computo-Massimali'!G53*F53/'Computo-Massimali'!F53,0) -> 0 | H53: 0 | I53: =IF(('Computo-Massimali'!F53+'Computo-Massimali'!G53)<>0,'Computo-Massimali'!I53/('Computo-Massimali'!F53+'Computo-Massimali'!G53)*H53,0) -> 0 | J53: 0 | K53: =IF('Computo-Massimali'!F53<>0,'Computo-Massimali'!K53*F53/'Computo-Massimali'!F53,0) -> 0 | L53: 0 | M53: 0 | N53: =IF('Computo-Massimali'!L53>0,L53/'Computo-Massimali'!L53,0) -> 0 | O53: =IF(F53>0,IF(F53-0.001>'Computo-Massimali'!F53,">C.",IF(F53+0.001<'SAL.30%'!F53,"<S1","")),"") ->  | P53: .. | Q53: BA) Building Automation | R53: ='Computo-Massimali'!T53 -> 0 | S53: ok | U53: 0 | W53: 0 | Y53: 0 | AA53: 0 | AG53: BA) Building Automation | AH53: 0 | AI53: 0 | AJ53: 0 | AK53: 0 | AL53: 0 | AM53: =IF(ABS(SUM(AH53:AL53)-H53)>0.01,"err. Somma",IF(AH53>'Computo-Massimali'!BJ53,"Err.1",IF(AI53>'Computo-Massimali'!BK53,"Err.2",IF(AJ53>'Computo-Massimali'!BL53,"Err.3",IF(AK53>'Computo-Massimali'!BM53,"Err.4",IF(AL53>'Computo-Massimali'!BN53,"Err.5","")))))) ->  | AO53: =IF('Dati Gen'!$B$44<>"",'Dati Gen'!$B$44,"") -> Tecnico1 | AP53: =IF('Dati Gen'!$B$45<>"",'Dati Gen'!$B$45,"") -> Tecnico2 | AQ53: =IF('Dati Gen'!$B$46<>"",'Dati Gen'!$B$46,"") -> Consulente | AR53: =IF('Dati Gen'!$B$47<>"",'Dati Gen'!$B$47,"") ->  | AT53: =IF('Dati Gen'!$B$48<>"",'Dati Gen'!$B$48,"") ->  | AV53: =IF('Dati Gen'!$B$49<>"",'Dati Gen'!$B$49,"") ->  | AX53: =IF('Dati Gen'!$B$50<>"",'Dati Gen'!$B$50,"") ->  | AZ53: =IF('Dati Gen'!$B$51<>"",'Dati Gen'!$B$51,"") -> 
C54: ='Computo-Massimali'!C54 -> ST) Collettori Solari | E54: ='Computo-Massimali'!E54 -> Piani Vetrati | F54: 0 | G54: =IF('Computo-Massimali'!F54<>0,'Computo-Massimali'!G54*F54/'Computo-Massimali'!F54,0) -> 0 | H54: 0 | I54: =IF(('Computo-Massimali'!F54+'Computo-Massimali'!G54)<>0,'Computo-Massimali'!I54/('Computo-Massimali'!F54+'Computo-Massimali'!G54)*H54,0) -> 0 | J54: 0 | K54: =IF('Computo-Massimali'!F54<>0,'Computo-Massimali'!K54*F54/'Computo-Massimali'!F54,0) -> 0 | L54: =SUM(J54:K54) -> 0 | M54: 0 | N54: =IF('Computo-Massimali'!L54>0,L54/'Computo-Massimali'!L54,0) -> 0 | O54: =IF(F54>0,IF(F54-0.001>'Computo-Massimali'!F54,">C.",IF(F54+0.001<'SAL.30%'!F54,"<S1","")),"") ->  | P54: .. | Q54: ST) Collettori Solari | R54: ='Computo-Massimali'!T54 -> 0 | S54: ok | U54: 0 | W54: 0 | Y54: 0 | AA54: 0 | AG54: ST) Collettori Solari | AH54: 0 | AI54: 0 | AJ54: 0 | AK54: 0 | AL54: 0 | AM54: =IF(ABS(SUM(AH54:AL54)-H54)>0.01,"err. Somma",IF(AH54>'Computo-Massimali'!BJ54,"Err.1",IF(AI54>'Computo-Massimali'!BK54,"Err.2",IF(AJ54>'Computo-Massimali'!BL54,"Err.3",IF(AK54>'Computo-Massimali'!BM54,"Err.4",IF(AL54>'Computo-Massimali'!BN54,"Err.5","")))))) ->  | AO54: =IF($AQ42=AO$53,$AZ42,0) -> 0 | AP54: =IF($AQ42=AP$53,$AZ42,0) -> 0 | AQ54: 0 | AR54: 0 | AT54: =IF($AQ42=AT$53,$AZ42,0) -> 0 | AV54: =IF($AQ42=AV$53,$AZ42,0) -> 0 | AX54: =IF($AQ42=AX$53,$AZ42,0) -> 0 | AZ54: =IF($AQ42=AZ$53,$AZ42,0) -> 0
C55: ='Computo-Massimali'!C55 -> FV) Solare Fotovoltaico [ kWp ] | E55: ='Computo-Massimali'!E55 -> 6.72 | F55: 0 | G55: =IF('Computo-Massimali'!F55<>0,'Computo-Massimali'!G55*F55/'Computo-Massimali'!F55,0) -> 0 | H55: 0 | I55: =IF(('Computo-Massimali'!F55+'Computo-Massimali'!G55)<>0,'Computo-Massimali'!I55/('Computo-Massimali'!F55+'Computo-Massimali'!G55)*H55,0) -> 0 | J55: 0 | K55: =IF('Computo-Massimali'!F55<>0,'Computo-Massimali'!K55*F55/'Computo-Massimali'!F55,0) -> 0 | L55: 0 | M55: 0 | N55: =IF('Computo-Massimali'!L55>0,L55/'Computo-Massimali'!L55,0) -> 0 | O55: =IF(F55>0,IF(F55-0.001>'Computo-Massimali'!F55,">C.",IF(F55+0.001<'SAL.30%'!F55,"<S1","")),"") ->  | P55: .. | Q55: FV) Solare Fotovoltaico [ kWp ] | R55: ='Computo-Massimali'!T55 -> 16128 | S55: ok | U55: 0 | W55: 0 | Y55: 0 | AA55: 0 | AG55: FV) Solare Fotovoltaico [ kWp ] | AH55: 0 | AI55: 0 | AJ55: 0 | AK55: 0 | AL55: 0 | AM55: =IF(ABS(SUM(AH55:AL55)-H55)>0.01,"err. Somma",IF(AH55>'Computo-Massimali'!BJ55,"Err.1",IF(AI55>'Computo-Massimali'!BK55,"Err.2",IF(AJ55>'Computo-Massimali'!BL55,"Err.3",IF(AK55>'Computo-Massimali'!BM55,"Err.4",IF(AL55>'Computo-Massimali'!BN55,"Err.5","")))))) ->  | AO55: =IF($AQ43=AO$53,$AZ43,0) -> 0 | AP55: 0 | AQ55: 0 | AR55: 0 | AT55: 0 | AV55: 0 | AX55: 0 | AZ55: 0
C56: ='Computo-Massimali'!C56 -> AC) Sistema di Accumulo [ kWh ] | E56: ='Computo-Massimali'!E56 -> 10 | F56: 0 | G56: =IF('Computo-Massimali'!F56<>0,'Computo-Massimali'!G56*F56/'Computo-Massimali'!F56,0) -> 0 | H56: 0 | I56: =IF(('Computo-Massimali'!F56+'Computo-Massimali'!G56)<>0,'Computo-Massimali'!I56/('Computo-Massimali'!F56+'Computo-Massimali'!G56)*H56,0) -> 0 | J56: 0 | K56: =IF('Computo-Massimali'!F56<>0,'Computo-Massimali'!K56*F56/'Computo-Massimali'!F56,0) -> 0 | L56: 0 | M56: 0 | N56: =IF('Computo-Massimali'!L56>0,L56/'Computo-Massimali'!L56,0) -> 0 | O56: =IF(F56>0,IF(F56-0.001>'Computo-Massimali'!F56,">C.",IF(F56+0.001<'SAL.30%'!F56,"<S1","")),"") ->  | P56: .. | Q56: AC) Sistema di Accumulo [ kWh ] | R56: ='Computo-Massimali'!T56 -> 10000 | S56: ok | U56: 0 | W56: 0 | Y56: 0 | AA56: 0 | AG56: AC) Sistema di Accumulo [ kWh ] | AH56: 0 | AI56: 0 | AJ56: 0 | AK56: 0 | AL56: 0 | AM56: =IF(ABS(SUM(AH56:AL56)-H56)>0.01,"err. Somma",IF(AH56>'Computo-Massimali'!BJ56,"Err.1",IF(AI56>'Computo-Massimali'!BK56,"Err.2",IF(AJ56>'Computo-Massimali'!BL56,"Err.3",IF(AK56>'Computo-Massimali'!BM56,"Err.4",IF(AL56>'Computo-Massimali'!BN56,"Err.5","")))))) ->  | AO56: 0 | AP56: 0 | AQ56: 0 | AR56: 0 | AT56: 0 | AV56: 0 | AX56: 0 | AZ56: 0
C57: ='Computo-Massimali'!C57 -> CR) Colonnine di Ricarica | E57: ='Computo-Massimali'!E57 -> 1 | F57: 0 | G57: =IF('Computo-Massimali'!F57<>0,'Computo-Massimali'!G57*F57/'Computo-Massimali'!F57,0) -> 0 | H57: 0 | I57: =IF(('Computo-Massimali'!F57+'Computo-Massimali'!G57)<>0,'Computo-Massimali'!I57/('Computo-Massimali'!F57+'Computo-Massimali'!G57)*H57,0) -> 0 | J57: 0 | K57: =IF('Computo-Massimali'!F57<>0,'Computo-Massimali'!K57*F57/'Computo-Massimali'!F57,0) -> 0 | L57: 0 | M57: 0 | N57: =IF('Computo-Massimali'!L57>0,L57/'Computo-Massimali'!L57,0) -> 0 | O57: =IF(F57>0,IF(F57-0.001>'Computo-Massimali'!F57,">C.",IF(F57+0.001<'SAL.30%'!F57,"<S1","")),"") ->  | P57: .. | Q57: CR) Colonnine di Ricarica | R57: ='Computo-Massimali'!T57 -> 2000 | S57: ok | U57: 0 | W57: 0 | Y57: 0 | AA57: 0 | AG57: CR) Colonnine di Ricarica | AH57: 0 | AI57: 0 | AJ57: 0 | AK57: 0 | AL57: 0 | AM57: =IF(ABS(SUM(AH57:AL57)-H57)>0.01,"err. Somma",IF(AH57>'Computo-Massimali'!BJ57,"Err.1",IF(AI57>'Computo-Massimali'!BK57,"Err.2",IF(AJ57>'Computo-Massimali'!BL57,"Err.3",IF(AK57>'Computo-Massimali'!BM57,"Err.4",IF(AL57>'Computo-Massimali'!BN57,"Err.5","")))))) ->  | AO57: 0 | AP57: 0 | AQ57: 0 | AR57: 0 | AT57: 0 | AV57: 0 | AX57: 0 | AZ57: 0
C58: EBA) Eliminazione Barriere architettoniche | F58: 0 | G58: =IF('Computo-Massimali'!F58<>0,'Computo-Massimali'!G58*F58/'Computo-Massimali'!F58,0) -> 0 | H58: 0 | I58: =IF(('Computo-Massimali'!F58+'Computo-Massimali'!G58)<>0,'Computo-Massimali'!I58/('Computo-Massimali'!F58+'Computo-Massimali'!G58)*H58,0) -> 0 | J58: 0 | K58: =IF('Computo-Massimali'!F58<>0,'Computo-Massimali'!K58*F58/'Computo-Massimali'!F58,0) -> 0 | L58: 0 | M58: 0 | N58: =IF('Computo-Massimali'!L58>0,L58/'Computo-Massimali'!L58,0) -> 0 | O58: =IF(F58>0,IF(F58-0.001>'Computo-Massimali'!F58,">C.",IF(F58+0.001<'SAL.30%'!F58,"<S1","")),"") ->  | P58: .. | Q58: EBA) Eliminazione Barriere architettoniche | R58: ='Computo-Massimali'!T58 -> 96000 | S58: ok | U58: 0 | W58: 0 | Y58: 0 | AA58: 0 | AG58: EBA) Eliminazione Barriere architettoniche | AH58: 0 | AI58: 0 | AJ58: 0 | AK58: 0 | AL58: 0 | AM58: =IF(ABS(SUM(AH58:AL58)-H58)>0.01,"err. Somma",IF(AH58>'Computo-Massimali'!BJ58,"Err.1",IF(AI58>'Computo-Massimali'!BK58,"Err.2",IF(AJ58>'Computo-Massimali'!BL58,"Err.3",IF(AK58>'Computo-Massimali'!BM58,"Err.4",IF(AL58>'Computo-Massimali'!BN58,"Err.5","")))))) ->  | AO58: 0 | AP58: 0 | AQ58: 0 | AR58: 0 | AT58: 0 | AV58: 0 | AX58: 0 | AZ58: 0
C59: Totale Interventi trainati | F59: =IF(Titolare!$B$16="Versione Demo",0,F46+F47+SUM(F50:F58)) -> 0 | G59: =G46+G47+SUM(G50:G58) -> 0 | H59: =H46+H47+SUM(H50:H58) -> 0 | I59: 0 | J59: 0 | K59: 0 | L59: 0 | M59: 0 | N59: =IF('Computo-Massimali'!L59>0,L59/'Computo-Massimali'!L59,0) -> 0 | O59: =IF(F59>0,IF(F59-0.001>'Computo-Massimali'!F59,">C.",IF(F59+0.001<'SAL.30%'!F59,"<S1","")),"") ->  | R59: =C59 -> Totale Interventi trainati | U59: =U46+U47+SUM(U50:V58) -> 0 | W59: =W46+W47+SUM(W50:X58) -> 0 | Y59: =Y46+Y47+SUM(Y50:Z58) -> 0 | AA59: =AA46+AA47+SUM(AA50:AB58) -> 0 | AG59: =R59 -> Totale Interventi trainati | AH59: =AH46+AH47+SUM(AH50:AH58) -> 0 | AI59: =AI46+AI47+SUM(AI50:AI58) -> 0 | AJ59: =AJ46+AJ47+SUM(AJ50:AJ58) -> 0 | AK59: =AK46+AK47+SUM(AK50:AK58) -> 0 | AL59: =AL46+AL47+SUM(AL50:AL58) -> 0 | AO59: 0 | AP59: 0 | AQ59: 0 | AR59: 0 | AT59: 0 | AV59: 0 | AX59: 0 | AZ59: 0
AO60: 0 | AP60: 0 | AQ60: 0 | AR60: 0 | AT60: 0 | AV60: 0 | AX60: 0 | AZ60: 0
AO61: 0 | AP61: 0 | AQ61: 0 | AR61: 0 | AT61: 0 | AV61: 0 | AX61: 0 | AZ61: 0
AO62: =IF($AQ50=AO$53,$AZ50,0) -> 0 | AP62: 0 | AQ62: 0 | AR62: 0 | AT62: 0 | AV62: 0 | AX62: 0 | AZ62: 0
AO63: =SUM(AO54:AO62) -> 0 | AP63: =SUM(AP54:AP62) -> 0 | AQ63: =SUM(AQ54:AQ62) -> 0 | AR63: =SUM(AR54:AR62) -> 0 | AT63: =SUM(AT54:AT62) -> 0 | AV63: =SUM(AV54:AV62) -> 0 | AX63: =SUM(AX54:AX62) -> 0 | AZ63: =SUM(AZ54:AZ62) -> 0 | BB63: =SUM(AO63:BA63) -> 0
AO64: =IF($BB$63<>0,AO63/$BB$63,0) -> 0 | AP64: =IF($BB$63<>0,AP63/$BB$63,0) -> 0 | AQ64: =IF($BB$63<>0,AQ63/$BB$63,0) -> 0 | AR64: =IF($BB$63<>0,AR63/$BB$63,0) -> 0 | AT64: =IF($BB$63<>0,AT63/$BB$63,0) -> 0 | AV64: =IF($BB$63<>0,AV63/$BB$63,0) -> 0 | AX64: =IF($BB$63<>0,AX63/$BB$63,0) -> 0 | AZ64: =IF($BB$63<>0,AZ63/$BB$63,0) -> 0
C70: Note
C78: SimMZ
AG79: ='Computo-Massimali'!BI78 -> Ripartizione tra le Imprese - Imponibile Lavori INTERVENTI SB.
C80: TOTALI SAL N.2 - INTERVENTI SB. | F80: Importo Lavori | G80: Incidenza Sicurezza | H80: Imponibile | I80: Iva | J80: Importo c.iva | K80: Spese tecniche | L80: Totale | M80: =$M$8 -> Credito Spettante 75% Spesa Ammessa | N80: %SAL | Q80: =C80 -> TOTALI SAL N.2 - INTERVENTI SB. | U80: Spesa Ammessa | W80: Quota Eccedente Massimale Spesa | Y80: =Y8 -> Credito Spettante 75% Spesa Ammessa Quota Imprese | Quota Tecnici | AG80: =Q80 -> TOTALI SAL N.2 - INTERVENTI SB. | AH80: =IF('Dati Gen'!$B$38<>"",'Dati Gen'!$B$38,"") -> Impresa1 | AI80: =IF('Dati Gen'!$B$39<>"",'Dati Gen'!$B$39,"") -> Impresa2 | AJ80: =IF('Dati Gen'!$B$40<>"",'Dati Gen'!$B$40,"") -> Impresa3 | AK80: =IF('Dati Gen'!$B$41<>"",'Dati Gen'!$B$41,"") -> Impresa4 | AL80: =IF('Dati Gen'!$B$42<>"",'Dati Gen'!$B$42,"") -> 
F81: =F16+F59 -> 0 | G81: 0 | H81: 0 | I81: 0 | J81: 0 | K81: 0 | L81: 0 | M81: 0 | N81: =IF('Computo-Massimali'!L81>0,L81/'Computo-Massimali'!L81,0) -> 0 | O81: =IF(F81>0,IF(F81>'Computo-Massimali'!F81,">C.",IF(F81<'SAL.30%'!F81,"<S1","")),"") ->  | U81: =U16+U59 -> 0 | W81: =W16+W59 -> 0 | Y81: =Y16+Y59 -> 0 | AA81: =AA16+AA59 -> 0 | AH81: =AH16+AH59 -> 0 | AI81: =AI16+AI59 -> 0 | AJ81: =AJ16+AJ59 -> 0 | AK81: =AK16+AK59 -> 0 | AL81: =AL16+AL59 -> 0
C82: =CONCATENATE("Quota a Carico Cliente per Interventi SB = Eccedenza Spesa Ammessa ",IF(percDetr<1,CONCATENATE("+",100*(1-percDetr),"%·Spesa Ammessa =")," =")) -> Quota a Carico Cliente per Interventi SB = Eccedenza Spesa Ammessa +25%·Spesa Ammessa = | L82: =IF((1-percDetr)*SpesaAmmessa60>0,QuotaEcced60+(1-percDetr)*SpesaAmmessa60,QuotaEcced60) -> 0 | M82: =IF('Computo-Massimali'!L15<>0,IF('Computo-Massimali'!L81-'Computo-Massimali'!L15>0,"SAL SB. - Sisma=",""),"") ->  | N82: =IF('Computo-Massimali'!L15<>0,IF('Computo-Massimali'!L81-'Computo-Massimali'!L15>0,(Totale60-L15)/('Computo-Massimali'!L81-'Computo-Massimali'!L15),""),"") -> 
K83: =CONCATENATE("Quota Cedibile = ",100*percDetr,"%·Spesa Ammessa = ") -> Quota Cedibile = 75%·Spesa Ammessa = | L83: =SpesaAmmessa60*percDetr -> 0
C84: =IF(N81<60%,"Attenzione! SAL Superbonus inferiore 60%","") -> Attenzione! SAL Superbonus inferiore 60%
C87: ALTRI INTERVENTI | Q87: =CONCATENATE("Verifica Massimali di Spesa ",C87) -> Verifica Massimali di Spesa ALTRI INTERVENTI | AG87: ='Computo-Massimali'!BI87 -> Ripartizione tra le Imprese - Imponibile Lavori ALTRI INTERVENTI
C88: Interventi | E88: x% Credito ceduto | F88: Importo Lavori | G88: Incidenza Sicurezza | H88: Imponibile | I88: Iva | J88: Importo c.iva | K88: Spese tecniche | L88: Totale | M88: Credito Spettante x% Spesa Ammessa | N88: %SAL | R88: Massimale spesa | S88: Verifica Max | U88: Spesa Ammessa | W88: Quota Eccedente Massimale Spesa | Y88: Credito Spettante x% Spesa Ammessa Quota Imprese | Quota Tecnici | AG88: Interventi | AH88: =IF('Dati Gen'!$B$38<>"",'Dati Gen'!$B$38,"") -> Impresa1 | AI88: =IF('Dati Gen'!$B$39<>"",'Dati Gen'!$B$39,"") -> Impresa2 | AJ88: =IF('Dati Gen'!$B$40<>"",'Dati Gen'!$B$40,"") -> Impresa3 | AK88: =IF('Dati Gen'!$B$41<>"",'Dati Gen'!$B$41,"") -> Impresa4 | AL88: =IF('Dati Gen'!$B$42<>"",'Dati Gen'!$B$42,"") -> 
C89: =IF('Computo-Massimali'!C89<>"",'Computo-Massimali'!C89,"") -> Manutenzione straordinaria, restauro e recupero conservativo | E89: ='Computo-Massimali'!E89 -> 0.75 | F89: 0 | G89: =IF('Computo-Massimali'!F89<>0,'Computo-Massimali'!G89*F89/'Computo-Massimali'!F89,0) -> 0 | H89: =SUM(F89:G89) -> 0 | I89: =IF(('Computo-Massimali'!F89+'Computo-Massimali'!G89)<>0,'Computo-Massimali'!I89/('Computo-Massimali'!F89+'Computo-Massimali'!G89)*H89,0) -> 0 | J89: =H89+I89 -> 0 | K89: =IF('Computo-Massimali'!F89<>0,'Computo-Massimali'!K89*F89/'Computo-Massimali'!F89,0) -> 0 | L89: =SUM(J89:K89) -> 0 | M89: =IF(L89<=R89,L89*E89,R89*E89) -> 0 | N89: =IF('Computo-Massimali'!L89>0,L89/'Computo-Massimali'!L89,0) -> 0 | O89: =IF(F89>0,IF(F89>'Computo-Massimali'!F89,">C.",IF(F89<'SAL.30%'!F89,"<S1","")),"") ->  | P89: .. | Q89: =IF(C89<>"",C89,"") -> Manutenzione straordinaria, restauro e recupero conservativo | R89: ='Computo-Massimali'!T89 -> 96000 | S89: =IF(L89>R89,"KO Tot.>Detr.","ok") -> ok | U89: =IF(L89<R89,L89,R89) -> 0 | W89: =IF(L89>R89,L89-R89,0) -> 0 | Y89: =IF(M89<>0,J89*M89/L89,0) -> 0 | AA89: =IF(M89<>0,K89*M89/L89,0) -> 0 | AG89: =Q89 -> Manutenzione straordinaria, restauro e recupero conservativo | AH89: 0 | AI89: 0 | AJ89: 0 | AK89: 0 | AL89: 0 | AM89: =IF(ABS(SUM(AH89:AL89)-H89)>0.01,"err. Somma",IF(AH89>'Computo-Massimali'!BJ89,"Err.1",IF(AI89>'Computo-Massimali'!BK89,"Err.2",IF(AJ89>'Computo-Massimali'!BL89,"Err.3",IF(AK89>'Computo-Massimali'!BM89,"Err.4",IF(AL89>'Computo-Massimali'!BN89,"Err.5","")))))) -> 
C90: =IF('Computo-Massimali'!C90<>"",'Computo-Massimali'!C90,"") ->  | D90: =IF('Computo-Massimali'!D90<>"",'Computo-Massimali'!D90,"") ->  | E90: ='Computo-Massimali'!E90 -> 0.6 | F90: 0 | G90: =IF('Computo-Massimali'!F90<>0,'Computo-Massimali'!G90*F90/'Computo-Massimali'!F90,0) -> 0 | H90: =SUM(F90:G90) -> 0 | I90: =IF(('Computo-Massimali'!F90+'Computo-Massimali'!G90)<>0,'Computo-Massimali'!I90/('Computo-Massimali'!F90+'Computo-Massimali'!G90)*H90,0) -> 0 | J90: =H90+I90 -> 0 | K90: =IF('Computo-Massimali'!F90<>0,'Computo-Massimali'!K90*F90/'Computo-Massimali'!F90,0) -> 0 | L90: =SUM(J90:K90) -> 0 | M90: =IF(L90<=R90,L90*E90,R90*E90) -> 0 | N90: =IF('Computo-Massimali'!L90>0,L90/'Computo-Massimali'!L90,0) -> 0 | O90: =IF(F90>0,IF(F90>'Computo-Massimali'!F90,">C.",IF(F90<'SAL.30%'!F90,"<S1","")),"") ->  | P90: .. | Q90: =IF(C90<>"",C90,"") ->  | R90: ='Computo-Massimali'!T90 -> 96000 | S90: =IF(L90>R90,"KO Tot.>Detr.","ok") -> ok | U90: =IF(L90<R90,L90,R90) -> 0 | W90: =IF(L90>R90,L90-R90,0) -> 0 | Y90: =IF(M90<>0,J90*M90/L90,0) -> 0 | AA90: =IF(M90<>0,K90*M90/L90,0) -> 0 | AG90: =Q90 ->  | AH90: 0 | AI90: 0 | AJ90: 0 | AK90: 0 | AL90: 0 | AM90: =IF(ABS(SUM(AH90:AL90)-H90)>0.01,"err. Somma",IF(AH90>'Computo-Massimali'!BJ90,"Err.1",IF(AI90>'Computo-Massimali'!BK90,"Err.2",IF(AJ90>'Computo-Massimali'!BL90,"Err.3",IF(AK90>'Computo-Massimali'!BM90,"Err.4",IF(AL90>'Computo-Massimali'!BN90,"Err.5","")))))) -> 
C91: =IF('Computo-Massimali'!C91<>"",'Computo-Massimali'!C91,"") ->  | D91: =IF('Computo-Massimali'!D91<>"",'Computo-Massimali'!D91,"") ->  | E91: ='Computo-Massimali'!E91 -> 0.7 | F91: 0 | G91: =IF('Computo-Massimali'!F91<>0,'Computo-Massimali'!G91*F91/'Computo-Massimali'!F91,0) -> 0 | H91: =SUM(F91:G91) -> 0 | I91: =IF(('Computo-Massimali'!F91+'Computo-Massimali'!G91)<>0,'Computo-Massimali'!I91/('Computo-Massimali'!F91+'Computo-Massimali'!G91)*H91,0) -> 0 | J91: =H91+I91 -> 0 | K91: =IF('Computo-Massimali'!F91<>0,'Computo-Massimali'!K91*F91/'Computo-Massimali'!F91,0) -> 0 | L91: =SUM(J91:K91) -> 0 | M91: =IF(L91<=R91,L91*E91,R91*E91) -> 0 | N91: =IF('Computo-Massimali'!L91>0,L91/'Computo-Massimali'!L91,0) -> 0 | O91: =IF(F91>0,IF(F91>'Computo-Massimali'!F91,">C.",IF(F91<'SAL.30%'!F91,"<S1","")),"") ->  | P91: .. | Q91: =IF(C91<>"",C91,"") ->  | R91: ='Computo-Massimali'!T91 -> 96000 | S91: =IF(L91>R91,"KO Tot.>Detr.","ok") -> ok | U91: =IF(L91<R91,L91,R91) -> 0 | W91: =IF(L91>R91,L91-R91,0) -> 0 | Y91: =IF(M91<>0,J91*M91/L91,0) -> 0 | AA91: =IF(M91<>0,K91*M91/L91,0) -> 0 | AG91: =Q91 ->  | AH91: 0 | AI91: 0 | AJ91: 0 | AK91: 0 | AL91: 0 | AM91: =IF(ABS(SUM(AH91:AL91)-H91)>0.01,"err. Somma",IF(AH91>'Computo-Massimali'!BJ91,"Err.1",IF(AI91>'Computo-Massimali'!BK91,"Err.2",IF(AJ91>'Computo-Massimali'!BL91,"Err.3",IF(AK91>'Computo-Massimali'!BM91,"Err.4",IF(AL91>'Computo-Massimali'!BN91,"Err.5","")))))) -> 
C92: =IF('Computo-Massimali'!C92<>"",'Computo-Massimali'!C92,"") ->  | D92: =IF('Computo-Massimali'!D92<>"",'Computo-Massimali'!D92,"") ->  | E92: ='Computo-Massimali'!E92 -> 0 | F92: 0 | G92: =IF('Computo-Massimali'!F92<>0,'Computo-Massimali'!G92*F92/'Computo-Massimali'!F92,0) -> 0 | H92: =SUM(F92:G92) -> 0 | I92: =IF(('Computo-Massimali'!F92+'Computo-Massimali'!G92)<>0,'Computo-Massimali'!I92/('Computo-Massimali'!F92+'Computo-Massimali'!G92)*H92,0) -> 0 | J92: =H92+I92 -> 0 | K92: =IF('Computo-Massimali'!F92<>0,'Computo-Massimali'!K92*F92/'Computo-Massimali'!F92,0) -> 0 | L92: =SUM(J92:K92) -> 0 | M92: =IF(L92<=R92,L92*E92,R92*E92) -> 0 | N92: =IF('Computo-Massimali'!L92>0,L92/'Computo-Massimali'!L92,0) -> 0 | O92: =IF(F92>0,IF(F92>'Computo-Massimali'!F92,">C.",IF(F92<'SAL.30%'!F92,"<S1","")),"") ->  | P92: .. | Q92: =IF(C92<>"",C92,"") ->  | R92: ='Computo-Massimali'!T92 -> 96000 | S92: =IF(L92>R92,"KO Tot.>Detr.","ok") -> ok | U92: =IF(L92<R92,L92,R92) -> 0 | W92: =IF(L92>R92,L92-R92,0) -> 0 | Y92: =IF(M92<>0,J92*M92/L92,0) -> 0 | AA92: =IF(M92<>0,K92*M92/L92,0) -> 0 | AG92: =Q92 ->  | AH92: 0 | AI92: 0 | AJ92: 0 | AK92: 0 | AL92: 0 | AM92: =IF(ABS(SUM(AH92:AL92)-H92)>0.01,"err. Somma",IF(AH92>'Computo-Massimali'!BJ92,"Err.1",IF(AI92>'Computo-Massimali'!BK92,"Err.2",IF(AJ92>'Computo-Massimali'!BL92,"Err.3",IF(AK92>'Computo-Massimali'!BM92,"Err.4",IF(AL92>'Computo-Massimali'!BN92,"Err.5","")))))) -> 
C93: TotalI SAL N.2 - Altri Interventi : | F93: =SUM(F89:F92) -> 0 | G93: 0 | H93: 0 | I93: 0 | J93: 0 | K93: 0 | L93: 0 | M93: 0 | N93: =IF('Computo-Massimali'!L93>0,L93/'Computo-Massimali'!L93,0) -> 0 | O93: =IF(F93>0,IF(F93>'Computo-Massimali'!F93,">C.",IF(F93<'SAL.30%'!F93,"<S1","")),"") ->  | R93: =C93 -> TotalI SAL N.2 - Altri Interventi : | U93: =SUM(U89:V92) -> 0 | W93: =SUM(W89:X92) -> 0 | Y93: =SUM(Y89:Z92) -> 0 | AA93: =SUM(AA89:AB92) -> 0 | AG93: =R93 -> TotalI SAL N.2 - Altri Interventi : | AH93: =SUM(AH89:AH92) -> 0 | AI93: =SUM(AI89:AI92) -> 0 | AJ93: 0 | AK93: 0 | AL93: 0
C94: Quota a Carico Cliente per Altri Interventi = Eccedenza Spesa Ammessa + (100-x)%·Spesa Ammessa = | L94: =IF((1-E89)*U89+(1-E90)*U90+(1-E91)*U91+(1-E92)*U92>0,W93+(1-E89)*U89+(1-E90)*U90+(1-E91)*U91+(1-E92)*U92,W93) -> 0
K95: Quota Cedibile = x%·Spesa Ammessa = | L95: =U89*E89+U90*E90+U91*E91+U92*E92 -> 0 | AG95: ='Computo-Massimali'!BI98 -> Ripartizione tra le Imprese - Imponibile Lavori
C96: TOTALI SAL N.2 | F96: Importo Lavori Eseguiti | G96: Incidenza Sicurezza | H96: Imponibile | I96: Iva | J96: Importo c.iva | K96: Spese tecniche | L96: Totale | M96: Credito Spettante | N96: %SAL | Q96: =C96 -> TOTALI SAL N.2 | U96: Spesa Ammessa | W96: Quota Eccedente Massimale Spesa | Y96: Credito Spettante Quota Imprese | Quota Tecnici | AG96: =Q96 -> TOTALI SAL N.2 | AH96: =IF('Dati Gen'!$B$38<>"",'Dati Gen'!$B$38,"") -> Impresa1 | AI96: =IF('Dati Gen'!$B$39<>"",'Dati Gen'!$B$39,"") -> Impresa2 | AJ96: =IF('Dati Gen'!$B$40<>"",'Dati Gen'!$B$40,"") -> Impresa3 | AK96: =IF('Dati Gen'!$B$41<>"",'Dati Gen'!$B$41,"") -> Impresa4 | AL96: =IF('Dati Gen'!$B$42<>"",'Dati Gen'!$B$42,"") -> 
F97: =F81+F93 -> 0 | G97: 0 | H97: 0 | I97: 0 | J97: 0 | K97: 0 | L97: =L81+L93 -> 0 | M97: =M81+M93 -> 0 | N97: =IF('Computo-Massimali'!L100>0,L97/'Computo-Massimali'!L100,0) -> 0 | O97: =IF(F97>0,IF(F97>'Computo-Massimali'!F100,">C.",IF(F97<'SAL.30%'!F97,"<S1","")),"") ->  | U97: =U81+U93 -> 0 | W97: =W81+W93 -> 0 | Y97: =Y81+Y93 -> 0 | AA97: =AA81+AA93 -> 0 | AH97: =AH81+AH93 -> 0 | AI97: =AI81+AI93 -> 0 | AJ97: =AJ81+AJ93 -> 0 | AK97: =AK81+AK93 -> 0 | AL97: =AL81+AL93 -> 0
C98: Importi Netti : SAL.60% - SAL.30% | F98: =F97-'SAL.30%'!F97 -> -15000 | G98: =G97-'SAL.30%'!G97 -> 0 | H98: =H97-'SAL.30%'!H97 -> -15000 | I98: =I97-'SAL.30%'!I97 -> -1500 | J98: =J97-'SAL.30%'!J97 -> -16500 | K98: =K97-'SAL.30%'!K97 -> -2299.473618 | L98: =L97-'SAL.30%'!L97 -> -18799.47362 | M98: =M97-'SAL.30%'!M97 -> -14099.60521
C100: =IF(ABS(D5-G97)>0.01,"Importo Effettivo Lavori Eseguiti","") -> Importo Effettivo Lavori Eseguiti | F100: =IF($C$100<>"",F97,"") -> 0 | G100: =IF($C$100<>"",D5,"") -> 15812.03 | H100: =IF($C$100<>"",F100+G100,"") -> 15812.03 | I100: =IF($C$100<>"",H100*AliqIva,"") -> 1581.203 | J100: =IF($C$100<>"",H100+I100,"") -> 17393.233 | K100: =IF($C$100<>"",K97,"") -> 0 | L100: =IF($C$100<>"",J100+K100,"") -> 17393.233 | M100: =IF($C$100<>"",L100*percDetr,"") -> 13044.92475 | N100: =IF($C$100<>"",L100/'Computo-Massimali'!L100,"") -> 0.3486926656
C101: =IF($C$100<>"","Oneri/Lavori Sicurezza non imputabili al SAL, per lavori non eseguiti","") -> Oneri/Lavori Sicurezza non imputabili al SAL, per lavori non eseguiti | G101: =IF($C$101<>"",D5-G97,"") -> 15812.03
C104: Quota % effettiva per cessione credito a Banca o Impresa "Interventi SB." | H104: ='Computo-Massimali'!H104 -> 0.9090909091 | I104: ='Computo-Massimali'!I104 -> 90.90909091 | J104: Importo Ricevuto | K104: =L83*H104 -> 0 | L104: Costo Cess. SB. | M104: =IF(L81-L82-K104>0,L81-L82-K104,0) -> 0
G105: Quota % effettiva per cessione credito a Banca o Impresa "Altri Interventi" | H105: ='Computo-Massimali'!H105 -> 1 | I105: ='Computo-Massimali'!I105 -> 100 | J105: Importo Ricevuto | K105: =L95*H105 -> 0 | L105: Costo Cess. Altri | M105: =IF(L95-K105>0,L95-K105,0) -> 0
F107: Costi Cliente | G107: Quota Imprese | H107: Quota Tecnici | K107: Costi Totali | L107: Quota Imprese | M107: Quota Tecnici
E108: Quota a Carico x Interventi Superbonus | F108: =L82 -> 0 | G108: =IF(Totale60<>0,F108*Import60/Totale60,0) -> 0 | H108: =IF(Totale60<>0,F108*SpeseTec60/Totale60,0) -> 0 | J108: Interventi Superbonus | K108: =Totale60 -> 0 | L108: =IF(Totale60<>0,K108*Import60/Totale60,0) -> 0 | M108: =IF(Totale60<>0,K108*SpeseTec60/Totale60,0) -> 0
E109: Quota a Carico x Altri Interventi | F109: =L94 -> 0 | G109: =IF(L93<>0,F109*J93/L93,0) -> 0 | H109: =IF(L93<>0,F109*K93/L93,0) -> 0 | J109: Altri Interventi | K109: =L93 -> 0 | L109: =IF(L93<>0,K109*J93/L93,0) -> 0 | M109: =IF(L93<>0,K109*K93/L93,0) -> 0
E110: per Cessione Credito Superbonus | F110: =M104 -> 0 | G110: =IF(Totale60<>0,F110*Import60/Totale60,0) -> 0 | H110: =IF(Totale60<>0,F110*SpeseTec60/Totale60,0) -> 0 | J110: Costi Cessione | K110: =F110+F111 -> 0 | L110: =G110+G111 -> 0 | M110: =H110+H111 -> 0
E111: per Cessione Credito Altri Interventi | F111: =M105 -> 0 | G111: =IF(L93<>0,F111*J93/L93,0) -> 0 | H111: =IF(L93<>0,F111*K93/L93,0) -> 0 | J111: Sommano | K111: =SUM(K108:K110) -> 0 | L111: =SUM(L108:L110) -> 0 | M111: =SUM(M108:M110) -> 0
E112: Sommano | F112: =SUM(F108:F111) -> 0 | G112: =SUM(G108:G111) -> 0 | H112: =SUM(H108:H111) -> 0

Sheet SAL.Finale
P1: =MATCH("SimMZ",C:C,0) -> 78
C2: ='SAL.30%'!C2 -> Tizio Caio FG.12 P.LLA.510 Sub.4 - Roma | F2: DATI PROGETTO : | G2: IMPONIBILE | H2: 29/08/2022 | I2: IMPORTO | K2: IMPONIBILE | L2: IVA | M2: IMPORTO | N2: Pratica.SB
C3: STATO AVANZAMENTO LAVORI Finale | F3: Importo Lavori | G3: ='Dati Gen'!G18 -> 39800 | H3: ='Dati Gen'!K18 -> 3980 | I3: ='Dati Gen'!M18 -> 43780 | J3: Importo Netto | K3: ='Dati Gen'!G20 -> 39800 | L3: ='Dati Gen'!K20 -> 3980 | M3: ='Dati Gen'!M20 -> 43780 | P3: *
C4: 24/03/2023 | F4: Oneri Sicurezza | G4: ='Dati Gen'!G19 -> 0 | H4: ='Dati Gen'!K19 -> 0 | I4: ='Dati Gen'!M19 -> 0 | J4: Spese Tecniche | K4: ='Dati Gen'!G21 -> 6101.26841 | L4: ='Dati Gen'!K21 -> 0 | M4: ='Dati Gen'!M21 -> 6101.26841 | Q4: =IF(Titolare!$B$16="Versione Demo","Versione Demo",IF('Computo-Massimali'!C6<>"","Attenzione! Tabella Computo-Massimali non completa. Si consiglia di completare, prima di registrare Voci di SAL","")) -> Versione Demo
C5: Oneri/Lavori x Sicurezza | D5: 0 | K5: ='Dati Gen'!G22 -> Importo Complessivo Progetto | M5: ='Dati Gen'!M22 -> 49881.26841
C7: INTERVENTI TRAINANTI | O7: .. | Q7: =CONCATENATE("Verifica Massimali di Spesa ",C7) -> Verifica Massimali di Spesa INTERVENTI TRAINANTI | AG7: ='Computo-Massimali'!BI7 -> Ripartizione tra le Imprese - Imponibile Lavori INTERVENTI TRAINANTI | AO7: Ripartizione Spese Tecniche / Lavoro : SAL. Finale - INTERVENTI SB.
C8: Interventi | F8: Importo Lavori | G8: Incidenza Sicurezza | H8: Imponibile | I8: Iva | J8: Importo c.iva | K8: Spese tecniche | L8: Totale | M8: =CONCATENATE("Credito Spettante ", percDetr*100,"% Spesa Ammessa") -> Credito Spettante 75% Spesa Ammessa | N8: %SAL | Q8: Interventi | R8: Massimale spesa | S8: Verifica Max | U8: Spesa Ammessa | W8: Quota Eccedente Massimale Spesa | Y8: =CONCATENATE("Credito Spettante",CHAR(10), percDetr*100,"% Spesa Ammessa",CHAR(10),"Quota Imprese | Quota Tecnici") -> Credito Spettante 75% Spesa Ammessa Quota Imprese | Quota Tecnici | AG8: Interventi | AH8: =IF('Dati Gen'!$B$38<>"",'Dati Gen'!$B$38,"") -> Impresa1 | AI8: =IF('Dati Gen'!$B$39<>"",'Dati Gen'!$B$39,"") -> Impresa2 | AJ8: =IF('Dati Gen'!$B$40<>"",'Dati Gen'!$B$40,"") -> Impresa3 | AK8: =IF('Dati Gen'!$B$41<>"",'Dati Gen'!$B$41,"") -> Impresa4 | AL8: =IF('Dati Gen'!$B$42<>"",'Dati Gen'!$B$42,"") ->  | AO8: Lavoro | AQ8: Tecnico | AR8: Onorario | AT8: C.Cassa | AV8: Imponibile | AX8: IVA | AZ8: Totale | BB8: Applica Sconto in Fattura | BC8: =IF(ABS(SUM(AZ9:AZ17)-AZ18)>0.01,CONCATENATE("Errore: ",CHAR(10),"Somma Ripartizione Totale SB =",ROUND(SUM(AZ9:AZ17),2), " €. <> ",CHAR(10),"Totale Spese Tecniche =",ROUND(AZ18,2)," €."),"") -> 
C9: ='Computo-Massimali'!C9 -> PV) Isolamento pareti perimetrali | E9: ='Computo-Massimali'!E9 -> Esterno | F9: ='Computo-Massimali'!F9 -> 0 | G9: =IF('Computo-Massimali'!F9<>0,'Computo-Massimali'!G9*F9/'Computo-Massimali'!F9,0) -> 0 | H9: =SUM(F9:G9) -> 0 | I9: =IF(('Computo-Massimali'!F9+'Computo-Massimali'!G9)<>0,'Computo-Massimali'!I9/('Computo-Massimali'!F9+'Computo-Massimali'!G9)*H9,0) -> 0 | J9: =H9+I9 -> 0 | K9: =IF('Computo-Massimali'!F9<>0,'Computo-Massimali'!K9*F9/'Computo-Massimali'!F9,0) -> 0 | L9: =SUM(J9:K9) -> 0 | M9: =IF(L9<=R9,L9*percDetr,R9*percDetr) -> 0 | N9: =IF('Computo-Massimali'!L9>0,L9/'Computo-Massimali'!L9,0) -> 0 | O9: =IF(F9>0,IF(F9-0.001>'Computo-Massimali'!F9,">C.",IF(F9+0.001<'SAL.60%'!F9,"<S2","")),"") ->  | P9: .. | Q9: =C9 -> PV) Isolamento pareti perimetrali | R9: ='Computo-Massimali'!T9 -> 0 | S9: =IF(L9>R9,"ko","ok") -> ok | U9: =IF(L13<>0,(L9/L13)*U13,0) -> 0 | W9: =IF(L9>R9,L9-R9,0) -> 0 | Y9: =IF(M9<>0,J9*M9/L9,0) -> 0 | AA9: =IF(M9<>0,K9*M9/L9,0) -> 0 | AG9: =Q9 -> PV) Isolamento pareti perimetrali | AH9: ='Computo-Massimali'!BJ9 -> 0 | AI9: ='Computo-Massimali'!BK9 -> 0 | AJ9: ='Computo-Massimali'!BL9 -> 0 | AK9: ='Computo-Massimali'!BM9 -> 0 | AL9: ='Computo-Massimali'!BN9 -> 0 | AM9: =IF(ABS(SUM(AH9:AL9)-H9)>0.01,"err. Somma",IF(AH9>'Computo-Massimali'!BJ9,"Err.1",IF(AI9>'Computo-Massimali'!BK9,"Err.2",IF(AJ9>'Computo-Massimali'!BL9,"Err.3",IF(AK9>'Computo-Massimali'!BM9,"Err.4",IF(AL9>'Computo-Massimali'!BN9,"Err.5","")))))) ->  | AO9: =IF('Dati Gen'!$B$25<>"",'Dati Gen'!$B$25,"") -> Progettazione Architettonica, strutturale, Dir.Lav. Misure e contabilità | AQ9: =IF('Dati Gen'!$C$25<>"",'Dati Gen'!$C$25,"") -> Tecnico1 | AR9: =AV9/(1+AT9) -> 0 | AT9: ='Dati Gen'!G25 -> 0.04 | AU9: =AR9*AT9 -> 0 | AV9: =AZ9/(1+AX9) -> 0 | AX9: ='Dati Gen'!J25 -> 0.22 | AY9: =AX9*(AR9+AU9) -> 0 | AZ9: =IF('Dati Gen'!$M$36<>0,$AZ$18*'Dati Gen'!M25/'Dati Gen'!$M$36,0) -> 0 | BB9: =IF(AQ9<>"",VLOOKUP(AQ9,'Dati Gen'!$B$44:$D$51,3,0),"") -> NO
C10: ='Computo-Massimali'!C10 -> PO) Isolamento coperture | E10: ='Computo-Massimali'!E10 -> Esterno | F10: ='Computo-Massimali'!F10 -> 0 | G10: =IF('Computo-Massimali'!F10<>0,'Computo-Massimali'!G10*F10/'Computo-Massimali'!F10,0) -> 0 | H10: =SUM(F10:G10) -> 0 | I10: =IF(('Computo-Massimali'!F10+'Computo-Massimali'!G10)<>0,'Computo-Massimali'!I10/('Computo-Massimali'!F10+'Computo-Massimali'!G10)*H10,0) -> 0 | J10: =H10+I10 -> 0 | K10: =IF('Computo-Massimali'!F10<>0,'Computo-Massimali'!K10*F10/'Computo-Massimali'!F10,0) -> 0 | L10: =SUM(J10:K10) -> 0 | M10: 0 | N10: =IF('Computo-Massimali'!L10>0,L10/'Computo-Massimali'!L10,0) -> 0 | O10: =IF(F10>0,IF(F10-0.001>'Computo-Massimali'!F10,">C.",IF(F10+0.001<'SAL.60%'!F10,"<S2","")),"") ->  | P10: .. | Q10: =C10 -> PO) Isolamento coperture | R10: ='Computo-Massimali'!T10 -> 0 | S10: =IF(L10>R10,"ko","ok") -> ok | U10: =IF(L13<>0,(L10/L13)*U13,0) -> 0 | W10: 0 | Y10: 0 | AA10: 0 | AG10: PO) Isolamento coperture | AH10: ='Computo-Massimali'!BJ10 -> 0 | AI10: ='Computo-Massimali'!BK10 -> 0 | AJ10: ='Computo-Massimali'!BL10 -> 0 | AK10: ='Computo-Massimali'!BM10 -> 0 | AL10: ='Computo-Massimali'!BN10 -> 0 | AM10: =IF(ABS(SUM(AH10:AL10)-H10)>0.01,"err. Somma",IF(AH10>'Computo-Massimali'!BJ10,"Err.1",IF(AI10>'Computo-Massimali'!BK10,"Err.2",IF(AJ10>'Computo-Massimali'!BL10,"Err.3",IF(AK10>'Computo-Massimali'!BM10,"Err.4",IF(AL10>'Computo-Massimali'!BN10,"Err.5","")))))) ->  | AO10: =IF('Dati Gen'!$B$26<>"",'Dati Gen'!$B$26,"") ->  | AQ10: =IF('Dati Gen'!$C$26<>"",'Dati Gen'!$C$26,"") ->  | AR10: =AV10/(1+AT10) -> 0 | AT10: ='Dati Gen'!G26 -> 0.04 | AU10: 0 | AV10: =AZ10/(1+AX10) -> 0 | AX10: ='Dati Gen'!J26 -> 0.22 | AY10: =(AR10+AU10)*AX10 -> 0 | AZ10: =IF('Dati Gen'!$M$36<>0,$AZ$18*'Dati Gen'!M26/'Dati Gen'!$M$36,0) -> 0 | BB10: =IF(AQ10<>"",VLOOKUP(AQ10,'Dati Gen'!$B$44:$D$51,3,0),"") -> 
C11: ='Computo-Massimali'!C11 -> POND) Isol. coperture non disperdenti | E11: ='Computo-Massimali'!E11 -> Esterno | F11: ='Computo-Massimali'!F11 -> 0 | G11: =IF('Computo-Massimali'!F11<>0,'Computo-Massimali'!G11*F11/'Computo-Massimali'!F11,0) -> 0 | H11: =SUM(F11:G11) -> 0 | I11: =IF(('Computo-Massimali'!F11+'Computo-Massimali'!G11)<>0,'Computo-Massimali'!I11/('Computo-Massimali'!F11+'Computo-Massimali'!G11)*H11,0) -> 0 | J11: =H11+I11 -> 0 | K11: =IF('Computo-Massimali'!F11<>0,'Computo-Massimali'!K11*F11/'Computo-Massimali'!F11,0) -> 0 | L11: =SUM(J11:K11) -> 0 | M11: 0 | N11: =IF('Computo-Massimali'!L11>0,L11/'Computo-Massimali'!L11,0) -> 0 | O11: =IF(F11>0,IF(F11-0.001>'Computo-Massimali'!F11,">C.",IF(F11+0.001<'SAL.60%'!F11,"<S2","")),"") ->  | P11: .. | Q11: POND) Isol. coperture non disperdenti | R11: ='Computo-Massimali'!T11 -> 0 | S11: ok | U11: =IF(L13<>0,(L11/L13)*U13,0) -> 0 | W11: 0 | Y11: 0 | AA11: 0 | AG11: POND) Isol. coperture non disperdenti | AH11: ='Computo-Massimali'!BJ11 -> 0 | AI11: ='Computo-Massimali'!BK11 -> 0 | AJ11: ='Computo-Massimali'!BL11 -> 0 | AK11: ='Computo-Massimali'!BM11 -> 0 | AL11: ='Computo-Massimali'!BN11 -> 0 | AM11: =IF(ABS(SUM(AH11:AL11)-H11)>0.01,"err. Somma",IF(AH11>'Computo-Massimali'!BJ11,"Err.1",IF(AI11>'Computo-Massimali'!BK11,"Err.2",IF(AJ11>'Computo-Massimali'!BL11,"Err.3",IF(AK11>'Computo-Massimali'!BM11,"Err.4",IF(AL11>'Computo-Massimali'!BN11,"Err.5","")))))) ->  | AO11: =IF('Dati Gen'!$B$27<>"",'Dati Gen'!$B$27,"") ->  | AQ11: =IF('Dati Gen'!$C$27<>"",'Dati Gen'!$C$27,"") ->  | AR11: 0 | AT11: ='Dati Gen'!G27 -> 0.04 | AU11: 0 | AV11: 0 | AX11: ='Dati Gen'!J27 -> 0 | AY11: 0 | AZ11: =IF('Dati Gen'!$M$36<>0,$AZ$18*'Dati Gen'!M27/'Dati Gen'!$M$36,0) -> 0 | BB11: =IF(AQ11<>"",VLOOKUP(AQ11,'Dati Gen'!$B$44:$D$51,3,0),"") -> 
C12: ='Computo-Massimali'!C12 -> PS) Isolamento Pavimenti | E12: ='Computo-Massimali'!E12 -> Interno/terreno | F12: ='Computo-Massimali'!F12 -> 0 | G12: =IF('Computo-Massimali'!F12<>0,'Computo-Massimali'!G12*F12/'Computo-Massimali'!F12,0) -> 0 | H12: =SUM(F12:G12) -> 0 | I12: =IF(('Computo-Massimali'!F12+'Computo-Massimali'!G12)<>0,'Computo-Massimali'!I12/('Computo-Massimali'!F12+'Computo-Massimali'!G12)*H12,0) -> 0 | J12: =H12+I12 -> 0 | K12: =IF('Computo-Massimali'!F12<>0,'Computo-Massimali'!K12*F12/'Computo-Massimali'!F12,0) -> 0 | L12: =SUM(J12:K12) -> 0 | M12: 0 | N12: =IF('Computo-Massimali'!L12>0,L12/'Computo-Massimali'!L12,0) -> 0 | O12: =IF(F12>0,IF(F12-0.001>'Computo-Massimali'!F12,">C.",IF(F12+0.001<'SAL.60%'!F12,"<S2","")),"") ->  | P12: .. | Q12: PS) Isolamento Pavimenti | R12: ='Computo-Massimali'!T12 -> 0 | S12: ok | U12: =IF(L13<>0,(L12/L13)*U13,0) -> 0 | W12: 0 | Y12: 0 | AA12: 0 | AG12: PS) Isolamento Pavimenti | AH12: ='Computo-Massimali'!BJ12 -> 0 | AI12: ='Computo-Massimali'!BK12 -> 0 | AJ12: ='Computo-Massimali'!BL12 -> 0 | AK12: ='Computo-Massimali'!BM12 -> 0 | AL12: ='Computo-Massimali'!BN12 -> 0 | AM12: =IF(ABS(SUM(AH12:AL12)-H12)>0.01,"err. Somma",IF(AH12>'Computo-Massimali'!BJ12,"Err.1",IF(AI12>'Computo-Massimali'!BK12,"Err.2",IF(AJ12>'Computo-Massimali'!BL12,"Err.3",IF(AK12>'Computo-Massimali'!BM12,"Err.4",IF(AL12>'Computo-Massimali'!BN12,"Err.5","")))))) ->  | AO12: =IF('Dati Gen'!$B$28<>"",'Dati Gen'!$B$28,"") ->  | AQ12: =IF('Dati Gen'!$C$28<>"",'Dati Gen'!$C$28,"") ->  | AR12: 0 | AT12: ='Dati Gen'!G28 -> 0.04 | AU12: 0 | AV12: 0 | AX12: ='Dati Gen'!J28 -> 0.22 | AY12: 0 | AZ12: =IF('Dati Gen'!$M$36<>0,$AZ$18*'Dati Gen'!M28/'Dati Gen'!$M$36,0) -> 0 | BB12: =IF(AQ12<>"",VLOOKUP(AQ12,'Dati Gen'!$B$44:$D$51,3,0),"") -> 
C13: ='Computo-Massimali'!C13 -> Totali Isolamento PV) PO) POND) PS) | F13: =SUM(F9:F12) -> 0 | G13: =SUM(G9:G12) -> 0 | H13: =SUM(H9:H12) -> 0 | I13: 0 | J13: 0 | K13: 0 | L13: 0 | M13: 0 | N13: =IF('Computo-Massimali'!L13>0,L13/'Computo-Massimali'!L13,0) -> 0 | O13: =IF(F13>0,IF(F13-0.001>'Computo-Massimali'!F13,">C.",IF(F13+0.001<'SAL.60%'!F13,"<S2","")),"") ->  | Q13: Totali Isolamento PV) PO) POND) PS) | R13: ='Computo-Massimali'!T13 -> 0 | S13: ok | U13: =IF(L13<R13,L13,R13) -> 0 | W13: 0 | Y13: 0 | AA13: 0 | AG13: Totali Isolamento PV) PO) POND) PS) | AH13: =SUM(AH9:AH12) -> 0 | AI13: =SUM(AI9:AI12) -> 0 | AJ13: =SUM(AJ9:AJ12) -> 0 | AK13: =SUM(AK9:AK12) -> 0 | AL13: =SUM(AL9:AL12) -> 0 | AO13: =IF('Dati Gen'!$B$29<>"",'Dati Gen'!$B$29,"") ->  | AQ13: =IF('Dati Gen'!$C$29<>"",'Dati Gen'!$C$29,"") ->  | AR13: =AV13/(1+AT13) -> 0 | AT13: ='Dati Gen'!G29 -> 0.04 | AU13: 0 | AV13: 0 | AX13: ='Dati Gen'!J29 -> 0.22 | AY13: 0 | AZ13: =IF('Dati Gen'!$M$36<>0,$AZ$18*'Dati Gen'!M29/'Dati Gen'!$M$36,0) -> 0 | BB13: =IF(AQ13<>"",VLOOKUP(AQ13,'Dati Gen'!$B$44:$D$51,3,0),"") -> 
C14: =CONCATENATE('Computo-Massimali'!C14," con ",'Computo-Massimali'!D14) -> Impianti climatizzazione e ACS con PC)Aria/Aria | F14: ='Computo-Massimali'!F14 -> 0 | G14: =IF('Computo-Massimali'!F14<>0,'Computo-Massimali'!G14*F14/'Computo-Massimali'!F14,0) -> 0 | H14: =SUM(F14:G14) -> 0 | I14: =IF(('Computo-Massimali'!F14+'Computo-Massimali'!G14)<>0,'Computo-Massimali'!I14/('Computo-Massimali'!F14+'Computo-Massimali'!G14)*H14,0) -> 0 | J14: =H14+I14 -> 0 | K14: =IF('Computo-Massimali'!F14<>0,'Computo-Massimali'!K14*F14/'Computo-Massimali'!F14,0) -> 0 | L14: =SUM(J14:K14) -> 0 | M14: 0 | N14: =IF('Computo-Massimali'!L14>0,L14/'Computo-Massimali'!L14,0) -> 0 | O14: =IF(F14>0,IF(F14-0.001>'Computo-Massimali'!F14,">C.",IF(F14+0.001<'SAL.60%'!F14,"<S2","")),"") ->  | P14: .. | Q14: Impianti climatizzazione e ACS con PC)Aria/Aria | R14: ='Computo-Massimali'!T14 -> 0 | S14: ok | U14: =IF(L14<R14,L14,R14) -> 0 | W14: 0 | Y14: 0 | AA14: 0 | AG14: Impianti climatizzazione e ACS con PC)Aria/Aria | AH14: ='Computo-Massimali'!BJ14 -> 0 | AI14: ='Computo-Massimali'!BK14 -> 0 | AJ14: ='Computo-Massimali'!BL14 -> 0 | AK14: ='Computo-Massimali'!BM14 -> 0 | AL14: ='Computo-Massimali'!BN14 -> 0 | AM14: =IF(ABS(SUM(AH14:AL14)-H14)>0.01,"err. Somma",IF(AH14>'Computo-Massimali'!BJ14,"Err.1",IF(AI14>'Computo-Massimali'!BK14,"Err.2",IF(AJ14>'Computo-Massimali'!BL14,"Err.3",IF(AK14>'Computo-Massimali'!BM14,"Err.4",IF(AL14>'Computo-Massimali'!BN14,"Err.5","")))))) ->  | AO14: =IF('Dati Gen'!$B$30<>"",'Dati Gen'!$B$30,"") ->  | AQ14: =IF('Dati Gen'!$C$30<>"",'Dati Gen'!$C$30,"") ->  | AR14: =AV14/(1+AT14) -> 0 | AT14: ='Dati Gen'!G30 -> 0.04 | AU14: 0 | AV14: 0 | AX14: ='Dati Gen'!J30 -> 0.22 | AY14: 0 | AZ14: =IF('Dati Gen'!$M$36<>0,$AZ$18*'Dati Gen'!M30/'Dati Gen'!$M$36,0) -> 0 | BB14: =IF(AQ14<>"",VLOOKUP(AQ14,'Dati Gen'!$B$44:$D$51,3,0),"") -> 
C15: =CONCATENATE('Computo-Massimali'!C15,'Computo-Massimali'!E15) -> SismaBonus Zona 1,2 o 3 P.Classi = 1 | F15: ='Computo-Massimali'!F15 -> 0 | G15: =IF('Computo-Massimali'!F15<>0,'Computo-Massimali'!G15*F15/'Computo-Massimali'!F15,0) -> 0 | H15: =SUM(F15:G15) -> 0 | I15: =IF(('Computo-Massimali'!F15+'Computo-Massimali'!G15)<>0,'Computo-Massimali'!I15/('Computo-Massimali'!F15+'Computo-Massimali'!G15)*H15,0) -> 0 | J15: =H15+I15 -> 0 | K15: =IF('Computo-Massimali'!F15<>0,'Computo-Massimali'!K15*F15/'Computo-Massimali'!F15,0) -> 0 | L15: =SUM(J15:K15) -> 0 | M15: 0 | N15: =IF('Computo-Massimali'!L15>0,L15/'Computo-Massimali'!L15,0) -> 0 | O15: =IF(F15>0,IF(F15-0.001>'Computo-Massimali'!F15,">C.",IF(F15+0.001<'SAL.60%'!F15,"<S2","")),"") ->  | P15: .. | Q15: SismaBonus Zona 1,2 o 3 P.Classi = 1 | R15: ='Computo-Massimali'!T15 -> 96000 | S15: ok | U15: =IF(L15<R15,L15,R15) -> 0 | W15: 0 | Y15: 0 | AA15: 0 | AG15: SismaBonus Zona 1,2 o 3 P.Classi = 1 | AH15: ='Computo-Massimali'!BJ15 -> 0 | AI15: ='Computo-Massimali'!BK15 -> 0 | AJ15: ='Computo-Massimali'!BL15 -> 0 | AK15: ='Computo-Massimali'!BM15 -> 0 | AL15: ='Computo-Massimali'!BN15 -> 0 | AM15: =IF(ABS(SUM(AH15:AL15)-H15)>0.01,"err. Somma",IF(AH15>'Computo-Massimali'!BJ15,"Err.1",IF(AI15>'Computo-Massimali'!BK15,"Err.2",IF(AJ15>'Computo-Massimali'!BL15,"Err.3",IF(AK15>'Computo-Massimali'!BM15,"Err.4",IF(AL15>'Computo-Massimali'!BN15,"Err.5","")))))) ->  | AO15: =IF('Dati Gen'!$B$31<>"",'Dati Gen'!$B$31,"") ->  | AQ15: =IF('Dati Gen'!$C$31<>"",'Dati Gen'!$C$31,"") ->  | AR15: 0 | AT15: ='Dati Gen'!G31 -> 0.04 | AU15: 0 | AV15: 0 | AX15: ='Dati Gen'!J31 -> 0.22 | AY15: 0 | AZ15: =IF('Dati Gen'!$M$36<>0,$AZ$18*'Dati Gen'!M31/'Dati Gen'!$M$36,0) -> 0 | BB15: =IF(AQ15<>"",VLOOKUP(AQ15,'Dati Gen'!$B$44:$D$51,3,0),"") -> 
C16: ='Computo-Massimali'!C16 -> Totale interventi Trainanti : | F16: =IF(Titolare!$B$16="Versione Demo",0,SUM(F13:F15)) -> 0 | G16: =SUM(G13:G15) -> 0 | H16: 0 | I16: 0 | J16: 0 | K16: 0 | L16: 0 | M16: =SUM(M13:M15) -> 0 | N16: =IF('Computo-Massimali'!L16>0,L16/'Computo-Massimali'!L16,0) -> 0 | O16: =IF(F16>0,IF(F16-0.001>'Computo-Massimali'!F16,">C.",IF(F16+0.001<'SAL.60%'!F16,"<S2","")),"") ->  | R16: =C16 -> Totale interventi Trainanti : | U16: =SUM(U13:V15) -> 0 | W16: =SUM(W13:X15) -> 0 | Y16: =SUM(Y13:Z15) -> 0 | AA16: =SUM(AA13:AB15) -> 0 | AG16: =R16 -> Totale interventi Trainanti : | AH16: =SUM(AH13:AH15) -> 0 | AI16: =SUM(AI13:AI15) -> 0 | AJ16: =SUM(AJ13:AJ15) -> 0 | AK16: =SUM(AK13:AK15) -> 0 | AL16: =SUM(AL13:AL15) -> 0 | AO16: =IF('Dati Gen'!$B$32<>"",'Dati Gen'!$B$32,"") ->  | AQ16: =IF('Dati Gen'!$C$32<>"",'Dati Gen'!$C$32,"") ->  | AR16: 0 | AT16: ='Dati Gen'!G32 -> 0.04 | AU16: 0 | AV16: 0 | AX16: ='Dati Gen'!J32 -> 0.22 | AY16: 0 | AZ16: =IF('Dati Gen'!$M$36<>0,$AZ$18*'Dati Gen'!M32/'Dati Gen'!$M$36,0) -> 0 | BB16: =IF(AQ16<>"",VLOOKUP(AQ16,'Dati Gen'!$B$44:$D$51,3,0),"") -> 
AO17: =IF('Dati Gen'!$B$35<>"",'Dati Gen'!$B$35,"") -> Visto Conformità | AQ17: =IF('Dati Gen'!$C$35<>"",'Dati Gen'!$C$35,"") -> Consulente | AR17: 0 | AT17: ='Dati Gen'!G35 -> 0.04 | AU17: 0 | AV17: 0 | AX17: ='Dati Gen'!J35 -> 0.22 | AY17: 0 | AZ17: =IF('Dati Gen'!$M$36<>0,$AZ$18*'Dati Gen'!M35/'Dati Gen'!$M$36,0) -> 0 | BB17: =IF(AQ17<>"",VLOOKUP(AQ17,'Dati Gen'!$B$44:$D$51,3,0),"") -> NO
C18: INTERVENTI TRAINATI PARTI COMUNI CONDOMINIALI | O18: .. | Q18: =CONCATENATE("Verifica Massimali di Spesa ",C18) -> Verifica Massimali di Spesa INTERVENTI TRAINATI PARTI COMUNI CONDOMINIALI | AG18: ='Computo-Massimali'!BI18 -> Ripartizione tra le Imprese - Imponibile Lavori INTERVENTI TRAINATI PARTI COMUNI CONDOMINIALI | AR18: =SUM(AR9:AS17) -> 0 | AT18: =SUM(AU9:AU17) -> 0 | AV18: =SUM(AV9:AW17) -> 0 | AY18: =SUM(AY9:AY17) -> 0 | AZ18: =K81 -> 0
C19: Interventi | F19: Importo Lavori | G19: Incidenza Sicurezza | H19: Imponibile | I19: Iva | J19: Importo c.iva | K19: Spese tecniche | L19: Totale | M19: =$M$8 -> Credito Spettante 75% Spesa Ammessa | N19: %SAL | Q19: Interventi | R19: Massimale spesa | S19: Verifica Max | U19: Spesa Ammessa | W19: Quota Eccedente Massimale Spesa | Y19: =$Y$8 -> Credito Spettante 75% Spesa Ammessa Quota Imprese | Quota Tecnici | AG19: Interventi | AH19: =IF('Dati Gen'!$B$38<>"",'Dati Gen'!$B$38,"") -> Impresa1 | AI19: =IF('Dati Gen'!$B$39<>"",'Dati Gen'!$B$39,"") -> Impresa2 | AJ19: =IF('Dati Gen'!$B$40<>"",'Dati Gen'!$B$40,"") -> Impresa3 | AK19: =IF('Dati Gen'!$B$41<>"",'Dati Gen'!$B$41,"") -> Impresa4 | AL19: =IF('Dati Gen'!$B$42<>"",'Dati Gen'!$B$42,"") ->  | AO19: Ripartizione Spese Tecniche / Professionista : SAL. Finale - INTERVENTI SB.
C20: ='Computo-Massimali'!C20 -> PV) Isolamento pareti perimetrali | E20: ='Computo-Massimali'!E20 -> Esterno | F20: ='Computo-Massimali'!F20 -> 0 | G20: =IF('Computo-Massimali'!F20<>0,'Computo-Massimali'!G20*F20/'Computo-Massimali'!F20,0) -> 0 | H20: =SUM(F20:G20) -> 0 | I20: =IF(('Computo-Massimali'!F20+'Computo-Massimali'!G20)<>0,'Computo-Massimali'!I20/('Computo-Massimali'!F20+'Computo-Massimali'!G20)*H20,0) -> 0 | J20: =H20+I20 -> 0 | K20: =IF('Computo-Massimali'!F20<>0,'Computo-Massimali'!K20*F20/'Computo-Massimali'!F20,0) -> 0 | L20: =SUM(J20:K20) -> 0 | M20: =IF(L20<=R20,L20*percDetr,R20*percDetr) -> 0 | N20: =IF('Computo-Massimali'!L20>0,L20/'Computo-Massimali'!L20,0) -> 0 | O20: =IF(F20>0,IF(F20-0.001>'Computo-Massimali'!F20,">C.",IF(F20+0.001<'SAL.60%'!F20,"<S2","")),"") ->  | P20: .. | Q20: =C20 -> PV) Isolamento pareti perimetrali | R20: ='Computo-Massimali'!T20 -> 0 | S20: =IF(L20>R20,"ko","ok") -> ok | U20: =IF(L24<>0,(L20/L24)*U24,0) -> 0 | W20: =IF(L20>R20,L20-R20,0) -> 0 | Y20: =IF(M20<>0,J20*M20/L20,0) -> 0 | AA20: =IF(M20<>0,K20*M20/L20,0) -> 0 | AG20: =Q20 -> PV) Isolamento pareti perimetrali | AH20: ='Computo-Massimali'!BJ20 -> 0 | AI20: ='Computo-Massimali'!BK20 -> 0 | AJ20: ='Computo-Massimali'!BL20 -> 0 | AK20: ='Computo-Massimali'!BM20 -> 0 | AL20: ='Computo-Massimali'!BN20 -> 0 | AM20: =IF(ABS(SUM(AH20:AL20)-H20)>0.01,"err. Somma",IF(AH20>'Computo-Massimali'!BJ20,"Err.1",IF(AI20>'Computo-Massimali'!BK20,"Err.2",IF(AJ20>'Computo-Massimali'!BL20,"Err.3",IF(AK20>'Computo-Massimali'!BM20,"Err.4",IF(AL20>'Computo-Massimali'!BN20,"Err.5","")))))) ->  | AO20: =IF('Dati Gen'!$B$44<>"",'Dati Gen'!$B$44,"") -> Tecnico1 | AP20: =IF('Dati Gen'!$B$45<>"",'Dati Gen'!$B$45,"") -> Tecnico2 | AQ20: =IF('Dati Gen'!$B$46<>"",'Dati Gen'!$B$46,"") -> Consulente | AR20: =IF('Dati Gen'!$B$47<>"",'Dati Gen'!$B$47,"") ->  | AT20: =IF('Dati Gen'!$B$48<>"",'Dati Gen'!$B$48,"") ->  | AV20: =IF('Dati Gen'!$B$49<>"",'Dati Gen'!$B$49,"") ->  | AX20: =IF('Dati Gen'!$B$50<>"",'Dati Gen'!$B$50,"") ->  | AZ20: =IF('Dati Gen'!$B$51<>"",'Dati Gen'!$B$51,"") -> 
C21: ='Computo-Massimali'!C21 -> PO) Isolamento coperture | E21: ='Computo-Massimali'!E21 -> Esterno | F21: ='Computo-Massimali'!F21 -> 0 | G21: =IF('Computo-Massimali'!F21<>0,'Computo-Massimali'!G21*F21/'Computo-Massimali'!F21,0) -> 0 | H21: =SUM(F21:G21) -> 0 | I21: =IF(('Computo-Massimali'!F21+'Computo-Massimali'!G21)<>0,'Computo-Massimali'!I21/('Computo-Massimali'!F21+'Computo-Massimali'!G21)*H21,0) -> 0 | J21: =H21+I21 -> 0 | K21: =IF('Computo-Massimali'!F21<>0,'Computo-Massimali'!K21*F21/'Computo-Massimali'!F21,0) -> 0 | L21: =SUM(J21:K21) -> 0 | M21: =IF(L21<=R21,L21*percDetr,R21*percDetr) -> 0 | N21: =IF('Computo-Massimali'!L21>0,L21/'Computo-Massimali'!L21,0) -> 0 | O21: =IF(F21>0,IF(F21-0.001>'Computo-Massimali'!F21,">C.",IF(F21+0.001<'SAL.60%'!F21,"<S2","")),"") ->  | P21: .. | Q21: PO) Isolamento coperture | R21: ='Computo-Massimali'!T21 -> 0 | S21: ok | U21: =IF(L24<>0,(L21/L24)*U24,0) -> 0 | W21: 0 | Y21: 0 | AA21: 0 | AG21: PO) Isolamento coperture | AH21: ='Computo-Massimali'!BJ21 -> 0 | AI21: ='Computo-Massimali'!BK21 -> 0 | AJ21: ='Computo-Massimali'!BL21 -> 0 | AK21: ='Computo-Massimali'!BM21 -> 0 | AL21: ='Computo-Massimali'!BN21 -> 0 | AM21: =IF(ABS(SUM(AH21:AL21)-H21)>0.01,"err. Somma",IF(AH21>'Computo-Massimali'!BJ21,"Err.1",IF(AI21>'Computo-Massimali'!BK21,"Err.2",IF(AJ21>'Computo-Massimali'!BL21,"Err.3",IF(AK21>'Computo-Massimali'!BM21,"Err.4",IF(AL21>'Computo-Massimali'!BN21,"Err.5","")))))) ->  | AO21: =IF($AQ9=AO$20,$AZ9,0) -> 0 | AP21: =IF($AQ9=AP$20,$AZ9,0) -> 0 | AQ21: 0 | AR21: =IF($AQ9=AR$20,$AZ9,0) -> 0 | AT21: =IF($AQ9=AT$20,$AZ9,0) -> 0 | AV21: =IF($AQ9=AV$20,$AZ9,0) -> 0 | AX21: =IF($AQ9=AX$20,$AZ9,0) -> 0 | AZ21: =IF($AQ9=AZ$20,$AZ9,0) -> 0
C22: ='Computo-Massimali'!C22 -> PS) Isolamento Pavimenti | E22: ='Computo-Massimali'!E22 -> Interno/terreno | F22: ='Computo-Massimali'!F22 -> 0 | G22: =IF('Computo-Massimali'!F22<>0,'Computo-Massimali'!G22*F22/'Computo-Massimali'!F22,0) -> 0 | H22: =SUM(F22:G22) -> 0 | I22: =IF(('Computo-Massimali'!F22+'Computo-Massimali'!G22)<>0,'Computo-Massimali'!I22/('Computo-Massimali'!F22+'Computo-Massimali'!G22)*H22,0) -> 0 | J22: =H22+I22 -> 0 | K22: =IF('Computo-Massimali'!F22<>0,'Computo-Massimali'!K22*F22/'Computo-Massimali'!F22,0) -> 0 | L22: =SUM(J22:K22) -> 0 | M22: =IF(L22<=R22,L22*percDetr,R22*percDetr) -> 0 | N22: =IF('Computo-Massimali'!L22>0,L22/'Computo-Massimali'!L22,0) -> 0 | O22: =IF(F22>0,IF(F22-0.001>'Computo-Massimali'!F22,">C.",IF(F22+0.001<'SAL.60%'!F22,"<S2","")),"") ->  | P22: .. | Q22: PS) Isolamento Pavimenti | R22: ='Computo-Massimali'!T22 -> 0 | S22: ok | U22: =IF(L24<>0,(L22/L24)*U24,0) -> 0 | W22: 0 | Y22: 0 | AA22: 0 | AG22: PS) Isolamento Pavimenti | AH22: ='Computo-Massimali'!BJ22 -> 0 | AI22: ='Computo-Massimali'!BK22 -> 0 | AJ22: ='Computo-Massimali'!BL22 -> 0 | AK22: ='Computo-Massimali'!BM22 -> 0 | AL22: ='Computo-Massimali'!BN22 -> 0 | AM22: =IF(ABS(SUM(AH22:AL22)-H22)>0.01,"err. Somma",IF(AH22>'Computo-Massimali'!BJ22,"Err.1",IF(AI22>'Computo-Massimali'!BK22,"Err.2",IF(AJ22>'Computo-Massimali'!BL22,"Err.3",IF(AK22>'Computo-Massimali'!BM22,"Err.4",IF(AL22>'Computo-Massimali'!BN22,"Err.5","")))))) ->  | AO22: =IF($AQ10=AO$20,$AZ10,0) -> 0 | AP22: 0 | AQ22: 0 | AR22: =IF($AQ10=AR$20,$AZ10,0) -> 0 | AT22: =IF($AQ10=AT$20,$AZ10,0) -> 0 | AV22: =IF($AQ10=AV$20,$AZ10,0) -> 0 | AX22: =IF($AQ10=AX$20,$AZ10,0) -> 0 | AZ22: =IF($AQ10=AZ$20,$AZ10,0) -> 0
C23: ='Computo-Massimali'!C23 -> IN) Serramenti con chiusure oscuranti | E23: ='Computo-Massimali'!E23 -> Zone D, E ed F | F23: ='Computo-Massimali'!F23 -> 0 | G23: =IF('Computo-Massimali'!F23<>0,'Computo-Massimali'!G23*F23/'Computo-Massimali'!F23,0) -> 0 | H23: =SUM(F23:G23) -> 0 | I23: =IF(('Computo-Massimali'!F23+'Computo-Massimali'!G23)<>0,'Computo-Massimali'!I23/('Computo-Massimali'!F23+'Computo-Massimali'!G23)*H23,0) -> 0 | J23: =H23+I23 -> 0 | K23: =IF('Computo-Massimali'!F23<>0,'Computo-Massimali'!K23*F23/'Computo-Massimali'!F23,0) -> 0 | L23: =SUM(J23:K23) -> 0 | M23: =IF(L23<=R23,L23*percDetr,R23*percDetr) -> 0 | N23: =IF('Computo-Massimali'!L23>0,L23/'Computo-Massimali'!L23,0) -> 0 | O23: =IF(F23>0,IF(F23-0.001>'Computo-Massimali'!F23,">C.",IF(F23+0.001<'SAL.60%'!F23,"<S2","")),"") ->  | P23: .. | Q23: IN) Serramenti con chiusure oscuranti | R23: ='Computo-Massimali'!T23 -> 0 | S23: ok | U23: =IF(L24<>0,(L23/L24)*U24,0) -> 0 | W23: 0 | Y23: 0 | AA23: 0 | AG23: IN) Serramenti con chiusure oscuranti | AH23: ='Computo-Massimali'!BJ23 -> 0 | AI23: ='Computo-Massimali'!BK23 -> 0 | AJ23: ='Computo-Massimali'!BL23 -> 0 | AK23: ='Computo-Massimali'!BM23 -> 0 | AL23: ='Computo-Massimali'!BN23 -> 0 | AM23: =IF(ABS(SUM(AH23:AL23)-H23)>0.01,"err. Somma",IF(AH23>'Computo-Massimali'!BJ23,"Err.1",IF(AI23>'Computo-Massimali'!BK23,"Err.2",IF(AJ23>'Computo-Massimali'!BL23,"Err.3",IF(AK23>'Computo-Massimali'!BM23,"Err.4",IF(AL23>'Computo-Massimali'!BN23,"Err.5","")))))) ->  | AO23: =IF($AQ11=AO$20,$AZ11,0) -> 0 | AP23: 0 | AQ23: 0 | AR23: 0 | AT23: =IF($AQ11=AT$20,$AZ11,0) -> 0 | AV23: 0 | AX23: 0 | AZ23: 0
C24: ='Computo-Massimali'!C24 -> Totali Isolamento PV) PO) PS) e IN) | F24: =SUM(F20:F23) -> 0 | G24: 0 | H24: 0 | I24: 0 | J24: 0 | K24: 0 | L24: 0 | M24: =SUM(M20:M23) -> 0 | N24: =IF('Computo-Massimali'!L24>0,L24/'Computo-Massimali'!L24,0) -> 0 | O24: =IF(F24>0,IF(F24-0.001>'Computo-Massimali'!F24,">C.",IF(F24+0.001<'SAL.60%'!F24,"<S2","")),"") ->  | Q24: Totali Isolamento PV) PO) PS) e IN) | R24: ='Computo-Massimali'!T24 -> 0 | S24: ok | U24: =IF(L24<R24,L24,R24) -> 0 | W24: 0 | Y24: 0 | AA24: 0 | AG24: Totali Isolamento PV) PO) PS) e IN) | AH24: =SUM(AH20:AH23) -> 0 | AI24: =SUM(AI20:AI23) -> 0 | AJ24: =SUM(AJ20:AJ23) -> 0 | AK24: =SUM(AK20:AK23) -> 0 | AL24: =SUM(AL20:AL23) -> 0 | AO24: =IF($AQ12=AO$20,$AZ12,0) -> 0 | AP24: 0 | AQ24: 0 | AR24: 0 | AT24: 0 | AV24: 0 | AX24: 0 | AZ24: 0
C25: ='Computo-Massimali'!C25 -> SS) Schermature solari e chiusure oscuranti | F25: ='Computo-Massimali'!F25 -> 0 | G25: =IF('Computo-Massimali'!F25<>0,'Computo-Massimali'!G25*F25/'Computo-Massimali'!F25,0) -> 0 | H25: =SUM(F25:G25) -> 0 | I25: =IF(('Computo-Massimali'!F25+'Computo-Massimali'!G25)<>0,'Computo-Massimali'!I25/('Computo-Massimali'!F25+'Computo-Massimali'!G25)*H25,0) -> 0 | J25: 0 | K25: =IF('Computo-Massimali'!F25<>0,'Computo-Massimali'!K25*F25/'Computo-Massimali'!F25,0) -> 0 | L25: =SUM(J25:K25) -> 0 | M25: =IF(L25<=R25,L25*percDetr,R25*percDetr) -> 0 | N25: =IF('Computo-Massimali'!L25>0,L25/'Computo-Massimali'!L25,0) -> 0 | O25: =IF(F25>0,IF(F25-0.001>'Computo-Massimali'!F25,">C.",IF(F25+0.001<'SAL.60%'!F25,"<S2","")),"") ->  | P25: .. | Q25: SS) Schermature solari e chiusure oscuranti | R25: ='Computo-Massimali'!T25 -> 0 | S25: ok | U25: =IF(L25<R25,L25,R25) -> 0 | W25: 0 | Y25: 0 | AA25: 0 | AG25: SS) Schermature solari e chiusure oscuranti | AH25: ='Computo-Massimali'!BJ25 -> 0 | AI25: ='Computo-Massimali'!BK25 -> 0 | AJ25: ='Computo-Massimali'!BL25 -> 0 | AK25: ='Computo-Massimali'!BM25 -> 0 | AL25: ='Computo-Massimali'!BN25 -> 0 | AM25: =IF(ABS(SUM(AH25:AL25)-H25)>0.01,"err. Somma",IF(AH25>'Computo-Massimali'!BJ25,"Err.1",IF(AI25>'Computo-Massimali'!BK25,"Err.2",IF(AJ25>'Computo-Massimali'!BL25,"Err.3",IF(AK25>'Computo-Massimali'!BM25,"Err.4",IF(AL25>'Computo-Massimali'!BN25,"Err.5","")))))) ->  | AO25: 0 | AP25: 0 | AQ25: 0 | AR25: 0 | AT25: 0 | AV25: 0 | AX25: 0 | AZ25: 0
C26: =CONCATENATE('Computo-Massimali'!C26," con ",'Computo-Massimali'!D26) -> Impianti climatizzazione con con CC)Caldaie a Condensazione | F26: ='Computo-Massimali'!F26 -> 0 | G26: =IF('Computo-Massimali'!F26<>0,'Computo-Massimali'!G26*F26/'Computo-Massimali'!F26,0) -> 0 | H26: =SUM(F26:G26) -> 0 | I26: =IF(('Computo-Massimali'!F26+'Computo-Massimali'!G26)<>0,'Computo-Massimali'!I26/('Computo-Massimali'!F26+'Computo-Massimali'!G26)*H26,0) -> 0 | J26: 0 | K26: =IF('Computo-Massimali'!F26<>0,'Computo-Massimali'!K26*F26/'Computo-Massimali'!F26,0) -> 0 | L26: 0 | M26: =IF(L26<=R26,L26*percDetr,R26*percDetr) -> 0 | N26: =IF('Computo-Massimali'!L26>0,L26/'Computo-Massimali'!L26,0) -> 0 | O26: =IF(F26>0,IF(F26-0.001>'Computo-Massimali'!F26,">C.",IF(F26+0.001<'SAL.60%'!F26,"<S2","")),"") ->  | P26: .. | Q26: Impianti climatizzazione con con CC)Caldaie a Condensazione | R26: ='Computo-Massimali'!T26 -> 0 | S26: ok | U26: =IF(L26<R26,L26,R26) -> 0 | W26: 0 | Y26: 0 | AA26: 0 | AG26: Impianti climatizzazione con con CC)Caldaie a Condensazione | AH26: ='Computo-Massimali'!BJ26 -> 0 | AI26: ='Computo-Massimali'!BK26 -> 0 | AJ26: ='Computo-Massimali'!BL26 -> 0 | AK26: ='Computo-Massimali'!BM26 -> 0 | AL26: ='Computo-Massimali'!BN26 -> 0 | AM26: =IF(ABS(SUM(AH26:AL26)-H26)>0.01,"err. Somma",IF(AH26>'Computo-Massimali'!BJ26,"Err.1",IF(AI26>'Computo-Massimali'!BK26,"Err.2",IF(AJ26>'Computo-Massimali'!BL26,"Err.3",IF(AK26>'Computo-Massimali'!BM26,"Err.4",IF(AL26>'Computo-Massimali'!BN26,"Err.5","")))))) ->  | AO26: 0 | AP26: 0 | AQ26: 0 | AR26: 0 | AT26: 0 | AV26: 0 | AX26: =IF($AQ14=AX$20,$AZ14,0) -> 0 | AZ26: 0
C27: ='Computo-Massimali'!C27 -> GA) Generatori aria calda Condensazione | F27: ='Computo-Massimali'!F27 -> 0 | G27: =IF('Computo-Massimali'!F27<>0,'Computo-Massimali'!G27*F27/'Computo-Massimali'!F27,0) -> 0 | H27: =SUM(F27:G27) -> 0 | I27: =IF(('Computo-Massimali'!F27+'Computo-Massimali'!G27)<>0,'Computo-Massimali'!I27/('Computo-Massimali'!F27+'Computo-Massimali'!G27)*H27,0) -> 0 | J27: 0 | K27: =IF('Computo-Massimali'!F27<>0,'Computo-Massimali'!K27*F27/'Computo-Massimali'!F27,0) -> 0 | L27: 0 | M27: =IF(L27<=R27,L27*percDetr,R27*percDetr) -> 0 | N27: =IF('Computo-Massimali'!L27>0,L27/'Computo-Massimali'!L27,0) -> 0 | O27: =IF(F27>0,IF(F27-0.001>'Computo-Massimali'!F27,">C.",IF(F27+0.001<'SAL.60%'!F27,"<S2","")),"") ->  | P27: .. | Q27: GA) Generatori aria calda Condensazione | R27: ='Computo-Massimali'!T27 -> 0 | S27: ok | U27: =IF(L30<>0,(L27/L30)*U30,0) -> 0 | W27: =IF(L27>R27,L27-R27,0) -> 0 | Y27: 0 | AA27: 0 | AG27: GA) Generatori aria calda Condensazione | AH27: ='Computo-Massimali'!BJ27 -> 0 | AI27: ='Computo-Massimali'!BK27 -> 0 | AJ27: ='Computo-Massimali'!BL27 -> 0 | AK27: ='Computo-Massimali'!BM27 -> 0 | AL27: ='Computo-Massimali'!BN27 -> 0 | AM27: =IF(ABS(SUM(AH27:AL27)-H27)>0.01,"err. Somma",IF(AH27>'Computo-Massimali'!BJ27,"Err.1",IF(AI27>'Computo-Massimali'!BK27,"Err.2",IF(AJ27>'Computo-Massimali'!BL27,"Err.3",IF(AK27>'Computo-Massimali'!BM27,"Err.4",IF(AL27>'Computo-Massimali'!BN27,"Err.5","")))))) ->  | AO27: 0 | AP27: 0 | AQ27: 0 | AR27: 0 | AT27: 0 | AV27: 0 | AX27: 0 | AZ27: 0
C28: ='Computo-Massimali'!C28 -> IB) Impianti Biomassa | F28: ='Computo-Massimali'!F28 -> 0 | G28: =IF('Computo-Massimali'!F28<>0,'Computo-Massimali'!G28*F28/'Computo-Massimali'!F28,0) -> 0 | H28: =SUM(F28:G28) -> 0 | I28: =IF(('Computo-Massimali'!F28+'Computo-Massimali'!G28)<>0,'Computo-Massimali'!I28/('Computo-Massimali'!F28+'Computo-Massimali'!G28)*H28,0) -> 0 | J28: 0 | K28: =IF('Computo-Massimali'!F28<>0,'Computo-Massimali'!K28*F28/'Computo-Massimali'!F28,0) -> 0 | L28: 0 | M28: =IF(L28<=R28,L28*percDetr,R28*percDetr) -> 0 | N28: =IF('Computo-Massimali'!L28>0,L28/'Computo-Massimali'!L28,0) -> 0 | O28: =IF(F28>0,IF(F28-0.001>'Computo-Massimali'!F28,">C.",IF(F28+0.001<'SAL.60%'!F28,"<S2","")),"") ->  | P28: .. | Q28: IB) Impianti Biomassa | R28: ='Computo-Massimali'!T28 -> 0 | S28: ok | U28: =IF(L30<>0,(L28/L30)*U30,0) -> 0 | W28: 0 | Y28: 0 | AA28: 0 | AG28: IB) Impianti Biomassa | AH28: ='Computo-Massimali'!BJ28 -> 0 | AI28: ='Computo-Massimali'!BK28 -> 0 | AJ28: ='Computo-Massimali'!BL28 -> 0 | AK28: ='Computo-Massimali'!BM28 -> 0 | AL28: ='Computo-Massimali'!BN28 -> 0 | AM28: =IF(ABS(SUM(AH28:AL28)-H28)>0.01,"err. Somma",IF(AH28>'Computo-Massimali'!BJ28,"Err.1",IF(AI28>'Computo-Massimali'!BK28,"Err.2",IF(AJ28>'Computo-Massimali'!BL28,"Err.3",IF(AK28>'Computo-Massimali'!BM28,"Err.4",IF(AL28>'Computo-Massimali'!BN28,"Err.5","")))))) ->  | AO28: 0 | AP28: 0 | AQ28: 0 | AR28: 0 | AT28: 0 | AV28: 0 | AX28: 0 | AZ28: 0
C29: ='Computo-Massimali'!C29 -> SA) Scaldacqua a pompa di calore | F29: ='Computo-Massimali'!F29 -> 0 | G29: =IF('Computo-Massimali'!F29<>0,'Computo-Massimali'!G29*F29/'Computo-Massimali'!F29,0) -> 0 | H29: =SUM(F29:G29) -> 0 | I29: =IF(('Computo-Massimali'!F29+'Computo-Massimali'!G29)<>0,'Computo-Massimali'!I29/('Computo-Massimali'!F29+'Computo-Massimali'!G29)*H29,0) -> 0 | J29: 0 | K29: =IF('Computo-Massimali'!F29<>0,'Computo-Massimali'!K29*F29/'Computo-Massimali'!F29,0) -> 0 | L29: 0 | M29: =IF(L29<=R29,L29*percDetr,R29*percDetr) -> 0 | N29: =IF('Computo-Massimali'!L29>0,L29/'Computo-Massimali'!L29,0) -> 0 | O29: =IF(F29>0,IF(F29-0.001>'Computo-Massimali'!F29,">C.",IF(F29+0.001<'SAL.60%'!F29,"<S2","")),"") ->  | P29: .. | Q29: SA) Scaldacqua a pompa di calore | R29: ='Computo-Massimali'!T29 -> 0 | S29: ok | U29: =IF(L30<>0,(L29/L30)*U30,0) -> 0 | W29: 0 | Y29: 0 | AA29: 0 | AG29: SA) Scaldacqua a pompa di calore | AH29: ='Computo-Massimali'!BJ29 -> 0 | AI29: ='Computo-Massimali'!BK29 -> 0 | AJ29: ='Computo-Massimali'!BL29 -> 0 | AK29: ='Computo-Massimali'!BM29 -> 0 | AL29: ='Computo-Massimali'!BN29 -> 0 | AM29: =IF(ABS(SUM(AH29:AL29)-H29)>0.01,"err. Somma",IF(AH29>'Computo-Massimali'!BJ29,"Err.1",IF(AI29>'Computo-Massimali'!BK29,"Err.2",IF(AJ29>'Computo-Massimali'!BL29,"Err.3",IF(AK29>'Computo-Massimali'!BM29,"Err.4",IF(AL29>'Computo-Massimali'!BN29,"Err.5","")))))) ->  | AO29: 0 | AP29: 0 | AQ29: 0 | AR29: 0 | AT29: 0 | AV29: 0 | AX29: 0 | AZ29: 0
C30: ='Computo-Massimali'!C30 -> Totali GA) IB) SA) | F30: =SUM(F27:F29) -> 0 | G30: 0 | H30: 0 | I30: 0 | J30: 0 | K30: 0 | L30: 0 | M30: 0 | N30: =IF('Computo-Massimali'!L30>0,L30/'Computo-Massimali'!L30,0) -> 0 | O30: =IF(F30>0,IF(F30-0.001>'Computo-Massimali'!F30,">C.",IF(F30+0.001<'SAL.60%'!F30,"<S2","")),"") ->  | Q30: Totali GA) IB) SA) | R30: ='Computo-Massimali'!T30 -> 0 | S30: ok | U30: =IF(L30<R30,L30,R30) -> 0 | W30: 0 | Y30: 0 | AA30: 0 | AG30: Totali GA) IB) SA) | AH30: =SUM(AH27:AH29) -> 0 | AI30: =SUM(AI27:AI29) -> 0 | AJ30: =SUM(AJ27:AJ29) -> 0 | AK30: =SUM(AK27:AK29) -> 0 | AL30: =SUM(AL27:AL29) -> 0 | AO30: =SUM(AO21:AO29) -> 0 | AP30: =SUM(AP21:AP29) -> 0 | AQ30: =SUM(AQ21:AQ29) -> 0 | AR30: =SUM(AR21:AR29) -> 0 | AT30: =SUM(AT21:AT29) -> 0 | AV30: =SUM(AV21:AV29) -> 0 | AX30: =SUM(AX21:AX29) -> 0 | AZ30: =SUM(AZ21:AZ29) -> 0 | BB30: =SUM(AO30:BA30) -> 0
C31: =CONCATENATE('Computo-Massimali'!C31," - ",'Computo-Massimali'!E31) -> CO) Sistemi di Microgenerazione - Celle a combustibile | F31: ='Computo-Massimali'!F31 -> 0 | G31: =IF('Computo-Massimali'!F31<>0,'Computo-Massimali'!G31*F31/'Computo-Massimali'!F31,0) -> 0 | H31: =SUM(F31:G31) -> 0 | I31: =IF(('Computo-Massimali'!F31+'Computo-Massimali'!G31)<>0,'Computo-Massimali'!I31/('Computo-Massimali'!F31+'Computo-Massimali'!G31)*H31,0) -> 0 | J31: =H31+I31 -> 0 | K31: =IF('Computo-Massimali'!F31<>0,'Computo-Massimali'!K31*F31/'Computo-Massimali'!F31,0) -> 0 | L31: =SUM(J31:K31) -> 0 | M31: =IF(L31<=R31,L31*percDetr,R31*percDetr) -> 0 | N31: =IF('Computo-Massimali'!L31>0,L31/'Computo-Massimali'!L31,0) -> 0 | O31: =IF(F31>0,IF(F31-0.001>'Computo-Massimali'!F31,">C.",IF(F31+0.001<'SAL.60%'!F31,"<S2","")),"") ->  | P31: .. | Q31: CO) Sistemi di Microgenerazione - Celle a combustibile | R31: ='Computo-Massimali'!T31 -> 0 | S31: ok | U31: 0 | W31: 0 | Y31: 0 | AA31: 0 | AG31: CO) Sistemi di Microgenerazione - Celle a combustibile | AH31: ='Computo-Massimali'!BJ31 -> 0 | AI31: ='Computo-Massimali'!BK31 -> 0 | AJ31: ='Computo-Massimali'!BL31 -> 0 | AK31: ='Computo-Massimali'!BM31 -> 0 | AL31: ='Computo-Massimali'!BN31 -> 0 | AM31: =IF(ABS(SUM(AH31:AL31)-H31)>0.01,"err. Somma",IF(AH31>'Computo-Massimali'!BJ31,"Err.1",IF(AI31>'Computo-Massimali'!BK31,"Err.2",IF(AJ31>'Computo-Massimali'!BL31,"Err.3",IF(AK31>'Computo-Massimali'!BM31,"Err.4",IF(AL31>'Computo-Massimali'!BN31,"Err.5","")))))) ->  | AO31: =IF($BB$30<>0,AO30/$BB$30,0) -> 0 | AP31: =IF($BB$30<>0,AP30/$BB$30,0) -> 0 | AQ31: =IF($BB$30<>0,AQ30/$BB$30,0) -> 0 | AR31: =IF($BB$30<>0,AR30/$BB$30,0) -> 0 | AT31: =IF($BB$30<>0,AT30/$BB$30,0) -> 0 | AV31: =IF($BB$30<>0,AV30/$BB$30,0) -> 0 | AX31: =IF($BB$30<>0,AX30/$BB$30,0) -> 0 | AZ31: =IF($BB$30<>0,AZ30/$BB$30,0) -> 0
C32: ='Computo-Massimali'!C32 -> ST) Collettori Solari | E32: ='Computo-Massimali'!E32 -> Piani Vetrati | F32: ='Computo-Massimali'!F32 -> 0 | G32: =IF('Computo-Massimali'!F32<>0,'Computo-Massimali'!G32*F32/'Computo-Massimali'!F32,0) -> 0 | H32: 0 | I32: =IF(('Computo-Massimali'!F32+'Computo-Massimali'!G32)<>0,'Computo-Massimali'!I32/('Computo-Massimali'!F32+'Computo-Massimali'!G32)*H32,0) -> 0 | J32: =H32+I32 -> 0 | K32: =IF('Computo-Massimali'!F32<>0,'Computo-Massimali'!K32*F32/'Computo-Massimali'!F32,0) -> 0 | L32: =SUM(J32:K32) -> 0 | M32: 0 | N32: =IF('Computo-Massimali'!L32>0,L32/'Computo-Massimali'!L32,0) -> 0 | O32: =IF(F32>0,IF(F32-0.001>'Computo-Massimali'!F32,">C.",IF(F32+0.001<'SAL.60%'!F32,"<S2","")),"") ->  | P32: .. | Q32: ST) Collettori Solari | R32: ='Computo-Massimali'!T32 -> 0 | S32: ok | U32: 0 | W32: 0 | Y32: 0 | AA32: 0 | AG32: ST) Collettori Solari | AH32: ='Computo-Massimali'!BJ32 -> 0 | AI32: ='Computo-Massimali'!BK32 -> 0 | AJ32: ='Computo-Massimali'!BL32 -> 0 | AK32: ='Computo-Massimali'!BM32 -> 0 | AL32: ='Computo-Massimali'!BN32 -> 0 | AM32: =IF(ABS(SUM(AH32:AL32)-H32)>0.01,"err. Somma",IF(AH32>'Computo-Massimali'!BJ32,"Err.1",IF(AI32>'Computo-Massimali'!BK32,"Err.2",IF(AJ32>'Computo-Massimali'!BL32,"Err.3",IF(AK32>'Computo-Massimali'!BM32,"Err.4",IF(AL32>'Computo-Massimali'!BN32,"Err.5","")))))) -> 
C33: ='Computo-Massimali'!C33 -> FV) Solare Fotovoltaico [ kWp ] | E33: ='Computo-Massimali'!E33 -> 15.2 | F33: ='Computo-Massimali'!F33 -> 0 | G33: =IF('Computo-Massimali'!F33<>0,'Computo-Massimali'!G33*F33/'Computo-Massimali'!F33,0) -> 0 | H33: 0 | I33: =IF(('Computo-Massimali'!F33+'Computo-Massimali'!G33)<>0,'Computo-Massimali'!I33/('Computo-Massimali'!F33+'Computo-Massimali'!G33)*H33,0) -> 0 | J33: =H33+I33 -> 0 | K33: =IF('Computo-Massimali'!F33<>0,'Computo-Massimali'!K33*F33/'Computo-Massimali'!F33,0) -> 0 | L33: =SUM(J33:K33) -> 0 | M33: 0 | N33: =IF('Computo-Massimali'!L33>0,L33/'Computo-Massimali'!L33,0) -> 0 | O33: =IF(F33>0,IF(F33-0.001>'Computo-Massimali'!F33,">C.",IF(F33+0.001<'SAL.60%'!F33,"<S2","")),"") ->  | P33: .. | Q33: FV) Solare Fotovoltaico [ kWp ] | R33: ='Computo-Massimali'!T33 -> 36480 | S33: ok | U33: 0 | W33: 0 | Y33: 0 | AA33: 0 | AG33: FV) Solare Fotovoltaico [ kWp ] | AH33: ='Computo-Massimali'!BJ33 -> 0 | AI33: ='Computo-Massimali'!BK33 -> 0 | AJ33: ='Computo-Massimali'!BL33 -> 0 | AK33: ='Computo-Massimali'!BM33 -> 0 | AL33: ='Computo-Massimali'!BN33 -> 0 | AM33: =IF(ABS(SUM(AH33:AL33)-H33)>0.01,"err. Somma",IF(AH33>'Computo-Massimali'!BJ33,"Err.1",IF(AI33>'Computo-Massimali'!BK33,"Err.2",IF(AJ33>'Computo-Massimali'!BL33,"Err.3",IF(AK33>'Computo-Massimali'!BM33,"Err.4",IF(AL33>'Computo-Massimali'!BN33,"Err.5","")))))) -> 
C34: ='Computo-Massimali'!C34 -> AC) Sistema di Accumulo [ kWh ] | E34: ='Computo-Massimali'!E34 -> 10 | F34: ='Computo-Massimali'!F34 -> 0 | G34: =IF('Computo-Massimali'!F34<>0,'Computo-Massimali'!G34*F34/'Computo-Massimali'!F34,0) -> 0 | H34: 0 | I34: =IF(('Computo-Massimali'!F34+'Computo-Massimali'!G34)<>0,'Computo-Massimali'!I34/('Computo-Massimali'!F34+'Computo-Massimali'!G34)*H34,0) -> 0 | J34: =H34+I34 -> 0 | K34: =IF('Computo-Massimali'!F34<>0,'Computo-Massimali'!K34*F34/'Computo-Massimali'!F34,0) -> 0 | L34: =SUM(J34:K34) -> 0 | M34: 0 | N34: =IF('Computo-Massimali'!L34>0,L34/'Computo-Massimali'!L34,0) -> 0 | O34: =IF(F34>0,IF(F34-0.001>'Computo-Massimali'!F34,">C.",IF(F34+0.001<'SAL.60%'!F34,"<S2","")),"") ->  | P34: .. | Q34: AC) Sistema di Accumulo [ kWh ] | R34: ='Computo-Massimali'!T34 -> 10000 | S34: ok | U34: 0 | W34: 0 | Y34: 0 | AA34: 0 | AG34: AC) Sistema di Accumulo [ kWh ] | AH34: ='Computo-Massimali'!BJ34 -> 0 | AI34: ='Computo-Massimali'!BK34 -> 0 | AJ34: ='Computo-Massimali'!BL34 -> 0 | AK34: ='Computo-Massimali'!BM34 -> 0 | AL34: ='Computo-Massimali'!BN34 -> 0 | AM34: =IF(ABS(SUM(AH34:AL34)-H34)>0.01,"err. Somma",IF(AH34>'Computo-Massimali'!BJ34,"Err.1",IF(AI34>'Computo-Massimali'!BK34,"Err.2",IF(AJ34>'Computo-Massimali'!BL34,"Err.3",IF(AK34>'Computo-Massimali'!BM34,"Err.4",IF(AL34>'Computo-Massimali'!BN34,"Err.5","")))))) -> 
C35: ='Computo-Massimali'!C35 -> CR) Colonnine di Ricarica [ N. ] | E35: ='Computo-Massimali'!E35 -> 1 | F35: ='Computo-Massimali'!F35 -> 0 | G35: =IF('Computo-Massimali'!F35<>0,'Computo-Massimali'!G35*F35/'Computo-Massimali'!F35,0) -> 0 | H35: 0 | I35: =IF(('Computo-Massimali'!F35+'Computo-Massimali'!G35)<>0,'Computo-Massimali'!I35/('Computo-Massimali'!F35+'Computo-Massimali'!G35)*H35,0) -> 0 | J35: 0 | K35: =IF('Computo-Massimali'!F35<>0,'Computo-Massimali'!K35*F35/'Computo-Massimali'!F35,0) -> 0 | L35: 0 | M35: 0 | N35: =IF('Computo-Massimali'!L35>0,L35/'Computo-Massimali'!L35,0) -> 0 | O35: =IF(F35>0,IF(F35-0.001>'Computo-Massimali'!F35,">C.",IF(F35+0.001<'SAL.60%'!F35,"<S2","")),"") ->  | P35: .. | Q35: CR) Colonnine di Ricarica [ N. ] | R35: ='Computo-Massimali'!T35 -> 1500 | S35: ok | U35: 0 | W35: 0 | Y35: 0 | AA35: 0 | AG35: CR) Colonnine di Ricarica [ N. ] | AH35: ='Computo-Massimali'!BJ35 -> 0 | AI35: ='Computo-Massimali'!BK35 -> 0 | AJ35: ='Computo-Massimali'!BL35 -> 0 | AK35: ='Computo-Massimali'!BM35 -> 0 | AL35: ='Computo-Massimali'!BN35 -> 0 | AM35: =IF(ABS(SUM(AH35:AL35)-H35)>0.01,"err. Somma",IF(AH35>'Computo-Massimali'!BJ35,"Err.1",IF(AI35>'Computo-Massimali'!BK35,"Err.2",IF(AJ35>'Computo-Massimali'!BL35,"Err.3",IF(AK35>'Computo-Massimali'!BM35,"Err.4",IF(AL35>'Computo-Massimali'!BN35,"Err.5","")))))) -> 
C36: ='Computo-Massimali'!C36 -> EBA) Eliminazione Barriere architettoniche | F36: ='Computo-Massimali'!F36 -> 0 | G36: =IF('Computo-Massimali'!F36<>0,'Computo-Massimali'!G36*F36/'Computo-Massimali'!F36,0) -> 0 | H36: 0 | I36: =IF(('Computo-Massimali'!F36+'Computo-Massimali'!G36)<>0,'Computo-Massimali'!I36/('Computo-Massimali'!F36+'Computo-Massimali'!G36)*H36,0) -> 0 | J36: 0 | K36: =IF('Computo-Massimali'!F36<>0,'Computo-Massimali'!K36*F36/'Computo-Massimali'!F36,0) -> 0 | L36: 0 | M36: 0 | N36: =IF('Computo-Massimali'!L36>0,L36/'Computo-Massimali'!L36,0) -> 0 | O36: =IF(F36>0,IF(F36-0.001>'Computo-Massimali'!F36,">C.",IF(F36+0.001<'SAL.60%'!F36,"<S2","")),"") ->  | P36: .. | Q36: EBA) Eliminazione Barriere architettoniche | R36: ='Computo-Massimali'!T36 -> 96000 | S36: ok | U36: 0 | W36: 0 | Y36: 0 | AA36: 0 | AG36: EBA) Eliminazione Barriere architettoniche | AH36: ='Computo-Massimali'!BJ36 -> 0 | AI36: ='Computo-Massimali'!BK36 -> 0 | AJ36: ='Computo-Massimali'!BL36 -> 0 | AK36: ='Computo-Massimali'!BM36 -> 0 | AL36: ='Computo-Massimali'!BN36 -> 0 | AM36: =IF(ABS(SUM(AH36:AL36)-H36)>0.01,"err. Somma",IF(AH36>'Computo-Massimali'!BJ36,"Err.1",IF(AI36>'Computo-Massimali'!BK36,"Err.2",IF(AJ36>'Computo-Massimali'!BL36,"Err.3",IF(AK36>'Computo-Massimali'!BM36,"Err.4",IF(AL36>'Computo-Massimali'!BN36,"Err.5","")))))) -> 
C37: ='Computo-Massimali'!C37 -> Totale Interventi Trainati Parti Comuni : | F37: =SUM(F24:F26)+SUM(F30:F36) -> 0 | G37: 0 | H37: 0 | I37: 0 | J37: 0 | K37: 0 | L37: 0 | M37: 0 | N37: =IF('Computo-Massimali'!L37>0,L37/'Computo-Massimali'!L37,0) -> 0 | O37: =IF(F37>0,IF(F37-0.001>'Computo-Massimali'!F37,">C.",IF(F37+0.001<'SAL.60%'!F37,"<S2","")),"") ->  | R37: =C37 -> Totale Interventi Trainati Parti Comuni : | U37: =U24+U25+U26+SUM(U30:V36) -> 0 | W37: =W24+W25+W26+SUM(W30:X36) -> 0 | Y37: =Y24+Y25+Y26+SUM(Y30:Z36) -> 0 | AA37: =AA24+AA25+AA26+SUM(AA30:AB36) -> 0 | AG37: =R37 -> Totale Interventi Trainati Parti Comuni : | AH37: =AH24+AH25+AH26+SUM(AH30:AH36) -> 0 | AI37: =AI24+AI25+AI26+SUM(AI30:AI36) -> 0 | AJ37: =AJ24+AJ25+AJ26+SUM(AJ30:AJ36) -> 0 | AK37: =AK24+AK25+AK26+SUM(AK30:AK36) -> 0 | AL37: =AL24+AL25+AL26+SUM(AL30:AL36) -> 0
C40: INTERVENTI TRAINATI | O40: .. | Q40: =CONCATENATE("Verifica Massimali di Spesa ",C40) -> Verifica Massimali di Spesa INTERVENTI TRAINATI | AG40: ='Computo-Massimali'!BI40 -> Ripartizione tra le Imprese - Imponibile Lavori INTERVENTI TRAINATI | AO40: Ripartizione Spese Tecniche / Lavoro : SAL. Finale - ALTRI INTERVENTI
C41: Interventi | F41: Importo Lavori | G41: Incidenza Sicurezza | H41: Imponibile | I41: Iva | J41: Importo c.iva | K41: Spese tecniche | L41: Totale | M41: =$M$8 -> Credito Spettante 75% Spesa Ammessa | N41: %SAL | Q41: Interventi | R41: Massimale spesa | S41: Verifica Max | U41: Spesa Ammessa | W41: Quota Eccedente Massimale Spesa | Y41: =$Y$8 -> Credito Spettante 75% Spesa Ammessa Quota Imprese | Quota Tecnici | AG41: Interventi | AH41: =IF('Dati Gen'!$B$38<>"",'Dati Gen'!$B$38,"") -> Impresa1 | AI41: =IF('Dati Gen'!$B$39<>"",'Dati Gen'!$B$39,"") -> Impresa2 | AJ41: =IF('Dati Gen'!$B$40<>"",'Dati Gen'!$B$40,"") -> Impresa3 | AK41: =IF('Dati Gen'!$B$41<>"",'Dati Gen'!$B$41,"") -> Impresa4 | AL41: =IF('Dati Gen'!$B$42<>"",'Dati Gen'!$B$42,"") ->  | AO41: Lavoro | AQ41: Tecnico | AR41: Onorario | AT41: C.Cassa | AV41: Imponibile | AX41: IVA | AZ41: Totale | BB41: Applica Sconto in Fattura | BC41: =IF(ABS(SUM(AZ42:AZ50)-AZ51)>0.01,CONCATENATE("Errore: ",CHAR(10),"Somma Ripartizione Totale Altri Interventi =",ROUND(SUM(AZ42:AZ50),2), " €. <> ",CHAR(10),"Totale Spese Tecniche =",ROUND(AZ51,2)," €."),"") -> 
C42: ='Computo-Massimali'!C42:D42 -> PV) Isolamento pareti perimetrali | E42: ='Computo-Massimali'!E42 -> Esterno | F42: ='Computo-Massimali'!F42 -> 0 | G42: =IF('Computo-Massimali'!F42<>0,'Computo-Massimali'!G42*F42/'Computo-Massimali'!F42,0) -> 0 | H42: =SUM(F42:G42) -> 0 | I42: =IF(('Computo-Massimali'!F42+'Computo-Massimali'!G42)<>0,'Computo-Massimali'!I42/('Computo-Massimali'!F42+'Computo-Massimali'!G42)*H42,0) -> 0 | J42: =H42+I42 -> 0 | K42: =IF('Computo-Massimali'!F42<>0,'Computo-Massimali'!K42*F42/'Computo-Massimali'!F42,0) -> 0 | L42: =SUM(J42:K42) -> 0 | M42: =IF(L42<=R42,L42*percDetr,R42*percDetr) -> 0 | N42: =IF('Computo-Massimali'!L42>0,L42/'Computo-Massimali'!L42,0) -> 0 | O42: =IF(F42>0,IF(F42-0.001>'Computo-Massimali'!F42,">C.",IF(F42+0.001<'SAL.60%'!F42,"<S2","")),"") ->  | P42: .. | Q42: =C42 -> PV) Isolamento pareti perimetrali | R42: ='Computo-Massimali'!T42 -> 0 | S42: =IF(L42>R42,"ko","ok") -> ok | U42: =IF(L46<>0,(L42/L46)*U46,0) -> 0 | W42: =IF(L42>R42,L42-R42,0) -> 0 | Y42: =IF(M42<>0,J42*M42/L42,0) -> 0 | AA42: =IF(M42<>0,K42*M42/L42,0) -> 0 | AG42: =Q42 -> PV) Isolamento pareti perimetrali | AH42: ='Computo-Massimali'!BJ42 -> 0 | AI42: ='Computo-Massimali'!BK42 -> 0 | AJ42: ='Computo-Massimali'!BL42 -> 0 | AK42: ='Computo-Massimali'!BM42 -> 0 | AL42: ='Computo-Massimali'!BN42 -> 0 | AM42: =IF(ABS(SUM(AH42:AL42)-H42)>0.01,"err. Somma",IF(AH42>'Computo-Massimali'!BJ42,"Err.1",IF(AI42>'Computo-Massimali'!BK42,"Err.2",IF(AJ42>'Computo-Massimali'!BL42,"Err.3",IF(AK42>'Computo-Massimali'!BM42,"Err.4",IF(AL42>'Computo-Massimali'!BN42,"Err.5","")))))) ->  | AO42: =IF('Dati Gen'!$B$25<>"",'Dati Gen'!$B$25,"") -> Progettazione Architettonica, strutturale, Dir.Lav. Misure e contabilità | AQ42: =IF('Dati Gen'!$C$25<>"",'Dati Gen'!$C$25,"") -> Tecnico1 | AR42: =AV42/(1+AT42) -> 3600.000938 | AT42: ='Dati Gen'!G25 -> 0.04 | AU42: =AR42*AT42 -> 144.0000375 | AV42: =AZ42/(1+AX42) -> 3744.000976 | AX42: ='Dati Gen'!J25 -> 0.22 | AY42: =AX42*(AR42+AU42) -> 823.6802147 | AZ42: =IF('Dati Gen'!$M$36<>0,$AZ$51*'Dati Gen'!M25/'Dati Gen'!$M$36,0) -> 4567.681191 | BB42: =IF(AQ42<>"",VLOOKUP(AQ42,'Dati Gen'!$B$44:$D$51,3,0),"") -> NO
C43: ='Computo-Massimali'!C43:D43 -> PO) Isolamento coperture | E43: Esterno | F43: ='Computo-Massimali'!F43 -> 0 | G43: =IF('Computo-Massimali'!F43<>0,'Computo-Massimali'!G43*F43/'Computo-Massimali'!F43,0) -> 0 | H43: =SUM(F43:G43) -> 0 | I43: =IF(('Computo-Massimali'!F43+'Computo-Massimali'!G43)<>0,'Computo-Massimali'!I43/('Computo-Massimali'!F43+'Computo-Massimali'!G43)*H43,0) -> 0 | J43: =H43+I43 -> 0 | K43: =IF('Computo-Massimali'!F43<>0,'Computo-Massimali'!K43*F43/'Computo-Massimali'!F43,0) -> 0 | L43: =SUM(J43:K43) -> 0 | M43: =IF(L43<=R43,L43*percDetr,R43*percDetr) -> 0 | N43: =IF('Computo-Massimali'!L43>0,L43/'Computo-Massimali'!L43,0) -> 0 | O43: =IF(F43>0,IF(F43-0.001>'Computo-Massimali'!F43,">C.",IF(F43+0.001<'SAL.60%'!F43,"<S2","")),"") ->  | P43: .. | Q43: PO) Isolamento coperture | R43: ='Computo-Massimali'!T43 -> 0 | S43: ok | U43: =IF(L46<>0,(L43/L46)*U46,0) -> 0 | W43: 0 | Y43: 0 | AA43: 0 | AG43: PO) Isolamento coperture | AH43: ='Computo-Massimali'!BJ43 -> 0 | AI43: ='Computo-Massimali'!BK43 -> 0 | AJ43: ='Computo-Massimali'!BL43 -> 0 | AK43: ='Computo-Massimali'!BM43 -> 0 | AL43: ='Computo-Massimali'!BN43 -> 0 | AM43: =IF(ABS(SUM(AH43:AL43)-H43)>0.01,"err. Somma",IF(AH43>'Computo-Massimali'!BJ43,"Err.1",IF(AI43>'Computo-Massimali'!BK43,"Err.2",IF(AJ43>'Computo-Massimali'!BL43,"Err.3",IF(AK43>'Computo-Massimali'!BM43,"Err.4",IF(AL43>'Computo-Massimali'!BN43,"Err.5","")))))) ->  | AO43: =IF('Dati Gen'!$B$26<>"",'Dati Gen'!$B$26,"") ->  | AQ43: =IF('Dati Gen'!$C$26<>"",'Dati Gen'!$C$26,"") ->  | AR43: 0 | AT43: ='Dati Gen'!G26 -> 0.04 | AU43: 0 | AV43: =AZ43/(1+AX43) -> 0 | AX43: ='Dati Gen'!J26 -> 0.22 | AY43: =(AR43+AU43)*AX43 -> 0 | AZ43: =IF('Dati Gen'!$M$36<>0,$AZ$51*'Dati Gen'!M26/'Dati Gen'!$M$36,0) -> 0 | BB43: =IF(AQ43<>"",VLOOKUP(AQ43,'Dati Gen'!$B$44:$D$51,3,0),"") -> 
